Workbook

Sheet Resultats
E1: 50 | F1: 0.015625 | G1: 1.05859375 | H1: =ROUND(G1,2) -> 1.06 | I1: 0.015625 | J1: 4.1875 | K1: =ROUND(J1,2) -> 4.19 | L1: =ROUND((E1/H1)*3.6,1) -> 169.8 | M1: =ROUND((E1/K1)*3.6,1) -> 43
B2: Accueil | H2: "Le RELAIS à 4"
C3: 1,25 | D3: 144
G4: créé par Laurent Bourdin
G5: version MAJ 15/11/13
W6: vendredi 8 novembre 2013
Q7: Equipe 1 | S7: ABCD | T7: 200 | U7: ABCD | W7: Equipe 1
Q8: Equipe 2 | S8: DABC | T8: 30 | U8: ABDC | W8: Equipe 2
Q9: Equipe 3 | T9: =T7/4 -> 50 | U9: ACBD | W9: 50
Q10: Equipe 4 | S10: Groupe 2 | U10: ACDB
Q11: Equipe 5 | S11: Groupe 1 | U11: ADBC | W11: 500 | X11: 500 | Y11: 500 | Z11: 500
Q12: Equipe 6 | S12: vendredi 8 novembre | U12: ADCB | W12: 500 | X12: 500 | Y12: 500 | Z12: 500
Q13: Equipe 7 | U13: ADCB | W13: 500 | X13: 500 | Y13: 500 | Z13: 500
Q14: Equipe 8 | U14: BACD | W14: 500 | X14: 500 | Y14: 500 | Z14: 500
U15: BADC | W15: 500 | X15: 500 | Y15: 500 | Z15: 500
Q16: Equipe 1 | R16: 1,06 | S16: Départ arrêté | T16: 169,8 | U16: BCAD | W16: 500 | X16: 500 | Y16: 500 | Z16: 500
Q17: Equipe 2 | S17: Départ lancé | U17: BCDA | W17: 500 | X17: 500 | Y17: 500 | Z17: 500
Q18: Equipe 3 | U18: BDAC | W18: 500 | X18: 500 | Y18: 500 | Z18: 500
Q19: Equipe 4 | U19: BDCA | W19: 500 | X19: 500 | Y19: 500 | Z19: 500
Q20: Equipe 5 | U20: CABD | W20: 500 | X20: 500 | Y20: 500 | Z20: 500
Q21: Equipe 6 | U21: CADB | W21: 500 | X21: 500 | Y21: 500 | Z21: 500
Q22: Equipe 7 | R22: 20,31 | U22: CBAD | W22: 500 | X22: 500 | Y22: 500 | Z22: 500
Q23: Equipe 8 | U23: CBDA | W23: 500 | X23: 500 | Y23: 500 | Z23: 500
Q24: =IF(Saisiegroupes!C$5="","",Saisiegroupes!C$5) ->  | U24: CDAB | W24: 500 | X24: 500 | Y24: 500 | Z24: 500
B25: Lap 1 | C25: Lap 2 | D25: Lap 3 | E25: Lap 4 | F25: Lap 5 | G25: Lap 6 | H25: Lap 7 | Q25: =IF(Saisiegroupes!C$6="","",Saisiegroupes!C$6) ->  | U25: CDBA | W25: 500 | X25: 500 | Y25: 500 | Z25: 500
A26: 0.015625 | B26: 5.75 | C26: 9.65625 | D26: 14.3125 | E26: 16.03125 | F26: 18.296875 | G26: 20.015625 | H26: 22.75 | Q26: =IF(Saisiegroupes!C$7="","",Saisiegroupes!C$7) ->  | U26: DABC | W26: 500 | X26: 500 | Y26: 500 | Z26: 500
B27: Lap 1 | C27: Lap 2 | D27: Lap 3 | E27: Lap 4 | F27: Lap 5 | G27: Lap 6 | H27: Lap 7 | Q27: =IF(Saisiegroupes!C$8="","",Saisiegroupes!C$8) ->  | U27: DACB | W27: 500 | X27: 500 | Y27: 500 | Z27: 500
A28: 0.015625 | Q28: =IF(Saisiegroupes!C$11="","",Saisiegroupes!C$11) ->  | U28: DBAC | W28: 500 | X28: 500 | Y28: 500 | Z28: 500
Q29: =IF(Saisiegroupes!C$12="","",Saisiegroupes!C$12) ->  | U29: DBCA | W29: 500 | X29: 500 | Y29: 500 | Z29: 500
Q30: =IF(Saisiegroupes!C$13="","",Saisiegroupes!C$13) ->  | U30: DCAB | W30: 500 | X30: 500 | Y30: 500 | Z30: 500
B31: Z1 sec | C31: Z1 vit | D31: Z2 sec | E31: Z2 vit | F31: Z3 sec | G31: Z3 vit | H31: total sec | I31: total vit | Q31: =IF(Saisiegroupes!C$14="","",Saisiegroupes!C$14) ->  | U31: DCBA | W31: 500 | X31: 500 | Y31: 500 | Z31: 500
B32: =ROUND(C26-B26,2) -> 3.91 | C32: =ROUND(($B$35/B32)*3.6,1) -> 27.6 | D32: =ROUND(E26-D26,2) -> 1.72 | E32: =ROUND(($B$35/D32)*3.6,1) -> 62.8 | F32: =ROUND(G26-F26,2) -> 1.72 | G32: =ROUND(($B$35/F32)*3.6,1) -> 62.8 | H32: =ROUND(H26,2) -> 22.75 | I32: =ROUND(($C$35/H32)*3.6,1) -> 31.6 | Q32: =IF(Saisiegroupes!C$17="","",Saisiegroupes!C$17) ->  | W32: 500 | X32: 500 | Y32: 500 | Z32: 500
B33: Z1 sec | C33: Z1 vit | D33: Z2 sec | E33: Z2 vit | F33: Z3 sec | G33: Z3 vit | H33: total sec | I33: total vit | Q33: =IF(Saisiegroupes!C$18="","",Saisiegroupes!C$18) ->  | W33: 500 | X33: 500 | Y33: 500 | Z33: 500
B34: =ROUND(C28-B28,2) -> 0 | C34: =ROUND(($B$35/B34)*3.6,1) ->  | D34: =ROUND(E28-D28,2) -> 0 | E34: =ROUND(($B$35/D34)*3.6,1) ->  | F34: =ROUND(G28-F28,2) -> 0 | G34: =ROUND(($B$35/F34)*3.6,1) ->  | H34: =ROUND(H28,2) -> 0 | I34: =ROUND(($C$35/H34)*3.6,1) ->  | Q34: =IF(Saisiegroupes!C$19="","",Saisiegroupes!C$19) ->  | W34: 500 | X34: 500 | Y34: 500 | Z34: 500
B35: 30 | C35: 200 | Q35: =IF(Saisiegroupes!C$20="","",Saisiegroupes!C$20) -> 
Q36: =IF(Saisiegroupes!F$5="","",Saisiegroupes!F$5) -> 
Q37: =IF(Saisiegroupes!F$6="","",Saisiegroupes!F$6) -> 
Q38: =IF(Saisiegroupes!F$7="","",Saisiegroupes!F$7) -> 
Q39: =IF(Saisiegroupes!F$8="","",Saisiegroupes!F$8) -> 
Q40: =IF(Saisiegroupes!F$11="","",Saisiegroupes!F$11) -> 
Q41: =IF(Saisiegroupes!F$12="","",Saisiegroupes!F$12) -> 
Q42: =IF(Saisiegroupes!F$13="","",Saisiegroupes!F$13) -> 
Q43: =IF(Saisiegroupes!F$14="","",Saisiegroupes!F$14) -> 
Q44: =IF(Saisiegroupes!F$17="","",Saisiegroupes!F$17) -> 
Q45: =IF(Saisiegroupes!F$18="","",Saisiegroupes!F$18) -> 
Q46: =IF(Saisiegroupes!F$19="","",Saisiegroupes!F$19) -> 
Q47: =IF(Saisiegroupes!F$20="","",Saisiegroupes!F$20) -> 
Q48: =IF(Saisiegroupes!I$5="","",Saisiegroupes!I$5) -> 
Q49: =IF(Saisiegroupes!I$6="","",Saisiegroupes!I$6) -> 
Q50: =IF(Saisiegroupes!I$7="","",Saisiegroupes!I$7) -> 
Q51: =IF(Saisiegroupes!I$8="","",Saisiegroupes!I$8) -> 
Q52: =IF(Saisiegroupes!I$11="","",Saisiegroupes!I$11) -> 
Q53: =IF(Saisiegroupes!I$12="","",Saisiegroupes!I$12) -> 
Q54: =IF(Saisiegroupes!I$13="","",Saisiegroupes!I$13) -> 
Q55: =IF(Saisiegroupes!I$14="","",Saisiegroupes!I$14) -> 

Sheet Saisiegroupes
B2: SAISIE DES DIFFERENTES EQUIPES
B4: Equipe 1 | E4: Equipe 4 | H4: Equipe 7
B5: Elève A | E5: Elève A | H5: Elève A
B6: Elève B | E6: Elève B | H6: Elève B
B7: Elève C | E7: Elève C | H7: Elève C
B8: Elève D | E8: Elève D | H8: Elève D
B10: Equipe 2 | E10: Equipe 5 | H10: Equipe 8
B11: Elève A | E11: Elève A | H11: Elève A
B12: Elève B | E12: Elève B | H12: Elève B
B13: Elève C | E13: Elève C | H13: Elève C
B14: Elève D | E14: Elève D | H14: Elève D
B16: Equipe 3 | E16: Equipe 6
B17: Elève A | E17: Elève A
B18: Elève B | E18: Elève B
B19: Elève C | E19: Elève C
B20: Elève D | E20: Elève D

Sheet Aide Saisie

Sheet evalbac
A1: BACCALAUREAT RELAIS
D2: Perf indiv | F2: Perf collective | L2: Efficacité transmission | O2: Maîtrise transmission | S2: NOTE BAC / 20 PTS
D3: Temps indiv sur 50m | E3: Perf indiv 50m / 4 pts | F3: Ordre relais 1 | G3: Temps relais 1 | H3: Ordre relais 2 | I3: Temps relais 2 | J3: Somme des temps des 2 relais | K3: Perf temps des 2 relais / 10 pts | L3: Somme des temps indiv | M3: Différence (somme des tps indiv-meilleur tps du relais) | N3: Note de transmission / 4 pts | O3: Synchronisation des vitesses des coureurs 1 pt Ralentissement modéré du receveur 0,75 pt Très net ralentissement du receveur ou tampon 0,25 pt Transmission hors zone 0 pt
O4: Transmission 1 | P4: Transmission 2 | Q4: Transmission 3 | R4: Moyenne des 3 transmissions / 2 pts
A5: NOMS Prénoms | B5: Sexe | C5: Classe | U5: Performance individuelle sur 50m | Y5: Temps cumulés des 2 fois 4X50 m
A6: =IF(Saisiegroupes!C5="","",Saisiegroupes!C5) ->  | D6: =AJ6 ->  | E6: =IF(D6="","",IF(B6="f",IF(D6<$U$8,4,VLOOKUP(D6,$U$8:$V$31,2)),IF(D6<$W$8,4,VLOOKUP(D6,$W$8:$X$31,2)))) ->  | G6: =IF(AD6="","",AD6*1) ->  | I6: =IF(AE6="","",AE6*1) ->  | J6: =IF(ROUND(SUM(G6,I6),1)=0,"",ROUND(SUM(G6,I6),1)) ->  | K6: =IF(J6="","",IF(B6="f",IF(J6<$Y$8,10,VLOOKUP(J6,$Y$8:$Z$31,2)),IF(J6<$AA$8,10,VLOOKUP(J6,$AA$8:$AB$31,2)))) ->  | L6: =IF(SUM($D$6:$D$9)=0,"",SUM($D$6:$D$9)) ->  | M6: =ABS(ROUND((L6-MIN(G6,I6))/L6*100,1)) ->  | N6: =IF(M6>=8,4,IF(M6>=7,3.6,IF(M6>=6,3.2,IF(M6>=5,2.8,IF(M6>=4,2.4,IF(M6>=3,2,IF(M6>=2,1.6,IF(M6>=1,1.2,IF(AND(M6>-1,M6<0),0.4,IF(M6<-1,0,"")))))))))) ->  | R6: =SUM(O6:Q6)*2/3 -> 0 | S6: =ROUND(SUM(E6,K6,N6,R6),1) ->  | U6: Temps F | V6: Note | W6: Temps G | X6: Note | Y6: Temps F | Z6: Note | AA6: Temps G | AB6: Note | AH6: =IF(AF6*1=0,"",AF6*1) ->  | AJ6: =IF(AND($AH6="",$AI6=""),"",IF(AND(ISNUMBER($AH6),ISNUMBER($AI6)),MIN($AH6,$AI6),$AH6)) -> 
A7: =IF(Saisiegroupes!C6="","",Saisiegroupes!C6) ->  | E7: =IF(D7="","",IF(B7="f",IF(D7<$U$8,4,VLOOKUP(D7,$U$8:$V$31,2)),IF(D7<$W$8,4,VLOOKUP(D7,$W$8:$X$31,2)))) ->  | G7: =IF(AD7="","",AD7*1) ->  | I7: =IF(AE7="","",AE7*1) ->  | J7: =IF(ROUND(SUM(G7,I7),1)=0,"",ROUND(SUM(G7,I7),1)) ->  | L7: =IF(SUM($D$6:$D$9)=0,"",SUM($D$6:$D$9)) ->  | N7: =IF(M7>=8,4,IF(M7>=7,3.6,IF(M7>=6,3.2,IF(M7>=5,2.8,IF(M7>=4,2.4,IF(M7>=3,2,IF(M7>=2,1.6,IF(M7>=1,1.2,IF(AND(M7>-1,M7<0),0.4,IF(M7<-1,0,"")))))))))) ->  | R7: =SUM(O7:Q7)*2/3 -> 0 | S7: =ROUND(SUM(E7,K7,N7,R7),1) ->  | V7: /4 | X7: /4 | Z7: /10 | AB7: /10 | AJ7: =IF(AND($AH7="",$AI7=""),"",IF(AND(ISNUMBER($AH7),ISNUMBER($AI7)),MIN($AH7,$AI7),$AH7)) -> 
A8: =IF(Saisiegroupes!C7="","",Saisiegroupes!C7) ->  | G8: =IF(AD8="","",AD8*1) ->  | J8: =IF(ROUND(SUM(G8,I8),1)=0,"",ROUND(SUM(G8,I8),1)) ->  | L8: =IF(SUM($D$6:$D$9)=0,"",SUM($D$6:$D$9)) ->  | N8: =IF(M8>=8,4,IF(M8>=7,3.6,IF(M8>=6,3.2,IF(M8>=5,2.8,IF(M8>=4,2.4,IF(M8>=3,2,IF(M8>=2,1.6,IF(M8>=1,1.2,IF(AND(M8>-1,M8<0),0.4,IF(M8<-1,0,"")))))))))) ->  | R8: =SUM(O8:Q8)*2/3 -> 0 | S8: =ROUND(SUM(E8,K8,N8,R8),1) ->  | U8: 7.8 | V8: 4 | W8: 6.4 | X8: 4 | Y8: 62.8 | Z8: 10 | AA8: 52.4 | AB8: 10
A9: =IF(Saisiegroupes!C8="","",Saisiegroupes!C8) ->  | R9: 0 | U9: 7.9 | V9: 3.8 | W9: 6.5 | X9: 3.8 | Y9: 63.4 | Z9: 9.5 | AA9: 53 | AB9: 9.5
U10: 8 | V10: 3.6 | W10: 6.6 | X10: 3.6 | Y10: 64 | Z10: 9 | AA10: 53.6 | AB10: 9
A11: =IF(Saisiegroupes!C11="","",Saisiegroupes!C11) ->  | L11: =IF(SUM($D$11:$D$14)=0,"",SUM($D$11:$D$14)) ->  | R11: 0 | U11: 8.1 | V11: 3.4 | W11: 6.7 | X11: 3.4 | Y11: 64.6 | Z11: 8.5 | AA11: 54.2 | AB11: 8.5
A12: =IF(Saisiegroupes!C12="","",Saisiegroupes!C12) ->  | L12: =IF(SUM($D$11:$D$14)=0,"",SUM($D$11:$D$14)) ->  | R12: 0 | U12: 8.2 | V12: 3.2 | W12: 6.8 | X12: 3.2 | Y12: 65.2 | Z12: 8 | AA12: 54.8 | AB12: 8
A13: =IF(Saisiegroupes!C13="","",Saisiegroupes!C13) ->  | R13: 0 | U13: 8.3 | V13: 3 | W13: 6.9 | X13: 3 | Y13: 65.9 | Z13: 7.5 | AA13: 55.4 | AB13: 7.5
A14: =IF(Saisiegroupes!C14="","",Saisiegroupes!C14) ->  | R14: 0 | U14: 8.4 | V14: 2.8 | W14: 7 | X14: 2.8 | Y14: 66.6 | Z14: 7 | AA14: 56 | AB14: 7
U15: 8.5 | V15: 2.6 | W15: 7.1 | X15: 2.6 | Y15: 67.3 | Z15: 6.5 | AA15: 56.6 | AB15: 6.5
A16: =IF(Saisiegroupes!C17="","",Saisiegroupes!C17) ->  | L16: =IF(SUM($D$16:$D$19)=0,"",SUM($D$16:$D$19)) ->  | R16: 0 | U16: 8.6 | V16: 2.4 | W16: 7.2 | X16: 2.4 | Y16: 68 | Z16: 6 | AA16: 57.2 | AB16: 6
A17: =IF(Saisiegroupes!C18="","",Saisiegroupes!C18) ->  | L17: =IF(SUM($D$16:$D$19)=0,"",SUM($D$16:$D$19)) ->  | R17: 0 | U17: 8.7 | V17: 2.2 | W17: 7.3 | X17: 2.2 | Y17: 68.7 | Z17: 5.5 | AA17: 57.6 | AB17: 5.5
A18: =IF(Saisiegroupes!C19="","",Saisiegroupes!C19) ->  | R18: 0 | U18: 8.8 | V18: 2 | W18: 7.4 | X18: 2 | Y18: 69.4 | Z18: 5 | AA18: 58 | AB18: 5
A19: =IF(Saisiegroupes!C20="","",Saisiegroupes!C20) ->  | R19: 0 | U19: 8.9 | V19: 1.8 | W19: 7.5 | X19: 1.8 | Y19: 70.1 | Z19: 4.5 | AA19: 58.4 | AB19: 4.5
U20: 9 | V20: 1.6 | W20: 7.6 | X20: 1.6 | Y20: 70.8 | Z20: 4 | AA20: 58.8 | AB20: 4
A21: =IF(Saisiegroupes!F5="","",Saisiegroupes!F5) ->  | L21: =IF(SUM($D$21:$D$24)=0,"",SUM($D$21:$D$24)) ->  | R21: 0 | U21: 9.1 | V21: 1.4 | W21: 7.7 | X21: 1.4 | Y21: 71.5 | Z21: 3.5 | AA21: 59.2 | AB21: 3.5
A22: =IF(Saisiegroupes!F6="","",Saisiegroupes!F6) ->  | L22: =IF(SUM($D$21:$D$24)=0,"",SUM($D$21:$D$24)) ->  | R22: 0 | U22: 9.2 | V22: 1.2 | W22: 7.8 | X22: 1.2 | Y22: 72.2 | Z22: 3 | AA22: 59.6 | AB22: 3
A23: =IF(Saisiegroupes!F7="","",Saisiegroupes!F7) ->  | R23: 0 | U23: 9.3 | V23: 1 | W23: 7.9 | X23: 1 | Y23: 72.9 | Z23: 2.5 | AA23: 60 | AB23: 2.5
A24: =IF(Saisiegroupes!F8="","",Saisiegroupes!F8) ->  | R24: 0 | U24: 9.4 | V24: 0.8 | W24: 8 | X24: 0.8 | Y24: 73.6 | Z24: 2 | AA24: 60.4 | AB24: 2
U25: 9.5 | V25: 0.6 | W25: 8.1 | X25: 0.6 | Y25: 74.3 | Z25: 1.5 | AA25: 60.8 | AB25: 1.5
A26: =IF(Saisiegroupes!F11="","",Saisiegroupes!F11) ->  | L26: =IF(SUM($D$26:$D$29)=0,"",SUM($D$26:$D$29)) ->  | R26: 0 | U26: 9.6 | V26: 0.4 | W26: 8.3 | X26: 0.4 | Y26: 75 | Z26: 1 | AA26: 61.2 | AB26: 1
A27: =IF(Saisiegroupes!F12="","",Saisiegroupes!F12) ->  | L27: =IF(SUM($D$26:$D$29)=0,"",SUM($D$26:$D$29)) ->  | R27: 0
A28: =IF(Saisiegroupes!F13="","",Saisiegroupes!F13) ->  | R28: 0 | U28: 9.8 | V28: 0.2 | W28: 8.6 | X28: 0.2 | Y28: 75.7 | Z28: 0.5 | AA28: 61.5 | AB28: 0.5
A29: =IF(Saisiegroupes!F14="","",Saisiegroupes!F14) ->  | R29: 0
A31: =IF(Saisiegroupes!F17="","",Saisiegroupes!F17) ->  | L31: =IF(SUM($D$31:$D$34)=0,"",SUM($D$31:$D$34)) ->  | R31: 0 | U31: 10.2 | V31: 0.1 | W31: 9 | X31: 0.1 | Y31: 75 | Z31: 0.25 | AA31: 62 | AB31: 0.25
A32: =IF(Saisiegroupes!F18="","",Saisiegroupes!F18) ->  | L32: =IF(SUM($D$31:$D$34)=0,"",SUM($D$31:$D$34)) ->  | R32: 0
A33: =IF(Saisiegroupes!F19="","",Saisiegroupes!F19) ->  | R33: 0
A34: =IF(Saisiegroupes!F20="","",Saisiegroupes!F20) ->  | R34: 0
A36: =IF(Saisiegroupes!I5="","",Saisiegroupes!I5) ->  | K36: =IF(J36="","",IF(B36="f",IF(J36<$Y$8,10,VLOOKUP(J36,$Y$8:$Z$31,2)),IF(J36<$AA$8,10,VLOOKUP(J36,$AA$8:$AB$31,2)))) ->  | L36: =IF(SUM($D$36:$D$39)=0,"",SUM($D$36:$D$39)) ->  | M36: =ABS(ROUND((L36-MIN(G36,I36))/L36*100,1)) ->  | N36: =IF(M36>=8,4,IF(M36>=7,3.6,IF(M36>=6,3.2,IF(M36>=5,2.8,IF(M36>=4,2.4,IF(M36>=3,2,IF(M36>=2,1.6,IF(M36>=1,1.2,IF(AND(M36>-1,M36<0),0.4,IF(M36<-1,0,"")))))))))) ->  | R36: 0 | AH36: =IF(AF36*1=0,"",AF36*1) ->  | AI36: =IF(AG36*1=0,"",AG36*1) -> 
A37: =IF(Saisiegroupes!I6="","",Saisiegroupes!I6) ->  | K37: =IF(J37="","",IF(B37="f",IF(J37<$Y$8,10,VLOOKUP(J37,$Y$8:$Z$31,2)),IF(J37<$AA$8,10,VLOOKUP(J37,$AA$8:$AB$31,2)))) ->  | L37: =IF(SUM($D$36:$D$39)=0,"",SUM($D$36:$D$39)) ->  | R37: 0 | AH37: =IF(AF37*1=0,"",AF37*1) -> 
A38: =IF(Saisiegroupes!I7="","",Saisiegroupes!I7) ->  | R38: 0
A39: =IF(Saisiegroupes!I8="","",Saisiegroupes!I8) ->  | R39: 0
A41: =IF(Saisiegroupes!I11="","",Saisiegroupes!I11) ->  | L41: =IF(SUM($D$41:$D$44)=0,"",SUM($D$41:$D$44)) ->  | M41: =ABS(ROUND((L41-MIN(G41,I41))/L41*100,1)) ->  | N41: =IF(M41>=8,4,IF(M41>=7,3.6,IF(M41>=6,3.2,IF(M41>=5,2.8,IF(M41>=4,2.4,IF(M41>=3,2,IF(M41>=2,1.6,IF(M41>=1,1.2,IF(AND(M41>-1,M41<0),0.4,IF(M41<-1,0,"")))))))))) ->  | R41: 0
A42: =IF(Saisiegroupes!I12="","",Saisiegroupes!I12) ->  | L42: =IF(SUM($D$41:$D$44)=0,"",SUM($D$41:$D$44)) ->  | R42: 0
A43: =IF(Saisiegroupes!I13="","",Saisiegroupes!I13) ->  | R43: 0
A44: =IF(Saisiegroupes!I14="","",Saisiegroupes!I14) ->  | D44: =AJ44 ->  | R44: 0 | AI44: =IF(AG44*1=0,"",AG44*1) -> 
E46: =ROUND(AVERAGE(E6:E39),1) ->  | K46: =ROUND(AVERAGE(K6:K39),1) ->  | N46: =ROUND(AVERAGE(N6:N39),1) ->  | R46: =ROUND(AVERAGE(R6:R39),1) -> 0 | S46: =ROUND(AVERAGE(S6:S39),1) -> 

Sheet Archresultats1
A1: Bilan équipe 1
O2: DABC
AN3: ZONE 1 | AQ3: ZONE 2 | AT3: ZONE 3 | AW3: TOTAL course
B4: Dates | C4: Heure | D4: Coureur ou Ordre relais | E4: Tps zone 1 | F4: Vitesse zone 1 | G4: Tps zone 2 | H4: Vitesse zone 2 | I4: Tps zone 3 | J4: Vitesse zone 3 | K4: Tps course totale | L4: Vitesse totale totale | M4: Remarques | P4: AB (t) | Q4: AB (v) | R4: AC (t) | S4: AC (v) | T4: AD (t) | U4: AD (v) | V4: BA (v) | W4: BA (t) | X4: BC (t) | Y4: BC (v) | Z4: BD (t) | AA4: BD (v) | AB4: CA (t) | AC4: CA (v) | AD4: CB (t) | AE4: CB (v) | AF4: CD (t) | AG4: CD (v) | AH4: DA (t) | AI4: DA (v) | AJ4: DB (t) | AK4: DB (v) | AL4: DC (t) | AM4: DC (v) | AN4: Vitesse moy. théorique du binôme | AO4: Vitesse réelle du binôme | AP4: % Evolution | AQ4: Vitesse moy. théorique du binôme | AR4: Vitesse réelle du binôme | AS4: % Evolution | AT4: Vitesse moy. théorique du binôme | AU4: Vitesse réelle du binôme | AV4: % Evolution | AW4: TEMPS total théorique du groupe | AX4: TEMPS total réel du groupe | AY4: % Evolution | AZ4: VITESSE théorique du groupe | BA4: VITESSE réelle du groupe | BB4: % Evolution | BL4: AB (t) | BM4: AB (v) | BN4: AC (t) | BO4: AC (v) | BP4: AD (t) | BQ4: AD (v) | BR4: BA (v) | BS4: BA (t) | BT4: BC (t) | BU4: BC (v) | BV4: BD (t) | BW4: BD (v) | BX4: CA (t) | BY4: CA (v) | BZ4: CB (t) | CA4: CB (v) | CB4: CD (t) | CC4: CD (v) | CD4: DA (t) | CE4: DA (v) | CF4: DB (t) | CG4: DB (v) | CH4: DC (t) | CI4: DC (v)
A5: 1 | O5: ABCD | P5: =IF(OR($O$2=$O$5,$O$2=$O$6),E5,IF(OR($O$2=$O$18,$O$2=$O$24),G5,IF(OR($O$2=$O$22,$O$2=$O$28),I5,""))) -> 0 | Q5: =IF(OR($O$2=$O$5,$O$2=$O$6),F5,IF(OR($O$2=$O$18,$O$2=$O$24),H5,IF(OR($O$2=$O$22,$O$2=$O$28),J5,""))) -> 0 | R5: =IF(OR($O$2=$O$7,$O$2=$O$8),E5,IF(OR($O$2=$O$12,$O$2=$O$25),G5,IF(OR($O$2=$O$16,$O$2=$O$26),I5,""))) ->  | S5: =IF(OR($O$2=$O$7,$O$2=$O$8),F5,IF(OR($O$2=$O$12,$O$2=$O$25),H5,IF(OR($O$2=$O$16,$O$2=$O$26),J5,""))) ->  | T5: =IF(OR($O$2=$O$9,$O$2=$O$10),E5,IF(OR($O$2=$O$13,$O$2=$O$19),G5,IF(OR($O$2=$O$14,$O$2=$O$20),I5,""))) ->  | U5: =IF(OR($O$2=$O$9,$O$2=$O$10),F5,IF(OR($O$2=$O$13,$O$2=$O$19),H5,IF(OR($O$2=$O$14,$O$2=$O$20),J5,""))) ->  | V5: =IF(OR($O$2=$O$12,$O$2=$O$13),E5,IF(OR($O$2=$O$20,$O$2=$O$26),G5,IF(OR($O$2=$O$23,$O$2=$O$29),I5,""))) ->  | W5: =IF(OR($O$2=$O$12,$O$2=$O$13),F5,IF(OR($O$2=$O$20,$O$2=$O$26),H5,IF(OR($O$2=$O$23,$O$2=$O$29),J5,""))) ->  | X5: =IF(OR($O$2=$O$14,$O$2=$O$15),E5,IF(OR($O$2=$O$5,$O$2=$O$27),G5,IF(OR($O$2=$O$9,$O$2=$O$24),I5,""))) -> 0 | Y5: =IF(OR($O$2=$O$14,$O$2=$O$15),F5,IF(OR($O$2=$O$5,$O$2=$O$27),H5,IF(OR($O$2=$O$9,$O$2=$O$24),J5,""))) -> 0 | Z5: =IF(OR($O$2=$O$16,$O$2=$O$17),E5,IF(OR($O$2=$O$6,$O$2=$O$21),G5,IF(OR($O$2=$O$7,$O$2=$O$18),I5,""))) ->  | AA5: =IF(OR($O$2=$O$16,$O$2=$O$17),F5,IF(OR($O$2=$O$6,$O$2=$O$21),H5,IF(OR($O$2=$O$7,$O$2=$O$18),J5,""))) ->  | AB5: =IF(OR($O$2=$O$18,$O$2=$O$19),E5,IF(OR($O$2=$O$14,$O$2=$O$28),G5,IF(OR($O$2=$O$17,$O$2=$O$27),I5,""))) ->  | AC5: =IF(OR($O$2=$O$18,$O$2=$O$19),F5,IF(OR($O$2=$O$14,$O$2=$O$28),H5,IF(OR($O$2=$O$17,$O$2=$O$27),J5,""))) ->  | AD5: =IF(OR($O$2=$O$20,$O$2=$O$21),E5,IF(OR($O$2=$O$7,$O$2=$O$29),G5,IF(OR($O$2=$O$10,$O$2=$O$11),I5,""))) ->  | AE5: =IF(OR($O$2=$O$20,$O$2=$O$21),F5,IF(OR($O$2=$O$7,$O$2=$O$29),H5,IF(OR($O$2=$O$10,$O$2=$O$11),J5,""))) ->  | AF5: =IF(OR($O$2=$O$22,$O$2=$O$23),E5,IF(OR($O$2=$O$8,$O$2=$O$15),G5,IF(OR($O$2=$O$5,$O$2=$O$12),I5,""))) ->  | AG5: =IF(OR($O$2=$O$22,$O$2=$O$23),F5,IF(OR($O$2=$O$8,$O$2=$O$15),H5,IF(OR($O$2=$O$5,$O$2=$O$12),J5,""))) ->  | AH5: =IF(OR($O$2=$O$24,$O$2=$O$25),E5,IF(OR($O$2=$O$16,$O$2=$O$22),G5,IF(OR($O$2=$O$15,$O$2=$O$21),I5,""))) -> 0 | AI5: =IF(OR($O$2=$O$24,$O$2=$O$25),F5,IF(OR($O$2=$O$16,$O$2=$O$22),H5,IF(OR($O$2=$O$15,$O$2=$O$21),J5,""))) -> 0 | AJ5: =IF(OR($O$2=$O$26,$O$2=$O$27),E5,IF(OR($O$2=$O$9,$O$2=$O$23),G5,IF(OR($O$2=$O$8,$O$2=$O$19),I5,""))) ->  | AK5: =IF(OR($O$2=$O$26,$O$2=$O$27),F5,IF(OR($O$2=$O$9,$O$2=$O$23),H5,IF(OR($O$2=$O$8,$O$2=$O$19),J5,""))) ->  | AL5: =IF(OR($O$2=$O$28,$O$2=$O$29),E5,IF(OR($O$2=$O$10,$O$2=$O$11),G5,IF(OR($O$2=$O$6,$O$2=$O$13),I5,""))) ->  | AM5: =IF(OR($O$2=$O$28,$O$2=$O$29),F5,IF(OR($O$2=$O$10,$O$2=$O$11),H5,IF(OR($O$2=$O$6,$O$2=$O$13),J5,""))) ->  | AN5: =IF(ISBLANK(E5),"",IF(OR($O$2=$O$5,$O$2=$O$6,$O$2=$O$12,$O$2=$O$13),Best1!$F$10,IF(OR($O$2=$O$7,$O$2=$O$8,$O$2=$O$18,$O$2=$O$19),Best1!$F$11,IF(OR($O$2=$O$9,$O$2=$O$10,$O$2=$O$24,$O$2=$O$25),Best1!$F$12,IF(OR($O$2=$O$14,$O$2=$O$15,$O$2=$O$20,$O$2=$O$21),Best1!$F$13,IF(OR($O$2=$O$16,$O$2=$O$17,$O$2=$O$26,$O$2=$O$27),Best1!$F$14,IF(OR($O$2=$O$22,$O$2=$O$23,$O$2=$O$28,$O$2=$O$29),Best1!$F$15,""))))))) ->  | AO5: =IF(F5="","",F5) ->  | AP5: =IF(AO5="","",ROUND(((AO5-AN5)/AN5*100),1)) ->  | AQ5: =IF(ISBLANK(G5),"",IF(OR($O$2=$O$5,$O$2=$O$7,$O$2=$O$27,$O$2=$O$29),Best1!$F$13,IF(OR($O$2=$O$18,$O$2=$O$20,$O$2=$O$24,$O$2=$O$26),Best1!$F$10,IF(OR($O$2=$O$12,$O$2=$O$14,$O$2=$O$25,$O$2=$O$28),Best1!$F$11,IF(OR($O$2=$O$13,$O$2=$O$16,$O$2=$O$19,$O$2=$O$22),Best1!$F$12,IF(OR($O$2=$O$6,$O$2=$O$9,$O$2=$O$21,$O$2=$O$23),Best1!$F$14,IF(OR($O$2=$O$8,$O$2=$O$10,$O$2=$O$15,$O$2=$O$17),Best1!$F$15,""))))))) ->  | AR5: =IF(H5="","",H5) ->  | AS5: =IF(AR5="","",ROUND(((AR5-AQ5)/AQ5*100),1)) ->  | AT5: =IF(ISBLANK(I5),"",IF(OR($O$2=$O$9,$O$2=$O$10,$O$2=$O$24,$O$2=$O$25),Best1!$F$13,IF(OR($O$2=$O$22,$O$2=$O$23,$O$2=$O$28,$O$2=$O$29),Best1!$F$10,IF(OR($O$2=$O$16,$O$2=$O$17,$O$2=$O$26,$O$2=$O$27),Best1!$F$11,IF(OR($O$2=$O$14,$O$2=$O$15,$O$2=$O$20,$O$2=$O$21),Best1!$F$12,IF(OR($O$2=$O$7,$O$2=$O$8,$O$2=$O$18,$O$2=$O$19),Best1!$F$14,IF(OR($O$2=$O$5,$O$2=$O$6,$O$2=$O$12,$O$2=$O$13),Best1!$F$15,""))))))) ->  | AU5: =IF(J5="","",J5) ->  | AV5: =IF(AU5="","",ROUND(((AU5-AT5)/AT5*100),1)) ->  | AW5: =IF(ISBLANK(K5),"",IF(Best1!$C$3="","",ROUND(SUM(Best1!$C$3:$C$6),1))) ->  | AX5: =IF(K5="","",K5) ->  | AY5: =IF(AX5="","",ROUND(((AX5-AW5)/AW5*100),1)) ->  | AZ5: =IF(ISBLANK(K5),"",IF(Best1!$B$3="","",ROUND(AVERAGE(Best1!$D$3:$D$6),1))) ->  | BA5: =IF(L5="","",L5) ->  | BB5: =IF(BA5="","",ROUND(((BA5-AZ5)/AZ5*100),1)) ->  | BD5: =AX5 ->  | BL5: =IF(OR(P5="",P5=0),"",P5*1) ->  | BM5: =IF(OR(Q5="",Q5=0),"",Q5*1) -> 
A6: 2 | O6: ABDC | P6: =IF(OR($O$2=$O$5,$O$2=$O$6),E6,IF(OR($O$2=$O$18,$O$2=$O$24),G6,IF(OR($O$2=$O$22,$O$2=$O$28),I6,""))) -> 0 | Q6: 0 | R6: =IF(OR($O$2=$O$7,$O$2=$O$8),E6,IF(OR($O$2=$O$12,$O$2=$O$25),G6,IF(OR($O$2=$O$16,$O$2=$O$26),I6,""))) ->  | T6: =IF(OR($O$2=$O$9,$O$2=$O$10),E6,IF(OR($O$2=$O$13,$O$2=$O$19),G6,IF(OR($O$2=$O$14,$O$2=$O$20),I6,""))) ->  | V6: =IF(OR($O$2=$O$12,$O$2=$O$13),E6,IF(OR($O$2=$O$20,$O$2=$O$26),G6,IF(OR($O$2=$O$23,$O$2=$O$29),I6,""))) ->  | X6: =IF(OR($O$2=$O$14,$O$2=$O$15),E6,IF(OR($O$2=$O$5,$O$2=$O$27),G6,IF(OR($O$2=$O$9,$O$2=$O$24),I6,""))) -> 0 | Y6: 0 | Z6: =IF(OR($O$2=$O$16,$O$2=$O$17),E6,IF(OR($O$2=$O$6,$O$2=$O$21),G6,IF(OR($O$2=$O$7,$O$2=$O$18),I6,""))) ->  | AB6: =IF(OR($O$2=$O$18,$O$2=$O$19),E6,IF(OR($O$2=$O$14,$O$2=$O$28),G6,IF(OR($O$2=$O$17,$O$2=$O$27),I6,""))) ->  | AD6: =IF(OR($O$2=$O$20,$O$2=$O$21),E6,IF(OR($O$2=$O$7,$O$2=$O$29),G6,IF(OR($O$2=$O$10,$O$2=$O$11),I6,""))) ->  | AF6: =IF(OR($O$2=$O$22,$O$2=$O$23),E6,IF(OR($O$2=$O$8,$O$2=$O$15),G6,IF(OR($O$2=$O$5,$O$2=$O$12),I6,""))) ->  | AH6: =IF(OR($O$2=$O$24,$O$2=$O$25),E6,IF(OR($O$2=$O$16,$O$2=$O$22),G6,IF(OR($O$2=$O$15,$O$2=$O$21),I6,""))) -> 0 | AI6: 0 | AJ6: =IF(OR($O$2=$O$26,$O$2=$O$27),E6,IF(OR($O$2=$O$9,$O$2=$O$23),G6,IF(OR($O$2=$O$8,$O$2=$O$19),I6,""))) ->  | AL6: =IF(OR($O$2=$O$28,$O$2=$O$29),E6,IF(OR($O$2=$O$10,$O$2=$O$11),G6,IF(OR($O$2=$O$6,$O$2=$O$13),I6,""))) ->  | AN6: =IF(ISBLANK(E6),"",IF(OR($O$2=$O$5,$O$2=$O$6,$O$2=$O$12,$O$2=$O$13),Best1!$F$10,IF(OR($O$2=$O$7,$O$2=$O$8,$O$2=$O$18,$O$2=$O$19),Best1!$F$11,IF(OR($O$2=$O$9,$O$2=$O$10,$O$2=$O$24,$O$2=$O$25),Best1!$F$12,IF(OR($O$2=$O$14,$O$2=$O$15,$O$2=$O$20,$O$2=$O$21),Best1!$F$13,IF(OR($O$2=$O$16,$O$2=$O$17,$O$2=$O$26,$O$2=$O$27),Best1!$F$14,IF(OR($O$2=$O$22,$O$2=$O$23,$O$2=$O$28,$O$2=$O$29),Best1!$F$15,""))))))) ->  | AO6: =IF(F6="","",F6) ->  | AP6: =IF(AO6="","",ROUND(((AO6-AN6)/AN6*100),1)) ->  | AQ6: =IF(ISBLANK(H6),"",IF(OR($O$2=$O$5,$O$2=$O$7,$O$2=$O$27,$O$2=$O$29),Best1!$F$13,IF(OR($O$2=$O$18,$O$2=$O$20,$O$2=$O$24,$O$2=$O$26),Best1!$F$10,IF(OR($O$2=$O$12,$O$2=$O$14,$O$2=$O$25,$O$2=$O$28),Best1!$F$11,IF(OR($O$2=$O$13,$O$2=$O$16,$O$2=$O$19,$O$2=$O$22),Best1!$F$12,IF(OR($O$2=$O$6,$O$2=$O$9,$O$2=$O$21,$O$2=$O$23),Best1!$F$14,IF(OR($O$2=$O$8,$O$2=$O$10,$O$2=$O$15,$O$2=$O$17),Best1!$F$15,""))))))) ->  | AR6: =IF(H6="","",H6) ->  | AS6: =IF(AR6="","",ROUND(((AR6-AQ6)/AQ6*100),1)) ->  | AT6: =IF(ISBLANK(I6),"",IF(OR($O$2=$O$9,$O$2=$O$10,$O$2=$O$24,$O$2=$O$25),Best1!$F$13,IF(OR($O$2=$O$22,$O$2=$O$23,$O$2=$O$28,$O$2=$O$29),Best1!$F$10,IF(OR($O$2=$O$16,$O$2=$O$17,$O$2=$O$26,$O$2=$O$27),Best1!$F$11,IF(OR($O$2=$O$14,$O$2=$O$15,$O$2=$O$20,$O$2=$O$21),Best1!$F$12,IF(OR($O$2=$O$7,$O$2=$O$8,$O$2=$O$18,$O$2=$O$19),Best1!$F$14,IF(OR($O$2=$O$5,$O$2=$O$6,$O$2=$O$12,$O$2=$O$13),Best1!$F$15,""))))))) ->  | AU6: =IF(J6="","",J6) ->  | AV6: =IF(AU6="","",ROUND(((AU6-AT6)/AT6*100),1)) ->  | AW6: =IF(ISBLANK(K6),"",IF(Best1!$C$3="","",ROUND(SUM(Best1!$C$3:$C$6),1))) ->  | AX6: =IF(K6="","",K6) ->  | AY6: =IF(AX6="","",ROUND(((AX6-AW6)/AW6*100),1)) ->  | AZ6: =IF(ISBLANK(K6),"",IF(Best1!$B$3="","",ROUND(AVERAGE(Best1!$D$3:$D$6),1))) ->  | BA6: =IF(L6="","",L6) ->  | BB6: =IF(BA6="","",ROUND(((BA6-AZ6)/AZ6*100),1)) ->  | BD6: =AX6 ->  | BL6: =IF(OR(P6="",P6=0),"",P6*1) -> 
A7: 3 | O7: ACBD | P7: 0 | Q7: 0 | X7: 0 | Y7: 0 | AH7: 0 | AI7: 0 | AN7: =IF(ISBLANK(E7),"",IF(OR($O$2=$O$5,$O$2=$O$6,$O$2=$O$12,$O$2=$O$13),Best1!$F$10,IF(OR($O$2=$O$7,$O$2=$O$8,$O$2=$O$18,$O$2=$O$19),Best1!$F$11,IF(OR($O$2=$O$9,$O$2=$O$10,$O$2=$O$24,$O$2=$O$25),Best1!$F$12,IF(OR($O$2=$O$14,$O$2=$O$15,$O$2=$O$20,$O$2=$O$21),Best1!$F$13,IF(OR($O$2=$O$16,$O$2=$O$17,$O$2=$O$26,$O$2=$O$27),Best1!$F$14,IF(OR($O$2=$O$22,$O$2=$O$23,$O$2=$O$28,$O$2=$O$29),Best1!$F$15,""))))))) ->  | AQ7: =IF(ISBLANK(H7),"",IF(OR($O$2=$O$5,$O$2=$O$7,$O$2=$O$27,$O$2=$O$29),Best1!$F$13,IF(OR($O$2=$O$18,$O$2=$O$20,$O$2=$O$24,$O$2=$O$26),Best1!$F$10,IF(OR($O$2=$O$12,$O$2=$O$14,$O$2=$O$25,$O$2=$O$28),Best1!$F$11,IF(OR($O$2=$O$13,$O$2=$O$16,$O$2=$O$19,$O$2=$O$22),Best1!$F$12,IF(OR($O$2=$O$6,$O$2=$O$9,$O$2=$O$21,$O$2=$O$23),Best1!$F$14,IF(OR($O$2=$O$8,$O$2=$O$10,$O$2=$O$15,$O$2=$O$17),Best1!$F$15,""))))))) ->  | AT7: =IF(ISBLANK(I7),"",IF(OR($O$2=$O$9,$O$2=$O$10,$O$2=$O$24,$O$2=$O$25),Best1!$F$13,IF(OR($O$2=$O$22,$O$2=$O$23,$O$2=$O$28,$O$2=$O$29),Best1!$F$10,IF(OR($O$2=$O$16,$O$2=$O$17,$O$2=$O$26,$O$2=$O$27),Best1!$F$11,IF(OR($O$2=$O$14,$O$2=$O$15,$O$2=$O$20,$O$2=$O$21),Best1!$F$12,IF(OR($O$2=$O$7,$O$2=$O$8,$O$2=$O$18,$O$2=$O$19),Best1!$F$14,IF(OR($O$2=$O$5,$O$2=$O$6,$O$2=$O$12,$O$2=$O$13),Best1!$F$15,""))))))) ->  | AW7: =IF(ISBLANK(K7),"",IF(Best1!$C$3="","",ROUND(SUM(Best1!$C$3:$C$6),1))) ->  | AZ7: =IF(ISBLANK(K7),"",IF(Best1!$B$3="","",ROUND(AVERAGE(Best1!$D$3:$D$6),1))) -> 
A8: 4 | O8: ACDB | P8: 0 | Q8: 0 | X8: 0 | Y8: 0 | AH8: 0 | AI8: 0 | AN8: =IF(ISBLANK(E8),"",IF(OR($O$2=$O$5,$O$2=$O$6,$O$2=$O$12,$O$2=$O$13),Best1!$F$10,IF(OR($O$2=$O$7,$O$2=$O$8,$O$2=$O$18,$O$2=$O$19),Best1!$F$11,IF(OR($O$2=$O$9,$O$2=$O$10,$O$2=$O$24,$O$2=$O$25),Best1!$F$12,IF(OR($O$2=$O$14,$O$2=$O$15,$O$2=$O$20,$O$2=$O$21),Best1!$F$13,IF(OR($O$2=$O$16,$O$2=$O$17,$O$2=$O$26,$O$2=$O$27),Best1!$F$14,IF(OR($O$2=$O$22,$O$2=$O$23,$O$2=$O$28,$O$2=$O$29),Best1!$F$15,""))))))) ->  | AQ8: =IF(ISBLANK(H8),"",IF(OR($O$2=$O$5,$O$2=$O$7,$O$2=$O$27,$O$2=$O$29),Best1!$F$13,IF(OR($O$2=$O$18,$O$2=$O$20,$O$2=$O$24,$O$2=$O$26),Best1!$F$10,IF(OR($O$2=$O$12,$O$2=$O$14,$O$2=$O$25,$O$2=$O$28),Best1!$F$11,IF(OR($O$2=$O$13,$O$2=$O$16,$O$2=$O$19,$O$2=$O$22),Best1!$F$12,IF(OR($O$2=$O$6,$O$2=$O$9,$O$2=$O$21,$O$2=$O$23),Best1!$F$14,IF(OR($O$2=$O$8,$O$2=$O$10,$O$2=$O$15,$O$2=$O$17),Best1!$F$15,""))))))) ->  | AT8: =IF(ISBLANK(I8),"",IF(OR($O$2=$O$9,$O$2=$O$10,$O$2=$O$24,$O$2=$O$25),Best1!$F$13,IF(OR($O$2=$O$22,$O$2=$O$23,$O$2=$O$28,$O$2=$O$29),Best1!$F$10,IF(OR($O$2=$O$16,$O$2=$O$17,$O$2=$O$26,$O$2=$O$27),Best1!$F$11,IF(OR($O$2=$O$14,$O$2=$O$15,$O$2=$O$20,$O$2=$O$21),Best1!$F$12,IF(OR($O$2=$O$7,$O$2=$O$8,$O$2=$O$18,$O$2=$O$19),Best1!$F$14,IF(OR($O$2=$O$5,$O$2=$O$6,$O$2=$O$12,$O$2=$O$13),Best1!$F$15,""))))))) ->  | AW8: =IF(ISBLANK(K8),"",IF(Best1!$C$3="","",ROUND(SUM(Best1!$C$3:$C$6),1))) ->  | AZ8: =IF(ISBLANK(K8),"",IF(Best1!$B$3="","",ROUND(AVERAGE(Best1!$D$3:$D$6),1))) -> 
A9: 5 | O9: ADBC | P9: 0 | Q9: 0 | X9: 0 | Y9: 0 | AH9: 0 | AI9: 0 | AN9: =IF(ISBLANK(E9),"",IF(OR($O$2=$O$5,$O$2=$O$6,$O$2=$O$12,$O$2=$O$13),Best1!$F$10,IF(OR($O$2=$O$7,$O$2=$O$8,$O$2=$O$18,$O$2=$O$19),Best1!$F$11,IF(OR($O$2=$O$9,$O$2=$O$10,$O$2=$O$24,$O$2=$O$25),Best1!$F$12,IF(OR($O$2=$O$14,$O$2=$O$15,$O$2=$O$20,$O$2=$O$21),Best1!$F$13,IF(OR($O$2=$O$16,$O$2=$O$17,$O$2=$O$26,$O$2=$O$27),Best1!$F$14,IF(OR($O$2=$O$22,$O$2=$O$23,$O$2=$O$28,$O$2=$O$29),Best1!$F$15,""))))))) ->  | AQ9: =IF(ISBLANK(H9),"",IF(OR($O$2=$O$5,$O$2=$O$7,$O$2=$O$27,$O$2=$O$29),Best1!$F$13,IF(OR($O$2=$O$18,$O$2=$O$20,$O$2=$O$24,$O$2=$O$26),Best1!$F$10,IF(OR($O$2=$O$12,$O$2=$O$14,$O$2=$O$25,$O$2=$O$28),Best1!$F$11,IF(OR($O$2=$O$13,$O$2=$O$16,$O$2=$O$19,$O$2=$O$22),Best1!$F$12,IF(OR($O$2=$O$6,$O$2=$O$9,$O$2=$O$21,$O$2=$O$23),Best1!$F$14,IF(OR($O$2=$O$8,$O$2=$O$10,$O$2=$O$15,$O$2=$O$17),Best1!$F$15,""))))))) ->  | AT9: =IF(ISBLANK(I9),"",IF(OR($O$2=$O$9,$O$2=$O$10,$O$2=$O$24,$O$2=$O$25),Best1!$F$13,IF(OR($O$2=$O$22,$O$2=$O$23,$O$2=$O$28,$O$2=$O$29),Best1!$F$10,IF(OR($O$2=$O$16,$O$2=$O$17,$O$2=$O$26,$O$2=$O$27),Best1!$F$11,IF(OR($O$2=$O$14,$O$2=$O$15,$O$2=$O$20,$O$2=$O$21),Best1!$F$12,IF(OR($O$2=$O$7,$O$2=$O$8,$O$2=$O$18,$O$2=$O$19),Best1!$F$14,IF(OR($O$2=$O$5,$O$2=$O$6,$O$2=$O$12,$O$2=$O$13),Best1!$F$15,""))))))) ->  | AW9: =IF(ISBLANK(K9),"",IF(Best1!$C$3="","",ROUND(SUM(Best1!$C$3:$C$6),1))) ->  | AZ9: =IF(ISBLANK(K9),"",IF(Best1!$B$3="","",ROUND(AVERAGE(Best1!$D$3:$D$6),1))) -> 
A10: 6 | O10: ADCB | P10: 0 | Q10: 0 | X10: 0 | Y10: 0 | AH10: 0 | AI10: 0 | AN10: =IF(ISBLANK(E10),"",IF(OR($O$2=$O$5,$O$2=$O$6,$O$2=$O$12,$O$2=$O$13),Best1!$F$10,IF(OR($O$2=$O$7,$O$2=$O$8,$O$2=$O$18,$O$2=$O$19),Best1!$F$11,IF(OR($O$2=$O$9,$O$2=$O$10,$O$2=$O$24,$O$2=$O$25),Best1!$F$12,IF(OR($O$2=$O$14,$O$2=$O$15,$O$2=$O$20,$O$2=$O$21),Best1!$F$13,IF(OR($O$2=$O$16,$O$2=$O$17,$O$2=$O$26,$O$2=$O$27),Best1!$F$14,IF(OR($O$2=$O$22,$O$2=$O$23,$O$2=$O$28,$O$2=$O$29),Best1!$F$15,""))))))) ->  | AQ10: =IF(ISBLANK(H10),"",IF(OR($O$2=$O$5,$O$2=$O$7,$O$2=$O$27,$O$2=$O$29),Best1!$F$13,IF(OR($O$2=$O$18,$O$2=$O$20,$O$2=$O$24,$O$2=$O$26),Best1!$F$10,IF(OR($O$2=$O$12,$O$2=$O$14,$O$2=$O$25,$O$2=$O$28),Best1!$F$11,IF(OR($O$2=$O$13,$O$2=$O$16,$O$2=$O$19,$O$2=$O$22),Best1!$F$12,IF(OR($O$2=$O$6,$O$2=$O$9,$O$2=$O$21,$O$2=$O$23),Best1!$F$14,IF(OR($O$2=$O$8,$O$2=$O$10,$O$2=$O$15,$O$2=$O$17),Best1!$F$15,""))))))) ->  | AT10: =IF(ISBLANK(I10),"",IF(OR($O$2=$O$9,$O$2=$O$10,$O$2=$O$24,$O$2=$O$25),Best1!$F$13,IF(OR($O$2=$O$22,$O$2=$O$23,$O$2=$O$28,$O$2=$O$29),Best1!$F$10,IF(OR($O$2=$O$16,$O$2=$O$17,$O$2=$O$26,$O$2=$O$27),Best1!$F$11,IF(OR($O$2=$O$14,$O$2=$O$15,$O$2=$O$20,$O$2=$O$21),Best1!$F$12,IF(OR($O$2=$O$7,$O$2=$O$8,$O$2=$O$18,$O$2=$O$19),Best1!$F$14,IF(OR($O$2=$O$5,$O$2=$O$6,$O$2=$O$12,$O$2=$O$13),Best1!$F$15,""))))))) ->  | AW10: =IF(ISBLANK(K10),"",IF(Best1!$C$3="","",ROUND(SUM(Best1!$C$3:$C$6),1))) ->  | AZ10: =IF(ISBLANK(K10),"",IF(Best1!$B$3="","",ROUND(AVERAGE(Best1!$D$3:$D$6),1))) -> 
A11: 7 | O11: ADCB | P11: 0 | Q11: 0 | X11: 0 | Y11: 0 | AH11: 0 | AI11: 0 | AN11: =IF(ISBLANK(E11),"",IF(OR($O$2=$O$5,$O$2=$O$6,$O$2=$O$12,$O$2=$O$13),Best1!$F$10,IF(OR($O$2=$O$7,$O$2=$O$8,$O$2=$O$18,$O$2=$O$19),Best1!$F$11,IF(OR($O$2=$O$9,$O$2=$O$10,$O$2=$O$24,$O$2=$O$25),Best1!$F$12,IF(OR($O$2=$O$14,$O$2=$O$15,$O$2=$O$20,$O$2=$O$21),Best1!$F$13,IF(OR($O$2=$O$16,$O$2=$O$17,$O$2=$O$26,$O$2=$O$27),Best1!$F$14,IF(OR($O$2=$O$22,$O$2=$O$23,$O$2=$O$28,$O$2=$O$29),Best1!$F$15,""))))))) ->  | AQ11: =IF(ISBLANK(H11),"",IF(OR($O$2=$O$5,$O$2=$O$7,$O$2=$O$27,$O$2=$O$29),Best1!$F$13,IF(OR($O$2=$O$18,$O$2=$O$20,$O$2=$O$24,$O$2=$O$26),Best1!$F$10,IF(OR($O$2=$O$12,$O$2=$O$14,$O$2=$O$25,$O$2=$O$28),Best1!$F$11,IF(OR($O$2=$O$13,$O$2=$O$16,$O$2=$O$19,$O$2=$O$22),Best1!$F$12,IF(OR($O$2=$O$6,$O$2=$O$9,$O$2=$O$21,$O$2=$O$23),Best1!$F$14,IF(OR($O$2=$O$8,$O$2=$O$10,$O$2=$O$15,$O$2=$O$17),Best1!$F$15,""))))))) ->  | AT11: =IF(ISBLANK(I11),"",IF(OR($O$2=$O$9,$O$2=$O$10,$O$2=$O$24,$O$2=$O$25),Best1!$F$13,IF(OR($O$2=$O$22,$O$2=$O$23,$O$2=$O$28,$O$2=$O$29),Best1!$F$10,IF(OR($O$2=$O$16,$O$2=$O$17,$O$2=$O$26,$O$2=$O$27),Best1!$F$11,IF(OR($O$2=$O$14,$O$2=$O$15,$O$2=$O$20,$O$2=$O$21),Best1!$F$12,IF(OR($O$2=$O$7,$O$2=$O$8,$O$2=$O$18,$O$2=$O$19),Best1!$F$14,IF(OR($O$2=$O$5,$O$2=$O$6,$O$2=$O$12,$O$2=$O$13),Best1!$F$15,""))))))) ->  | AW11: =IF(ISBLANK(K11),"",IF(Best1!$C$3="","",ROUND(SUM(Best1!$C$3:$C$6),1))) ->  | AZ11: =IF(ISBLANK(K11),"",IF(Best1!$B$3="","",ROUND(AVERAGE(Best1!$D$3:$D$6),1))) -> 
A12: 8 | O12: BACD | P12: 0 | Q12: 0 | X12: 0 | Y12: 0 | AH12: 0 | AI12: 0 | AN12: =IF(ISBLANK(E12),"",IF(OR($O$2=$O$5,$O$2=$O$6,$O$2=$O$12,$O$2=$O$13),Best1!$F$10,IF(OR($O$2=$O$7,$O$2=$O$8,$O$2=$O$18,$O$2=$O$19),Best1!$F$11,IF(OR($O$2=$O$9,$O$2=$O$10,$O$2=$O$24,$O$2=$O$25),Best1!$F$12,IF(OR($O$2=$O$14,$O$2=$O$15,$O$2=$O$20,$O$2=$O$21),Best1!$F$13,IF(OR($O$2=$O$16,$O$2=$O$17,$O$2=$O$26,$O$2=$O$27),Best1!$F$14,IF(OR($O$2=$O$22,$O$2=$O$23,$O$2=$O$28,$O$2=$O$29),Best1!$F$15,""))))))) ->  | AQ12: =IF(ISBLANK(H12),"",IF(OR($O$2=$O$5,$O$2=$O$7,$O$2=$O$27,$O$2=$O$29),Best1!$F$13,IF(OR($O$2=$O$18,$O$2=$O$20,$O$2=$O$24,$O$2=$O$26),Best1!$F$10,IF(OR($O$2=$O$12,$O$2=$O$14,$O$2=$O$25,$O$2=$O$28),Best1!$F$11,IF(OR($O$2=$O$13,$O$2=$O$16,$O$2=$O$19,$O$2=$O$22),Best1!$F$12,IF(OR($O$2=$O$6,$O$2=$O$9,$O$2=$O$21,$O$2=$O$23),Best1!$F$14,IF(OR($O$2=$O$8,$O$2=$O$10,$O$2=$O$15,$O$2=$O$17),Best1!$F$15,""))))))) ->  | AT12: =IF(ISBLANK(I12),"",IF(OR($O$2=$O$9,$O$2=$O$10,$O$2=$O$24,$O$2=$O$25),Best1!$F$13,IF(OR($O$2=$O$22,$O$2=$O$23,$O$2=$O$28,$O$2=$O$29),Best1!$F$10,IF(OR($O$2=$O$16,$O$2=$O$17,$O$2=$O$26,$O$2=$O$27),Best1!$F$11,IF(OR($O$2=$O$14,$O$2=$O$15,$O$2=$O$20,$O$2=$O$21),Best1!$F$12,IF(OR($O$2=$O$7,$O$2=$O$8,$O$2=$O$18,$O$2=$O$19),Best1!$F$14,IF(OR($O$2=$O$5,$O$2=$O$6,$O$2=$O$12,$O$2=$O$13),Best1!$F$15,""))))))) ->  | AW12: =IF(ISBLANK(K12),"",IF(Best1!$C$3="","",ROUND(SUM(Best1!$C$3:$C$6),1))) ->  | AZ12: =IF(ISBLANK(K12),"",IF(Best1!$B$3="","",ROUND(AVERAGE(Best1!$D$3:$D$6),1))) -> 
A13: 9 | O13: BADC | P13: 0 | Q13: 0 | X13: 0 | Y13: 0 | AH13: 0 | AI13: 0 | AN13: =IF(ISBLANK(E13),"",IF(OR($O$2=$O$5,$O$2=$O$6,$O$2=$O$12,$O$2=$O$13),Best1!$F$10,IF(OR($O$2=$O$7,$O$2=$O$8,$O$2=$O$18,$O$2=$O$19),Best1!$F$11,IF(OR($O$2=$O$9,$O$2=$O$10,$O$2=$O$24,$O$2=$O$25),Best1!$F$12,IF(OR($O$2=$O$14,$O$2=$O$15,$O$2=$O$20,$O$2=$O$21),Best1!$F$13,IF(OR($O$2=$O$16,$O$2=$O$17,$O$2=$O$26,$O$2=$O$27),Best1!$F$14,IF(OR($O$2=$O$22,$O$2=$O$23,$O$2=$O$28,$O$2=$O$29),Best1!$F$15,""))))))) ->  | AQ13: =IF(ISBLANK(H13),"",IF(OR($O$2=$O$5,$O$2=$O$7,$O$2=$O$27,$O$2=$O$29),Best1!$F$13,IF(OR($O$2=$O$18,$O$2=$O$20,$O$2=$O$24,$O$2=$O$26),Best1!$F$10,IF(OR($O$2=$O$12,$O$2=$O$14,$O$2=$O$25,$O$2=$O$28),Best1!$F$11,IF(OR($O$2=$O$13,$O$2=$O$16,$O$2=$O$19,$O$2=$O$22),Best1!$F$12,IF(OR($O$2=$O$6,$O$2=$O$9,$O$2=$O$21,$O$2=$O$23),Best1!$F$14,IF(OR($O$2=$O$8,$O$2=$O$10,$O$2=$O$15,$O$2=$O$17),Best1!$F$15,""))))))) ->  | AT13: =IF(ISBLANK(I13),"",IF(OR($O$2=$O$9,$O$2=$O$10,$O$2=$O$24,$O$2=$O$25),Best1!$F$13,IF(OR($O$2=$O$22,$O$2=$O$23,$O$2=$O$28,$O$2=$O$29),Best1!$F$10,IF(OR($O$2=$O$16,$O$2=$O$17,$O$2=$O$26,$O$2=$O$27),Best1!$F$11,IF(OR($O$2=$O$14,$O$2=$O$15,$O$2=$O$20,$O$2=$O$21),Best1!$F$12,IF(OR($O$2=$O$7,$O$2=$O$8,$O$2=$O$18,$O$2=$O$19),Best1!$F$14,IF(OR($O$2=$O$5,$O$2=$O$6,$O$2=$O$12,$O$2=$O$13),Best1!$F$15,""))))))) ->  | AW13: =IF(ISBLANK(K13),"",IF(Best1!$C$3="","",ROUND(SUM(Best1!$C$3:$C$6),1))) ->  | AZ13: =IF(ISBLANK(K13),"",IF(Best1!$B$3="","",ROUND(AVERAGE(Best1!$D$3:$D$6),1))) -> 
A14: 10 | O14: BCAD | P14: 0 | Q14: 0 | X14: 0 | Y14: 0 | AH14: 0 | AI14: 0 | AN14: =IF(ISBLANK(E14),"",IF(OR($O$2=$O$5,$O$2=$O$6,$O$2=$O$12,$O$2=$O$13),Best1!$F$10,IF(OR($O$2=$O$7,$O$2=$O$8,$O$2=$O$18,$O$2=$O$19),Best1!$F$11,IF(OR($O$2=$O$9,$O$2=$O$10,$O$2=$O$24,$O$2=$O$25),Best1!$F$12,IF(OR($O$2=$O$14,$O$2=$O$15,$O$2=$O$20,$O$2=$O$21),Best1!$F$13,IF(OR($O$2=$O$16,$O$2=$O$17,$O$2=$O$26,$O$2=$O$27),Best1!$F$14,IF(OR($O$2=$O$22,$O$2=$O$23,$O$2=$O$28,$O$2=$O$29),Best1!$F$15,""))))))) ->  | AQ14: =IF(ISBLANK(H14),"",IF(OR($O$2=$O$5,$O$2=$O$7,$O$2=$O$27,$O$2=$O$29),Best1!$F$13,IF(OR($O$2=$O$18,$O$2=$O$20,$O$2=$O$24,$O$2=$O$26),Best1!$F$10,IF(OR($O$2=$O$12,$O$2=$O$14,$O$2=$O$25,$O$2=$O$28),Best1!$F$11,IF(OR($O$2=$O$13,$O$2=$O$16,$O$2=$O$19,$O$2=$O$22),Best1!$F$12,IF(OR($O$2=$O$6,$O$2=$O$9,$O$2=$O$21,$O$2=$O$23),Best1!$F$14,IF(OR($O$2=$O$8,$O$2=$O$10,$O$2=$O$15,$O$2=$O$17),Best1!$F$15,""))))))) ->  | AT14: =IF(ISBLANK(I14),"",IF(OR($O$2=$O$9,$O$2=$O$10,$O$2=$O$24,$O$2=$O$25),Best1!$F$13,IF(OR($O$2=$O$22,$O$2=$O$23,$O$2=$O$28,$O$2=$O$29),Best1!$F$10,IF(OR($O$2=$O$16,$O$2=$O$17,$O$2=$O$26,$O$2=$O$27),Best1!$F$11,IF(OR($O$2=$O$14,$O$2=$O$15,$O$2=$O$20,$O$2=$O$21),Best1!$F$12,IF(OR($O$2=$O$7,$O$2=$O$8,$O$2=$O$18,$O$2=$O$19),Best1!$F$14,IF(OR($O$2=$O$5,$O$2=$O$6,$O$2=$O$12,$O$2=$O$13),Best1!$F$15,""))))))) ->  | AW14: =IF(ISBLANK(K14),"",IF(Best1!$C$3="","",ROUND(SUM(Best1!$C$3:$C$6),1))) ->  | AZ14: =IF(ISBLANK(K14),"",IF(Best1!$B$3="","",ROUND(AVERAGE(Best1!$D$3:$D$6),1))) -> 
A15: 11 | O15: BCDA | P15: 0 | Q15: 0 | X15: 0 | Y15: 0 | AH15: 0 | AI15: 0 | AN15: =IF(ISBLANK(E15),"",IF(OR($O$2=$O$5,$O$2=$O$6,$O$2=$O$12,$O$2=$O$13),Best1!$F$10,IF(OR($O$2=$O$7,$O$2=$O$8,$O$2=$O$18,$O$2=$O$19),Best1!$F$11,IF(OR($O$2=$O$9,$O$2=$O$10,$O$2=$O$24,$O$2=$O$25),Best1!$F$12,IF(OR($O$2=$O$14,$O$2=$O$15,$O$2=$O$20,$O$2=$O$21),Best1!$F$13,IF(OR($O$2=$O$16,$O$2=$O$17,$O$2=$O$26,$O$2=$O$27),Best1!$F$14,IF(OR($O$2=$O$22,$O$2=$O$23,$O$2=$O$28,$O$2=$O$29),Best1!$F$15,""))))))) ->  | AQ15: =IF(ISBLANK(H15),"",IF(OR($O$2=$O$5,$O$2=$O$7,$O$2=$O$27,$O$2=$O$29),Best1!$F$13,IF(OR($O$2=$O$18,$O$2=$O$20,$O$2=$O$24,$O$2=$O$26),Best1!$F$10,IF(OR($O$2=$O$12,$O$2=$O$14,$O$2=$O$25,$O$2=$O$28),Best1!$F$11,IF(OR($O$2=$O$13,$O$2=$O$16,$O$2=$O$19,$O$2=$O$22),Best1!$F$12,IF(OR($O$2=$O$6,$O$2=$O$9,$O$2=$O$21,$O$2=$O$23),Best1!$F$14,IF(OR($O$2=$O$8,$O$2=$O$10,$O$2=$O$15,$O$2=$O$17),Best1!$F$15,""))))))) ->  | AT15: =IF(ISBLANK(I15),"",IF(OR($O$2=$O$9,$O$2=$O$10,$O$2=$O$24,$O$2=$O$25),Best1!$F$13,IF(OR($O$2=$O$22,$O$2=$O$23,$O$2=$O$28,$O$2=$O$29),Best1!$F$10,IF(OR($O$2=$O$16,$O$2=$O$17,$O$2=$O$26,$O$2=$O$27),Best1!$F$11,IF(OR($O$2=$O$14,$O$2=$O$15,$O$2=$O$20,$O$2=$O$21),Best1!$F$12,IF(OR($O$2=$O$7,$O$2=$O$8,$O$2=$O$18,$O$2=$O$19),Best1!$F$14,IF(OR($O$2=$O$5,$O$2=$O$6,$O$2=$O$12,$O$2=$O$13),Best1!$F$15,""))))))) ->  | AW15: =IF(ISBLANK(K15),"",IF(Best1!$C$3="","",ROUND(SUM(Best1!$C$3:$C$6),1))) ->  | AZ15: =IF(ISBLANK(K15),"",IF(Best1!$B$3="","",ROUND(AVERAGE(Best1!$D$3:$D$6),1))) -> 
A16: 12 | O16: BDAC | P16: 0 | Q16: 0 | X16: 0 | Y16: 0 | AH16: 0 | AI16: 0 | AN16: =IF(ISBLANK(E16),"",IF(OR($O$2=$O$5,$O$2=$O$6,$O$2=$O$12,$O$2=$O$13),Best1!$F$10,IF(OR($O$2=$O$7,$O$2=$O$8,$O$2=$O$18,$O$2=$O$19),Best1!$F$11,IF(OR($O$2=$O$9,$O$2=$O$10,$O$2=$O$24,$O$2=$O$25),Best1!$F$12,IF(OR($O$2=$O$14,$O$2=$O$15,$O$2=$O$20,$O$2=$O$21),Best1!$F$13,IF(OR($O$2=$O$16,$O$2=$O$17,$O$2=$O$26,$O$2=$O$27),Best1!$F$14,IF(OR($O$2=$O$22,$O$2=$O$23,$O$2=$O$28,$O$2=$O$29),Best1!$F$15,""))))))) ->  | AQ16: =IF(ISBLANK(H16),"",IF(OR($O$2=$O$5,$O$2=$O$7,$O$2=$O$27,$O$2=$O$29),Best1!$F$13,IF(OR($O$2=$O$18,$O$2=$O$20,$O$2=$O$24,$O$2=$O$26),Best1!$F$10,IF(OR($O$2=$O$12,$O$2=$O$14,$O$2=$O$25,$O$2=$O$28),Best1!$F$11,IF(OR($O$2=$O$13,$O$2=$O$16,$O$2=$O$19,$O$2=$O$22),Best1!$F$12,IF(OR($O$2=$O$6,$O$2=$O$9,$O$2=$O$21,$O$2=$O$23),Best1!$F$14,IF(OR($O$2=$O$8,$O$2=$O$10,$O$2=$O$15,$O$2=$O$17),Best1!$F$15,""))))))) ->  | AT16: =IF(ISBLANK(I16),"",IF(OR($O$2=$O$9,$O$2=$O$10,$O$2=$O$24,$O$2=$O$25),Best1!$F$13,IF(OR($O$2=$O$22,$O$2=$O$23,$O$2=$O$28,$O$2=$O$29),Best1!$F$10,IF(OR($O$2=$O$16,$O$2=$O$17,$O$2=$O$26,$O$2=$O$27),Best1!$F$11,IF(OR($O$2=$O$14,$O$2=$O$15,$O$2=$O$20,$O$2=$O$21),Best1!$F$12,IF(OR($O$2=$O$7,$O$2=$O$8,$O$2=$O$18,$O$2=$O$19),Best1!$F$14,IF(OR($O$2=$O$5,$O$2=$O$6,$O$2=$O$12,$O$2=$O$13),Best1!$F$15,""))))))) ->  | AW16: =IF(ISBLANK(K16),"",IF(Best1!$C$3="","",ROUND(SUM(Best1!$C$3:$C$6),1))) ->  | AZ16: =IF(ISBLANK(K16),"",IF(Best1!$B$3="","",ROUND(AVERAGE(Best1!$D$3:$D$6),1))) ->  | BO16: =IF(OR(S16="",S16=0),"",S16*1) ->  | CE16: =IF(OR(AI16="",AI16=0),"",AI16*1) -> 
A17: 13 | O17: BDCA | P17: 0 | Q17: 0 | X17: 0 | Y17: 0 | AH17: 0 | AI17: 0 | AN17: =IF(ISBLANK(E17),"",IF(OR($O$2=$O$5,$O$2=$O$6,$O$2=$O$12,$O$2=$O$13),Best1!$F$10,IF(OR($O$2=$O$7,$O$2=$O$8,$O$2=$O$18,$O$2=$O$19),Best1!$F$11,IF(OR($O$2=$O$9,$O$2=$O$10,$O$2=$O$24,$O$2=$O$25),Best1!$F$12,IF(OR($O$2=$O$14,$O$2=$O$15,$O$2=$O$20,$O$2=$O$21),Best1!$F$13,IF(OR($O$2=$O$16,$O$2=$O$17,$O$2=$O$26,$O$2=$O$27),Best1!$F$14,IF(OR($O$2=$O$22,$O$2=$O$23,$O$2=$O$28,$O$2=$O$29),Best1!$F$15,""))))))) ->  | AQ17: =IF(ISBLANK(H17),"",IF(OR($O$2=$O$5,$O$2=$O$7,$O$2=$O$27,$O$2=$O$29),Best1!$F$13,IF(OR($O$2=$O$18,$O$2=$O$20,$O$2=$O$24,$O$2=$O$26),Best1!$F$10,IF(OR($O$2=$O$12,$O$2=$O$14,$O$2=$O$25,$O$2=$O$28),Best1!$F$11,IF(OR($O$2=$O$13,$O$2=$O$16,$O$2=$O$19,$O$2=$O$22),Best1!$F$12,IF(OR($O$2=$O$6,$O$2=$O$9,$O$2=$O$21,$O$2=$O$23),Best1!$F$14,IF(OR($O$2=$O$8,$O$2=$O$10,$O$2=$O$15,$O$2=$O$17),Best1!$F$15,""))))))) ->  | AT17: =IF(ISBLANK(I17),"",IF(OR($O$2=$O$9,$O$2=$O$10,$O$2=$O$24,$O$2=$O$25),Best1!$F$13,IF(OR($O$2=$O$22,$O$2=$O$23,$O$2=$O$28,$O$2=$O$29),Best1!$F$10,IF(OR($O$2=$O$16,$O$2=$O$17,$O$2=$O$26,$O$2=$O$27),Best1!$F$11,IF(OR($O$2=$O$14,$O$2=$O$15,$O$2=$O$20,$O$2=$O$21),Best1!$F$12,IF(OR($O$2=$O$7,$O$2=$O$8,$O$2=$O$18,$O$2=$O$19),Best1!$F$14,IF(OR($O$2=$O$5,$O$2=$O$6,$O$2=$O$12,$O$2=$O$13),Best1!$F$15,""))))))) ->  | AW17: =IF(ISBLANK(K17),"",IF(Best1!$C$3="","",ROUND(SUM(Best1!$C$3:$C$6),1))) ->  | AZ17: =IF(ISBLANK(K17),"",IF(Best1!$B$3="","",ROUND(AVERAGE(Best1!$D$3:$D$6),1))) -> 
A18: 14 | O18: CABD | P18: 0 | Q18: 0 | X18: 0 | Y18: 0 | AH18: 0 | AI18: 0 | AN18: =IF(ISBLANK(E18),"",IF(OR($O$2=$O$5,$O$2=$O$6,$O$2=$O$12,$O$2=$O$13),Best1!$F$10,IF(OR($O$2=$O$7,$O$2=$O$8,$O$2=$O$18,$O$2=$O$19),Best1!$F$11,IF(OR($O$2=$O$9,$O$2=$O$10,$O$2=$O$24,$O$2=$O$25),Best1!$F$12,IF(OR($O$2=$O$14,$O$2=$O$15,$O$2=$O$20,$O$2=$O$21),Best1!$F$13,IF(OR($O$2=$O$16,$O$2=$O$17,$O$2=$O$26,$O$2=$O$27),Best1!$F$14,IF(OR($O$2=$O$22,$O$2=$O$23,$O$2=$O$28,$O$2=$O$29),Best1!$F$15,""))))))) ->  | AQ18: =IF(ISBLANK(H18),"",IF(OR($O$2=$O$5,$O$2=$O$7,$O$2=$O$27,$O$2=$O$29),Best1!$F$13,IF(OR($O$2=$O$18,$O$2=$O$20,$O$2=$O$24,$O$2=$O$26),Best1!$F$10,IF(OR($O$2=$O$12,$O$2=$O$14,$O$2=$O$25,$O$2=$O$28),Best1!$F$11,IF(OR($O$2=$O$13,$O$2=$O$16,$O$2=$O$19,$O$2=$O$22),Best1!$F$12,IF(OR($O$2=$O$6,$O$2=$O$9,$O$2=$O$21,$O$2=$O$23),Best1!$F$14,IF(OR($O$2=$O$8,$O$2=$O$10,$O$2=$O$15,$O$2=$O$17),Best1!$F$15,""))))))) ->  | AT18: =IF(ISBLANK(I18),"",IF(OR($O$2=$O$9,$O$2=$O$10,$O$2=$O$24,$O$2=$O$25),Best1!$F$13,IF(OR($O$2=$O$22,$O$2=$O$23,$O$2=$O$28,$O$2=$O$29),Best1!$F$10,IF(OR($O$2=$O$16,$O$2=$O$17,$O$2=$O$26,$O$2=$O$27),Best1!$F$11,IF(OR($O$2=$O$14,$O$2=$O$15,$O$2=$O$20,$O$2=$O$21),Best1!$F$12,IF(OR($O$2=$O$7,$O$2=$O$8,$O$2=$O$18,$O$2=$O$19),Best1!$F$14,IF(OR($O$2=$O$5,$O$2=$O$6,$O$2=$O$12,$O$2=$O$13),Best1!$F$15,""))))))) ->  | AW18: =IF(ISBLANK(K18),"",IF(Best1!$C$3="","",ROUND(SUM(Best1!$C$3:$C$6),1))) ->  | AZ18: =IF(ISBLANK(K18),"",IF(Best1!$B$3="","",ROUND(AVERAGE(Best1!$D$3:$D$6),1))) -> 
A19: 15 | O19: CADB | P19: 0 | Q19: 0 | X19: 0 | Y19: 0 | AH19: 0 | AI19: 0 | AN19: =IF(ISBLANK(E19),"",IF(OR($O$2=$O$5,$O$2=$O$6,$O$2=$O$12,$O$2=$O$13),Best1!$F$10,IF(OR($O$2=$O$7,$O$2=$O$8,$O$2=$O$18,$O$2=$O$19),Best1!$F$11,IF(OR($O$2=$O$9,$O$2=$O$10,$O$2=$O$24,$O$2=$O$25),Best1!$F$12,IF(OR($O$2=$O$14,$O$2=$O$15,$O$2=$O$20,$O$2=$O$21),Best1!$F$13,IF(OR($O$2=$O$16,$O$2=$O$17,$O$2=$O$26,$O$2=$O$27),Best1!$F$14,IF(OR($O$2=$O$22,$O$2=$O$23,$O$2=$O$28,$O$2=$O$29),Best1!$F$15,""))))))) ->  | AQ19: =IF(ISBLANK(H19),"",IF(OR($O$2=$O$5,$O$2=$O$7,$O$2=$O$27,$O$2=$O$29),Best1!$F$13,IF(OR($O$2=$O$18,$O$2=$O$20,$O$2=$O$24,$O$2=$O$26),Best1!$F$10,IF(OR($O$2=$O$12,$O$2=$O$14,$O$2=$O$25,$O$2=$O$28),Best1!$F$11,IF(OR($O$2=$O$13,$O$2=$O$16,$O$2=$O$19,$O$2=$O$22),Best1!$F$12,IF(OR($O$2=$O$6,$O$2=$O$9,$O$2=$O$21,$O$2=$O$23),Best1!$F$14,IF(OR($O$2=$O$8,$O$2=$O$10,$O$2=$O$15,$O$2=$O$17),Best1!$F$15,""))))))) ->  | AT19: =IF(ISBLANK(I19),"",IF(OR($O$2=$O$9,$O$2=$O$10,$O$2=$O$24,$O$2=$O$25),Best1!$F$13,IF(OR($O$2=$O$22,$O$2=$O$23,$O$2=$O$28,$O$2=$O$29),Best1!$F$10,IF(OR($O$2=$O$16,$O$2=$O$17,$O$2=$O$26,$O$2=$O$27),Best1!$F$11,IF(OR($O$2=$O$14,$O$2=$O$15,$O$2=$O$20,$O$2=$O$21),Best1!$F$12,IF(OR($O$2=$O$7,$O$2=$O$8,$O$2=$O$18,$O$2=$O$19),Best1!$F$14,IF(OR($O$2=$O$5,$O$2=$O$6,$O$2=$O$12,$O$2=$O$13),Best1!$F$15,""))))))) ->  | AW19: =IF(ISBLANK(K19),"",IF(Best1!$C$3="","",ROUND(SUM(Best1!$C$3:$C$6),1))) ->  | AZ19: =IF(ISBLANK(K19),"",IF(Best1!$B$3="","",ROUND(AVERAGE(Best1!$D$3:$D$6),1))) -> 
A20: 16 | O20: CBAD | P20: 0 | Q20: 0 | X20: 0 | Y20: 0 | AH20: 0 | AI20: 0 | AN20: =IF(ISBLANK(E20),"",IF(OR($O$2=$O$5,$O$2=$O$6,$O$2=$O$12,$O$2=$O$13),Best1!$F$10,IF(OR($O$2=$O$7,$O$2=$O$8,$O$2=$O$18,$O$2=$O$19),Best1!$F$11,IF(OR($O$2=$O$9,$O$2=$O$10,$O$2=$O$24,$O$2=$O$25),Best1!$F$12,IF(OR($O$2=$O$14,$O$2=$O$15,$O$2=$O$20,$O$2=$O$21),Best1!$F$13,IF(OR($O$2=$O$16,$O$2=$O$17,$O$2=$O$26,$O$2=$O$27),Best1!$F$14,IF(OR($O$2=$O$22,$O$2=$O$23,$O$2=$O$28,$O$2=$O$29),Best1!$F$15,""))))))) ->  | AQ20: =IF(ISBLANK(H20),"",IF(OR($O$2=$O$5,$O$2=$O$7,$O$2=$O$27,$O$2=$O$29),Best1!$F$13,IF(OR($O$2=$O$18,$O$2=$O$20,$O$2=$O$24,$O$2=$O$26),Best1!$F$10,IF(OR($O$2=$O$12,$O$2=$O$14,$O$2=$O$25,$O$2=$O$28),Best1!$F$11,IF(OR($O$2=$O$13,$O$2=$O$16,$O$2=$O$19,$O$2=$O$22),Best1!$F$12,IF(OR($O$2=$O$6,$O$2=$O$9,$O$2=$O$21,$O$2=$O$23),Best1!$F$14,IF(OR($O$2=$O$8,$O$2=$O$10,$O$2=$O$15,$O$2=$O$17),Best1!$F$15,""))))))) ->  | AT20: =IF(ISBLANK(I20),"",IF(OR($O$2=$O$9,$O$2=$O$10,$O$2=$O$24,$O$2=$O$25),Best1!$F$13,IF(OR($O$2=$O$22,$O$2=$O$23,$O$2=$O$28,$O$2=$O$29),Best1!$F$10,IF(OR($O$2=$O$16,$O$2=$O$17,$O$2=$O$26,$O$2=$O$27),Best1!$F$11,IF(OR($O$2=$O$14,$O$2=$O$15,$O$2=$O$20,$O$2=$O$21),Best1!$F$12,IF(OR($O$2=$O$7,$O$2=$O$8,$O$2=$O$18,$O$2=$O$19),Best1!$F$14,IF(OR($O$2=$O$5,$O$2=$O$6,$O$2=$O$12,$O$2=$O$13),Best1!$F$15,""))))))) ->  | AW20: =IF(ISBLANK(K20),"",IF(Best1!$C$3="","",ROUND(SUM(Best1!$C$3:$C$6),1))) ->  | AZ20: =IF(ISBLANK(K20),"",IF(Best1!$B$3="","",ROUND(AVERAGE(Best1!$D$3:$D$6),1))) -> 
A21: 17 | O21: CBDA | P21: 0 | Q21: 0 | X21: 0 | Y21: 0 | AH21: 0 | AI21: 0 | AN21: =IF(ISBLANK(E21),"",IF(OR($O$2=$O$5,$O$2=$O$6,$O$2=$O$12,$O$2=$O$13),Best1!$F$10,IF(OR($O$2=$O$7,$O$2=$O$8,$O$2=$O$18,$O$2=$O$19),Best1!$F$11,IF(OR($O$2=$O$9,$O$2=$O$10,$O$2=$O$24,$O$2=$O$25),Best1!$F$12,IF(OR($O$2=$O$14,$O$2=$O$15,$O$2=$O$20,$O$2=$O$21),Best1!$F$13,IF(OR($O$2=$O$16,$O$2=$O$17,$O$2=$O$26,$O$2=$O$27),Best1!$F$14,IF(OR($O$2=$O$22,$O$2=$O$23,$O$2=$O$28,$O$2=$O$29),Best1!$F$15,""))))))) ->  | AQ21: =IF(ISBLANK(H21),"",IF(OR($O$2=$O$5,$O$2=$O$7,$O$2=$O$27,$O$2=$O$29),Best1!$F$13,IF(OR($O$2=$O$18,$O$2=$O$20,$O$2=$O$24,$O$2=$O$26),Best1!$F$10,IF(OR($O$2=$O$12,$O$2=$O$14,$O$2=$O$25,$O$2=$O$28),Best1!$F$11,IF(OR($O$2=$O$13,$O$2=$O$16,$O$2=$O$19,$O$2=$O$22),Best1!$F$12,IF(OR($O$2=$O$6,$O$2=$O$9,$O$2=$O$21,$O$2=$O$23),Best1!$F$14,IF(OR($O$2=$O$8,$O$2=$O$10,$O$2=$O$15,$O$2=$O$17),Best1!$F$15,""))))))) ->  | AT21: =IF(ISBLANK(I21),"",IF(OR($O$2=$O$9,$O$2=$O$10,$O$2=$O$24,$O$2=$O$25),Best1!$F$13,IF(OR($O$2=$O$22,$O$2=$O$23,$O$2=$O$28,$O$2=$O$29),Best1!$F$10,IF(OR($O$2=$O$16,$O$2=$O$17,$O$2=$O$26,$O$2=$O$27),Best1!$F$11,IF(OR($O$2=$O$14,$O$2=$O$15,$O$2=$O$20,$O$2=$O$21),Best1!$F$12,IF(OR($O$2=$O$7,$O$2=$O$8,$O$2=$O$18,$O$2=$O$19),Best1!$F$14,IF(OR($O$2=$O$5,$O$2=$O$6,$O$2=$O$12,$O$2=$O$13),Best1!$F$15,""))))))) ->  | AW21: =IF(ISBLANK(K21),"",IF(Best1!$C$3="","",ROUND(SUM(Best1!$C$3:$C$6),1))) ->  | AZ21: =IF(ISBLANK(K21),"",IF(Best1!$B$3="","",ROUND(AVERAGE(Best1!$D$3:$D$6),1))) -> 
A22: 18 | O22: CDAB | P22: 0 | Q22: 0 | X22: 0 | Y22: 0 | AH22: 0 | AI22: 0 | AN22: =IF(ISBLANK(E22),"",IF(OR($O$2=$O$5,$O$2=$O$6,$O$2=$O$12,$O$2=$O$13),Best1!$F$10,IF(OR($O$2=$O$7,$O$2=$O$8,$O$2=$O$18,$O$2=$O$19),Best1!$F$11,IF(OR($O$2=$O$9,$O$2=$O$10,$O$2=$O$24,$O$2=$O$25),Best1!$F$12,IF(OR($O$2=$O$14,$O$2=$O$15,$O$2=$O$20,$O$2=$O$21),Best1!$F$13,IF(OR($O$2=$O$16,$O$2=$O$17,$O$2=$O$26,$O$2=$O$27),Best1!$F$14,IF(OR($O$2=$O$22,$O$2=$O$23,$O$2=$O$28,$O$2=$O$29),Best1!$F$15,""))))))) ->  | AQ22: =IF(ISBLANK(H22),"",IF(OR($O$2=$O$5,$O$2=$O$7,$O$2=$O$27,$O$2=$O$29),Best1!$F$13,IF(OR($O$2=$O$18,$O$2=$O$20,$O$2=$O$24,$O$2=$O$26),Best1!$F$10,IF(OR($O$2=$O$12,$O$2=$O$14,$O$2=$O$25,$O$2=$O$28),Best1!$F$11,IF(OR($O$2=$O$13,$O$2=$O$16,$O$2=$O$19,$O$2=$O$22),Best1!$F$12,IF(OR($O$2=$O$6,$O$2=$O$9,$O$2=$O$21,$O$2=$O$23),Best1!$F$14,IF(OR($O$2=$O$8,$O$2=$O$10,$O$2=$O$15,$O$2=$O$17),Best1!$F$15,""))))))) ->  | AT22: =IF(ISBLANK(I22),"",IF(OR($O$2=$O$9,$O$2=$O$10,$O$2=$O$24,$O$2=$O$25),Best1!$F$13,IF(OR($O$2=$O$22,$O$2=$O$23,$O$2=$O$28,$O$2=$O$29),Best1!$F$10,IF(OR($O$2=$O$16,$O$2=$O$17,$O$2=$O$26,$O$2=$O$27),Best1!$F$11,IF(OR($O$2=$O$14,$O$2=$O$15,$O$2=$O$20,$O$2=$O$21),Best1!$F$12,IF(OR($O$2=$O$7,$O$2=$O$8,$O$2=$O$18,$O$2=$O$19),Best1!$F$14,IF(OR($O$2=$O$5,$O$2=$O$6,$O$2=$O$12,$O$2=$O$13),Best1!$F$15,""))))))) ->  | AW22: =IF(ISBLANK(K22),"",IF(Best1!$C$3="","",ROUND(SUM(Best1!$C$3:$C$6),1))) ->  | AZ22: =IF(ISBLANK(K22),"",IF(Best1!$B$3="","",ROUND(AVERAGE(Best1!$D$3:$D$6),1))) -> 
A23: 19 | O23: CDBA | P23: 0 | Q23: 0 | X23: 0 | Y23: 0 | AH23: 0 | AI23: 0 | AN23: =IF(ISBLANK(E23),"",IF(OR($O$2=$O$5,$O$2=$O$6,$O$2=$O$12,$O$2=$O$13),Best1!$F$10,IF(OR($O$2=$O$7,$O$2=$O$8,$O$2=$O$18,$O$2=$O$19),Best1!$F$11,IF(OR($O$2=$O$9,$O$2=$O$10,$O$2=$O$24,$O$2=$O$25),Best1!$F$12,IF(OR($O$2=$O$14,$O$2=$O$15,$O$2=$O$20,$O$2=$O$21),Best1!$F$13,IF(OR($O$2=$O$16,$O$2=$O$17,$O$2=$O$26,$O$2=$O$27),Best1!$F$14,IF(OR($O$2=$O$22,$O$2=$O$23,$O$2=$O$28,$O$2=$O$29),Best1!$F$15,""))))))) ->  | AQ23: =IF(ISBLANK(H23),"",IF(OR($O$2=$O$5,$O$2=$O$7,$O$2=$O$27,$O$2=$O$29),Best1!$F$13,IF(OR($O$2=$O$18,$O$2=$O$20,$O$2=$O$24,$O$2=$O$26),Best1!$F$10,IF(OR($O$2=$O$12,$O$2=$O$14,$O$2=$O$25,$O$2=$O$28),Best1!$F$11,IF(OR($O$2=$O$13,$O$2=$O$16,$O$2=$O$19,$O$2=$O$22),Best1!$F$12,IF(OR($O$2=$O$6,$O$2=$O$9,$O$2=$O$21,$O$2=$O$23),Best1!$F$14,IF(OR($O$2=$O$8,$O$2=$O$10,$O$2=$O$15,$O$2=$O$17),Best1!$F$15,""))))))) ->  | AT23: =IF(ISBLANK(I23),"",IF(OR($O$2=$O$9,$O$2=$O$10,$O$2=$O$24,$O$2=$O$25),Best1!$F$13,IF(OR($O$2=$O$22,$O$2=$O$23,$O$2=$O$28,$O$2=$O$29),Best1!$F$10,IF(OR($O$2=$O$16,$O$2=$O$17,$O$2=$O$26,$O$2=$O$27),Best1!$F$11,IF(OR($O$2=$O$14,$O$2=$O$15,$O$2=$O$20,$O$2=$O$21),Best1!$F$12,IF(OR($O$2=$O$7,$O$2=$O$8,$O$2=$O$18,$O$2=$O$19),Best1!$F$14,IF(OR($O$2=$O$5,$O$2=$O$6,$O$2=$O$12,$O$2=$O$13),Best1!$F$15,""))))))) ->  | AW23: =IF(ISBLANK(K23),"",IF(Best1!$C$3="","",ROUND(SUM(Best1!$C$3:$C$6),1))) ->  | AZ23: =IF(ISBLANK(K23),"",IF(Best1!$B$3="","",ROUND(AVERAGE(Best1!$D$3:$D$6),1))) -> 
A24: 20 | O24: DABC | P24: 0 | Q24: 0 | X24: 0 | Y24: 0 | AH24: 0 | AI24: 0 | AN24: =IF(ISBLANK(E24),"",IF(OR($O$2=$O$5,$O$2=$O$6,$O$2=$O$12,$O$2=$O$13),Best1!$F$10,IF(OR($O$2=$O$7,$O$2=$O$8,$O$2=$O$18,$O$2=$O$19),Best1!$F$11,IF(OR($O$2=$O$9,$O$2=$O$10,$O$2=$O$24,$O$2=$O$25),Best1!$F$12,IF(OR($O$2=$O$14,$O$2=$O$15,$O$2=$O$20,$O$2=$O$21),Best1!$F$13,IF(OR($O$2=$O$16,$O$2=$O$17,$O$2=$O$26,$O$2=$O$27),Best1!$F$14,IF(OR($O$2=$O$22,$O$2=$O$23,$O$2=$O$28,$O$2=$O$29),Best1!$F$15,""))))))) ->  | AQ24: =IF(ISBLANK(H24),"",IF(OR($O$2=$O$5,$O$2=$O$7,$O$2=$O$27,$O$2=$O$29),Best1!$F$13,IF(OR($O$2=$O$18,$O$2=$O$20,$O$2=$O$24,$O$2=$O$26),Best1!$F$10,IF(OR($O$2=$O$12,$O$2=$O$14,$O$2=$O$25,$O$2=$O$28),Best1!$F$11,IF(OR($O$2=$O$13,$O$2=$O$16,$O$2=$O$19,$O$2=$O$22),Best1!$F$12,IF(OR($O$2=$O$6,$O$2=$O$9,$O$2=$O$21,$O$2=$O$23),Best1!$F$14,IF(OR($O$2=$O$8,$O$2=$O$10,$O$2=$O$15,$O$2=$O$17),Best1!$F$15,""))))))) ->  | AT24: =IF(ISBLANK(I24),"",IF(OR($O$2=$O$9,$O$2=$O$10,$O$2=$O$24,$O$2=$O$25),Best1!$F$13,IF(OR($O$2=$O$22,$O$2=$O$23,$O$2=$O$28,$O$2=$O$29),Best1!$F$10,IF(OR($O$2=$O$16,$O$2=$O$17,$O$2=$O$26,$O$2=$O$27),Best1!$F$11,IF(OR($O$2=$O$14,$O$2=$O$15,$O$2=$O$20,$O$2=$O$21),Best1!$F$12,IF(OR($O$2=$O$7,$O$2=$O$8,$O$2=$O$18,$O$2=$O$19),Best1!$F$14,IF(OR($O$2=$O$5,$O$2=$O$6,$O$2=$O$12,$O$2=$O$13),Best1!$F$15,""))))))) ->  | AW24: =IF(ISBLANK(K24),"",IF(Best1!$C$3="","",ROUND(SUM(Best1!$C$3:$C$6),1))) ->  | AZ24: =IF(ISBLANK(K24),"",IF(Best1!$B$3="","",ROUND(AVERAGE(Best1!$D$3:$D$6),1))) -> 
A25: 21 | O25: DACB | P25: 0 | Q25: 0 | X25: 0 | Y25: 0 | AH25: 0 | AI25: 0 | AN25: =IF(ISBLANK(E25),"",IF(OR($O$2=$O$5,$O$2=$O$6,$O$2=$O$12,$O$2=$O$13),Best1!$F$10,IF(OR($O$2=$O$7,$O$2=$O$8,$O$2=$O$18,$O$2=$O$19),Best1!$F$11,IF(OR($O$2=$O$9,$O$2=$O$10,$O$2=$O$24,$O$2=$O$25),Best1!$F$12,IF(OR($O$2=$O$14,$O$2=$O$15,$O$2=$O$20,$O$2=$O$21),Best1!$F$13,IF(OR($O$2=$O$16,$O$2=$O$17,$O$2=$O$26,$O$2=$O$27),Best1!$F$14,IF(OR($O$2=$O$22,$O$2=$O$23,$O$2=$O$28,$O$2=$O$29),Best1!$F$15,""))))))) ->  | AQ25: =IF(ISBLANK(H25),"",IF(OR($O$2=$O$5,$O$2=$O$7,$O$2=$O$27,$O$2=$O$29),Best1!$F$13,IF(OR($O$2=$O$18,$O$2=$O$20,$O$2=$O$24,$O$2=$O$26),Best1!$F$10,IF(OR($O$2=$O$12,$O$2=$O$14,$O$2=$O$25,$O$2=$O$28),Best1!$F$11,IF(OR($O$2=$O$13,$O$2=$O$16,$O$2=$O$19,$O$2=$O$22),Best1!$F$12,IF(OR($O$2=$O$6,$O$2=$O$9,$O$2=$O$21,$O$2=$O$23),Best1!$F$14,IF(OR($O$2=$O$8,$O$2=$O$10,$O$2=$O$15,$O$2=$O$17),Best1!$F$15,""))))))) ->  | AT25: =IF(ISBLANK(I25),"",IF(OR($O$2=$O$9,$O$2=$O$10,$O$2=$O$24,$O$2=$O$25),Best1!$F$13,IF(OR($O$2=$O$22,$O$2=$O$23,$O$2=$O$28,$O$2=$O$29),Best1!$F$10,IF(OR($O$2=$O$16,$O$2=$O$17,$O$2=$O$26,$O$2=$O$27),Best1!$F$11,IF(OR($O$2=$O$14,$O$2=$O$15,$O$2=$O$20,$O$2=$O$21),Best1!$F$12,IF(OR($O$2=$O$7,$O$2=$O$8,$O$2=$O$18,$O$2=$O$19),Best1!$F$14,IF(OR($O$2=$O$5,$O$2=$O$6,$O$2=$O$12,$O$2=$O$13),Best1!$F$15,""))))))) ->  | AW25: =IF(ISBLANK(K25),"",IF(Best1!$C$3="","",ROUND(SUM(Best1!$C$3:$C$6),1))) ->  | AZ25: =IF(ISBLANK(K25),"",IF(Best1!$B$3="","",ROUND(AVERAGE(Best1!$D$3:$D$6),1))) -> 
A26: 22 | O26: DBAC | P26: 0 | Q26: 0 | X26: 0 | Y26: 0 | AH26: 0 | AI26: 0 | AN26: =IF(ISBLANK(E26),"",IF(OR($O$2=$O$5,$O$2=$O$6,$O$2=$O$12,$O$2=$O$13),Best1!$F$10,IF(OR($O$2=$O$7,$O$2=$O$8,$O$2=$O$18,$O$2=$O$19),Best1!$F$11,IF(OR($O$2=$O$9,$O$2=$O$10,$O$2=$O$24,$O$2=$O$25),Best1!$F$12,IF(OR($O$2=$O$14,$O$2=$O$15,$O$2=$O$20,$O$2=$O$21),Best1!$F$13,IF(OR($O$2=$O$16,$O$2=$O$17,$O$2=$O$26,$O$2=$O$27),Best1!$F$14,IF(OR($O$2=$O$22,$O$2=$O$23,$O$2=$O$28,$O$2=$O$29),Best1!$F$15,""))))))) ->  | AQ26: =IF(ISBLANK(H26),"",IF(OR($O$2=$O$5,$O$2=$O$7,$O$2=$O$27,$O$2=$O$29),Best1!$F$13,IF(OR($O$2=$O$18,$O$2=$O$20,$O$2=$O$24,$O$2=$O$26),Best1!$F$10,IF(OR($O$2=$O$12,$O$2=$O$14,$O$2=$O$25,$O$2=$O$28),Best1!$F$11,IF(OR($O$2=$O$13,$O$2=$O$16,$O$2=$O$19,$O$2=$O$22),Best1!$F$12,IF(OR($O$2=$O$6,$O$2=$O$9,$O$2=$O$21,$O$2=$O$23),Best1!$F$14,IF(OR($O$2=$O$8,$O$2=$O$10,$O$2=$O$15,$O$2=$O$17),Best1!$F$15,""))))))) ->  | AT26: =IF(ISBLANK(I26),"",IF(OR($O$2=$O$9,$O$2=$O$10,$O$2=$O$24,$O$2=$O$25),Best1!$F$13,IF(OR($O$2=$O$22,$O$2=$O$23,$O$2=$O$28,$O$2=$O$29),Best1!$F$10,IF(OR($O$2=$O$16,$O$2=$O$17,$O$2=$O$26,$O$2=$O$27),Best1!$F$11,IF(OR($O$2=$O$14,$O$2=$O$15,$O$2=$O$20,$O$2=$O$21),Best1!$F$12,IF(OR($O$2=$O$7,$O$2=$O$8,$O$2=$O$18,$O$2=$O$19),Best1!$F$14,IF(OR($O$2=$O$5,$O$2=$O$6,$O$2=$O$12,$O$2=$O$13),Best1!$F$15,""))))))) ->  | AW26: =IF(ISBLANK(K26),"",IF(Best1!$C$3="","",ROUND(SUM(Best1!$C$3:$C$6),1))) ->  | AZ26: =IF(ISBLANK(K26),"",IF(Best1!$B$3="","",ROUND(AVERAGE(Best1!$D$3:$D$6),1))) -> 
A27: 23 | O27: DBCA | P27: 0 | Q27: 0 | X27: 0 | Y27: 0 | AH27: 0 | AI27: 0 | AN27: =IF(ISBLANK(E27),"",IF(OR($O$2=$O$5,$O$2=$O$6,$O$2=$O$12,$O$2=$O$13),Best1!$F$10,IF(OR($O$2=$O$7,$O$2=$O$8,$O$2=$O$18,$O$2=$O$19),Best1!$F$11,IF(OR($O$2=$O$9,$O$2=$O$10,$O$2=$O$24,$O$2=$O$25),Best1!$F$12,IF(OR($O$2=$O$14,$O$2=$O$15,$O$2=$O$20,$O$2=$O$21),Best1!$F$13,IF(OR($O$2=$O$16,$O$2=$O$17,$O$2=$O$26,$O$2=$O$27),Best1!$F$14,IF(OR($O$2=$O$22,$O$2=$O$23,$O$2=$O$28,$O$2=$O$29),Best1!$F$15,""))))))) ->  | AQ27: =IF(ISBLANK(H27),"",IF(OR($O$2=$O$5,$O$2=$O$7,$O$2=$O$27,$O$2=$O$29),Best1!$F$13,IF(OR($O$2=$O$18,$O$2=$O$20,$O$2=$O$24,$O$2=$O$26),Best1!$F$10,IF(OR($O$2=$O$12,$O$2=$O$14,$O$2=$O$25,$O$2=$O$28),Best1!$F$11,IF(OR($O$2=$O$13,$O$2=$O$16,$O$2=$O$19,$O$2=$O$22),Best1!$F$12,IF(OR($O$2=$O$6,$O$2=$O$9,$O$2=$O$21,$O$2=$O$23),Best1!$F$14,IF(OR($O$2=$O$8,$O$2=$O$10,$O$2=$O$15,$O$2=$O$17),Best1!$F$15,""))))))) ->  | AT27: =IF(ISBLANK(I27),"",IF(OR($O$2=$O$9,$O$2=$O$10,$O$2=$O$24,$O$2=$O$25),Best1!$F$13,IF(OR($O$2=$O$22,$O$2=$O$23,$O$2=$O$28,$O$2=$O$29),Best1!$F$10,IF(OR($O$2=$O$16,$O$2=$O$17,$O$2=$O$26,$O$2=$O$27),Best1!$F$11,IF(OR($O$2=$O$14,$O$2=$O$15,$O$2=$O$20,$O$2=$O$21),Best1!$F$12,IF(OR($O$2=$O$7,$O$2=$O$8,$O$2=$O$18,$O$2=$O$19),Best1!$F$14,IF(OR($O$2=$O$5,$O$2=$O$6,$O$2=$O$12,$O$2=$O$13),Best1!$F$15,""))))))) ->  | AW27: =IF(ISBLANK(K27),"",IF(Best1!$C$3="","",ROUND(SUM(Best1!$C$3:$C$6),1))) ->  | AZ27: =IF(ISBLANK(K27),"",IF(Best1!$B$3="","",ROUND(AVERAGE(Best1!$D$3:$D$6),1))) -> 
A28: 24 | O28: DCAB | P28: 0 | Q28: 0 | X28: 0 | Y28: 0 | AH28: 0 | AI28: 0 | AN28: =IF(ISBLANK(E28),"",IF(OR($O$2=$O$5,$O$2=$O$6,$O$2=$O$12,$O$2=$O$13),Best1!$F$10,IF(OR($O$2=$O$7,$O$2=$O$8,$O$2=$O$18,$O$2=$O$19),Best1!$F$11,IF(OR($O$2=$O$9,$O$2=$O$10,$O$2=$O$24,$O$2=$O$25),Best1!$F$12,IF(OR($O$2=$O$14,$O$2=$O$15,$O$2=$O$20,$O$2=$O$21),Best1!$F$13,IF(OR($O$2=$O$16,$O$2=$O$17,$O$2=$O$26,$O$2=$O$27),Best1!$F$14,IF(OR($O$2=$O$22,$O$2=$O$23,$O$2=$O$28,$O$2=$O$29),Best1!$F$15,""))))))) ->  | AQ28: =IF(ISBLANK(H28),"",IF(OR($O$2=$O$5,$O$2=$O$7,$O$2=$O$27,$O$2=$O$29),Best1!$F$13,IF(OR($O$2=$O$18,$O$2=$O$20,$O$2=$O$24,$O$2=$O$26),Best1!$F$10,IF(OR($O$2=$O$12,$O$2=$O$14,$O$2=$O$25,$O$2=$O$28),Best1!$F$11,IF(OR($O$2=$O$13,$O$2=$O$16,$O$2=$O$19,$O$2=$O$22),Best1!$F$12,IF(OR($O$2=$O$6,$O$2=$O$9,$O$2=$O$21,$O$2=$O$23),Best1!$F$14,IF(OR($O$2=$O$8,$O$2=$O$10,$O$2=$O$15,$O$2=$O$17),Best1!$F$15,""))))))) ->  | AT28: =IF(ISBLANK(I28),"",IF(OR($O$2=$O$9,$O$2=$O$10,$O$2=$O$24,$O$2=$O$25),Best1!$F$13,IF(OR($O$2=$O$22,$O$2=$O$23,$O$2=$O$28,$O$2=$O$29),Best1!$F$10,IF(OR($O$2=$O$16,$O$2=$O$17,$O$2=$O$26,$O$2=$O$27),Best1!$F$11,IF(OR($O$2=$O$14,$O$2=$O$15,$O$2=$O$20,$O$2=$O$21),Best1!$F$12,IF(OR($O$2=$O$7,$O$2=$O$8,$O$2=$O$18,$O$2=$O$19),Best1!$F$14,IF(OR($O$2=$O$5,$O$2=$O$6,$O$2=$O$12,$O$2=$O$13),Best1!$F$15,""))))))) ->  | AW28: =IF(ISBLANK(K28),"",IF(Best1!$C$3="","",ROUND(SUM(Best1!$C$3:$C$6),1))) ->  | AZ28: =IF(ISBLANK(K28),"",IF(Best1!$B$3="","",ROUND(AVERAGE(Best1!$D$3:$D$6),1))) -> 
A29: 25 | O29: DCBA | P29: 0 | Q29: 0 | X29: 0 | Y29: 0 | AH29: 0 | AI29: 0 | AN29: =IF(ISBLANK(E29),"",IF(OR($O$2=$O$5,$O$2=$O$6,$O$2=$O$12,$O$2=$O$13),Best1!$F$10,IF(OR($O$2=$O$7,$O$2=$O$8,$O$2=$O$18,$O$2=$O$19),Best1!$F$11,IF(OR($O$2=$O$9,$O$2=$O$10,$O$2=$O$24,$O$2=$O$25),Best1!$F$12,IF(OR($O$2=$O$14,$O$2=$O$15,$O$2=$O$20,$O$2=$O$21),Best1!$F$13,IF(OR($O$2=$O$16,$O$2=$O$17,$O$2=$O$26,$O$2=$O$27),Best1!$F$14,IF(OR($O$2=$O$22,$O$2=$O$23,$O$2=$O$28,$O$2=$O$29),Best1!$F$15,""))))))) ->  | AQ29: =IF(ISBLANK(H29),"",IF(OR($O$2=$O$5,$O$2=$O$7,$O$2=$O$27,$O$2=$O$29),Best1!$F$13,IF(OR($O$2=$O$18,$O$2=$O$20,$O$2=$O$24,$O$2=$O$26),Best1!$F$10,IF(OR($O$2=$O$12,$O$2=$O$14,$O$2=$O$25,$O$2=$O$28),Best1!$F$11,IF(OR($O$2=$O$13,$O$2=$O$16,$O$2=$O$19,$O$2=$O$22),Best1!$F$12,IF(OR($O$2=$O$6,$O$2=$O$9,$O$2=$O$21,$O$2=$O$23),Best1!$F$14,IF(OR($O$2=$O$8,$O$2=$O$10,$O$2=$O$15,$O$2=$O$17),Best1!$F$15,""))))))) ->  | AT29: =IF(ISBLANK(I29),"",IF(OR($O$2=$O$9,$O$2=$O$10,$O$2=$O$24,$O$2=$O$25),Best1!$F$13,IF(OR($O$2=$O$22,$O$2=$O$23,$O$2=$O$28,$O$2=$O$29),Best1!$F$10,IF(OR($O$2=$O$16,$O$2=$O$17,$O$2=$O$26,$O$2=$O$27),Best1!$F$11,IF(OR($O$2=$O$14,$O$2=$O$15,$O$2=$O$20,$O$2=$O$21),Best1!$F$12,IF(OR($O$2=$O$7,$O$2=$O$8,$O$2=$O$18,$O$2=$O$19),Best1!$F$14,IF(OR($O$2=$O$5,$O$2=$O$6,$O$2=$O$12,$O$2=$O$13),Best1!$F$15,""))))))) ->  | AW29: =IF(ISBLANK(K29),"",IF(Best1!$C$3="","",ROUND(SUM(Best1!$C$3:$C$6),1))) ->  | AZ29: =IF(ISBLANK(K29),"",IF(Best1!$B$3="","",ROUND(AVERAGE(Best1!$D$3:$D$6),1))) -> 
A30: 26 | P30: 0 | Q30: 0 | X30: 0 | Y30: 0 | AH30: 0 | AI30: 0 | AN30: =IF(ISBLANK(E30),"",IF(OR($O$2=$O$5,$O$2=$O$6,$O$2=$O$12,$O$2=$O$13),Best1!$F$10,IF(OR($O$2=$O$7,$O$2=$O$8,$O$2=$O$18,$O$2=$O$19),Best1!$F$11,IF(OR($O$2=$O$9,$O$2=$O$10,$O$2=$O$24,$O$2=$O$25),Best1!$F$12,IF(OR($O$2=$O$14,$O$2=$O$15,$O$2=$O$20,$O$2=$O$21),Best1!$F$13,IF(OR($O$2=$O$16,$O$2=$O$17,$O$2=$O$26,$O$2=$O$27),Best1!$F$14,IF(OR($O$2=$O$22,$O$2=$O$23,$O$2=$O$28,$O$2=$O$29),Best1!$F$15,""))))))) ->  | AQ30: =IF(ISBLANK(H30),"",IF(OR($O$2=$O$5,$O$2=$O$7,$O$2=$O$27,$O$2=$O$29),Best1!$F$13,IF(OR($O$2=$O$18,$O$2=$O$20,$O$2=$O$24,$O$2=$O$26),Best1!$F$10,IF(OR($O$2=$O$12,$O$2=$O$14,$O$2=$O$25,$O$2=$O$28),Best1!$F$11,IF(OR($O$2=$O$13,$O$2=$O$16,$O$2=$O$19,$O$2=$O$22),Best1!$F$12,IF(OR($O$2=$O$6,$O$2=$O$9,$O$2=$O$21,$O$2=$O$23),Best1!$F$14,IF(OR($O$2=$O$8,$O$2=$O$10,$O$2=$O$15,$O$2=$O$17),Best1!$F$15,""))))))) ->  | AT30: =IF(ISBLANK(I30),"",IF(OR($O$2=$O$9,$O$2=$O$10,$O$2=$O$24,$O$2=$O$25),Best1!$F$13,IF(OR($O$2=$O$22,$O$2=$O$23,$O$2=$O$28,$O$2=$O$29),Best1!$F$10,IF(OR($O$2=$O$16,$O$2=$O$17,$O$2=$O$26,$O$2=$O$27),Best1!$F$11,IF(OR($O$2=$O$14,$O$2=$O$15,$O$2=$O$20,$O$2=$O$21),Best1!$F$12,IF(OR($O$2=$O$7,$O$2=$O$8,$O$2=$O$18,$O$2=$O$19),Best1!$F$14,IF(OR($O$2=$O$5,$O$2=$O$6,$O$2=$O$12,$O$2=$O$13),Best1!$F$15,""))))))) ->  | AW30: =IF(ISBLANK(K30),"",IF(Best1!$C$3="","",ROUND(SUM(Best1!$C$3:$C$6),1))) ->  | AZ30: =IF(ISBLANK(K30),"",IF(Best1!$B$3="","",ROUND(AVERAGE(Best1!$D$3:$D$6),1))) -> 
A31: 27 | P31: 0 | Q31: 0 | X31: 0 | Y31: 0 | AH31: 0 | AI31: 0 | AN31: =IF(ISBLANK(E31),"",IF(OR($O$2=$O$5,$O$2=$O$6,$O$2=$O$12,$O$2=$O$13),Best1!$F$10,IF(OR($O$2=$O$7,$O$2=$O$8,$O$2=$O$18,$O$2=$O$19),Best1!$F$11,IF(OR($O$2=$O$9,$O$2=$O$10,$O$2=$O$24,$O$2=$O$25),Best1!$F$12,IF(OR($O$2=$O$14,$O$2=$O$15,$O$2=$O$20,$O$2=$O$21),Best1!$F$13,IF(OR($O$2=$O$16,$O$2=$O$17,$O$2=$O$26,$O$2=$O$27),Best1!$F$14,IF(OR($O$2=$O$22,$O$2=$O$23,$O$2=$O$28,$O$2=$O$29),Best1!$F$15,""))))))) ->  | AO31: =IF(F31="","",F31) ->  | AQ31: =IF(ISBLANK(H31),"",IF(OR($O$2=$O$5,$O$2=$O$7,$O$2=$O$27,$O$2=$O$29),Best1!$F$13,IF(OR($O$2=$O$18,$O$2=$O$20,$O$2=$O$24,$O$2=$O$26),Best1!$F$10,IF(OR($O$2=$O$12,$O$2=$O$14,$O$2=$O$25,$O$2=$O$28),Best1!$F$11,IF(OR($O$2=$O$13,$O$2=$O$16,$O$2=$O$19,$O$2=$O$22),Best1!$F$12,IF(OR($O$2=$O$6,$O$2=$O$9,$O$2=$O$21,$O$2=$O$23),Best1!$F$14,IF(OR($O$2=$O$8,$O$2=$O$10,$O$2=$O$15,$O$2=$O$17),Best1!$F$15,""))))))) ->  | AR31: =IF(H31="","",H31) ->  | AT31: =IF(ISBLANK(I31),"",IF(OR($O$2=$O$9,$O$2=$O$10,$O$2=$O$24,$O$2=$O$25),Best1!$F$13,IF(OR($O$2=$O$22,$O$2=$O$23,$O$2=$O$28,$O$2=$O$29),Best1!$F$10,IF(OR($O$2=$O$16,$O$2=$O$17,$O$2=$O$26,$O$2=$O$27),Best1!$F$11,IF(OR($O$2=$O$14,$O$2=$O$15,$O$2=$O$20,$O$2=$O$21),Best1!$F$12,IF(OR($O$2=$O$7,$O$2=$O$8,$O$2=$O$18,$O$2=$O$19),Best1!$F$14,IF(OR($O$2=$O$5,$O$2=$O$6,$O$2=$O$12,$O$2=$O$13),Best1!$F$15,""))))))) ->  | AU31: =IF(J31="","",J31) ->  | AW31: =IF(ISBLANK(K31),"",IF(Best1!$C$3="","",ROUND(SUM(Best1!$C$3:$C$6),1))) ->  | AX31: =IF(K31="","",K31) ->  | AZ31: =IF(ISBLANK(K31),"",IF(Best1!$B$3="","",ROUND(AVERAGE(Best1!$D$3:$D$6),1))) ->  | BA31: =IF(L31="","",L31) ->  | CD31: =IF(OR(AH31="",AH31=0),"",AH31*1) -> 
A32: 28 | P32: =IF(OR($O$2=$O$5,$O$2=$O$6),E32,IF(OR($O$2=$O$18,$O$2=$O$24),G32,IF(OR($O$2=$O$22,$O$2=$O$28),I32,""))) -> 0 | Q32: =IF(OR($O$2=$O$5,$O$2=$O$6),F32,IF(OR($O$2=$O$18,$O$2=$O$24),H32,IF(OR($O$2=$O$22,$O$2=$O$28),J32,""))) -> 0 | R32: =IF(OR($O$2=$O$7,$O$2=$O$8),E32,IF(OR($O$2=$O$12,$O$2=$O$25),G32,IF(OR($O$2=$O$16,$O$2=$O$26),I32,""))) ->  | S32: =IF(OR($O$2=$O$7,$O$2=$O$8),F32,IF(OR($O$2=$O$12,$O$2=$O$25),H32,IF(OR($O$2=$O$16,$O$2=$O$26),J32,""))) ->  | T32: =IF(OR($O$2=$O$9,$O$2=$O$10),E32,IF(OR($O$2=$O$13,$O$2=$O$19),G32,IF(OR($O$2=$O$14,$O$2=$O$20),I32,""))) ->  | U32: =IF(OR($O$2=$O$9,$O$2=$O$10),F32,IF(OR($O$2=$O$13,$O$2=$O$19),H32,IF(OR($O$2=$O$14,$O$2=$O$20),J32,""))) ->  | V32: =IF(OR($O$2=$O$12,$O$2=$O$13),E32,IF(OR($O$2=$O$20,$O$2=$O$26),G32,IF(OR($O$2=$O$23,$O$2=$O$29),I32,""))) ->  | W32: =IF(OR($O$2=$O$12,$O$2=$O$13),F32,IF(OR($O$2=$O$20,$O$2=$O$26),H32,IF(OR($O$2=$O$23,$O$2=$O$29),J32,""))) ->  | X32: =IF(OR($O$2=$O$14,$O$2=$O$15),E32,IF(OR($O$2=$O$5,$O$2=$O$27),G32,IF(OR($O$2=$O$9,$O$2=$O$24),I32,""))) -> 0 | Y32: =IF(OR($O$2=$O$14,$O$2=$O$15),F32,IF(OR($O$2=$O$5,$O$2=$O$27),H32,IF(OR($O$2=$O$9,$O$2=$O$24),J32,""))) -> 0 | Z32: =IF(OR($O$2=$O$16,$O$2=$O$17),E32,IF(OR($O$2=$O$6,$O$2=$O$21),G32,IF(OR($O$2=$O$7,$O$2=$O$18),I32,""))) ->  | AA32: =IF(OR($O$2=$O$16,$O$2=$O$17),F32,IF(OR($O$2=$O$6,$O$2=$O$21),H32,IF(OR($O$2=$O$7,$O$2=$O$18),J32,""))) ->  | AB32: =IF(OR($O$2=$O$18,$O$2=$O$19),E32,IF(OR($O$2=$O$14,$O$2=$O$28),G32,IF(OR($O$2=$O$17,$O$2=$O$27),I32,""))) ->  | AC32: =IF(OR($O$2=$O$18,$O$2=$O$19),F32,IF(OR($O$2=$O$14,$O$2=$O$28),H32,IF(OR($O$2=$O$17,$O$2=$O$27),J32,""))) ->  | AD32: =IF(OR($O$2=$O$20,$O$2=$O$21),E32,IF(OR($O$2=$O$7,$O$2=$O$29),G32,IF(OR($O$2=$O$10,$O$2=$O$11),I32,""))) ->  | AE32: =IF(OR($O$2=$O$20,$O$2=$O$21),F32,IF(OR($O$2=$O$7,$O$2=$O$29),H32,IF(OR($O$2=$O$10,$O$2=$O$11),J32,""))) ->  | AF32: =IF(OR($O$2=$O$22,$O$2=$O$23),E32,IF(OR($O$2=$O$8,$O$2=$O$15),G32,IF(OR($O$2=$O$5,$O$2=$O$12),I32,""))) ->  | AG32: =IF(OR($O$2=$O$22,$O$2=$O$23),F32,IF(OR($O$2=$O$8,$O$2=$O$15),H32,IF(OR($O$2=$O$5,$O$2=$O$12),J32,""))) ->  | AH32: =IF(OR($O$2=$O$24,$O$2=$O$25),E32,IF(OR($O$2=$O$16,$O$2=$O$22),G32,IF(OR($O$2=$O$15,$O$2=$O$21),I32,""))) -> 0 | AI32: =IF(OR($O$2=$O$24,$O$2=$O$25),F32,IF(OR($O$2=$O$16,$O$2=$O$22),H32,IF(OR($O$2=$O$15,$O$2=$O$21),J32,""))) -> 0 | AJ32: =IF(OR($O$2=$O$26,$O$2=$O$27),E32,IF(OR($O$2=$O$9,$O$2=$O$23),G32,IF(OR($O$2=$O$8,$O$2=$O$19),I32,""))) ->  | AK32: =IF(OR($O$2=$O$26,$O$2=$O$27),F32,IF(OR($O$2=$O$9,$O$2=$O$23),H32,IF(OR($O$2=$O$8,$O$2=$O$19),J32,""))) ->  | AL32: =IF(OR($O$2=$O$28,$O$2=$O$29),E32,IF(OR($O$2=$O$10,$O$2=$O$11),G32,IF(OR($O$2=$O$6,$O$2=$O$13),I32,""))) ->  | AM32: =IF(OR($O$2=$O$28,$O$2=$O$29),F32,IF(OR($O$2=$O$10,$O$2=$O$11),H32,IF(OR($O$2=$O$6,$O$2=$O$13),J32,""))) ->  | AN32: =IF(ISBLANK(E32),"",IF(OR($O$2=$O$5,$O$2=$O$6,$O$2=$O$12,$O$2=$O$13),Best1!$F$10,IF(OR($O$2=$O$7,$O$2=$O$8,$O$2=$O$18,$O$2=$O$19),Best1!$F$11,IF(OR($O$2=$O$9,$O$2=$O$10,$O$2=$O$24,$O$2=$O$25),Best1!$F$12,IF(OR($O$2=$O$14,$O$2=$O$15,$O$2=$O$20,$O$2=$O$21),Best1!$F$13,IF(OR($O$2=$O$16,$O$2=$O$17,$O$2=$O$26,$O$2=$O$27),Best1!$F$14,IF(OR($O$2=$O$22,$O$2=$O$23,$O$2=$O$28,$O$2=$O$29),Best1!$F$15,""))))))) ->  | AQ32: =IF(ISBLANK(H32),"",IF(OR($O$2=$O$5,$O$2=$O$7,$O$2=$O$27,$O$2=$O$29),Best1!$F$13,IF(OR($O$2=$O$18,$O$2=$O$20,$O$2=$O$24,$O$2=$O$26),Best1!$F$10,IF(OR($O$2=$O$12,$O$2=$O$14,$O$2=$O$25,$O$2=$O$28),Best1!$F$11,IF(OR($O$2=$O$13,$O$2=$O$16,$O$2=$O$19,$O$2=$O$22),Best1!$F$12,IF(OR($O$2=$O$6,$O$2=$O$9,$O$2=$O$21,$O$2=$O$23),Best1!$F$14,IF(OR($O$2=$O$8,$O$2=$O$10,$O$2=$O$15,$O$2=$O$17),Best1!$F$15,""))))))) ->  | AT32: =IF(ISBLANK(I32),"",IF(OR($O$2=$O$9,$O$2=$O$10,$O$2=$O$24,$O$2=$O$25),Best1!$F$13,IF(OR($O$2=$O$22,$O$2=$O$23,$O$2=$O$28,$O$2=$O$29),Best1!$F$10,IF(OR($O$2=$O$16,$O$2=$O$17,$O$2=$O$26,$O$2=$O$27),Best1!$F$11,IF(OR($O$2=$O$14,$O$2=$O$15,$O$2=$O$20,$O$2=$O$21),Best1!$F$12,IF(OR($O$2=$O$7,$O$2=$O$8,$O$2=$O$18,$O$2=$O$19),Best1!$F$14,IF(OR($O$2=$O$5,$O$2=$O$6,$O$2=$O$12,$O$2=$O$13),Best1!$F$15,""))))))) ->  | AW32: =IF(ISBLANK(K32),"",IF(Best1!$C$3="","",ROUND(SUM(Best1!$C$3:$C$6),1))) ->  | AZ32: =IF(ISBLANK(K32),"",IF(Best1!$B$3="","",ROUND(AVERAGE(Best1!$D$3:$D$6),1))) ->  | CB32: =IF(OR(AF32="",AF32=0),"",AF32*1) -> 
P34: =MIN(BW5:BW32) -> 0 | Q34: =MIN(BX5:BX32) -> 0 | R34: =MIN(BY5:BY32) -> 0 | S34: 0 | T34: 0 | U34: 0 | V34: 0 | W34: 0 | X34: 0 | Y34: 0 | Z34: 0 | AA34: 0 | AB34: 0 | AC34: 0 | AD34: 0 | AE34: 0 | AF34: 0 | AG34: 0 | AH34: 0 | AI34: 0 | AJ34: 0 | AK34: 0 | AL34: 0 | AM34: 0 | BL34: =IF(MIN(BL5:BL32)=0,"",MIN(BL5:BL32)) ->  | BM34: =IF(MIN(BM5:BM32)=0,"",MIN(BM5:BM32)) ->  | BZ34: =IF(MIN(BZ5:BZ32)=0,"",MIN(BZ5:BZ32)) -> 
AX42: =IF(AND(AX5="",AX33=""),"",MIN(AX5:AX41)) ->  | BA42: =IF(AND(BA5="",BA33=""),"",MAX(BA5:BA41)) -> 
A50: 1 | B50: 500 | C50: 500 | D50: 500 | E50: 500 | F50: =B50*1 -> 500 | G50: =C50*1 -> 500 | H50: =D50*1 -> 500 | I50: =E50*1 -> 500
B51: 500 | C51: 500 | D51: 500 | E51: 500 | F51: =B51*1 -> 500 | G51: =C51*1 -> 500 | H51: =D51*1 -> 500 | I51: =E51*1 -> 500
B52: 500 | C52: 500 | D52: 500 | E52: 500 | F52: 500 | G52: 500 | H52: 500 | I52: 500
B53: 500 | C53: 500 | D53: 500 | E53: 500 | F53: 500 | G53: 500 | H53: 500 | I53: 500
B54: 500 | C54: 500 | D54: 500 | E54: 500 | F54: 500 | G54: 500 | H54: 500 | I54: 500
B55: 500 | C55: 500 | D55: 500 | E55: 500 | F55: 500 | G55: 500 | H55: 500 | I55: 500
B56: 500 | C56: 500 | D56: 500 | E56: 500 | F56: 500 | G56: 500 | H56: 500 | I56: 500
B57: 500 | C57: 500 | D57: 500 | E57: 500 | F57: 500 | G57: 500 | H57: 500 | I57: 500
B58: 500 | C58: 500 | D58: 500 | E58: 500 | F58: 500 | G58: 500 | H58: 500 | I58: 500
B59: 500 | C59: 500 | D59: 500 | E59: 500 | F59: 500 | G59: 500 | H59: 500 | I59: 500
B60: 500 | C60: 500 | D60: 500 | E60: 500 | F60: 500 | G60: 500 | H60: 500 | I60: 500
B61: 500 | C61: 500 | D61: 500 | E61: 500 | F61: 500 | G61: 500 | H61: 500 | I61: 500
B62: 500 | C62: 500 | D62: 500 | E62: 500 | F62: 500 | G62: 500 | H62: 500 | I62: 500
B63: 500 | C63: 500 | D63: 500 | E63: 500 | F63: 500 | G63: 500 | H63: 500 | I63: 500
B64: 500 | C64: 500 | D64: 500 | E64: 500 | F64: 500 | G64: 500 | H64: 500 | I64: 500
B65: 500 | C65: 500 | D65: 500 | E65: 500 | F65: 500 | G65: 500 | H65: 500 | I65: 500
B66: 500 | C66: 500 | D66: 500 | E66: 500 | F66: 500 | G66: 500 | H66: 500 | I66: 500
B67: 500 | C67: 500 | D67: 500 | E67: 500 | F67: 500 | G67: 500 | H67: 500 | I67: 500
B68: 500 | C68: 500 | D68: 500 | E68: 500 | F68: 500 | G68: 500 | H68: 500 | I68: 500
B69: 500 | C69: 500 | D69: 500 | E69: 500 | F69: 500 | G69: 500 | H69: 500 | I69: 500
B70: 500 | C70: 500 | D70: 500 | E70: 500 | F70: 500 | G70: 500 | H70: 500 | I70: 500
B71: 500 | C71: 500 | D71: 500 | E71: 500 | F71: 500 | G71: 500 | H71: 500 | I71: 500
B72: 500 | C72: 500 | D72: 500 | E72: 500 | F72: 500 | G72: 500 | H72: 500 | I72: 500
B73: 500 | C73: 500 | D73: 500 | E73: 500 | F73: 500 | G73: 500 | H73: 500 | I73: 500
B89: =MIN(B50:B73) -> 500 | C89: =MIN(C50:C73) -> 500 | D89: 500 | E89: 500 | F89: =MIN(F50:F73) -> 500 | G89: 500 | H89: 500 | I89: 500
B90: 500 | C90: 500 | D90: 500 | E90: 500 | F90: =B90*1 -> 500 | G90: =C90*1 -> 500 | H90: =D90*1 -> 500 | I90: =E90*1 -> 500
B91: 500 | C91: 500 | D91: 500 | E91: 500 | F91: =B91*1 -> 500 | G91: =C91*1 -> 500 | H91: =D91*1 -> 500 | I91: =E91*1 -> 500
B92: 500 | C92: 500 | D92: 500 | E92: 500 | F92: 500 | G92: 500 | H92: 500 | I92: 500
B93: 500 | C93: 500 | D93: 500 | E93: 500 | F93: 500 | G93: 500 | H93: 500 | I93: 500
B94: 500 | C94: 500 | D94: 500 | E94: 500 | F94: 500 | G94: 500 | H94: 500 | I94: 500
B95: 500 | C95: 500 | D95: 500 | E95: 500 | F95: 500 | G95: 500 | H95: 500 | I95: 500
B96: 500 | C96: 500 | D96: 500 | E96: 500 | F96: 500 | G96: 500 | H96: 500 | I96: 500
B97: 500 | C97: 500 | D97: 500 | E97: 500 | F97: 500 | G97: 500 | H97: 500 | I97: 500
B98: 500 | C98: 500 | D98: 500 | E98: 500 | F98: 500 | G98: 500 | H98: 500 | I98: 500
B99: 500 | C99: 500 | D99: 500 | E99: 500 | F99: 500 | G99: 500 | H99: 500 | I99: 500
B100: 500 | C100: 500 | D100: 500 | E100: 500 | F100: 500 | G100: 500 | H100: 500 | I100: 500
B101: 500 | C101: 500 | D101: 500 | E101: 500 | F101: 500 | G101: 500 | H101: 500 | I101: 500
B102: 500 | C102: 500 | D102: 500 | E102: 500 | F102: 500 | G102: 500 | H102: 500 | I102: 500
B103: 500 | C103: 500 | D103: 500 | E103: 500 | F103: 500 | G103: 500 | H103: 500 | I103: 500
B104: 500 | C104: 500 | D104: 500 | E104: 500 | F104: 500 | G104: 500 | H104: 500 | I104: 500
B105: 500 | C105: 500 | D105: 500 | E105: 500 | F105: 500 | G105: 500 | H105: 500 | I105: 500
B106: 500 | C106: 500 | D106: 500 | E106: 500 | F106: 500 | G106: 500 | H106: 500 | I106: 500
B107: 500 | C107: 500 | D107: 500 | E107: 500 | F107: 500 | G107: 500 | H107: 500 | I107: 500
B108: 500 | C108: 500 | D108: 500 | E108: 500 | F108: 500 | G108: 500 | H108: 500 | I108: 500
B109: 500 | C109: 500 | D109: 500 | E109: 500 | F109: 500 | G109: 500 | H109: 500 | I109: 500
B110: 500 | C110: 500 | D110: 500 | E110: 500 | F110: 500 | G110: 500 | H110: 500 | I110: 500
B111: 500 | C111: 500 | D111: 500 | E111: 500 | F111: 500 | G111: 500 | H111: 500 | I111: 500
B112: 500 | C112: 500 | D112: 500 | E112: 500 | F112: 500 | G112: 500 | H112: 500 | I112: 500
B113: 500 | C113: 500 | D113: 500 | E113: 500 | F113: 500 | G113: 500 | H113: 500 | I113: 500
B129: =IF(MIN(B90:B113)=0,"",MIN(B90:B113)) -> 500 | C129: 500 | D129: 500 | E129: 500 | F129: 500 | G129: 500 | H129: 500 | I129: 500
F130: =IF(MIN(F89,F129)=500,"",MIN(F89,F129)) ->  | G130: =IF(MIN(G89,G129)=500,"",MIN(G89,G129)) -> 

Sheet Archresultats2
A1: Bilan équipe 2
O2: ABCD
AN3: ZONE 1 | AQ3: ZONE 2 | AT3: ZONE 3 | AW3: TOTAL course
B4: Dates | C4: Heure | D4: Coureur ou Ordre relais | E4: Tps zone 1 | F4: Vitesse zone 1 | G4: Tps zone 2 | H4: Vitesse zone 2 | I4: Tps zone 3 | J4: Vitesse zone 3 | K4: Tps course totale | L4: Vitesse totale totale | M4: Remarques | P4: AB (t) | Q4: AB (v) | R4: AC (t) | S4: AC (v) | T4: AD (t) | U4: AD (v) | V4: BA (v) | W4: BA (t) | X4: BC (t) | Y4: BC (v) | Z4: BD (t) | AA4: BD (v) | AB4: CA (t) | AC4: CA (v) | AD4: CB (t) | AE4: CB (v) | AF4: CD (t) | AG4: CD (v) | AH4: DA (t) | AI4: DA (v) | AJ4: DB (t) | AK4: DB (v) | AL4: DC (t) | AM4: DC (v) | AN4: Vitesse moy. théorique du binôme | AO4: Vitesse réelle du binôme | AP4: % Evolution | AQ4: Vitesse moy. théorique du binôme | AR4: Vitesse réelle du binôme | AS4: % Evolution | AT4: Vitesse moy. théorique du binôme | AU4: Vitesse réelle du binôme | AV4: % Evolution | AW4: TEMPS total théorique du groupe | AX4: TEMPS total réel du groupe | AY4: % Evolution | AZ4: VITESSE théorique du groupe | BA4: VITESSE réelle du groupe | BB4: % Evolution
A5: 1 | O5: ABCD | P5: =IF(OR($O$2=$O$5,$O$2=$O$6),E5,IF(OR($O$2=$O$18,$O$2=$O$24),G5,IF(OR($O$2=$O$22,$O$2=$O$28),I5,""))) -> 0 | Q5: =IF(OR($O$2=$O$5,$O$2=$O$6),F5,IF(OR($O$2=$O$18,$O$2=$O$24),H5,IF(OR($O$2=$O$22,$O$2=$O$28),J5,""))) -> 0 | R5: =IF(OR($O$2=$O$7,$O$2=$O$8),E5,IF(OR($O$2=$O$12,$O$2=$O$25),G5,IF(OR($O$2=$O$16,$O$2=$O$26),I5,""))) ->  | S5: =IF(OR($O$2=$O$7,$O$2=$O$8),F5,IF(OR($O$2=$O$12,$O$2=$O$25),H5,IF(OR($O$2=$O$16,$O$2=$O$26),J5,""))) ->  | T5: =IF(OR($O$2=$O$9,$O$2=$O$10),E5,IF(OR($O$2=$O$13,$O$2=$O$19),G5,IF(OR($O$2=$O$14,$O$2=$O$20),I5,""))) ->  | U5: =IF(OR($O$2=$O$9,$O$2=$O$10),F5,IF(OR($O$2=$O$13,$O$2=$O$19),H5,IF(OR($O$2=$O$14,$O$2=$O$20),J5,""))) ->  | V5: =IF(OR($O$2=$O$12,$O$2=$O$13),E5,IF(OR($O$2=$O$20,$O$2=$O$26),G5,IF(OR($O$2=$O$23,$O$2=$O$29),I5,""))) ->  | W5: =IF(OR($O$2=$O$12,$O$2=$O$13),F5,IF(OR($O$2=$O$20,$O$2=$O$26),H5,IF(OR($O$2=$O$23,$O$2=$O$29),J5,""))) ->  | X5: =IF(OR($O$2=$O$14,$O$2=$O$15),E5,IF(OR($O$2=$O$5,$O$2=$O$27),G5,IF(OR($O$2=$O$9,$O$2=$O$24),I5,""))) -> 0 | Y5: =IF(OR($O$2=$O$14,$O$2=$O$15),F5,IF(OR($O$2=$O$5,$O$2=$O$27),H5,IF(OR($O$2=$O$9,$O$2=$O$24),J5,""))) -> 0 | Z5: =IF(OR($O$2=$O$16,$O$2=$O$17),E5,IF(OR($O$2=$O$6,$O$2=$O$21),G5,IF(OR($O$2=$O$7,$O$2=$O$18),I5,""))) ->  | AA5: =IF(OR($O$2=$O$16,$O$2=$O$17),F5,IF(OR($O$2=$O$6,$O$2=$O$21),H5,IF(OR($O$2=$O$7,$O$2=$O$18),J5,""))) ->  | AB5: =IF(OR($O$2=$O$18,$O$2=$O$19),E5,IF(OR($O$2=$O$14,$O$2=$O$28),G5,IF(OR($O$2=$O$17,$O$2=$O$27),I5,""))) ->  | AC5: =IF(OR($O$2=$O$18,$O$2=$O$19),F5,IF(OR($O$2=$O$14,$O$2=$O$28),H5,IF(OR($O$2=$O$17,$O$2=$O$27),J5,""))) ->  | AD5: =IF(OR($O$2=$O$20,$O$2=$O$21),E5,IF(OR($O$2=$O$7,$O$2=$O$29),G5,IF(OR($O$2=$O$10,$O$2=$O$11),I5,""))) ->  | AE5: =IF(OR($O$2=$O$20,$O$2=$O$21),F5,IF(OR($O$2=$O$7,$O$2=$O$29),H5,IF(OR($O$2=$O$10,$O$2=$O$11),J5,""))) ->  | AF5: =IF(OR($O$2=$O$22,$O$2=$O$23),E5,IF(OR($O$2=$O$8,$O$2=$O$15),G5,IF(OR($O$2=$O$5,$O$2=$O$12),I5,""))) -> 0 | AG5: =IF(OR($O$2=$O$22,$O$2=$O$23),F5,IF(OR($O$2=$O$8,$O$2=$O$15),H5,IF(OR($O$2=$O$5,$O$2=$O$12),J5,""))) -> 0 | AH5: =IF(OR($O$2=$O$24,$O$2=$O$25),E5,IF(OR($O$2=$O$16,$O$2=$O$22),G5,IF(OR($O$2=$O$15,$O$2=$O$21),I5,""))) ->  | AI5: =IF(OR($O$2=$O$24,$O$2=$O$25),F5,IF(OR($O$2=$O$16,$O$2=$O$22),H5,IF(OR($O$2=$O$15,$O$2=$O$21),J5,""))) ->  | AJ5: =IF(OR($O$2=$O$26,$O$2=$O$27),E5,IF(OR($O$2=$O$9,$O$2=$O$23),G5,IF(OR($O$2=$O$8,$O$2=$O$19),I5,""))) ->  | AK5: =IF(OR($O$2=$O$26,$O$2=$O$27),F5,IF(OR($O$2=$O$9,$O$2=$O$23),H5,IF(OR($O$2=$O$8,$O$2=$O$19),J5,""))) ->  | AL5: =IF(OR($O$2=$O$28,$O$2=$O$29),E5,IF(OR($O$2=$O$10,$O$2=$O$11),G5,IF(OR($O$2=$O$6,$O$2=$O$13),I5,""))) ->  | AM5: =IF(OR($O$2=$O$28,$O$2=$O$29),F5,IF(OR($O$2=$O$10,$O$2=$O$11),H5,IF(OR($O$2=$O$6,$O$2=$O$13),J5,""))) ->  | AN5: =IF(ISBLANK(E5),"",IF(OR($O$2=$O$5,$O$2=$O$6,$O$2=$O$12,$O$2=$O$13),Best2!$F$10,IF(OR($O$2=$O$7,$O$2=$O$8,$O$2=$O$18,$O$2=$O$19),Best2!$F$11,IF(OR($O$2=$O$9,$O$2=$O$10,$O$2=$O$24,$O$2=$O$25),Best2!$F$12,IF(OR($O$2=$O$14,$O$2=$O$15,$O$2=$O$20,$O$2=$O$21),Best2!$F$13,IF(OR($O$2=$O$16,$O$2=$O$17,$O$2=$O$26,$O$2=$O$27),Best2!$F$14,IF(OR($O$2=$O$22,$O$2=$O$23,$O$2=$O$28,$O$2=$O$29),Best2!$F$15,""))))))) ->  | AO5: =IF(F5="","",F5) ->  | AP5: =IF(AO5="","",ROUND(((AO5-AN5)/AN5*100),1)) ->  | AQ5: =IF(ISBLANK(G5),"",IF(OR($O$2=$O$5,$O$2=$O$7,$O$2=$O$27,$O$2=$O$29),Best2!$F$13,IF(OR($O$2=$O$18,$O$2=$O$20,$O$2=$O$24,$O$2=$O$26),Best2!$F$10,IF(OR($O$2=$O$12,$O$2=$O$14,$O$2=$O$25,$O$2=$O$28),Best2!$F$11,IF(OR($O$2=$O$13,$O$2=$O$16,$O$2=$O$19,$O$2=$O$22),Best2!$F$12,IF(OR($O$2=$O$6,$O$2=$O$9,$O$2=$O$21,$O$2=$O$23),Best2!$F$14,IF(OR($O$2=$O$8,$O$2=$O$10,$O$2=$O$15,$O$2=$O$17),Best2!$F$15,""))))))) ->  | AR5: =IF(H5="","",H5) ->  | AS5: =IF(AR5="","",ROUND(((AR5-AQ5)/AQ5*100),1)) ->  | AT5: =IF(ISBLANK(I5),"",IF(OR($O$2=$O$9,$O$2=$O$10,$O$2=$O$24,$O$2=$O$25),Best2!$F$13,IF(OR($O$2=$O$22,$O$2=$O$23,$O$2=$O$28,$O$2=$O$29),Best2!$F$10,IF(OR($O$2=$O$16,$O$2=$O$17,$O$2=$O$26,$O$2=$O$27),Best2!$F$11,IF(OR($O$2=$O$14,$O$2=$O$15,$O$2=$O$20,$O$2=$O$21),Best2!$F$12,IF(OR($O$2=$O$7,$O$2=$O$8,$O$2=$O$18,$O$2=$O$19),Best2!$F$14,IF(OR($O$2=$O$5,$O$2=$O$6,$O$2=$O$12,$O$2=$O$13),Best2!$F$15,""))))))) ->  | AU5: =IF(J5="","",J5) ->  | AV5: =IF(AU5="","",ROUND(((AU5-AT5)/AT5*100),1)) ->  | AW5: =IF(ISBLANK(K5),"",IF(Best2!$C$3="","",ROUND(SUM(Best2!$C$3:$C$6),1))) ->  | AX5: =IF(K5="","",K5) ->  | AY5: =IF(AX5="","",ROUND(((AX5-AW5)/AW5*100),1)) ->  | AZ5: =IF(ISBLANK(K5),"",IF(Best2!$B$3="","",ROUND(AVERAGE(Best2!$D$3:$D$6),1))) ->  | BA5: =IF(L5="","",L5) ->  | BB5: =IF(BA5="","",ROUND(((BA5-AZ5)/AZ5*100),1)) ->  | BD5: =AX5 ->  | BL5: =IF(OR(P5="",P5=0),"",P5*1) ->  | BM5: =IF(OR(Q5="",Q5=0),"",Q5*1) ->  | BO5: =IF(OR(S5="",S5=0),"",S5*1) ->  | BP5: =IF(OR(T5="",T5=0),"",T5*1) ->  | BQ5: =IF(OR(U5="",U5=0),"",U5*1) ->  | BR5: =IF(OR(V5="",V5=0),"",V5*1) ->  | BS5: =IF(OR(W5="",W5=0),"",W5*1) ->  | BT5: =IF(OR(X5="",X5=0),"",X5*1) ->  | BU5: =IF(OR(Y5="",Y5=0),"",Y5*1) ->  | BV5: =IF(OR(Z5="",Z5=0),"",Z5*1) ->  | BW5: =IF(OR(AA5="",AA5=0),"",AA5*1) ->  | BX5: =IF(OR(AB5="",AB5=0),"",AB5*1) ->  | BY5: =IF(OR(AC5="",AC5=0),"",AC5*1) ->  | BZ5: =IF(OR(AD5="",AD5=0),"",AD5*1) ->  | CA5: =IF(OR(AE5="",AE5=0),"",AE5*1) ->  | CB5: =IF(OR(AF5="",AF5=0),"",AF5*1) ->  | CC5: =IF(OR(AG5="",AG5=0),"",AG5*1) ->  | CD5: =IF(OR(AH5="",AH5=0),"",AH5*1) ->  | CE5: =IF(OR(AI5="",AI5=0),"",AI5*1) ->  | CF5: =IF(OR(AJ5="",AJ5=0),"",AJ5*1) ->  | CG5: =IF(OR(AK5="",AK5=0),"",AK5*1) ->  | CH5: =IF(OR(AL5="",AL5=0),"",AL5*1) ->  | CI5: =IF(OR(AM5="",AM5=0),"",AM5*1) -> 
A6: 2 | O6: ABDC | P6: =IF(OR($O$2=$O$5,$O$2=$O$6),E6,IF(OR($O$2=$O$18,$O$2=$O$24),G6,IF(OR($O$2=$O$22,$O$2=$O$28),I6,""))) -> 0 | Q6: 0 | R6: =IF(OR($O$2=$O$7,$O$2=$O$8),E6,IF(OR($O$2=$O$12,$O$2=$O$25),G6,IF(OR($O$2=$O$16,$O$2=$O$26),I6,""))) ->  | T6: =IF(OR($O$2=$O$9,$O$2=$O$10),E6,IF(OR($O$2=$O$13,$O$2=$O$19),G6,IF(OR($O$2=$O$14,$O$2=$O$20),I6,""))) ->  | V6: =IF(OR($O$2=$O$12,$O$2=$O$13),E6,IF(OR($O$2=$O$20,$O$2=$O$26),G6,IF(OR($O$2=$O$23,$O$2=$O$29),I6,""))) ->  | X6: =IF(OR($O$2=$O$14,$O$2=$O$15),E6,IF(OR($O$2=$O$5,$O$2=$O$27),G6,IF(OR($O$2=$O$9,$O$2=$O$24),I6,""))) -> 0 | Y6: 0 | Z6: =IF(OR($O$2=$O$16,$O$2=$O$17),E6,IF(OR($O$2=$O$6,$O$2=$O$21),G6,IF(OR($O$2=$O$7,$O$2=$O$18),I6,""))) ->  | AB6: =IF(OR($O$2=$O$18,$O$2=$O$19),E6,IF(OR($O$2=$O$14,$O$2=$O$28),G6,IF(OR($O$2=$O$17,$O$2=$O$27),I6,""))) ->  | AD6: =IF(OR($O$2=$O$20,$O$2=$O$21),E6,IF(OR($O$2=$O$7,$O$2=$O$29),G6,IF(OR($O$2=$O$10,$O$2=$O$11),I6,""))) ->  | AF6: =IF(OR($O$2=$O$22,$O$2=$O$23),E6,IF(OR($O$2=$O$8,$O$2=$O$15),G6,IF(OR($O$2=$O$5,$O$2=$O$12),I6,""))) -> 0 | AG6: 0 | AH6: =IF(OR($O$2=$O$24,$O$2=$O$25),E6,IF(OR($O$2=$O$16,$O$2=$O$22),G6,IF(OR($O$2=$O$15,$O$2=$O$21),I6,""))) ->  | AJ6: =IF(OR($O$2=$O$26,$O$2=$O$27),E6,IF(OR($O$2=$O$9,$O$2=$O$23),G6,IF(OR($O$2=$O$8,$O$2=$O$19),I6,""))) ->  | AL6: =IF(OR($O$2=$O$28,$O$2=$O$29),E6,IF(OR($O$2=$O$10,$O$2=$O$11),G6,IF(OR($O$2=$O$6,$O$2=$O$13),I6,""))) ->  | AN6: =IF(ISBLANK(E6),"",IF(OR($O$2=$O$5,$O$2=$O$6,$O$2=$O$12,$O$2=$O$13),Best2!$F$10,IF(OR($O$2=$O$7,$O$2=$O$8,$O$2=$O$18,$O$2=$O$19),Best2!$F$11,IF(OR($O$2=$O$9,$O$2=$O$10,$O$2=$O$24,$O$2=$O$25),Best2!$F$12,IF(OR($O$2=$O$14,$O$2=$O$15,$O$2=$O$20,$O$2=$O$21),Best2!$F$13,IF(OR($O$2=$O$16,$O$2=$O$17,$O$2=$O$26,$O$2=$O$27),Best2!$F$14,IF(OR($O$2=$O$22,$O$2=$O$23,$O$2=$O$28,$O$2=$O$29),Best2!$F$15,""))))))) ->  | AO6: =IF(F6="","",F6) ->  | AP6: =IF(AO6="","",ROUND(((AO6-AN6)/AN6*100),1)) ->  | AQ6: =IF(ISBLANK(G6),"",IF(OR($O$2=$O$5,$O$2=$O$7,$O$2=$O$27,$O$2=$O$29),Best2!$F$13,IF(OR($O$2=$O$18,$O$2=$O$20,$O$2=$O$24,$O$2=$O$26),Best2!$F$10,IF(OR($O$2=$O$12,$O$2=$O$14,$O$2=$O$25,$O$2=$O$28),Best2!$F$11,IF(OR($O$2=$O$13,$O$2=$O$16,$O$2=$O$19,$O$2=$O$22),Best2!$F$12,IF(OR($O$2=$O$6,$O$2=$O$9,$O$2=$O$21,$O$2=$O$23),Best2!$F$14,IF(OR($O$2=$O$8,$O$2=$O$10,$O$2=$O$15,$O$2=$O$17),Best2!$F$15,""))))))) ->  | AR6: =IF(H6="","",H6) ->  | AS6: =IF(AR6="","",ROUND(((AR6-AQ6)/AQ6*100),1)) ->  | AT6: =IF(ISBLANK(I6),"",IF(OR($O$2=$O$9,$O$2=$O$10,$O$2=$O$24,$O$2=$O$25),Best2!$F$13,IF(OR($O$2=$O$22,$O$2=$O$23,$O$2=$O$28,$O$2=$O$29),Best2!$F$10,IF(OR($O$2=$O$16,$O$2=$O$17,$O$2=$O$26,$O$2=$O$27),Best2!$F$11,IF(OR($O$2=$O$14,$O$2=$O$15,$O$2=$O$20,$O$2=$O$21),Best2!$F$12,IF(OR($O$2=$O$7,$O$2=$O$8,$O$2=$O$18,$O$2=$O$19),Best2!$F$14,IF(OR($O$2=$O$5,$O$2=$O$6,$O$2=$O$12,$O$2=$O$13),Best2!$F$15,""))))))) ->  | AU6: =IF(J6="","",J6) ->  | AV6: =IF(AU6="","",ROUND(((AU6-AT6)/AT6*100),1)) ->  | AW6: =IF(ISBLANK(K6),"",IF(Best2!$C$3="","",ROUND(SUM(Best2!$C$3:$C$6),1))) ->  | AX6: =IF(K6="","",K6) ->  | AY6: =IF(AX6="","",ROUND(((AX6-AW6)/AW6*100),1)) ->  | AZ6: =IF(ISBLANK(K6),"",IF(Best2!$B$3="","",ROUND(AVERAGE(Best2!$D$3:$D$6),1))) ->  | BA6: =IF(L6="","",L6) ->  | BB6: =IF(BA6="","",ROUND(((BA6-AZ6)/AZ6*100),1)) ->  | BD6: =AX6 ->  | BL6: =IF(OR(P6="",P6=0),"",P6*1) ->  | BM6: =IF(OR(Q6="",Q6=0),"",Q6*1) ->  | BN6: =IF(OR(R6="",R6=0),"",R6*1) ->  | BO6: =IF(OR(S6="",S6=0),"",S6*1) ->  | BP6: =IF(OR(T6="",T6=0),"",T6*1) ->  | BQ6: =IF(OR(U6="",U6=0),"",U6*1) ->  | BR6: =IF(OR(V6="",V6=0),"",V6*1) ->  | BS6: =IF(OR(W6="",W6=0),"",W6*1) ->  | BT6: =IF(OR(X6="",X6=0),"",X6*1) ->  | BU6: =IF(OR(Y6="",Y6=0),"",Y6*1) ->  | BV6: =IF(OR(Z6="",Z6=0),"",Z6*1) ->  | BW6: =IF(OR(AA6="",AA6=0),"",AA6*1) ->  | BX6: =IF(OR(AB6="",AB6=0),"",AB6*1) ->  | BY6: =IF(OR(AC6="",AC6=0),"",AC6*1) ->  | BZ6: =IF(OR(AD6="",AD6=0),"",AD6*1) ->  | CA6: =IF(OR(AE6="",AE6=0),"",AE6*1) ->  | CB6: =IF(OR(AF6="",AF6=0),"",AF6*1) ->  | CC6: =IF(OR(AG6="",AG6=0),"",AG6*1) ->  | CD6: =IF(OR(AH6="",AH6=0),"",AH6*1) ->  | CE6: =IF(OR(AI6="",AI6=0),"",AI6*1) ->  | CF6: =IF(OR(AJ6="",AJ6=0),"",AJ6*1) ->  | CG6: =IF(OR(AK6="",AK6=0),"",AK6*1) ->  | CH6: =IF(OR(AL6="",AL6=0),"",AL6*1) ->  | CI6: =IF(OR(AM6="",AM6=0),"",AM6*1) -> 
A7: 3 | O7: ACBD | P7: 0 | Q7: 0 | X7: 0 | Y7: 0 | AF7: 0 | AG7: 0 | AN7: =IF(ISBLANK(E7),"",IF(OR($O$2=$O$5,$O$2=$O$6,$O$2=$O$12,$O$2=$O$13),Best2!$F$10,IF(OR($O$2=$O$7,$O$2=$O$8,$O$2=$O$18,$O$2=$O$19),Best2!$F$11,IF(OR($O$2=$O$9,$O$2=$O$10,$O$2=$O$24,$O$2=$O$25),Best2!$F$12,IF(OR($O$2=$O$14,$O$2=$O$15,$O$2=$O$20,$O$2=$O$21),Best2!$F$13,IF(OR($O$2=$O$16,$O$2=$O$17,$O$2=$O$26,$O$2=$O$27),Best2!$F$14,IF(OR($O$2=$O$22,$O$2=$O$23,$O$2=$O$28,$O$2=$O$29),Best2!$F$15,""))))))) ->  | AQ7: =IF(ISBLANK(G7),"",IF(OR($O$2=$O$5,$O$2=$O$7,$O$2=$O$27,$O$2=$O$29),Best2!$F$13,IF(OR($O$2=$O$18,$O$2=$O$20,$O$2=$O$24,$O$2=$O$26),Best2!$F$10,IF(OR($O$2=$O$12,$O$2=$O$14,$O$2=$O$25,$O$2=$O$28),Best2!$F$11,IF(OR($O$2=$O$13,$O$2=$O$16,$O$2=$O$19,$O$2=$O$22),Best2!$F$12,IF(OR($O$2=$O$6,$O$2=$O$9,$O$2=$O$21,$O$2=$O$23),Best2!$F$14,IF(OR($O$2=$O$8,$O$2=$O$10,$O$2=$O$15,$O$2=$O$17),Best2!$F$15,""))))))) ->  | AT7: =IF(ISBLANK(I7),"",IF(OR($O$2=$O$9,$O$2=$O$10,$O$2=$O$24,$O$2=$O$25),Best2!$F$13,IF(OR($O$2=$O$22,$O$2=$O$23,$O$2=$O$28,$O$2=$O$29),Best2!$F$10,IF(OR($O$2=$O$16,$O$2=$O$17,$O$2=$O$26,$O$2=$O$27),Best2!$F$11,IF(OR($O$2=$O$14,$O$2=$O$15,$O$2=$O$20,$O$2=$O$21),Best2!$F$12,IF(OR($O$2=$O$7,$O$2=$O$8,$O$2=$O$18,$O$2=$O$19),Best2!$F$14,IF(OR($O$2=$O$5,$O$2=$O$6,$O$2=$O$12,$O$2=$O$13),Best2!$F$15,""))))))) ->  | AW7: =IF(ISBLANK(K7),"",IF(Best2!$C$3="","",ROUND(SUM(Best2!$C$3:$C$6),1))) ->  | AZ7: =IF(ISBLANK(K7),"",IF(Best2!$B$3="","",ROUND(AVERAGE(Best2!$D$3:$D$6),1))) -> 
A8: 4 | O8: ACDB | P8: 0 | Q8: 0 | X8: 0 | Y8: 0 | AF8: 0 | AG8: 0 | AN8: =IF(ISBLANK(E8),"",IF(OR($O$2=$O$5,$O$2=$O$6,$O$2=$O$12,$O$2=$O$13),Best2!$F$10,IF(OR($O$2=$O$7,$O$2=$O$8,$O$2=$O$18,$O$2=$O$19),Best2!$F$11,IF(OR($O$2=$O$9,$O$2=$O$10,$O$2=$O$24,$O$2=$O$25),Best2!$F$12,IF(OR($O$2=$O$14,$O$2=$O$15,$O$2=$O$20,$O$2=$O$21),Best2!$F$13,IF(OR($O$2=$O$16,$O$2=$O$17,$O$2=$O$26,$O$2=$O$27),Best2!$F$14,IF(OR($O$2=$O$22,$O$2=$O$23,$O$2=$O$28,$O$2=$O$29),Best2!$F$15,""))))))) ->  | AQ8: =IF(ISBLANK(G8),"",IF(OR($O$2=$O$5,$O$2=$O$7,$O$2=$O$27,$O$2=$O$29),Best2!$F$13,IF(OR($O$2=$O$18,$O$2=$O$20,$O$2=$O$24,$O$2=$O$26),Best2!$F$10,IF(OR($O$2=$O$12,$O$2=$O$14,$O$2=$O$25,$O$2=$O$28),Best2!$F$11,IF(OR($O$2=$O$13,$O$2=$O$16,$O$2=$O$19,$O$2=$O$22),Best2!$F$12,IF(OR($O$2=$O$6,$O$2=$O$9,$O$2=$O$21,$O$2=$O$23),Best2!$F$14,IF(OR($O$2=$O$8,$O$2=$O$10,$O$2=$O$15,$O$2=$O$17),Best2!$F$15,""))))))) ->  | AT8: =IF(ISBLANK(I8),"",IF(OR($O$2=$O$9,$O$2=$O$10,$O$2=$O$24,$O$2=$O$25),Best2!$F$13,IF(OR($O$2=$O$22,$O$2=$O$23,$O$2=$O$28,$O$2=$O$29),Best2!$F$10,IF(OR($O$2=$O$16,$O$2=$O$17,$O$2=$O$26,$O$2=$O$27),Best2!$F$11,IF(OR($O$2=$O$14,$O$2=$O$15,$O$2=$O$20,$O$2=$O$21),Best2!$F$12,IF(OR($O$2=$O$7,$O$2=$O$8,$O$2=$O$18,$O$2=$O$19),Best2!$F$14,IF(OR($O$2=$O$5,$O$2=$O$6,$O$2=$O$12,$O$2=$O$13),Best2!$F$15,""))))))) ->  | AW8: =IF(ISBLANK(K8),"",IF(Best2!$C$3="","",ROUND(SUM(Best2!$C$3:$C$6),1))) ->  | AZ8: =IF(ISBLANK(K8),"",IF(Best2!$B$3="","",ROUND(AVERAGE(Best2!$D$3:$D$6),1))) -> 
A9: 5 | O9: ADBC | P9: 0 | Q9: 0 | X9: 0 | Y9: 0 | AF9: 0 | AG9: 0 | AN9: =IF(ISBLANK(E9),"",IF(OR($O$2=$O$5,$O$2=$O$6,$O$2=$O$12,$O$2=$O$13),Best2!$F$10,IF(OR($O$2=$O$7,$O$2=$O$8,$O$2=$O$18,$O$2=$O$19),Best2!$F$11,IF(OR($O$2=$O$9,$O$2=$O$10,$O$2=$O$24,$O$2=$O$25),Best2!$F$12,IF(OR($O$2=$O$14,$O$2=$O$15,$O$2=$O$20,$O$2=$O$21),Best2!$F$13,IF(OR($O$2=$O$16,$O$2=$O$17,$O$2=$O$26,$O$2=$O$27),Best2!$F$14,IF(OR($O$2=$O$22,$O$2=$O$23,$O$2=$O$28,$O$2=$O$29),Best2!$F$15,""))))))) ->  | AQ9: =IF(ISBLANK(G9),"",IF(OR($O$2=$O$5,$O$2=$O$7,$O$2=$O$27,$O$2=$O$29),Best2!$F$13,IF(OR($O$2=$O$18,$O$2=$O$20,$O$2=$O$24,$O$2=$O$26),Best2!$F$10,IF(OR($O$2=$O$12,$O$2=$O$14,$O$2=$O$25,$O$2=$O$28),Best2!$F$11,IF(OR($O$2=$O$13,$O$2=$O$16,$O$2=$O$19,$O$2=$O$22),Best2!$F$12,IF(OR($O$2=$O$6,$O$2=$O$9,$O$2=$O$21,$O$2=$O$23),Best2!$F$14,IF(OR($O$2=$O$8,$O$2=$O$10,$O$2=$O$15,$O$2=$O$17),Best2!$F$15,""))))))) ->  | AT9: =IF(ISBLANK(I9),"",IF(OR($O$2=$O$9,$O$2=$O$10,$O$2=$O$24,$O$2=$O$25),Best2!$F$13,IF(OR($O$2=$O$22,$O$2=$O$23,$O$2=$O$28,$O$2=$O$29),Best2!$F$10,IF(OR($O$2=$O$16,$O$2=$O$17,$O$2=$O$26,$O$2=$O$27),Best2!$F$11,IF(OR($O$2=$O$14,$O$2=$O$15,$O$2=$O$20,$O$2=$O$21),Best2!$F$12,IF(OR($O$2=$O$7,$O$2=$O$8,$O$2=$O$18,$O$2=$O$19),Best2!$F$14,IF(OR($O$2=$O$5,$O$2=$O$6,$O$2=$O$12,$O$2=$O$13),Best2!$F$15,""))))))) ->  | AW9: =IF(ISBLANK(K9),"",IF(Best2!$C$3="","",ROUND(SUM(Best2!$C$3:$C$6),1))) ->  | AZ9: =IF(ISBLANK(K9),"",IF(Best2!$B$3="","",ROUND(AVERAGE(Best2!$D$3:$D$6),1))) -> 
A10: 6 | O10: ADCB | P10: 0 | Q10: 0 | X10: 0 | Y10: 0 | AF10: 0 | AG10: 0 | AN10: =IF(ISBLANK(E10),"",IF(OR($O$2=$O$5,$O$2=$O$6,$O$2=$O$12,$O$2=$O$13),Best2!$F$10,IF(OR($O$2=$O$7,$O$2=$O$8,$O$2=$O$18,$O$2=$O$19),Best2!$F$11,IF(OR($O$2=$O$9,$O$2=$O$10,$O$2=$O$24,$O$2=$O$25),Best2!$F$12,IF(OR($O$2=$O$14,$O$2=$O$15,$O$2=$O$20,$O$2=$O$21),Best2!$F$13,IF(OR($O$2=$O$16,$O$2=$O$17,$O$2=$O$26,$O$2=$O$27),Best2!$F$14,IF(OR($O$2=$O$22,$O$2=$O$23,$O$2=$O$28,$O$2=$O$29),Best2!$F$15,""))))))) ->  | AQ10: =IF(ISBLANK(G10),"",IF(OR($O$2=$O$5,$O$2=$O$7,$O$2=$O$27,$O$2=$O$29),Best2!$F$13,IF(OR($O$2=$O$18,$O$2=$O$20,$O$2=$O$24,$O$2=$O$26),Best2!$F$10,IF(OR($O$2=$O$12,$O$2=$O$14,$O$2=$O$25,$O$2=$O$28),Best2!$F$11,IF(OR($O$2=$O$13,$O$2=$O$16,$O$2=$O$19,$O$2=$O$22),Best2!$F$12,IF(OR($O$2=$O$6,$O$2=$O$9,$O$2=$O$21,$O$2=$O$23),Best2!$F$14,IF(OR($O$2=$O$8,$O$2=$O$10,$O$2=$O$15,$O$2=$O$17),Best2!$F$15,""))))))) ->  | AT10: =IF(ISBLANK(I10),"",IF(OR($O$2=$O$9,$O$2=$O$10,$O$2=$O$24,$O$2=$O$25),Best2!$F$13,IF(OR($O$2=$O$22,$O$2=$O$23,$O$2=$O$28,$O$2=$O$29),Best2!$F$10,IF(OR($O$2=$O$16,$O$2=$O$17,$O$2=$O$26,$O$2=$O$27),Best2!$F$11,IF(OR($O$2=$O$14,$O$2=$O$15,$O$2=$O$20,$O$2=$O$21),Best2!$F$12,IF(OR($O$2=$O$7,$O$2=$O$8,$O$2=$O$18,$O$2=$O$19),Best2!$F$14,IF(OR($O$2=$O$5,$O$2=$O$6,$O$2=$O$12,$O$2=$O$13),Best2!$F$15,""))))))) ->  | AW10: =IF(ISBLANK(K10),"",IF(Best2!$C$3="","",ROUND(SUM(Best2!$C$3:$C$6),1))) ->  | AZ10: =IF(ISBLANK(K10),"",IF(Best2!$B$3="","",ROUND(AVERAGE(Best2!$D$3:$D$6),1))) -> 
A11: 7 | O11: ADCB | P11: 0 | Q11: 0 | X11: 0 | Y11: 0 | AF11: 0 | AG11: 0 | AN11: =IF(ISBLANK(E11),"",IF(OR($O$2=$O$5,$O$2=$O$6,$O$2=$O$12,$O$2=$O$13),Best2!$F$10,IF(OR($O$2=$O$7,$O$2=$O$8,$O$2=$O$18,$O$2=$O$19),Best2!$F$11,IF(OR($O$2=$O$9,$O$2=$O$10,$O$2=$O$24,$O$2=$O$25),Best2!$F$12,IF(OR($O$2=$O$14,$O$2=$O$15,$O$2=$O$20,$O$2=$O$21),Best2!$F$13,IF(OR($O$2=$O$16,$O$2=$O$17,$O$2=$O$26,$O$2=$O$27),Best2!$F$14,IF(OR($O$2=$O$22,$O$2=$O$23,$O$2=$O$28,$O$2=$O$29),Best2!$F$15,""))))))) ->  | AQ11: =IF(ISBLANK(G11),"",IF(OR($O$2=$O$5,$O$2=$O$7,$O$2=$O$27,$O$2=$O$29),Best2!$F$13,IF(OR($O$2=$O$18,$O$2=$O$20,$O$2=$O$24,$O$2=$O$26),Best2!$F$10,IF(OR($O$2=$O$12,$O$2=$O$14,$O$2=$O$25,$O$2=$O$28),Best2!$F$11,IF(OR($O$2=$O$13,$O$2=$O$16,$O$2=$O$19,$O$2=$O$22),Best2!$F$12,IF(OR($O$2=$O$6,$O$2=$O$9,$O$2=$O$21,$O$2=$O$23),Best2!$F$14,IF(OR($O$2=$O$8,$O$2=$O$10,$O$2=$O$15,$O$2=$O$17),Best2!$F$15,""))))))) ->  | AT11: =IF(ISBLANK(I11),"",IF(OR($O$2=$O$9,$O$2=$O$10,$O$2=$O$24,$O$2=$O$25),Best2!$F$13,IF(OR($O$2=$O$22,$O$2=$O$23,$O$2=$O$28,$O$2=$O$29),Best2!$F$10,IF(OR($O$2=$O$16,$O$2=$O$17,$O$2=$O$26,$O$2=$O$27),Best2!$F$11,IF(OR($O$2=$O$14,$O$2=$O$15,$O$2=$O$20,$O$2=$O$21),Best2!$F$12,IF(OR($O$2=$O$7,$O$2=$O$8,$O$2=$O$18,$O$2=$O$19),Best2!$F$14,IF(OR($O$2=$O$5,$O$2=$O$6,$O$2=$O$12,$O$2=$O$13),Best2!$F$15,""))))))) ->  | AW11: =IF(ISBLANK(K11),"",IF(Best2!$C$3="","",ROUND(SUM(Best2!$C$3:$C$6),1))) ->  | AZ11: =IF(ISBLANK(K11),"",IF(Best2!$B$3="","",ROUND(AVERAGE(Best2!$D$3:$D$6),1))) -> 
A12: 8 | O12: BACD | P12: 0 | Q12: 0 | X12: 0 | Y12: 0 | AF12: 0 | AG12: 0 | AN12: =IF(ISBLANK(E12),"",IF(OR($O$2=$O$5,$O$2=$O$6,$O$2=$O$12,$O$2=$O$13),Best2!$F$10,IF(OR($O$2=$O$7,$O$2=$O$8,$O$2=$O$18,$O$2=$O$19),Best2!$F$11,IF(OR($O$2=$O$9,$O$2=$O$10,$O$2=$O$24,$O$2=$O$25),Best2!$F$12,IF(OR($O$2=$O$14,$O$2=$O$15,$O$2=$O$20,$O$2=$O$21),Best2!$F$13,IF(OR($O$2=$O$16,$O$2=$O$17,$O$2=$O$26,$O$2=$O$27),Best2!$F$14,IF(OR($O$2=$O$22,$O$2=$O$23,$O$2=$O$28,$O$2=$O$29),Best2!$F$15,""))))))) ->  | AQ12: =IF(ISBLANK(G12),"",IF(OR($O$2=$O$5,$O$2=$O$7,$O$2=$O$27,$O$2=$O$29),Best2!$F$13,IF(OR($O$2=$O$18,$O$2=$O$20,$O$2=$O$24,$O$2=$O$26),Best2!$F$10,IF(OR($O$2=$O$12,$O$2=$O$14,$O$2=$O$25,$O$2=$O$28),Best2!$F$11,IF(OR($O$2=$O$13,$O$2=$O$16,$O$2=$O$19,$O$2=$O$22),Best2!$F$12,IF(OR($O$2=$O$6,$O$2=$O$9,$O$2=$O$21,$O$2=$O$23),Best2!$F$14,IF(OR($O$2=$O$8,$O$2=$O$10,$O$2=$O$15,$O$2=$O$17),Best2!$F$15,""))))))) ->  | AT12: =IF(ISBLANK(I12),"",IF(OR($O$2=$O$9,$O$2=$O$10,$O$2=$O$24,$O$2=$O$25),Best2!$F$13,IF(OR($O$2=$O$22,$O$2=$O$23,$O$2=$O$28,$O$2=$O$29),Best2!$F$10,IF(OR($O$2=$O$16,$O$2=$O$17,$O$2=$O$26,$O$2=$O$27),Best2!$F$11,IF(OR($O$2=$O$14,$O$2=$O$15,$O$2=$O$20,$O$2=$O$21),Best2!$F$12,IF(OR($O$2=$O$7,$O$2=$O$8,$O$2=$O$18,$O$2=$O$19),Best2!$F$14,IF(OR($O$2=$O$5,$O$2=$O$6,$O$2=$O$12,$O$2=$O$13),Best2!$F$15,""))))))) ->  | AW12: =IF(ISBLANK(K12),"",IF(Best2!$C$3="","",ROUND(SUM(Best2!$C$3:$C$6),1))) ->  | AZ12: =IF(ISBLANK(K12),"",IF(Best2!$B$3="","",ROUND(AVERAGE(Best2!$D$3:$D$6),1))) -> 
A13: 9 | O13: BADC | P13: 0 | Q13: 0 | X13: 0 | Y13: 0 | AF13: 0 | AG13: 0 | AN13: =IF(ISBLANK(E13),"",IF(OR($O$2=$O$5,$O$2=$O$6,$O$2=$O$12,$O$2=$O$13),Best2!$F$10,IF(OR($O$2=$O$7,$O$2=$O$8,$O$2=$O$18,$O$2=$O$19),Best2!$F$11,IF(OR($O$2=$O$9,$O$2=$O$10,$O$2=$O$24,$O$2=$O$25),Best2!$F$12,IF(OR($O$2=$O$14,$O$2=$O$15,$O$2=$O$20,$O$2=$O$21),Best2!$F$13,IF(OR($O$2=$O$16,$O$2=$O$17,$O$2=$O$26,$O$2=$O$27),Best2!$F$14,IF(OR($O$2=$O$22,$O$2=$O$23,$O$2=$O$28,$O$2=$O$29),Best2!$F$15,""))))))) ->  | AQ13: =IF(ISBLANK(G13),"",IF(OR($O$2=$O$5,$O$2=$O$7,$O$2=$O$27,$O$2=$O$29),Best2!$F$13,IF(OR($O$2=$O$18,$O$2=$O$20,$O$2=$O$24,$O$2=$O$26),Best2!$F$10,IF(OR($O$2=$O$12,$O$2=$O$14,$O$2=$O$25,$O$2=$O$28),Best2!$F$11,IF(OR($O$2=$O$13,$O$2=$O$16,$O$2=$O$19,$O$2=$O$22),Best2!$F$12,IF(OR($O$2=$O$6,$O$2=$O$9,$O$2=$O$21,$O$2=$O$23),Best2!$F$14,IF(OR($O$2=$O$8,$O$2=$O$10,$O$2=$O$15,$O$2=$O$17),Best2!$F$15,""))))))) ->  | AT13: =IF(ISBLANK(I13),"",IF(OR($O$2=$O$9,$O$2=$O$10,$O$2=$O$24,$O$2=$O$25),Best2!$F$13,IF(OR($O$2=$O$22,$O$2=$O$23,$O$2=$O$28,$O$2=$O$29),Best2!$F$10,IF(OR($O$2=$O$16,$O$2=$O$17,$O$2=$O$26,$O$2=$O$27),Best2!$F$11,IF(OR($O$2=$O$14,$O$2=$O$15,$O$2=$O$20,$O$2=$O$21),Best2!$F$12,IF(OR($O$2=$O$7,$O$2=$O$8,$O$2=$O$18,$O$2=$O$19),Best2!$F$14,IF(OR($O$2=$O$5,$O$2=$O$6,$O$2=$O$12,$O$2=$O$13),Best2!$F$15,""))))))) ->  | AW13: =IF(ISBLANK(K13),"",IF(Best2!$C$3="","",ROUND(SUM(Best2!$C$3:$C$6),1))) ->  | AZ13: =IF(ISBLANK(K13),"",IF(Best2!$B$3="","",ROUND(AVERAGE(Best2!$D$3:$D$6),1))) -> 
A14: 10 | O14: BCAD | P14: 0 | Q14: 0 | X14: 0 | Y14: 0 | AF14: 0 | AG14: 0 | AN14: =IF(ISBLANK(E14),"",IF(OR($O$2=$O$5,$O$2=$O$6,$O$2=$O$12,$O$2=$O$13),Best2!$F$10,IF(OR($O$2=$O$7,$O$2=$O$8,$O$2=$O$18,$O$2=$O$19),Best2!$F$11,IF(OR($O$2=$O$9,$O$2=$O$10,$O$2=$O$24,$O$2=$O$25),Best2!$F$12,IF(OR($O$2=$O$14,$O$2=$O$15,$O$2=$O$20,$O$2=$O$21),Best2!$F$13,IF(OR($O$2=$O$16,$O$2=$O$17,$O$2=$O$26,$O$2=$O$27),Best2!$F$14,IF(OR($O$2=$O$22,$O$2=$O$23,$O$2=$O$28,$O$2=$O$29),Best2!$F$15,""))))))) ->  | AQ14: =IF(ISBLANK(G14),"",IF(OR($O$2=$O$5,$O$2=$O$7,$O$2=$O$27,$O$2=$O$29),Best2!$F$13,IF(OR($O$2=$O$18,$O$2=$O$20,$O$2=$O$24,$O$2=$O$26),Best2!$F$10,IF(OR($O$2=$O$12,$O$2=$O$14,$O$2=$O$25,$O$2=$O$28),Best2!$F$11,IF(OR($O$2=$O$13,$O$2=$O$16,$O$2=$O$19,$O$2=$O$22),Best2!$F$12,IF(OR($O$2=$O$6,$O$2=$O$9,$O$2=$O$21,$O$2=$O$23),Best2!$F$14,IF(OR($O$2=$O$8,$O$2=$O$10,$O$2=$O$15,$O$2=$O$17),Best2!$F$15,""))))))) ->  | AT14: =IF(ISBLANK(I14),"",IF(OR($O$2=$O$9,$O$2=$O$10,$O$2=$O$24,$O$2=$O$25),Best2!$F$13,IF(OR($O$2=$O$22,$O$2=$O$23,$O$2=$O$28,$O$2=$O$29),Best2!$F$10,IF(OR($O$2=$O$16,$O$2=$O$17,$O$2=$O$26,$O$2=$O$27),Best2!$F$11,IF(OR($O$2=$O$14,$O$2=$O$15,$O$2=$O$20,$O$2=$O$21),Best2!$F$12,IF(OR($O$2=$O$7,$O$2=$O$8,$O$2=$O$18,$O$2=$O$19),Best2!$F$14,IF(OR($O$2=$O$5,$O$2=$O$6,$O$2=$O$12,$O$2=$O$13),Best2!$F$15,""))))))) ->  | AW14: =IF(ISBLANK(K14),"",IF(Best2!$C$3="","",ROUND(SUM(Best2!$C$3:$C$6),1))) ->  | AZ14: =IF(ISBLANK(K14),"",IF(Best2!$B$3="","",ROUND(AVERAGE(Best2!$D$3:$D$6),1))) -> 
A15: 11 | O15: BCDA | P15: 0 | Q15: 0 | X15: 0 | Y15: 0 | AF15: 0 | AG15: 0 | AN15: =IF(ISBLANK(E15),"",IF(OR($O$2=$O$5,$O$2=$O$6,$O$2=$O$12,$O$2=$O$13),Best2!$F$10,IF(OR($O$2=$O$7,$O$2=$O$8,$O$2=$O$18,$O$2=$O$19),Best2!$F$11,IF(OR($O$2=$O$9,$O$2=$O$10,$O$2=$O$24,$O$2=$O$25),Best2!$F$12,IF(OR($O$2=$O$14,$O$2=$O$15,$O$2=$O$20,$O$2=$O$21),Best2!$F$13,IF(OR($O$2=$O$16,$O$2=$O$17,$O$2=$O$26,$O$2=$O$27),Best2!$F$14,IF(OR($O$2=$O$22,$O$2=$O$23,$O$2=$O$28,$O$2=$O$29),Best2!$F$15,""))))))) ->  | AQ15: =IF(ISBLANK(G15),"",IF(OR($O$2=$O$5,$O$2=$O$7,$O$2=$O$27,$O$2=$O$29),Best2!$F$13,IF(OR($O$2=$O$18,$O$2=$O$20,$O$2=$O$24,$O$2=$O$26),Best2!$F$10,IF(OR($O$2=$O$12,$O$2=$O$14,$O$2=$O$25,$O$2=$O$28),Best2!$F$11,IF(OR($O$2=$O$13,$O$2=$O$16,$O$2=$O$19,$O$2=$O$22),Best2!$F$12,IF(OR($O$2=$O$6,$O$2=$O$9,$O$2=$O$21,$O$2=$O$23),Best2!$F$14,IF(OR($O$2=$O$8,$O$2=$O$10,$O$2=$O$15,$O$2=$O$17),Best2!$F$15,""))))))) ->  | AT15: =IF(ISBLANK(I15),"",IF(OR($O$2=$O$9,$O$2=$O$10,$O$2=$O$24,$O$2=$O$25),Best2!$F$13,IF(OR($O$2=$O$22,$O$2=$O$23,$O$2=$O$28,$O$2=$O$29),Best2!$F$10,IF(OR($O$2=$O$16,$O$2=$O$17,$O$2=$O$26,$O$2=$O$27),Best2!$F$11,IF(OR($O$2=$O$14,$O$2=$O$15,$O$2=$O$20,$O$2=$O$21),Best2!$F$12,IF(OR($O$2=$O$7,$O$2=$O$8,$O$2=$O$18,$O$2=$O$19),Best2!$F$14,IF(OR($O$2=$O$5,$O$2=$O$6,$O$2=$O$12,$O$2=$O$13),Best2!$F$15,""))))))) ->  | AW15: =IF(ISBLANK(K15),"",IF(Best2!$C$3="","",ROUND(SUM(Best2!$C$3:$C$6),1))) ->  | AZ15: =IF(ISBLANK(K15),"",IF(Best2!$B$3="","",ROUND(AVERAGE(Best2!$D$3:$D$6),1))) -> 
A16: 12 | O16: BDAC | P16: 0 | Q16: 0 | X16: 0 | Y16: 0 | AF16: 0 | AG16: 0 | AN16: =IF(ISBLANK(E16),"",IF(OR($O$2=$O$5,$O$2=$O$6,$O$2=$O$12,$O$2=$O$13),Best2!$F$10,IF(OR($O$2=$O$7,$O$2=$O$8,$O$2=$O$18,$O$2=$O$19),Best2!$F$11,IF(OR($O$2=$O$9,$O$2=$O$10,$O$2=$O$24,$O$2=$O$25),Best2!$F$12,IF(OR($O$2=$O$14,$O$2=$O$15,$O$2=$O$20,$O$2=$O$21),Best2!$F$13,IF(OR($O$2=$O$16,$O$2=$O$17,$O$2=$O$26,$O$2=$O$27),Best2!$F$14,IF(OR($O$2=$O$22,$O$2=$O$23,$O$2=$O$28,$O$2=$O$29),Best2!$F$15,""))))))) ->  | AQ16: =IF(ISBLANK(G16),"",IF(OR($O$2=$O$5,$O$2=$O$7,$O$2=$O$27,$O$2=$O$29),Best2!$F$13,IF(OR($O$2=$O$18,$O$2=$O$20,$O$2=$O$24,$O$2=$O$26),Best2!$F$10,IF(OR($O$2=$O$12,$O$2=$O$14,$O$2=$O$25,$O$2=$O$28),Best2!$F$11,IF(OR($O$2=$O$13,$O$2=$O$16,$O$2=$O$19,$O$2=$O$22),Best2!$F$12,IF(OR($O$2=$O$6,$O$2=$O$9,$O$2=$O$21,$O$2=$O$23),Best2!$F$14,IF(OR($O$2=$O$8,$O$2=$O$10,$O$2=$O$15,$O$2=$O$17),Best2!$F$15,""))))))) ->  | AT16: =IF(ISBLANK(I16),"",IF(OR($O$2=$O$9,$O$2=$O$10,$O$2=$O$24,$O$2=$O$25),Best2!$F$13,IF(OR($O$2=$O$22,$O$2=$O$23,$O$2=$O$28,$O$2=$O$29),Best2!$F$10,IF(OR($O$2=$O$16,$O$2=$O$17,$O$2=$O$26,$O$2=$O$27),Best2!$F$11,IF(OR($O$2=$O$14,$O$2=$O$15,$O$2=$O$20,$O$2=$O$21),Best2!$F$12,IF(OR($O$2=$O$7,$O$2=$O$8,$O$2=$O$18,$O$2=$O$19),Best2!$F$14,IF(OR($O$2=$O$5,$O$2=$O$6,$O$2=$O$12,$O$2=$O$13),Best2!$F$15,""))))))) ->  | AW16: =IF(ISBLANK(K16),"",IF(Best2!$C$3="","",ROUND(SUM(Best2!$C$3:$C$6),1))) ->  | AZ16: =IF(ISBLANK(K16),"",IF(Best2!$B$3="","",ROUND(AVERAGE(Best2!$D$3:$D$6),1))) -> 
A17: 13 | O17: BDCA | P17: 0 | Q17: 0 | X17: 0 | Y17: 0 | AF17: 0 | AG17: 0 | AN17: =IF(ISBLANK(E17),"",IF(OR($O$2=$O$5,$O$2=$O$6,$O$2=$O$12,$O$2=$O$13),Best2!$F$10,IF(OR($O$2=$O$7,$O$2=$O$8,$O$2=$O$18,$O$2=$O$19),Best2!$F$11,IF(OR($O$2=$O$9,$O$2=$O$10,$O$2=$O$24,$O$2=$O$25),Best2!$F$12,IF(OR($O$2=$O$14,$O$2=$O$15,$O$2=$O$20,$O$2=$O$21),Best2!$F$13,IF(OR($O$2=$O$16,$O$2=$O$17,$O$2=$O$26,$O$2=$O$27),Best2!$F$14,IF(OR($O$2=$O$22,$O$2=$O$23,$O$2=$O$28,$O$2=$O$29),Best2!$F$15,""))))))) ->  | AQ17: =IF(ISBLANK(G17),"",IF(OR($O$2=$O$5,$O$2=$O$7,$O$2=$O$27,$O$2=$O$29),Best2!$F$13,IF(OR($O$2=$O$18,$O$2=$O$20,$O$2=$O$24,$O$2=$O$26),Best2!$F$10,IF(OR($O$2=$O$12,$O$2=$O$14,$O$2=$O$25,$O$2=$O$28),Best2!$F$11,IF(OR($O$2=$O$13,$O$2=$O$16,$O$2=$O$19,$O$2=$O$22),Best2!$F$12,IF(OR($O$2=$O$6,$O$2=$O$9,$O$2=$O$21,$O$2=$O$23),Best2!$F$14,IF(OR($O$2=$O$8,$O$2=$O$10,$O$2=$O$15,$O$2=$O$17),Best2!$F$15,""))))))) ->  | AT17: =IF(ISBLANK(I17),"",IF(OR($O$2=$O$9,$O$2=$O$10,$O$2=$O$24,$O$2=$O$25),Best2!$F$13,IF(OR($O$2=$O$22,$O$2=$O$23,$O$2=$O$28,$O$2=$O$29),Best2!$F$10,IF(OR($O$2=$O$16,$O$2=$O$17,$O$2=$O$26,$O$2=$O$27),Best2!$F$11,IF(OR($O$2=$O$14,$O$2=$O$15,$O$2=$O$20,$O$2=$O$21),Best2!$F$12,IF(OR($O$2=$O$7,$O$2=$O$8,$O$2=$O$18,$O$2=$O$19),Best2!$F$14,IF(OR($O$2=$O$5,$O$2=$O$6,$O$2=$O$12,$O$2=$O$13),Best2!$F$15,""))))))) ->  | AW17: =IF(ISBLANK(K17),"",IF(Best2!$C$3="","",ROUND(SUM(Best2!$C$3:$C$6),1))) ->  | AZ17: =IF(ISBLANK(K17),"",IF(Best2!$B$3="","",ROUND(AVERAGE(Best2!$D$3:$D$6),1))) -> 
A18: 14 | O18: CABD | P18: 0 | Q18: 0 | X18: 0 | Y18: 0 | AF18: 0 | AG18: 0 | AN18: =IF(ISBLANK(E18),"",IF(OR($O$2=$O$5,$O$2=$O$6,$O$2=$O$12,$O$2=$O$13),Best2!$F$10,IF(OR($O$2=$O$7,$O$2=$O$8,$O$2=$O$18,$O$2=$O$19),Best2!$F$11,IF(OR($O$2=$O$9,$O$2=$O$10,$O$2=$O$24,$O$2=$O$25),Best2!$F$12,IF(OR($O$2=$O$14,$O$2=$O$15,$O$2=$O$20,$O$2=$O$21),Best2!$F$13,IF(OR($O$2=$O$16,$O$2=$O$17,$O$2=$O$26,$O$2=$O$27),Best2!$F$14,IF(OR($O$2=$O$22,$O$2=$O$23,$O$2=$O$28,$O$2=$O$29),Best2!$F$15,""))))))) ->  | AQ18: =IF(ISBLANK(G18),"",IF(OR($O$2=$O$5,$O$2=$O$7,$O$2=$O$27,$O$2=$O$29),Best2!$F$13,IF(OR($O$2=$O$18,$O$2=$O$20,$O$2=$O$24,$O$2=$O$26),Best2!$F$10,IF(OR($O$2=$O$12,$O$2=$O$14,$O$2=$O$25,$O$2=$O$28),Best2!$F$11,IF(OR($O$2=$O$13,$O$2=$O$16,$O$2=$O$19,$O$2=$O$22),Best2!$F$12,IF(OR($O$2=$O$6,$O$2=$O$9,$O$2=$O$21,$O$2=$O$23),Best2!$F$14,IF(OR($O$2=$O$8,$O$2=$O$10,$O$2=$O$15,$O$2=$O$17),Best2!$F$15,""))))))) ->  | AT18: =IF(ISBLANK(I18),"",IF(OR($O$2=$O$9,$O$2=$O$10,$O$2=$O$24,$O$2=$O$25),Best2!$F$13,IF(OR($O$2=$O$22,$O$2=$O$23,$O$2=$O$28,$O$2=$O$29),Best2!$F$10,IF(OR($O$2=$O$16,$O$2=$O$17,$O$2=$O$26,$O$2=$O$27),Best2!$F$11,IF(OR($O$2=$O$14,$O$2=$O$15,$O$2=$O$20,$O$2=$O$21),Best2!$F$12,IF(OR($O$2=$O$7,$O$2=$O$8,$O$2=$O$18,$O$2=$O$19),Best2!$F$14,IF(OR($O$2=$O$5,$O$2=$O$6,$O$2=$O$12,$O$2=$O$13),Best2!$F$15,""))))))) ->  | AW18: =IF(ISBLANK(K18),"",IF(Best2!$C$3="","",ROUND(SUM(Best2!$C$3:$C$6),1))) ->  | AZ18: =IF(ISBLANK(K18),"",IF(Best2!$B$3="","",ROUND(AVERAGE(Best2!$D$3:$D$6),1))) -> 
A19: 15 | O19: CADB | P19: 0 | Q19: 0 | X19: 0 | Y19: 0 | AF19: 0 | AG19: 0 | AN19: =IF(ISBLANK(E19),"",IF(OR($O$2=$O$5,$O$2=$O$6,$O$2=$O$12,$O$2=$O$13),Best2!$F$10,IF(OR($O$2=$O$7,$O$2=$O$8,$O$2=$O$18,$O$2=$O$19),Best2!$F$11,IF(OR($O$2=$O$9,$O$2=$O$10,$O$2=$O$24,$O$2=$O$25),Best2!$F$12,IF(OR($O$2=$O$14,$O$2=$O$15,$O$2=$O$20,$O$2=$O$21),Best2!$F$13,IF(OR($O$2=$O$16,$O$2=$O$17,$O$2=$O$26,$O$2=$O$27),Best2!$F$14,IF(OR($O$2=$O$22,$O$2=$O$23,$O$2=$O$28,$O$2=$O$29),Best2!$F$15,""))))))) ->  | AQ19: =IF(ISBLANK(G19),"",IF(OR($O$2=$O$5,$O$2=$O$7,$O$2=$O$27,$O$2=$O$29),Best2!$F$13,IF(OR($O$2=$O$18,$O$2=$O$20,$O$2=$O$24,$O$2=$O$26),Best2!$F$10,IF(OR($O$2=$O$12,$O$2=$O$14,$O$2=$O$25,$O$2=$O$28),Best2!$F$11,IF(OR($O$2=$O$13,$O$2=$O$16,$O$2=$O$19,$O$2=$O$22),Best2!$F$12,IF(OR($O$2=$O$6,$O$2=$O$9,$O$2=$O$21,$O$2=$O$23),Best2!$F$14,IF(OR($O$2=$O$8,$O$2=$O$10,$O$2=$O$15,$O$2=$O$17),Best2!$F$15,""))))))) ->  | AT19: =IF(ISBLANK(I19),"",IF(OR($O$2=$O$9,$O$2=$O$10,$O$2=$O$24,$O$2=$O$25),Best2!$F$13,IF(OR($O$2=$O$22,$O$2=$O$23,$O$2=$O$28,$O$2=$O$29),Best2!$F$10,IF(OR($O$2=$O$16,$O$2=$O$17,$O$2=$O$26,$O$2=$O$27),Best2!$F$11,IF(OR($O$2=$O$14,$O$2=$O$15,$O$2=$O$20,$O$2=$O$21),Best2!$F$12,IF(OR($O$2=$O$7,$O$2=$O$8,$O$2=$O$18,$O$2=$O$19),Best2!$F$14,IF(OR($O$2=$O$5,$O$2=$O$6,$O$2=$O$12,$O$2=$O$13),Best2!$F$15,""))))))) ->  | AW19: =IF(ISBLANK(K19),"",IF(Best2!$C$3="","",ROUND(SUM(Best2!$C$3:$C$6),1))) ->  | AZ19: =IF(ISBLANK(K19),"",IF(Best2!$B$3="","",ROUND(AVERAGE(Best2!$D$3:$D$6),1))) -> 
A20: 16 | O20: CBAD | P20: 0 | Q20: 0 | X20: 0 | Y20: 0 | AF20: 0 | AG20: 0 | AN20: =IF(ISBLANK(E20),"",IF(OR($O$2=$O$5,$O$2=$O$6,$O$2=$O$12,$O$2=$O$13),Best2!$F$10,IF(OR($O$2=$O$7,$O$2=$O$8,$O$2=$O$18,$O$2=$O$19),Best2!$F$11,IF(OR($O$2=$O$9,$O$2=$O$10,$O$2=$O$24,$O$2=$O$25),Best2!$F$12,IF(OR($O$2=$O$14,$O$2=$O$15,$O$2=$O$20,$O$2=$O$21),Best2!$F$13,IF(OR($O$2=$O$16,$O$2=$O$17,$O$2=$O$26,$O$2=$O$27),Best2!$F$14,IF(OR($O$2=$O$22,$O$2=$O$23,$O$2=$O$28,$O$2=$O$29),Best2!$F$15,""))))))) ->  | AQ20: =IF(ISBLANK(G20),"",IF(OR($O$2=$O$5,$O$2=$O$7,$O$2=$O$27,$O$2=$O$29),Best2!$F$13,IF(OR($O$2=$O$18,$O$2=$O$20,$O$2=$O$24,$O$2=$O$26),Best2!$F$10,IF(OR($O$2=$O$12,$O$2=$O$14,$O$2=$O$25,$O$2=$O$28),Best2!$F$11,IF(OR($O$2=$O$13,$O$2=$O$16,$O$2=$O$19,$O$2=$O$22),Best2!$F$12,IF(OR($O$2=$O$6,$O$2=$O$9,$O$2=$O$21,$O$2=$O$23),Best2!$F$14,IF(OR($O$2=$O$8,$O$2=$O$10,$O$2=$O$15,$O$2=$O$17),Best2!$F$15,""))))))) ->  | AT20: =IF(ISBLANK(I20),"",IF(OR($O$2=$O$9,$O$2=$O$10,$O$2=$O$24,$O$2=$O$25),Best2!$F$13,IF(OR($O$2=$O$22,$O$2=$O$23,$O$2=$O$28,$O$2=$O$29),Best2!$F$10,IF(OR($O$2=$O$16,$O$2=$O$17,$O$2=$O$26,$O$2=$O$27),Best2!$F$11,IF(OR($O$2=$O$14,$O$2=$O$15,$O$2=$O$20,$O$2=$O$21),Best2!$F$12,IF(OR($O$2=$O$7,$O$2=$O$8,$O$2=$O$18,$O$2=$O$19),Best2!$F$14,IF(OR($O$2=$O$5,$O$2=$O$6,$O$2=$O$12,$O$2=$O$13),Best2!$F$15,""))))))) ->  | AW20: =IF(ISBLANK(K20),"",IF(Best2!$C$3="","",ROUND(SUM(Best2!$C$3:$C$6),1))) ->  | AZ20: =IF(ISBLANK(K20),"",IF(Best2!$B$3="","",ROUND(AVERAGE(Best2!$D$3:$D$6),1))) -> 
A21: 17 | O21: CBDA | P21: 0 | Q21: 0 | X21: 0 | Y21: 0 | AF21: 0 | AG21: 0 | AN21: =IF(ISBLANK(E21),"",IF(OR($O$2=$O$5,$O$2=$O$6,$O$2=$O$12,$O$2=$O$13),Best2!$F$10,IF(OR($O$2=$O$7,$O$2=$O$8,$O$2=$O$18,$O$2=$O$19),Best2!$F$11,IF(OR($O$2=$O$9,$O$2=$O$10,$O$2=$O$24,$O$2=$O$25),Best2!$F$12,IF(OR($O$2=$O$14,$O$2=$O$15,$O$2=$O$20,$O$2=$O$21),Best2!$F$13,IF(OR($O$2=$O$16,$O$2=$O$17,$O$2=$O$26,$O$2=$O$27),Best2!$F$14,IF(OR($O$2=$O$22,$O$2=$O$23,$O$2=$O$28,$O$2=$O$29),Best2!$F$15,""))))))) ->  | AQ21: =IF(ISBLANK(G21),"",IF(OR($O$2=$O$5,$O$2=$O$7,$O$2=$O$27,$O$2=$O$29),Best2!$F$13,IF(OR($O$2=$O$18,$O$2=$O$20,$O$2=$O$24,$O$2=$O$26),Best2!$F$10,IF(OR($O$2=$O$12,$O$2=$O$14,$O$2=$O$25,$O$2=$O$28),Best2!$F$11,IF(OR($O$2=$O$13,$O$2=$O$16,$O$2=$O$19,$O$2=$O$22),Best2!$F$12,IF(OR($O$2=$O$6,$O$2=$O$9,$O$2=$O$21,$O$2=$O$23),Best2!$F$14,IF(OR($O$2=$O$8,$O$2=$O$10,$O$2=$O$15,$O$2=$O$17),Best2!$F$15,""))))))) ->  | AT21: =IF(ISBLANK(I21),"",IF(OR($O$2=$O$9,$O$2=$O$10,$O$2=$O$24,$O$2=$O$25),Best2!$F$13,IF(OR($O$2=$O$22,$O$2=$O$23,$O$2=$O$28,$O$2=$O$29),Best2!$F$10,IF(OR($O$2=$O$16,$O$2=$O$17,$O$2=$O$26,$O$2=$O$27),Best2!$F$11,IF(OR($O$2=$O$14,$O$2=$O$15,$O$2=$O$20,$O$2=$O$21),Best2!$F$12,IF(OR($O$2=$O$7,$O$2=$O$8,$O$2=$O$18,$O$2=$O$19),Best2!$F$14,IF(OR($O$2=$O$5,$O$2=$O$6,$O$2=$O$12,$O$2=$O$13),Best2!$F$15,""))))))) ->  | AW21: =IF(ISBLANK(K21),"",IF(Best2!$C$3="","",ROUND(SUM(Best2!$C$3:$C$6),1))) ->  | AZ21: =IF(ISBLANK(K21),"",IF(Best2!$B$3="","",ROUND(AVERAGE(Best2!$D$3:$D$6),1))) -> 
A22: 18 | O22: CDAB | P22: 0 | Q22: 0 | X22: 0 | Y22: 0 | AF22: 0 | AG22: 0 | AN22: =IF(ISBLANK(E22),"",IF(OR($O$2=$O$5,$O$2=$O$6,$O$2=$O$12,$O$2=$O$13),Best2!$F$10,IF(OR($O$2=$O$7,$O$2=$O$8,$O$2=$O$18,$O$2=$O$19),Best2!$F$11,IF(OR($O$2=$O$9,$O$2=$O$10,$O$2=$O$24,$O$2=$O$25),Best2!$F$12,IF(OR($O$2=$O$14,$O$2=$O$15,$O$2=$O$20,$O$2=$O$21),Best2!$F$13,IF(OR($O$2=$O$16,$O$2=$O$17,$O$2=$O$26,$O$2=$O$27),Best2!$F$14,IF(OR($O$2=$O$22,$O$2=$O$23,$O$2=$O$28,$O$2=$O$29),Best2!$F$15,""))))))) ->  | AQ22: =IF(ISBLANK(G22),"",IF(OR($O$2=$O$5,$O$2=$O$7,$O$2=$O$27,$O$2=$O$29),Best2!$F$13,IF(OR($O$2=$O$18,$O$2=$O$20,$O$2=$O$24,$O$2=$O$26),Best2!$F$10,IF(OR($O$2=$O$12,$O$2=$O$14,$O$2=$O$25,$O$2=$O$28),Best2!$F$11,IF(OR($O$2=$O$13,$O$2=$O$16,$O$2=$O$19,$O$2=$O$22),Best2!$F$12,IF(OR($O$2=$O$6,$O$2=$O$9,$O$2=$O$21,$O$2=$O$23),Best2!$F$14,IF(OR($O$2=$O$8,$O$2=$O$10,$O$2=$O$15,$O$2=$O$17),Best2!$F$15,""))))))) ->  | AT22: =IF(ISBLANK(I22),"",IF(OR($O$2=$O$9,$O$2=$O$10,$O$2=$O$24,$O$2=$O$25),Best2!$F$13,IF(OR($O$2=$O$22,$O$2=$O$23,$O$2=$O$28,$O$2=$O$29),Best2!$F$10,IF(OR($O$2=$O$16,$O$2=$O$17,$O$2=$O$26,$O$2=$O$27),Best2!$F$11,IF(OR($O$2=$O$14,$O$2=$O$15,$O$2=$O$20,$O$2=$O$21),Best2!$F$12,IF(OR($O$2=$O$7,$O$2=$O$8,$O$2=$O$18,$O$2=$O$19),Best2!$F$14,IF(OR($O$2=$O$5,$O$2=$O$6,$O$2=$O$12,$O$2=$O$13),Best2!$F$15,""))))))) ->  | AW22: =IF(ISBLANK(K22),"",IF(Best2!$C$3="","",ROUND(SUM(Best2!$C$3:$C$6),1))) ->  | AZ22: =IF(ISBLANK(K22),"",IF(Best2!$B$3="","",ROUND(AVERAGE(Best2!$D$3:$D$6),1))) -> 
A23: 19 | O23: CDBA | P23: 0 | Q23: 0 | X23: 0 | Y23: 0 | AF23: 0 | AG23: 0 | AN23: =IF(ISBLANK(E23),"",IF(OR($O$2=$O$5,$O$2=$O$6,$O$2=$O$12,$O$2=$O$13),Best2!$F$10,IF(OR($O$2=$O$7,$O$2=$O$8,$O$2=$O$18,$O$2=$O$19),Best2!$F$11,IF(OR($O$2=$O$9,$O$2=$O$10,$O$2=$O$24,$O$2=$O$25),Best2!$F$12,IF(OR($O$2=$O$14,$O$2=$O$15,$O$2=$O$20,$O$2=$O$21),Best2!$F$13,IF(OR($O$2=$O$16,$O$2=$O$17,$O$2=$O$26,$O$2=$O$27),Best2!$F$14,IF(OR($O$2=$O$22,$O$2=$O$23,$O$2=$O$28,$O$2=$O$29),Best2!$F$15,""))))))) ->  | AQ23: =IF(ISBLANK(G23),"",IF(OR($O$2=$O$5,$O$2=$O$7,$O$2=$O$27,$O$2=$O$29),Best2!$F$13,IF(OR($O$2=$O$18,$O$2=$O$20,$O$2=$O$24,$O$2=$O$26),Best2!$F$10,IF(OR($O$2=$O$12,$O$2=$O$14,$O$2=$O$25,$O$2=$O$28),Best2!$F$11,IF(OR($O$2=$O$13,$O$2=$O$16,$O$2=$O$19,$O$2=$O$22),Best2!$F$12,IF(OR($O$2=$O$6,$O$2=$O$9,$O$2=$O$21,$O$2=$O$23),Best2!$F$14,IF(OR($O$2=$O$8,$O$2=$O$10,$O$2=$O$15,$O$2=$O$17),Best2!$F$15,""))))))) ->  | AT23: =IF(ISBLANK(I23),"",IF(OR($O$2=$O$9,$O$2=$O$10,$O$2=$O$24,$O$2=$O$25),Best2!$F$13,IF(OR($O$2=$O$22,$O$2=$O$23,$O$2=$O$28,$O$2=$O$29),Best2!$F$10,IF(OR($O$2=$O$16,$O$2=$O$17,$O$2=$O$26,$O$2=$O$27),Best2!$F$11,IF(OR($O$2=$O$14,$O$2=$O$15,$O$2=$O$20,$O$2=$O$21),Best2!$F$12,IF(OR($O$2=$O$7,$O$2=$O$8,$O$2=$O$18,$O$2=$O$19),Best2!$F$14,IF(OR($O$2=$O$5,$O$2=$O$6,$O$2=$O$12,$O$2=$O$13),Best2!$F$15,""))))))) ->  | AW23: =IF(ISBLANK(K23),"",IF(Best2!$C$3="","",ROUND(SUM(Best2!$C$3:$C$6),1))) ->  | AZ23: =IF(ISBLANK(K23),"",IF(Best2!$B$3="","",ROUND(AVERAGE(Best2!$D$3:$D$6),1))) -> 
A24: 20 | O24: DABC | P24: 0 | Q24: 0 | X24: 0 | Y24: 0 | AF24: 0 | AG24: 0 | AN24: =IF(ISBLANK(E24),"",IF(OR($O$2=$O$5,$O$2=$O$6,$O$2=$O$12,$O$2=$O$13),Best2!$F$10,IF(OR($O$2=$O$7,$O$2=$O$8,$O$2=$O$18,$O$2=$O$19),Best2!$F$11,IF(OR($O$2=$O$9,$O$2=$O$10,$O$2=$O$24,$O$2=$O$25),Best2!$F$12,IF(OR($O$2=$O$14,$O$2=$O$15,$O$2=$O$20,$O$2=$O$21),Best2!$F$13,IF(OR($O$2=$O$16,$O$2=$O$17,$O$2=$O$26,$O$2=$O$27),Best2!$F$14,IF(OR($O$2=$O$22,$O$2=$O$23,$O$2=$O$28,$O$2=$O$29),Best2!$F$15,""))))))) ->  | AQ24: =IF(ISBLANK(G24),"",IF(OR($O$2=$O$5,$O$2=$O$7,$O$2=$O$27,$O$2=$O$29),Best2!$F$13,IF(OR($O$2=$O$18,$O$2=$O$20,$O$2=$O$24,$O$2=$O$26),Best2!$F$10,IF(OR($O$2=$O$12,$O$2=$O$14,$O$2=$O$25,$O$2=$O$28),Best2!$F$11,IF(OR($O$2=$O$13,$O$2=$O$16,$O$2=$O$19,$O$2=$O$22),Best2!$F$12,IF(OR($O$2=$O$6,$O$2=$O$9,$O$2=$O$21,$O$2=$O$23),Best2!$F$14,IF(OR($O$2=$O$8,$O$2=$O$10,$O$2=$O$15,$O$2=$O$17),Best2!$F$15,""))))))) ->  | AT24: =IF(ISBLANK(I24),"",IF(OR($O$2=$O$9,$O$2=$O$10,$O$2=$O$24,$O$2=$O$25),Best2!$F$13,IF(OR($O$2=$O$22,$O$2=$O$23,$O$2=$O$28,$O$2=$O$29),Best2!$F$10,IF(OR($O$2=$O$16,$O$2=$O$17,$O$2=$O$26,$O$2=$O$27),Best2!$F$11,IF(OR($O$2=$O$14,$O$2=$O$15,$O$2=$O$20,$O$2=$O$21),Best2!$F$12,IF(OR($O$2=$O$7,$O$2=$O$8,$O$2=$O$18,$O$2=$O$19),Best2!$F$14,IF(OR($O$2=$O$5,$O$2=$O$6,$O$2=$O$12,$O$2=$O$13),Best2!$F$15,""))))))) ->  | AW24: =IF(ISBLANK(K24),"",IF(Best2!$C$3="","",ROUND(SUM(Best2!$C$3:$C$6),1))) ->  | AZ24: =IF(ISBLANK(K24),"",IF(Best2!$B$3="","",ROUND(AVERAGE(Best2!$D$3:$D$6),1))) -> 
A25: 21 | O25: DACB | P25: 0 | Q25: 0 | X25: 0 | Y25: 0 | AF25: 0 | AG25: 0 | AN25: =IF(ISBLANK(E25),"",IF(OR($O$2=$O$5,$O$2=$O$6,$O$2=$O$12,$O$2=$O$13),Best2!$F$10,IF(OR($O$2=$O$7,$O$2=$O$8,$O$2=$O$18,$O$2=$O$19),Best2!$F$11,IF(OR($O$2=$O$9,$O$2=$O$10,$O$2=$O$24,$O$2=$O$25),Best2!$F$12,IF(OR($O$2=$O$14,$O$2=$O$15,$O$2=$O$20,$O$2=$O$21),Best2!$F$13,IF(OR($O$2=$O$16,$O$2=$O$17,$O$2=$O$26,$O$2=$O$27),Best2!$F$14,IF(OR($O$2=$O$22,$O$2=$O$23,$O$2=$O$28,$O$2=$O$29),Best2!$F$15,""))))))) ->  | AQ25: =IF(ISBLANK(G25),"",IF(OR($O$2=$O$5,$O$2=$O$7,$O$2=$O$27,$O$2=$O$29),Best2!$F$13,IF(OR($O$2=$O$18,$O$2=$O$20,$O$2=$O$24,$O$2=$O$26),Best2!$F$10,IF(OR($O$2=$O$12,$O$2=$O$14,$O$2=$O$25,$O$2=$O$28),Best2!$F$11,IF(OR($O$2=$O$13,$O$2=$O$16,$O$2=$O$19,$O$2=$O$22),Best2!$F$12,IF(OR($O$2=$O$6,$O$2=$O$9,$O$2=$O$21,$O$2=$O$23),Best2!$F$14,IF(OR($O$2=$O$8,$O$2=$O$10,$O$2=$O$15,$O$2=$O$17),Best2!$F$15,""))))))) ->  | AT25: =IF(ISBLANK(I25),"",IF(OR($O$2=$O$9,$O$2=$O$10,$O$2=$O$24,$O$2=$O$25),Best2!$F$13,IF(OR($O$2=$O$22,$O$2=$O$23,$O$2=$O$28,$O$2=$O$29),Best2!$F$10,IF(OR($O$2=$O$16,$O$2=$O$17,$O$2=$O$26,$O$2=$O$27),Best2!$F$11,IF(OR($O$2=$O$14,$O$2=$O$15,$O$2=$O$20,$O$2=$O$21),Best2!$F$12,IF(OR($O$2=$O$7,$O$2=$O$8,$O$2=$O$18,$O$2=$O$19),Best2!$F$14,IF(OR($O$2=$O$5,$O$2=$O$6,$O$2=$O$12,$O$2=$O$13),Best2!$F$15,""))))))) ->  | AW25: =IF(ISBLANK(K25),"",IF(Best2!$C$3="","",ROUND(SUM(Best2!$C$3:$C$6),1))) ->  | AZ25: =IF(ISBLANK(K25),"",IF(Best2!$B$3="","",ROUND(AVERAGE(Best2!$D$3:$D$6),1))) -> 
A26: 22 | O26: DBAC | P26: 0 | Q26: 0 | X26: 0 | Y26: 0 | AF26: 0 | AG26: 0 | AN26: =IF(ISBLANK(E26),"",IF(OR($O$2=$O$5,$O$2=$O$6,$O$2=$O$12,$O$2=$O$13),Best2!$F$10,IF(OR($O$2=$O$7,$O$2=$O$8,$O$2=$O$18,$O$2=$O$19),Best2!$F$11,IF(OR($O$2=$O$9,$O$2=$O$10,$O$2=$O$24,$O$2=$O$25),Best2!$F$12,IF(OR($O$2=$O$14,$O$2=$O$15,$O$2=$O$20,$O$2=$O$21),Best2!$F$13,IF(OR($O$2=$O$16,$O$2=$O$17,$O$2=$O$26,$O$2=$O$27),Best2!$F$14,IF(OR($O$2=$O$22,$O$2=$O$23,$O$2=$O$28,$O$2=$O$29),Best2!$F$15,""))))))) ->  | AQ26: =IF(ISBLANK(G26),"",IF(OR($O$2=$O$5,$O$2=$O$7,$O$2=$O$27,$O$2=$O$29),Best2!$F$13,IF(OR($O$2=$O$18,$O$2=$O$20,$O$2=$O$24,$O$2=$O$26),Best2!$F$10,IF(OR($O$2=$O$12,$O$2=$O$14,$O$2=$O$25,$O$2=$O$28),Best2!$F$11,IF(OR($O$2=$O$13,$O$2=$O$16,$O$2=$O$19,$O$2=$O$22),Best2!$F$12,IF(OR($O$2=$O$6,$O$2=$O$9,$O$2=$O$21,$O$2=$O$23),Best2!$F$14,IF(OR($O$2=$O$8,$O$2=$O$10,$O$2=$O$15,$O$2=$O$17),Best2!$F$15,""))))))) ->  | AT26: =IF(ISBLANK(I26),"",IF(OR($O$2=$O$9,$O$2=$O$10,$O$2=$O$24,$O$2=$O$25),Best2!$F$13,IF(OR($O$2=$O$22,$O$2=$O$23,$O$2=$O$28,$O$2=$O$29),Best2!$F$10,IF(OR($O$2=$O$16,$O$2=$O$17,$O$2=$O$26,$O$2=$O$27),Best2!$F$11,IF(OR($O$2=$O$14,$O$2=$O$15,$O$2=$O$20,$O$2=$O$21),Best2!$F$12,IF(OR($O$2=$O$7,$O$2=$O$8,$O$2=$O$18,$O$2=$O$19),Best2!$F$14,IF(OR($O$2=$O$5,$O$2=$O$6,$O$2=$O$12,$O$2=$O$13),Best2!$F$15,""))))))) ->  | AW26: =IF(ISBLANK(K26),"",IF(Best2!$C$3="","",ROUND(SUM(Best2!$C$3:$C$6),1))) ->  | AZ26: =IF(ISBLANK(K26),"",IF(Best2!$B$3="","",ROUND(AVERAGE(Best2!$D$3:$D$6),1))) -> 
A27: 23 | O27: DBCA | P27: 0 | Q27: 0 | X27: 0 | Y27: 0 | AF27: 0 | AG27: 0 | AN27: =IF(ISBLANK(E27),"",IF(OR($O$2=$O$5,$O$2=$O$6,$O$2=$O$12,$O$2=$O$13),Best2!$F$10,IF(OR($O$2=$O$7,$O$2=$O$8,$O$2=$O$18,$O$2=$O$19),Best2!$F$11,IF(OR($O$2=$O$9,$O$2=$O$10,$O$2=$O$24,$O$2=$O$25),Best2!$F$12,IF(OR($O$2=$O$14,$O$2=$O$15,$O$2=$O$20,$O$2=$O$21),Best2!$F$13,IF(OR($O$2=$O$16,$O$2=$O$17,$O$2=$O$26,$O$2=$O$27),Best2!$F$14,IF(OR($O$2=$O$22,$O$2=$O$23,$O$2=$O$28,$O$2=$O$29),Best2!$F$15,""))))))) ->  | AQ27: =IF(ISBLANK(G27),"",IF(OR($O$2=$O$5,$O$2=$O$7,$O$2=$O$27,$O$2=$O$29),Best2!$F$13,IF(OR($O$2=$O$18,$O$2=$O$20,$O$2=$O$24,$O$2=$O$26),Best2!$F$10,IF(OR($O$2=$O$12,$O$2=$O$14,$O$2=$O$25,$O$2=$O$28),Best2!$F$11,IF(OR($O$2=$O$13,$O$2=$O$16,$O$2=$O$19,$O$2=$O$22),Best2!$F$12,IF(OR($O$2=$O$6,$O$2=$O$9,$O$2=$O$21,$O$2=$O$23),Best2!$F$14,IF(OR($O$2=$O$8,$O$2=$O$10,$O$2=$O$15,$O$2=$O$17),Best2!$F$15,""))))))) ->  | AT27: =IF(ISBLANK(I27),"",IF(OR($O$2=$O$9,$O$2=$O$10,$O$2=$O$24,$O$2=$O$25),Best2!$F$13,IF(OR($O$2=$O$22,$O$2=$O$23,$O$2=$O$28,$O$2=$O$29),Best2!$F$10,IF(OR($O$2=$O$16,$O$2=$O$17,$O$2=$O$26,$O$2=$O$27),Best2!$F$11,IF(OR($O$2=$O$14,$O$2=$O$15,$O$2=$O$20,$O$2=$O$21),Best2!$F$12,IF(OR($O$2=$O$7,$O$2=$O$8,$O$2=$O$18,$O$2=$O$19),Best2!$F$14,IF(OR($O$2=$O$5,$O$2=$O$6,$O$2=$O$12,$O$2=$O$13),Best2!$F$15,""))))))) ->  | AW27: =IF(ISBLANK(K27),"",IF(Best2!$C$3="","",ROUND(SUM(Best2!$C$3:$C$6),1))) ->  | AZ27: =IF(ISBLANK(K27),"",IF(Best2!$B$3="","",ROUND(AVERAGE(Best2!$D$3:$D$6),1))) -> 
A28: 24 | O28: DCAB | P28: 0 | Q28: 0 | X28: 0 | Y28: 0 | AF28: 0 | AG28: 0 | AN28: =IF(ISBLANK(E28),"",IF(OR($O$2=$O$5,$O$2=$O$6,$O$2=$O$12,$O$2=$O$13),Best2!$F$10,IF(OR($O$2=$O$7,$O$2=$O$8,$O$2=$O$18,$O$2=$O$19),Best2!$F$11,IF(OR($O$2=$O$9,$O$2=$O$10,$O$2=$O$24,$O$2=$O$25),Best2!$F$12,IF(OR($O$2=$O$14,$O$2=$O$15,$O$2=$O$20,$O$2=$O$21),Best2!$F$13,IF(OR($O$2=$O$16,$O$2=$O$17,$O$2=$O$26,$O$2=$O$27),Best2!$F$14,IF(OR($O$2=$O$22,$O$2=$O$23,$O$2=$O$28,$O$2=$O$29),Best2!$F$15,""))))))) ->  | AQ28: =IF(ISBLANK(G28),"",IF(OR($O$2=$O$5,$O$2=$O$7,$O$2=$O$27,$O$2=$O$29),Best2!$F$13,IF(OR($O$2=$O$18,$O$2=$O$20,$O$2=$O$24,$O$2=$O$26),Best2!$F$10,IF(OR($O$2=$O$12,$O$2=$O$14,$O$2=$O$25,$O$2=$O$28),Best2!$F$11,IF(OR($O$2=$O$13,$O$2=$O$16,$O$2=$O$19,$O$2=$O$22),Best2!$F$12,IF(OR($O$2=$O$6,$O$2=$O$9,$O$2=$O$21,$O$2=$O$23),Best2!$F$14,IF(OR($O$2=$O$8,$O$2=$O$10,$O$2=$O$15,$O$2=$O$17),Best2!$F$15,""))))))) ->  | AT28: =IF(ISBLANK(I28),"",IF(OR($O$2=$O$9,$O$2=$O$10,$O$2=$O$24,$O$2=$O$25),Best2!$F$13,IF(OR($O$2=$O$22,$O$2=$O$23,$O$2=$O$28,$O$2=$O$29),Best2!$F$10,IF(OR($O$2=$O$16,$O$2=$O$17,$O$2=$O$26,$O$2=$O$27),Best2!$F$11,IF(OR($O$2=$O$14,$O$2=$O$15,$O$2=$O$20,$O$2=$O$21),Best2!$F$12,IF(OR($O$2=$O$7,$O$2=$O$8,$O$2=$O$18,$O$2=$O$19),Best2!$F$14,IF(OR($O$2=$O$5,$O$2=$O$6,$O$2=$O$12,$O$2=$O$13),Best2!$F$15,""))))))) ->  | AW28: =IF(ISBLANK(K28),"",IF(Best2!$C$3="","",ROUND(SUM(Best2!$C$3:$C$6),1))) ->  | AZ28: =IF(ISBLANK(K28),"",IF(Best2!$B$3="","",ROUND(AVERAGE(Best2!$D$3:$D$6),1))) -> 
A29: 25 | O29: DCBA | P29: 0 | Q29: 0 | X29: 0 | Y29: 0 | AF29: 0 | AG29: 0 | AN29: =IF(ISBLANK(E29),"",IF(OR($O$2=$O$5,$O$2=$O$6,$O$2=$O$12,$O$2=$O$13),Best2!$F$10,IF(OR($O$2=$O$7,$O$2=$O$8,$O$2=$O$18,$O$2=$O$19),Best2!$F$11,IF(OR($O$2=$O$9,$O$2=$O$10,$O$2=$O$24,$O$2=$O$25),Best2!$F$12,IF(OR($O$2=$O$14,$O$2=$O$15,$O$2=$O$20,$O$2=$O$21),Best2!$F$13,IF(OR($O$2=$O$16,$O$2=$O$17,$O$2=$O$26,$O$2=$O$27),Best2!$F$14,IF(OR($O$2=$O$22,$O$2=$O$23,$O$2=$O$28,$O$2=$O$29),Best2!$F$15,""))))))) ->  | AQ29: =IF(ISBLANK(G29),"",IF(OR($O$2=$O$5,$O$2=$O$7,$O$2=$O$27,$O$2=$O$29),Best2!$F$13,IF(OR($O$2=$O$18,$O$2=$O$20,$O$2=$O$24,$O$2=$O$26),Best2!$F$10,IF(OR($O$2=$O$12,$O$2=$O$14,$O$2=$O$25,$O$2=$O$28),Best2!$F$11,IF(OR($O$2=$O$13,$O$2=$O$16,$O$2=$O$19,$O$2=$O$22),Best2!$F$12,IF(OR($O$2=$O$6,$O$2=$O$9,$O$2=$O$21,$O$2=$O$23),Best2!$F$14,IF(OR($O$2=$O$8,$O$2=$O$10,$O$2=$O$15,$O$2=$O$17),Best2!$F$15,""))))))) ->  | AT29: =IF(ISBLANK(I29),"",IF(OR($O$2=$O$9,$O$2=$O$10,$O$2=$O$24,$O$2=$O$25),Best2!$F$13,IF(OR($O$2=$O$22,$O$2=$O$23,$O$2=$O$28,$O$2=$O$29),Best2!$F$10,IF(OR($O$2=$O$16,$O$2=$O$17,$O$2=$O$26,$O$2=$O$27),Best2!$F$11,IF(OR($O$2=$O$14,$O$2=$O$15,$O$2=$O$20,$O$2=$O$21),Best2!$F$12,IF(OR($O$2=$O$7,$O$2=$O$8,$O$2=$O$18,$O$2=$O$19),Best2!$F$14,IF(OR($O$2=$O$5,$O$2=$O$6,$O$2=$O$12,$O$2=$O$13),Best2!$F$15,""))))))) ->  | AW29: =IF(ISBLANK(K29),"",IF(Best2!$C$3="","",ROUND(SUM(Best2!$C$3:$C$6),1))) ->  | AZ29: =IF(ISBLANK(K29),"",IF(Best2!$B$3="","",ROUND(AVERAGE(Best2!$D$3:$D$6),1))) -> 
A30: 26 | P30: 0 | Q30: 0 | X30: 0 | Y30: 0 | AF30: 0 | AG30: 0 | AN30: =IF(ISBLANK(E30),"",IF(OR($O$2=$O$5,$O$2=$O$6,$O$2=$O$12,$O$2=$O$13),Best2!$F$10,IF(OR($O$2=$O$7,$O$2=$O$8,$O$2=$O$18,$O$2=$O$19),Best2!$F$11,IF(OR($O$2=$O$9,$O$2=$O$10,$O$2=$O$24,$O$2=$O$25),Best2!$F$12,IF(OR($O$2=$O$14,$O$2=$O$15,$O$2=$O$20,$O$2=$O$21),Best2!$F$13,IF(OR($O$2=$O$16,$O$2=$O$17,$O$2=$O$26,$O$2=$O$27),Best2!$F$14,IF(OR($O$2=$O$22,$O$2=$O$23,$O$2=$O$28,$O$2=$O$29),Best2!$F$15,""))))))) ->  | AQ30: =IF(ISBLANK(G30),"",IF(OR($O$2=$O$5,$O$2=$O$7,$O$2=$O$27,$O$2=$O$29),Best2!$F$13,IF(OR($O$2=$O$18,$O$2=$O$20,$O$2=$O$24,$O$2=$O$26),Best2!$F$10,IF(OR($O$2=$O$12,$O$2=$O$14,$O$2=$O$25,$O$2=$O$28),Best2!$F$11,IF(OR($O$2=$O$13,$O$2=$O$16,$O$2=$O$19,$O$2=$O$22),Best2!$F$12,IF(OR($O$2=$O$6,$O$2=$O$9,$O$2=$O$21,$O$2=$O$23),Best2!$F$14,IF(OR($O$2=$O$8,$O$2=$O$10,$O$2=$O$15,$O$2=$O$17),Best2!$F$15,""))))))) ->  | AT30: =IF(ISBLANK(I30),"",IF(OR($O$2=$O$9,$O$2=$O$10,$O$2=$O$24,$O$2=$O$25),Best2!$F$13,IF(OR($O$2=$O$22,$O$2=$O$23,$O$2=$O$28,$O$2=$O$29),Best2!$F$10,IF(OR($O$2=$O$16,$O$2=$O$17,$O$2=$O$26,$O$2=$O$27),Best2!$F$11,IF(OR($O$2=$O$14,$O$2=$O$15,$O$2=$O$20,$O$2=$O$21),Best2!$F$12,IF(OR($O$2=$O$7,$O$2=$O$8,$O$2=$O$18,$O$2=$O$19),Best2!$F$14,IF(OR($O$2=$O$5,$O$2=$O$6,$O$2=$O$12,$O$2=$O$13),Best2!$F$15,""))))))) ->  | AW30: =IF(ISBLANK(K30),"",IF(Best2!$C$3="","",ROUND(SUM(Best2!$C$3:$C$6),1))) ->  | AZ30: =IF(ISBLANK(K30),"",IF(Best2!$B$3="","",ROUND(AVERAGE(Best2!$D$3:$D$6),1))) -> 
A31: 27 | P31: 0 | Q31: 0 | X31: 0 | Y31: 0 | AF31: 0 | AG31: 0 | AN31: =IF(ISBLANK(E31),"",IF(OR($O$2=$O$5,$O$2=$O$6,$O$2=$O$12,$O$2=$O$13),Best2!$F$10,IF(OR($O$2=$O$7,$O$2=$O$8,$O$2=$O$18,$O$2=$O$19),Best2!$F$11,IF(OR($O$2=$O$9,$O$2=$O$10,$O$2=$O$24,$O$2=$O$25),Best2!$F$12,IF(OR($O$2=$O$14,$O$2=$O$15,$O$2=$O$20,$O$2=$O$21),Best2!$F$13,IF(OR($O$2=$O$16,$O$2=$O$17,$O$2=$O$26,$O$2=$O$27),Best2!$F$14,IF(OR($O$2=$O$22,$O$2=$O$23,$O$2=$O$28,$O$2=$O$29),Best2!$F$15,""))))))) ->  | AO31: =IF(F31="","",F31) ->  | AQ31: =IF(ISBLANK(G31),"",IF(OR($O$2=$O$5,$O$2=$O$7,$O$2=$O$27,$O$2=$O$29),Best2!$F$13,IF(OR($O$2=$O$18,$O$2=$O$20,$O$2=$O$24,$O$2=$O$26),Best2!$F$10,IF(OR($O$2=$O$12,$O$2=$O$14,$O$2=$O$25,$O$2=$O$28),Best2!$F$11,IF(OR($O$2=$O$13,$O$2=$O$16,$O$2=$O$19,$O$2=$O$22),Best2!$F$12,IF(OR($O$2=$O$6,$O$2=$O$9,$O$2=$O$21,$O$2=$O$23),Best2!$F$14,IF(OR($O$2=$O$8,$O$2=$O$10,$O$2=$O$15,$O$2=$O$17),Best2!$F$15,""))))))) ->  | AR31: =IF(H31="","",H31) ->  | AT31: =IF(ISBLANK(I31),"",IF(OR($O$2=$O$9,$O$2=$O$10,$O$2=$O$24,$O$2=$O$25),Best2!$F$13,IF(OR($O$2=$O$22,$O$2=$O$23,$O$2=$O$28,$O$2=$O$29),Best2!$F$10,IF(OR($O$2=$O$16,$O$2=$O$17,$O$2=$O$26,$O$2=$O$27),Best2!$F$11,IF(OR($O$2=$O$14,$O$2=$O$15,$O$2=$O$20,$O$2=$O$21),Best2!$F$12,IF(OR($O$2=$O$7,$O$2=$O$8,$O$2=$O$18,$O$2=$O$19),Best2!$F$14,IF(OR($O$2=$O$5,$O$2=$O$6,$O$2=$O$12,$O$2=$O$13),Best2!$F$15,""))))))) ->  | AU31: =IF(J31="","",J31) ->  | AW31: =IF(ISBLANK(K31),"",IF(Best2!$C$3="","",ROUND(SUM(Best2!$C$3:$C$6),1))) ->  | AX31: =IF(K31="","",K31) ->  | AZ31: =IF(ISBLANK(K31),"",IF(Best2!$B$3="","",ROUND(AVERAGE(Best2!$D$3:$D$6),1))) ->  | BA31: =IF(L31="","",L31) -> 
A32: 28 | P32: =IF(OR($O$2=$O$5,$O$2=$O$6),E32,IF(OR($O$2=$O$18,$O$2=$O$24),G32,IF(OR($O$2=$O$22,$O$2=$O$28),I32,""))) -> 0 | Q32: =IF(OR($O$2=$O$5,$O$2=$O$6),F32,IF(OR($O$2=$O$18,$O$2=$O$24),H32,IF(OR($O$2=$O$22,$O$2=$O$28),J32,""))) -> 0 | R32: =IF(OR($O$2=$O$7,$O$2=$O$8),E32,IF(OR($O$2=$O$12,$O$2=$O$25),G32,IF(OR($O$2=$O$16,$O$2=$O$26),I32,""))) ->  | S32: =IF(OR($O$2=$O$7,$O$2=$O$8),F32,IF(OR($O$2=$O$12,$O$2=$O$25),H32,IF(OR($O$2=$O$16,$O$2=$O$26),J32,""))) ->  | T32: =IF(OR($O$2=$O$9,$O$2=$O$10),E32,IF(OR($O$2=$O$13,$O$2=$O$19),G32,IF(OR($O$2=$O$14,$O$2=$O$20),I32,""))) ->  | U32: =IF(OR($O$2=$O$9,$O$2=$O$10),F32,IF(OR($O$2=$O$13,$O$2=$O$19),H32,IF(OR($O$2=$O$14,$O$2=$O$20),J32,""))) ->  | V32: =IF(OR($O$2=$O$12,$O$2=$O$13),E32,IF(OR($O$2=$O$20,$O$2=$O$26),G32,IF(OR($O$2=$O$23,$O$2=$O$29),I32,""))) ->  | W32: =IF(OR($O$2=$O$12,$O$2=$O$13),F32,IF(OR($O$2=$O$20,$O$2=$O$26),H32,IF(OR($O$2=$O$23,$O$2=$O$29),J32,""))) ->  | X32: =IF(OR($O$2=$O$14,$O$2=$O$15),E32,IF(OR($O$2=$O$5,$O$2=$O$27),G32,IF(OR($O$2=$O$9,$O$2=$O$24),I32,""))) -> 0 | Y32: =IF(OR($O$2=$O$14,$O$2=$O$15),F32,IF(OR($O$2=$O$5,$O$2=$O$27),H32,IF(OR($O$2=$O$9,$O$2=$O$24),J32,""))) -> 0 | Z32: =IF(OR($O$2=$O$16,$O$2=$O$17),E32,IF(OR($O$2=$O$6,$O$2=$O$21),G32,IF(OR($O$2=$O$7,$O$2=$O$18),I32,""))) ->  | AA32: =IF(OR($O$2=$O$16,$O$2=$O$17),F32,IF(OR($O$2=$O$6,$O$2=$O$21),H32,IF(OR($O$2=$O$7,$O$2=$O$18),J32,""))) ->  | AB32: =IF(OR($O$2=$O$18,$O$2=$O$19),E32,IF(OR($O$2=$O$14,$O$2=$O$28),G32,IF(OR($O$2=$O$17,$O$2=$O$27),I32,""))) ->  | AC32: =IF(OR($O$2=$O$18,$O$2=$O$19),F32,IF(OR($O$2=$O$14,$O$2=$O$28),H32,IF(OR($O$2=$O$17,$O$2=$O$27),J32,""))) ->  | AD32: =IF(OR($O$2=$O$20,$O$2=$O$21),E32,IF(OR($O$2=$O$7,$O$2=$O$29),G32,IF(OR($O$2=$O$10,$O$2=$O$11),I32,""))) ->  | AE32: =IF(OR($O$2=$O$20,$O$2=$O$21),F32,IF(OR($O$2=$O$7,$O$2=$O$29),H32,IF(OR($O$2=$O$10,$O$2=$O$11),J32,""))) ->  | AF32: =IF(OR($O$2=$O$22,$O$2=$O$23),E32,IF(OR($O$2=$O$8,$O$2=$O$15),G32,IF(OR($O$2=$O$5,$O$2=$O$12),I32,""))) -> 0 | AG32: =IF(OR($O$2=$O$22,$O$2=$O$23),F32,IF(OR($O$2=$O$8,$O$2=$O$15),H32,IF(OR($O$2=$O$5,$O$2=$O$12),J32,""))) -> 0 | AH32: =IF(OR($O$2=$O$24,$O$2=$O$25),E32,IF(OR($O$2=$O$16,$O$2=$O$22),G32,IF(OR($O$2=$O$15,$O$2=$O$21),I32,""))) ->  | AI32: =IF(OR($O$2=$O$24,$O$2=$O$25),F32,IF(OR($O$2=$O$16,$O$2=$O$22),H32,IF(OR($O$2=$O$15,$O$2=$O$21),J32,""))) ->  | AJ32: =IF(OR($O$2=$O$26,$O$2=$O$27),E32,IF(OR($O$2=$O$9,$O$2=$O$23),G32,IF(OR($O$2=$O$8,$O$2=$O$19),I32,""))) ->  | AK32: =IF(OR($O$2=$O$26,$O$2=$O$27),F32,IF(OR($O$2=$O$9,$O$2=$O$23),H32,IF(OR($O$2=$O$8,$O$2=$O$19),J32,""))) ->  | AL32: =IF(OR($O$2=$O$28,$O$2=$O$29),E32,IF(OR($O$2=$O$10,$O$2=$O$11),G32,IF(OR($O$2=$O$6,$O$2=$O$13),I32,""))) ->  | AM32: =IF(OR($O$2=$O$28,$O$2=$O$29),F32,IF(OR($O$2=$O$10,$O$2=$O$11),H32,IF(OR($O$2=$O$6,$O$2=$O$13),J32,""))) ->  | AN32: =IF(ISBLANK(E32),"",IF(OR($O$2=$O$5,$O$2=$O$6,$O$2=$O$12,$O$2=$O$13),Best2!$F$10,IF(OR($O$2=$O$7,$O$2=$O$8,$O$2=$O$18,$O$2=$O$19),Best2!$F$11,IF(OR($O$2=$O$9,$O$2=$O$10,$O$2=$O$24,$O$2=$O$25),Best2!$F$12,IF(OR($O$2=$O$14,$O$2=$O$15,$O$2=$O$20,$O$2=$O$21),Best2!$F$13,IF(OR($O$2=$O$16,$O$2=$O$17,$O$2=$O$26,$O$2=$O$27),Best2!$F$14,IF(OR($O$2=$O$22,$O$2=$O$23,$O$2=$O$28,$O$2=$O$29),Best2!$F$15,""))))))) ->  | AQ32: =IF(ISBLANK(G32),"",IF(OR($O$2=$O$5,$O$2=$O$7,$O$2=$O$27,$O$2=$O$29),Best2!$F$13,IF(OR($O$2=$O$18,$O$2=$O$20,$O$2=$O$24,$O$2=$O$26),Best2!$F$10,IF(OR($O$2=$O$12,$O$2=$O$14,$O$2=$O$25,$O$2=$O$28),Best2!$F$11,IF(OR($O$2=$O$13,$O$2=$O$16,$O$2=$O$19,$O$2=$O$22),Best2!$F$12,IF(OR($O$2=$O$6,$O$2=$O$9,$O$2=$O$21,$O$2=$O$23),Best2!$F$14,IF(OR($O$2=$O$8,$O$2=$O$10,$O$2=$O$15,$O$2=$O$17),Best2!$F$15,""))))))) ->  | AT32: =IF(ISBLANK(I32),"",IF(OR($O$2=$O$9,$O$2=$O$10,$O$2=$O$24,$O$2=$O$25),Best2!$F$13,IF(OR($O$2=$O$22,$O$2=$O$23,$O$2=$O$28,$O$2=$O$29),Best2!$F$10,IF(OR($O$2=$O$16,$O$2=$O$17,$O$2=$O$26,$O$2=$O$27),Best2!$F$11,IF(OR($O$2=$O$14,$O$2=$O$15,$O$2=$O$20,$O$2=$O$21),Best2!$F$12,IF(OR($O$2=$O$7,$O$2=$O$8,$O$2=$O$18,$O$2=$O$19),Best2!$F$14,IF(OR($O$2=$O$5,$O$2=$O$6,$O$2=$O$12,$O$2=$O$13),Best2!$F$15,""))))))) ->  | AW32: =IF(ISBLANK(K32),"",IF(Best2!$C$3="","",ROUND(SUM(Best2!$C$3:$C$6),1))) ->  | AZ32: =IF(ISBLANK(K32),"",IF(Best2!$B$3="","",ROUND(AVERAGE(Best2!$D$3:$D$6),1))) -> 
P34: =MIN(BW5:BW32) -> 0 | Q34: =MIN(BX5:BX32) -> 0 | R34: =MIN(BY5:BY32) -> 0 | S34: 0 | T34: 0 | U34: 0 | V34: 0 | W34: 0 | X34: 0 | Y34: 0 | Z34: 0 | AA34: 0 | AB34: 0 | AC34: 0 | AD34: 0 | AE34: 0 | AF34: 0 | AG34: 0 | AH34: 0 | AI34: 0 | AJ34: 0 | AK34: 0 | AL34: 0 | AM34: 0 | BL34: =IF(MIN(BL5:BL32)=0,"",MIN(BL5:BL32)) ->  | BM34: =IF(MIN(BM5:BM32)=0,"",MIN(BM5:BM32)) ->  | BZ34: =IF(MIN(BZ5:BZ32)=0,"",MIN(BZ5:BZ32)) -> 
AX42: =IF(AND(AX5="",AX33=""),"",MIN(AX5:AX41)) ->  | BA42: =IF(AND(BA5="",BA33=""),"",MAX(BA5:BA41)) -> 
F50: 500 | G50: 500 | H50: 500 | I50: 500 | J50: =F50*1 -> 500 | K50: =G50*1 -> 500 | L50: 500 | M50: 500
F51: 500 | G51: 500 | H51: 500 | I51: 500 | J51: =F51*1 -> 500 | K51: =G51*1 -> 500 | L51: =H51*1 -> 500 | M51: =I51*1 -> 500
F52: 500 | G52: 500 | H52: 500 | I52: 500 | J52: 500 | K52: 500 | L52: 500 | M52: 500
F53: 500 | G53: 500 | H53: 500 | I53: 500 | J53: 500 | K53: 500 | L53: 500 | M53: 500
F54: 500 | G54: 500 | H54: 500 | I54: 500 | J54: 500 | K54: 500 | L54: 500 | M54: 500
F55: 500 | G55: 500 | H55: 500 | I55: 500 | J55: 500 | K55: 500 | L55: 500 | M55: 500
F56: 500 | G56: 500 | H56: 500 | I56: 500 | J56: 500 | K56: 500 | L56: 500 | M56: 500
F57: 500 | G57: 500 | H57: 500 | I57: 500 | J57: 500 | K57: 500 | L57: 500 | M57: 500
F58: 500 | G58: 500 | H58: 500 | I58: 500 | J58: 500 | K58: 500 | L58: 500 | M58: 500
F59: 500 | G59: 500 | H59: 500 | I59: 500 | J59: 500 | K59: 500 | L59: 500 | M59: 500
F60: 500 | G60: 500 | H60: 500 | I60: 500 | J60: 500 | K60: 500 | L60: 500 | M60: 500
F61: 500 | G61: 500 | H61: 500 | I61: 500 | J61: 500 | K61: 500 | L61: 500 | M61: 500
F62: 500 | G62: 500 | H62: 500 | I62: 500 | J62: 500 | K62: 500 | L62: 500 | M62: 500
F63: 500 | G63: 500 | H63: 500 | I63: 500 | J63: 500 | K63: 500 | L63: 500 | M63: 500
F64: 500 | G64: 500 | H64: 500 | I64: 500 | J64: 500 | K64: 500 | L64: 500 | M64: 500
F65: 500 | G65: 500 | H65: 500 | I65: 500 | J65: 500 | K65: 500 | L65: 500 | M65: 500
F66: 500 | G66: 500 | H66: 500 | I66: 500 | J66: 500 | K66: 500 | L66: 500 | M66: 500
F67: 500 | G67: 500 | H67: 500 | I67: 500 | J67: 500 | K67: 500 | L67: 500 | M67: 500
F68: 500 | G68: 500 | H68: 500 | I68: 500 | J68: 500 | K68: 500 | L68: 500 | M68: 500
F69: 500 | G69: 500 | H69: 500 | I69: 500 | J69: 500 | K69: 500 | L69: 500 | M69: 500
F70: 500 | G70: 500 | H70: 500 | I70: 500 | J70: 500 | K70: 500 | L70: 500 | M70: 500
F71: 500 | G71: 500 | H71: 500 | I71: 500 | J71: 500 | K71: 500 | L71: 500 | M71: 500
F72: 500 | G72: 500 | H72: 500 | I72: 500 | J72: 500 | K72: 500 | L72: 500 | M72: 500
F73: 500 | G73: 500 | H73: 500 | I73: 500 | J73: 500 | K73: 500 | L73: 500 | M73: 500
F89: =IF(MIN(F50:F73)=0,"",MIN(F50:F73)) -> 500 | G89: 500 | H89: 500 | I89: 500 | J89: 500 | K89: 500 | L89: 500 | M89: 500
F90: 500 | G90: 500 | H90: 500 | I90: 500 | J90: =F90*1 -> 500 | K90: =G90*1 -> 500 | L90: =H90*1 -> 500 | M90: =I90*1 -> 500
F91: 500 | G91: 500 | H91: 500 | I91: 500 | J91: =F91*1 -> 500 | K91: 500 | L91: 500 | M91: 500
F92: 500 | G92: 500 | H92: 500 | I92: 500 | J92: 500 | K92: 500 | L92: 500 | M92: 500
F93: 500 | G93: 500 | H93: 500 | I93: 500 | J93: 500 | K93: 500 | L93: 500 | M93: 500
F94: 500 | G94: 500 | H94: 500 | I94: 500 | J94: 500 | K94: 500 | L94: 500 | M94: 500
F95: 500 | G95: 500 | H95: 500 | I95: 500 | J95: 500 | K95: 500 | L95: 500 | M95: 500
F96: 500 | G96: 500 | H96: 500 | I96: 500 | J96: 500 | K96: 500 | L96: 500 | M96: 500
F97: 500 | G97: 500 | H97: 500 | I97: 500 | J97: 500 | K97: 500 | L97: 500 | M97: 500
F98: 500 | G98: 500 | H98: 500 | I98: 500 | J98: 500 | K98: 500 | L98: 500 | M98: 500
F99: 500 | G99: 500 | H99: 500 | I99: 500 | J99: 500 | K99: 500 | L99: 500 | M99: 500
F100: 500 | G100: 500 | H100: 500 | I100: 500 | J100: 500 | K100: 500 | L100: 500 | M100: 500
F101: 500 | G101: 500 | H101: 500 | I101: 500 | J101: 500 | K101: 500 | L101: 500 | M101: 500
F102: 500 | G102: 500 | H102: 500 | I102: 500 | J102: 500 | K102: 500 | L102: 500 | M102: 500
F103: 500 | G103: 500 | H103: 500 | I103: 500 | J103: 500 | K103: 500 | L103: 500 | M103: 500
F104: 500 | G104: 500 | H104: 500 | I104: 500 | J104: 500 | K104: 500 | L104: 500 | M104: 500
F105: 500 | G105: 500 | H105: 500 | I105: 500 | J105: 500 | K105: 500 | L105: 500 | M105: 500
F106: 500 | G106: 500 | H106: 500 | I106: 500 | J106: 500 | K106: 500 | L106: 500 | M106: 500
F107: 500 | G107: 500 | H107: 500 | I107: 500 | J107: 500 | K107: 500 | L107: 500 | M107: 500
F108: 500 | G108: 500 | H108: 500 | I108: 500 | J108: 500 | K108: 500 | L108: 500 | M108: 500
F109: 500 | G109: 500 | H109: 500 | I109: 500 | J109: 500 | K109: 500 | L109: 500 | M109: 500
F110: 500 | G110: 500 | H110: 500 | I110: 500 | J110: 500 | K110: 500 | L110: 500 | M110: 500
F111: 500 | G111: 500 | H111: 500 | I111: 500 | J111: 500 | K111: 500 | L111: 500 | M111: 500
F112: 500 | G112: 500 | H112: 500 | I112: 500 | J112: 500 | K112: 500 | L112: 500 | M112: 500
F113: 500 | G113: 500 | H113: 500 | I113: 500 | J113: 500 | K113: 500 | L113: 500 | M113: 500
F129: =IF(MIN(F90:F113)=0,"",MIN(F90:F113)) -> 500 | G129: 500 | H129: 500 | I129: 500 | J129: 500 | K129: 500 | L129: 500 | M129: 500
J130: =IF(MIN(J89,J129)=500,"",MIN(J89,J129)) ->  | K130: =IF(MIN(K89,K129)=500,"",MIN(K89,K129)) -> 

Sheet Archresultats3
A1: Bilan équipe 3
O2: BCDA
AN3: ZONE 1 | AQ3: ZONE 2 | AT3: ZONE 3 | AW3: TOTAL course
B4: Dates | C4: Heure | D4: Coureur ou Ordre relais | E4: Tps zone 1 | F4: Vitesse zone 1 | G4: Tps zone 2 | H4: Vitesse zone 2 | I4: Tps zone 3 | J4: Vitesse zone 3 | K4: Tps course totale | L4: Vitesse totale totale | M4: Remarques | P4: AB (t) | Q4: AB (v) | R4: AC (t) | S4: AC (v) | T4: AD (t) | U4: AD (v) | V4: BA (v) | W4: BA (t) | X4: BC (t) | Y4: BC (v) | Z4: BD (t) | AA4: BD (v) | AB4: CA (t) | AC4: CA (v) | AD4: CB (t) | AE4: CB (v) | AF4: CD (t) | AG4: CD (v) | AH4: DA (t) | AI4: DA (v) | AJ4: DB (t) | AK4: DB (v) | AL4: DC (t) | AM4: DC (v) | AN4: Vitesse moy. théorique du binôme | AO4: Vitesse réelle du binôme | AP4: % Evolution | AQ4: Vitesse moy. théorique du binôme | AR4: Vitesse réelle du binôme | AS4: % Evolution | AT4: Vitesse moy. théorique du binôme | AU4: Vitesse réelle du binôme | AV4: % Evolution | AW4: TEMPS total théorique du groupe | AX4: TEMPS total réel du groupe | AY4: % Evolution | AZ4: VITESSE théorique du groupe | BA4: VITESSE réelle du groupe | BB4: % Evolution
A5: 1 | O5: ABCD | P5: =IF(OR($O$2=$O$5,$O$2=$O$6),E5,IF(OR($O$2=$O$18,$O$2=$O$24),G5,IF(OR($O$2=$O$22,$O$2=$O$28),I5,""))) ->  | Q5: =IF(OR($O$2=$O$5,$O$2=$O$6),F5,IF(OR($O$2=$O$18,$O$2=$O$24),H5,IF(OR($O$2=$O$22,$O$2=$O$28),J5,""))) ->  | R5: =IF(OR($O$2=$O$7,$O$2=$O$8),E5,IF(OR($O$2=$O$12,$O$2=$O$25),G5,IF(OR($O$2=$O$16,$O$2=$O$26),I5,""))) ->  | S5: =IF(OR($O$2=$O$7,$O$2=$O$8),F5,IF(OR($O$2=$O$12,$O$2=$O$25),H5,IF(OR($O$2=$O$16,$O$2=$O$26),J5,""))) ->  | T5: =IF(OR($O$2=$O$9,$O$2=$O$10),E5,IF(OR($O$2=$O$13,$O$2=$O$19),G5,IF(OR($O$2=$O$14,$O$2=$O$20),I5,""))) ->  | U5: =IF(OR($O$2=$O$9,$O$2=$O$10),F5,IF(OR($O$2=$O$13,$O$2=$O$19),H5,IF(OR($O$2=$O$14,$O$2=$O$20),J5,""))) ->  | V5: =IF(OR($O$2=$O$12,$O$2=$O$13),E5,IF(OR($O$2=$O$20,$O$2=$O$26),G5,IF(OR($O$2=$O$23,$O$2=$O$29),I5,""))) ->  | W5: =IF(OR($O$2=$O$12,$O$2=$O$13),F5,IF(OR($O$2=$O$20,$O$2=$O$26),H5,IF(OR($O$2=$O$23,$O$2=$O$29),J5,""))) ->  | X5: =IF(OR($O$2=$O$14,$O$2=$O$15),E5,IF(OR($O$2=$O$5,$O$2=$O$27),G5,IF(OR($O$2=$O$9,$O$2=$O$24),I5,""))) -> 0 | Y5: =IF(OR($O$2=$O$14,$O$2=$O$15),F5,IF(OR($O$2=$O$5,$O$2=$O$27),H5,IF(OR($O$2=$O$9,$O$2=$O$24),J5,""))) -> 0 | Z5: =IF(OR($O$2=$O$16,$O$2=$O$17),E5,IF(OR($O$2=$O$6,$O$2=$O$21),G5,IF(OR($O$2=$O$7,$O$2=$O$18),I5,""))) ->  | AA5: =IF(OR($O$2=$O$16,$O$2=$O$17),F5,IF(OR($O$2=$O$6,$O$2=$O$21),H5,IF(OR($O$2=$O$7,$O$2=$O$18),J5,""))) ->  | AB5: =IF(OR($O$2=$O$18,$O$2=$O$19),E5,IF(OR($O$2=$O$14,$O$2=$O$28),G5,IF(OR($O$2=$O$17,$O$2=$O$27),I5,""))) ->  | AC5: =IF(OR($O$2=$O$18,$O$2=$O$19),F5,IF(OR($O$2=$O$14,$O$2=$O$28),H5,IF(OR($O$2=$O$17,$O$2=$O$27),J5,""))) ->  | AD5: =IF(OR($O$2=$O$20,$O$2=$O$21),E5,IF(OR($O$2=$O$7,$O$2=$O$29),G5,IF(OR($O$2=$O$10,$O$2=$O$11),I5,""))) ->  | AE5: =IF(OR($O$2=$O$20,$O$2=$O$21),F5,IF(OR($O$2=$O$7,$O$2=$O$29),H5,IF(OR($O$2=$O$10,$O$2=$O$11),J5,""))) ->  | AF5: =IF(OR($O$2=$O$22,$O$2=$O$23),E5,IF(OR($O$2=$O$8,$O$2=$O$15),G5,IF(OR($O$2=$O$5,$O$2=$O$12),I5,""))) -> 0 | AG5: =IF(OR($O$2=$O$22,$O$2=$O$23),F5,IF(OR($O$2=$O$8,$O$2=$O$15),H5,IF(OR($O$2=$O$5,$O$2=$O$12),J5,""))) -> 0 | AH5: =IF(OR($O$2=$O$24,$O$2=$O$25),E5,IF(OR($O$2=$O$16,$O$2=$O$22),G5,IF(OR($O$2=$O$15,$O$2=$O$21),I5,""))) -> 0 | AI5: =IF(OR($O$2=$O$24,$O$2=$O$25),F5,IF(OR($O$2=$O$16,$O$2=$O$22),H5,IF(OR($O$2=$O$15,$O$2=$O$21),J5,""))) -> 0 | AJ5: =IF(OR($O$2=$O$26,$O$2=$O$27),E5,IF(OR($O$2=$O$9,$O$2=$O$23),G5,IF(OR($O$2=$O$8,$O$2=$O$19),I5,""))) ->  | AK5: =IF(OR($O$2=$O$26,$O$2=$O$27),F5,IF(OR($O$2=$O$9,$O$2=$O$23),H5,IF(OR($O$2=$O$8,$O$2=$O$19),J5,""))) ->  | AL5: =IF(OR($O$2=$O$28,$O$2=$O$29),E5,IF(OR($O$2=$O$10,$O$2=$O$11),G5,IF(OR($O$2=$O$6,$O$2=$O$13),I5,""))) ->  | AM5: =IF(OR($O$2=$O$28,$O$2=$O$29),F5,IF(OR($O$2=$O$10,$O$2=$O$11),H5,IF(OR($O$2=$O$6,$O$2=$O$13),J5,""))) ->  | AN5: =IF(ISBLANK(E5),"",IF(OR($O$2=$O$5,$O$2=$O$6,$O$2=$O$12,$O$2=$O$13),Best1!$F$10,IF(OR($O$2=$O$7,$O$2=$O$8,$O$2=$O$18,$O$2=$O$19),Best1!$F$11,IF(OR($O$2=$O$9,$O$2=$O$10,$O$2=$O$24,$O$2=$O$25),Best1!$F$12,IF(OR($O$2=$O$14,$O$2=$O$15,$O$2=$O$20,$O$2=$O$21),Best1!$F$13,IF(OR($O$2=$O$16,$O$2=$O$17,$O$2=$O$26,$O$2=$O$27),Best1!$F$14,IF(OR($O$2=$O$22,$O$2=$O$23,$O$2=$O$28,$O$2=$O$29),Best1!$F$15,""))))))) ->  | AO5: =IF(F5="","",F5) ->  | AP5: =IF(AO5="","",ROUND(((AO5-AN5)/AN5*100),1)) ->  | AQ5: =IF(ISBLANK(G5),"",IF(OR($O$2=$O$5,$O$2=$O$7,$O$2=$O$27,$O$2=$O$29),Best1!$F$13,IF(OR($O$2=$O$18,$O$2=$O$20,$O$2=$O$24,$O$2=$O$26),Best1!$F$10,IF(OR($O$2=$O$12,$O$2=$O$14,$O$2=$O$25,$O$2=$O$28),Best1!$F$11,IF(OR($O$2=$O$13,$O$2=$O$16,$O$2=$O$19,$O$2=$O$22),Best1!$F$12,IF(OR($O$2=$O$6,$O$2=$O$9,$O$2=$O$21,$O$2=$O$23),Best1!$F$14,IF(OR($O$2=$O$8,$O$2=$O$10,$O$2=$O$15,$O$2=$O$17),Best1!$F$15,""))))))) ->  | AR5: =IF(H5="","",H5) ->  | AS5: =IF(AR5="","",ROUND(((AR5-AQ5)/AQ5*100),1)) ->  | AT5: =IF(ISBLANK(I5),"",IF(OR($O$2=$O$9,$O$2=$O$10,$O$2=$O$24,$O$2=$O$25),Best1!$F$13,IF(OR($O$2=$O$22,$O$2=$O$23,$O$2=$O$28,$O$2=$O$29),Best1!$F$10,IF(OR($O$2=$O$16,$O$2=$O$17,$O$2=$O$26,$O$2=$O$27),Best1!$F$11,IF(OR($O$2=$O$14,$O$2=$O$15,$O$2=$O$20,$O$2=$O$21),Best1!$F$12,IF(OR($O$2=$O$7,$O$2=$O$8,$O$2=$O$18,$O$2=$O$19),Best1!$F$14,IF(OR($O$2=$O$5,$O$2=$O$6,$O$2=$O$12,$O$2=$O$13),Best1!$F$15,""))))))) ->  | AU5: =IF(J5="","",J5) ->  | AV5: =IF(AU5="","",ROUND(((AU5-AT5)/AT5*100),1)) ->  | AW5: =IF(ISBLANK(K5),"",IF(Best1!$C$3="","",ROUND(SUM(Best1!$C$3:$C$6),1))) ->  | AX5: =IF(K5="","",K5) ->  | AY5: =IF(AX5="","",ROUND(((AX5-AW5)/AW5*100),1)) ->  | AZ5: =IF(ISBLANK(K5),"",IF(Best1!$B$3="","",ROUND(AVERAGE(Best1!$D$3:$D$6),1))) ->  | BA5: =IF(L5="","",L5) ->  | BB5: =IF(BA5="","",ROUND(((BA5-AZ5)/AZ5*100),1)) ->  | BD5: =AX5 ->  | BL5: =IF(OR(P5="",P5=0),"",P5*1) ->  | BM5: =IF(OR(Q5="",Q5=0),"",Q5*1) -> 
A6: 2 | O6: ABDC | P6: =IF(OR($O$2=$O$5,$O$2=$O$6),E6,IF(OR($O$2=$O$18,$O$2=$O$24),G6,IF(OR($O$2=$O$22,$O$2=$O$28),I6,""))) ->  | R6: =IF(OR($O$2=$O$7,$O$2=$O$8),E6,IF(OR($O$2=$O$12,$O$2=$O$25),G6,IF(OR($O$2=$O$16,$O$2=$O$26),I6,""))) ->  | T6: =IF(OR($O$2=$O$9,$O$2=$O$10),E6,IF(OR($O$2=$O$13,$O$2=$O$19),G6,IF(OR($O$2=$O$14,$O$2=$O$20),I6,""))) ->  | V6: =IF(OR($O$2=$O$12,$O$2=$O$13),E6,IF(OR($O$2=$O$20,$O$2=$O$26),G6,IF(OR($O$2=$O$23,$O$2=$O$29),I6,""))) ->  | X6: =IF(OR($O$2=$O$14,$O$2=$O$15),E6,IF(OR($O$2=$O$5,$O$2=$O$27),G6,IF(OR($O$2=$O$9,$O$2=$O$24),I6,""))) -> 0 | Y6: 0 | Z6: =IF(OR($O$2=$O$16,$O$2=$O$17),E6,IF(OR($O$2=$O$6,$O$2=$O$21),G6,IF(OR($O$2=$O$7,$O$2=$O$18),I6,""))) ->  | AB6: =IF(OR($O$2=$O$18,$O$2=$O$19),E6,IF(OR($O$2=$O$14,$O$2=$O$28),G6,IF(OR($O$2=$O$17,$O$2=$O$27),I6,""))) ->  | AD6: =IF(OR($O$2=$O$20,$O$2=$O$21),E6,IF(OR($O$2=$O$7,$O$2=$O$29),G6,IF(OR($O$2=$O$10,$O$2=$O$11),I6,""))) ->  | AF6: =IF(OR($O$2=$O$22,$O$2=$O$23),E6,IF(OR($O$2=$O$8,$O$2=$O$15),G6,IF(OR($O$2=$O$5,$O$2=$O$12),I6,""))) -> 0 | AG6: 0 | AH6: =IF(OR($O$2=$O$24,$O$2=$O$25),E6,IF(OR($O$2=$O$16,$O$2=$O$22),G6,IF(OR($O$2=$O$15,$O$2=$O$21),I6,""))) -> 0 | AI6: 0 | AJ6: =IF(OR($O$2=$O$26,$O$2=$O$27),E6,IF(OR($O$2=$O$9,$O$2=$O$23),G6,IF(OR($O$2=$O$8,$O$2=$O$19),I6,""))) ->  | AL6: =IF(OR($O$2=$O$28,$O$2=$O$29),E6,IF(OR($O$2=$O$10,$O$2=$O$11),G6,IF(OR($O$2=$O$6,$O$2=$O$13),I6,""))) ->  | AN6: =IF(ISBLANK(E6),"",IF(OR($O$2=$O$5,$O$2=$O$6,$O$2=$O$12,$O$2=$O$13),Best1!$F$10,IF(OR($O$2=$O$7,$O$2=$O$8,$O$2=$O$18,$O$2=$O$19),Best1!$F$11,IF(OR($O$2=$O$9,$O$2=$O$10,$O$2=$O$24,$O$2=$O$25),Best1!$F$12,IF(OR($O$2=$O$14,$O$2=$O$15,$O$2=$O$20,$O$2=$O$21),Best1!$F$13,IF(OR($O$2=$O$16,$O$2=$O$17,$O$2=$O$26,$O$2=$O$27),Best1!$F$14,IF(OR($O$2=$O$22,$O$2=$O$23,$O$2=$O$28,$O$2=$O$29),Best1!$F$15,""))))))) ->  | AO6: =IF(F6="","",F6) ->  | AP6: =IF(AO6="","",ROUND(((AO6-AN6)/AN6*100),1)) ->  | AQ6: =IF(ISBLANK(H6),"",IF(OR($O$2=$O$5,$O$2=$O$7,$O$2=$O$27,$O$2=$O$29),Best1!$F$13,IF(OR($O$2=$O$18,$O$2=$O$20,$O$2=$O$24,$O$2=$O$26),Best1!$F$10,IF(OR($O$2=$O$12,$O$2=$O$14,$O$2=$O$25,$O$2=$O$28),Best1!$F$11,IF(OR($O$2=$O$13,$O$2=$O$16,$O$2=$O$19,$O$2=$O$22),Best1!$F$12,IF(OR($O$2=$O$6,$O$2=$O$9,$O$2=$O$21,$O$2=$O$23),Best1!$F$14,IF(OR($O$2=$O$8,$O$2=$O$10,$O$2=$O$15,$O$2=$O$17),Best1!$F$15,""))))))) ->  | AR6: =IF(H6="","",H6) ->  | AS6: =IF(AR6="","",ROUND(((AR6-AQ6)/AQ6*100),1)) ->  | AT6: =IF(ISBLANK(I6),"",IF(OR($O$2=$O$9,$O$2=$O$10,$O$2=$O$24,$O$2=$O$25),Best1!$F$13,IF(OR($O$2=$O$22,$O$2=$O$23,$O$2=$O$28,$O$2=$O$29),Best1!$F$10,IF(OR($O$2=$O$16,$O$2=$O$17,$O$2=$O$26,$O$2=$O$27),Best1!$F$11,IF(OR($O$2=$O$14,$O$2=$O$15,$O$2=$O$20,$O$2=$O$21),Best1!$F$12,IF(OR($O$2=$O$7,$O$2=$O$8,$O$2=$O$18,$O$2=$O$19),Best1!$F$14,IF(OR($O$2=$O$5,$O$2=$O$6,$O$2=$O$12,$O$2=$O$13),Best1!$F$15,""))))))) ->  | AU6: =IF(J6="","",J6) ->  | AV6: =IF(AU6="","",ROUND(((AU6-AT6)/AT6*100),1)) ->  | AW6: =IF(ISBLANK(K6),"",IF(Best1!$C$3="","",ROUND(SUM(Best1!$C$3:$C$6),1))) ->  | AX6: =IF(K6="","",K6) ->  | AY6: =IF(AX6="","",ROUND(((AX6-AW6)/AW6*100),1)) ->  | AZ6: =IF(ISBLANK(K6),"",IF(Best1!$B$3="","",ROUND(AVERAGE(Best1!$D$3:$D$6),1))) ->  | BA6: =IF(L6="","",L6) ->  | BB6: =IF(BA6="","",ROUND(((BA6-AZ6)/AZ6*100),1)) ->  | BD6: =AX6 ->  | BL6: =IF(OR(P6="",P6=0),"",P6*1) -> 
A7: 3 | O7: ACBD | X7: 0 | Y7: 0 | AF7: 0 | AG7: 0 | AH7: 0 | AI7: 0 | AN7: =IF(ISBLANK(E7),"",IF(OR($O$2=$O$5,$O$2=$O$6,$O$2=$O$12,$O$2=$O$13),Best1!$F$10,IF(OR($O$2=$O$7,$O$2=$O$8,$O$2=$O$18,$O$2=$O$19),Best1!$F$11,IF(OR($O$2=$O$9,$O$2=$O$10,$O$2=$O$24,$O$2=$O$25),Best1!$F$12,IF(OR($O$2=$O$14,$O$2=$O$15,$O$2=$O$20,$O$2=$O$21),Best1!$F$13,IF(OR($O$2=$O$16,$O$2=$O$17,$O$2=$O$26,$O$2=$O$27),Best1!$F$14,IF(OR($O$2=$O$22,$O$2=$O$23,$O$2=$O$28,$O$2=$O$29),Best1!$F$15,""))))))) ->  | AQ7: =IF(ISBLANK(H7),"",IF(OR($O$2=$O$5,$O$2=$O$7,$O$2=$O$27,$O$2=$O$29),Best1!$F$13,IF(OR($O$2=$O$18,$O$2=$O$20,$O$2=$O$24,$O$2=$O$26),Best1!$F$10,IF(OR($O$2=$O$12,$O$2=$O$14,$O$2=$O$25,$O$2=$O$28),Best1!$F$11,IF(OR($O$2=$O$13,$O$2=$O$16,$O$2=$O$19,$O$2=$O$22),Best1!$F$12,IF(OR($O$2=$O$6,$O$2=$O$9,$O$2=$O$21,$O$2=$O$23),Best1!$F$14,IF(OR($O$2=$O$8,$O$2=$O$10,$O$2=$O$15,$O$2=$O$17),Best1!$F$15,""))))))) ->  | AT7: =IF(ISBLANK(I7),"",IF(OR($O$2=$O$9,$O$2=$O$10,$O$2=$O$24,$O$2=$O$25),Best1!$F$13,IF(OR($O$2=$O$22,$O$2=$O$23,$O$2=$O$28,$O$2=$O$29),Best1!$F$10,IF(OR($O$2=$O$16,$O$2=$O$17,$O$2=$O$26,$O$2=$O$27),Best1!$F$11,IF(OR($O$2=$O$14,$O$2=$O$15,$O$2=$O$20,$O$2=$O$21),Best1!$F$12,IF(OR($O$2=$O$7,$O$2=$O$8,$O$2=$O$18,$O$2=$O$19),Best1!$F$14,IF(OR($O$2=$O$5,$O$2=$O$6,$O$2=$O$12,$O$2=$O$13),Best1!$F$15,""))))))) ->  | AW7: =IF(ISBLANK(K7),"",IF(Best1!$C$3="","",ROUND(SUM(Best1!$C$3:$C$6),1))) ->  | AZ7: =IF(ISBLANK(K7),"",IF(Best1!$B$3="","",ROUND(AVERAGE(Best1!$D$3:$D$6),1))) -> 
A8: 4 | O8: ACDB | X8: 0 | Y8: 0 | AF8: 0 | AG8: 0 | AH8: 0 | AI8: 0 | AN8: =IF(ISBLANK(E8),"",IF(OR($O$2=$O$5,$O$2=$O$6,$O$2=$O$12,$O$2=$O$13),Best1!$F$10,IF(OR($O$2=$O$7,$O$2=$O$8,$O$2=$O$18,$O$2=$O$19),Best1!$F$11,IF(OR($O$2=$O$9,$O$2=$O$10,$O$2=$O$24,$O$2=$O$25),Best1!$F$12,IF(OR($O$2=$O$14,$O$2=$O$15,$O$2=$O$20,$O$2=$O$21),Best1!$F$13,IF(OR($O$2=$O$16,$O$2=$O$17,$O$2=$O$26,$O$2=$O$27),Best1!$F$14,IF(OR($O$2=$O$22,$O$2=$O$23,$O$2=$O$28,$O$2=$O$29),Best1!$F$15,""))))))) ->  | AQ8: =IF(ISBLANK(H8),"",IF(OR($O$2=$O$5,$O$2=$O$7,$O$2=$O$27,$O$2=$O$29),Best1!$F$13,IF(OR($O$2=$O$18,$O$2=$O$20,$O$2=$O$24,$O$2=$O$26),Best1!$F$10,IF(OR($O$2=$O$12,$O$2=$O$14,$O$2=$O$25,$O$2=$O$28),Best1!$F$11,IF(OR($O$2=$O$13,$O$2=$O$16,$O$2=$O$19,$O$2=$O$22),Best1!$F$12,IF(OR($O$2=$O$6,$O$2=$O$9,$O$2=$O$21,$O$2=$O$23),Best1!$F$14,IF(OR($O$2=$O$8,$O$2=$O$10,$O$2=$O$15,$O$2=$O$17),Best1!$F$15,""))))))) ->  | AT8: =IF(ISBLANK(I8),"",IF(OR($O$2=$O$9,$O$2=$O$10,$O$2=$O$24,$O$2=$O$25),Best1!$F$13,IF(OR($O$2=$O$22,$O$2=$O$23,$O$2=$O$28,$O$2=$O$29),Best1!$F$10,IF(OR($O$2=$O$16,$O$2=$O$17,$O$2=$O$26,$O$2=$O$27),Best1!$F$11,IF(OR($O$2=$O$14,$O$2=$O$15,$O$2=$O$20,$O$2=$O$21),Best1!$F$12,IF(OR($O$2=$O$7,$O$2=$O$8,$O$2=$O$18,$O$2=$O$19),Best1!$F$14,IF(OR($O$2=$O$5,$O$2=$O$6,$O$2=$O$12,$O$2=$O$13),Best1!$F$15,""))))))) ->  | AW8: =IF(ISBLANK(K8),"",IF(Best1!$C$3="","",ROUND(SUM(Best1!$C$3:$C$6),1))) ->  | AZ8: =IF(ISBLANK(K8),"",IF(Best1!$B$3="","",ROUND(AVERAGE(Best1!$D$3:$D$6),1))) -> 
A9: 5 | O9: ADBC | X9: 0 | Y9: 0 | AF9: 0 | AG9: 0 | AH9: 0 | AI9: 0 | AN9: =IF(ISBLANK(E9),"",IF(OR($O$2=$O$5,$O$2=$O$6,$O$2=$O$12,$O$2=$O$13),Best1!$F$10,IF(OR($O$2=$O$7,$O$2=$O$8,$O$2=$O$18,$O$2=$O$19),Best1!$F$11,IF(OR($O$2=$O$9,$O$2=$O$10,$O$2=$O$24,$O$2=$O$25),Best1!$F$12,IF(OR($O$2=$O$14,$O$2=$O$15,$O$2=$O$20,$O$2=$O$21),Best1!$F$13,IF(OR($O$2=$O$16,$O$2=$O$17,$O$2=$O$26,$O$2=$O$27),Best1!$F$14,IF(OR($O$2=$O$22,$O$2=$O$23,$O$2=$O$28,$O$2=$O$29),Best1!$F$15,""))))))) ->  | AQ9: =IF(ISBLANK(H9),"",IF(OR($O$2=$O$5,$O$2=$O$7,$O$2=$O$27,$O$2=$O$29),Best1!$F$13,IF(OR($O$2=$O$18,$O$2=$O$20,$O$2=$O$24,$O$2=$O$26),Best1!$F$10,IF(OR($O$2=$O$12,$O$2=$O$14,$O$2=$O$25,$O$2=$O$28),Best1!$F$11,IF(OR($O$2=$O$13,$O$2=$O$16,$O$2=$O$19,$O$2=$O$22),Best1!$F$12,IF(OR($O$2=$O$6,$O$2=$O$9,$O$2=$O$21,$O$2=$O$23),Best1!$F$14,IF(OR($O$2=$O$8,$O$2=$O$10,$O$2=$O$15,$O$2=$O$17),Best1!$F$15,""))))))) ->  | AT9: =IF(ISBLANK(I9),"",IF(OR($O$2=$O$9,$O$2=$O$10,$O$2=$O$24,$O$2=$O$25),Best1!$F$13,IF(OR($O$2=$O$22,$O$2=$O$23,$O$2=$O$28,$O$2=$O$29),Best1!$F$10,IF(OR($O$2=$O$16,$O$2=$O$17,$O$2=$O$26,$O$2=$O$27),Best1!$F$11,IF(OR($O$2=$O$14,$O$2=$O$15,$O$2=$O$20,$O$2=$O$21),Best1!$F$12,IF(OR($O$2=$O$7,$O$2=$O$8,$O$2=$O$18,$O$2=$O$19),Best1!$F$14,IF(OR($O$2=$O$5,$O$2=$O$6,$O$2=$O$12,$O$2=$O$13),Best1!$F$15,""))))))) ->  | AW9: =IF(ISBLANK(K9),"",IF(Best1!$C$3="","",ROUND(SUM(Best1!$C$3:$C$6),1))) ->  | AZ9: =IF(ISBLANK(K9),"",IF(Best1!$B$3="","",ROUND(AVERAGE(Best1!$D$3:$D$6),1))) -> 
A10: 6 | O10: ADCB | X10: 0 | Y10: 0 | AF10: 0 | AG10: 0 | AH10: 0 | AI10: 0 | AN10: =IF(ISBLANK(E10),"",IF(OR($O$2=$O$5,$O$2=$O$6,$O$2=$O$12,$O$2=$O$13),Best1!$F$10,IF(OR($O$2=$O$7,$O$2=$O$8,$O$2=$O$18,$O$2=$O$19),Best1!$F$11,IF(OR($O$2=$O$9,$O$2=$O$10,$O$2=$O$24,$O$2=$O$25),Best1!$F$12,IF(OR($O$2=$O$14,$O$2=$O$15,$O$2=$O$20,$O$2=$O$21),Best1!$F$13,IF(OR($O$2=$O$16,$O$2=$O$17,$O$2=$O$26,$O$2=$O$27),Best1!$F$14,IF(OR($O$2=$O$22,$O$2=$O$23,$O$2=$O$28,$O$2=$O$29),Best1!$F$15,""))))))) ->  | AQ10: =IF(ISBLANK(H10),"",IF(OR($O$2=$O$5,$O$2=$O$7,$O$2=$O$27,$O$2=$O$29),Best1!$F$13,IF(OR($O$2=$O$18,$O$2=$O$20,$O$2=$O$24,$O$2=$O$26),Best1!$F$10,IF(OR($O$2=$O$12,$O$2=$O$14,$O$2=$O$25,$O$2=$O$28),Best1!$F$11,IF(OR($O$2=$O$13,$O$2=$O$16,$O$2=$O$19,$O$2=$O$22),Best1!$F$12,IF(OR($O$2=$O$6,$O$2=$O$9,$O$2=$O$21,$O$2=$O$23),Best1!$F$14,IF(OR($O$2=$O$8,$O$2=$O$10,$O$2=$O$15,$O$2=$O$17),Best1!$F$15,""))))))) ->  | AT10: =IF(ISBLANK(I10),"",IF(OR($O$2=$O$9,$O$2=$O$10,$O$2=$O$24,$O$2=$O$25),Best1!$F$13,IF(OR($O$2=$O$22,$O$2=$O$23,$O$2=$O$28,$O$2=$O$29),Best1!$F$10,IF(OR($O$2=$O$16,$O$2=$O$17,$O$2=$O$26,$O$2=$O$27),Best1!$F$11,IF(OR($O$2=$O$14,$O$2=$O$15,$O$2=$O$20,$O$2=$O$21),Best1!$F$12,IF(OR($O$2=$O$7,$O$2=$O$8,$O$2=$O$18,$O$2=$O$19),Best1!$F$14,IF(OR($O$2=$O$5,$O$2=$O$6,$O$2=$O$12,$O$2=$O$13),Best1!$F$15,""))))))) ->  | AW10: =IF(ISBLANK(K10),"",IF(Best1!$C$3="","",ROUND(SUM(Best1!$C$3:$C$6),1))) ->  | AZ10: =IF(ISBLANK(K10),"",IF(Best1!$B$3="","",ROUND(AVERAGE(Best1!$D$3:$D$6),1))) -> 
A11: 7 | O11: ADCB | X11: 0 | Y11: 0 | AF11: 0 | AG11: 0 | AH11: 0 | AI11: 0 | AN11: =IF(ISBLANK(E11),"",IF(OR($O$2=$O$5,$O$2=$O$6,$O$2=$O$12,$O$2=$O$13),Best1!$F$10,IF(OR($O$2=$O$7,$O$2=$O$8,$O$2=$O$18,$O$2=$O$19),Best1!$F$11,IF(OR($O$2=$O$9,$O$2=$O$10,$O$2=$O$24,$O$2=$O$25),Best1!$F$12,IF(OR($O$2=$O$14,$O$2=$O$15,$O$2=$O$20,$O$2=$O$21),Best1!$F$13,IF(OR($O$2=$O$16,$O$2=$O$17,$O$2=$O$26,$O$2=$O$27),Best1!$F$14,IF(OR($O$2=$O$22,$O$2=$O$23,$O$2=$O$28,$O$2=$O$29),Best1!$F$15,""))))))) ->  | AQ11: =IF(ISBLANK(H11),"",IF(OR($O$2=$O$5,$O$2=$O$7,$O$2=$O$27,$O$2=$O$29),Best1!$F$13,IF(OR($O$2=$O$18,$O$2=$O$20,$O$2=$O$24,$O$2=$O$26),Best1!$F$10,IF(OR($O$2=$O$12,$O$2=$O$14,$O$2=$O$25,$O$2=$O$28),Best1!$F$11,IF(OR($O$2=$O$13,$O$2=$O$16,$O$2=$O$19,$O$2=$O$22),Best1!$F$12,IF(OR($O$2=$O$6,$O$2=$O$9,$O$2=$O$21,$O$2=$O$23),Best1!$F$14,IF(OR($O$2=$O$8,$O$2=$O$10,$O$2=$O$15,$O$2=$O$17),Best1!$F$15,""))))))) ->  | AT11: =IF(ISBLANK(I11),"",IF(OR($O$2=$O$9,$O$2=$O$10,$O$2=$O$24,$O$2=$O$25),Best1!$F$13,IF(OR($O$2=$O$22,$O$2=$O$23,$O$2=$O$28,$O$2=$O$29),Best1!$F$10,IF(OR($O$2=$O$16,$O$2=$O$17,$O$2=$O$26,$O$2=$O$27),Best1!$F$11,IF(OR($O$2=$O$14,$O$2=$O$15,$O$2=$O$20,$O$2=$O$21),Best1!$F$12,IF(OR($O$2=$O$7,$O$2=$O$8,$O$2=$O$18,$O$2=$O$19),Best1!$F$14,IF(OR($O$2=$O$5,$O$2=$O$6,$O$2=$O$12,$O$2=$O$13),Best1!$F$15,""))))))) ->  | AW11: =IF(ISBLANK(K11),"",IF(Best1!$C$3="","",ROUND(SUM(Best1!$C$3:$C$6),1))) ->  | AZ11: =IF(ISBLANK(K11),"",IF(Best1!$B$3="","",ROUND(AVERAGE(Best1!$D$3:$D$6),1))) -> 
A12: 8 | O12: BACD | X12: 0 | Y12: 0 | AF12: 0 | AG12: 0 | AH12: 0 | AI12: 0 | AN12: =IF(ISBLANK(E12),"",IF(OR($O$2=$O$5,$O$2=$O$6,$O$2=$O$12,$O$2=$O$13),Best1!$F$10,IF(OR($O$2=$O$7,$O$2=$O$8,$O$2=$O$18,$O$2=$O$19),Best1!$F$11,IF(OR($O$2=$O$9,$O$2=$O$10,$O$2=$O$24,$O$2=$O$25),Best1!$F$12,IF(OR($O$2=$O$14,$O$2=$O$15,$O$2=$O$20,$O$2=$O$21),Best1!$F$13,IF(OR($O$2=$O$16,$O$2=$O$17,$O$2=$O$26,$O$2=$O$27),Best1!$F$14,IF(OR($O$2=$O$22,$O$2=$O$23,$O$2=$O$28,$O$2=$O$29),Best1!$F$15,""))))))) ->  | AQ12: =IF(ISBLANK(H12),"",IF(OR($O$2=$O$5,$O$2=$O$7,$O$2=$O$27,$O$2=$O$29),Best1!$F$13,IF(OR($O$2=$O$18,$O$2=$O$20,$O$2=$O$24,$O$2=$O$26),Best1!$F$10,IF(OR($O$2=$O$12,$O$2=$O$14,$O$2=$O$25,$O$2=$O$28),Best1!$F$11,IF(OR($O$2=$O$13,$O$2=$O$16,$O$2=$O$19,$O$2=$O$22),Best1!$F$12,IF(OR($O$2=$O$6,$O$2=$O$9,$O$2=$O$21,$O$2=$O$23),Best1!$F$14,IF(OR($O$2=$O$8,$O$2=$O$10,$O$2=$O$15,$O$2=$O$17),Best1!$F$15,""))))))) ->  | AT12: =IF(ISBLANK(I12),"",IF(OR($O$2=$O$9,$O$2=$O$10,$O$2=$O$24,$O$2=$O$25),Best1!$F$13,IF(OR($O$2=$O$22,$O$2=$O$23,$O$2=$O$28,$O$2=$O$29),Best1!$F$10,IF(OR($O$2=$O$16,$O$2=$O$17,$O$2=$O$26,$O$2=$O$27),Best1!$F$11,IF(OR($O$2=$O$14,$O$2=$O$15,$O$2=$O$20,$O$2=$O$21),Best1!$F$12,IF(OR($O$2=$O$7,$O$2=$O$8,$O$2=$O$18,$O$2=$O$19),Best1!$F$14,IF(OR($O$2=$O$5,$O$2=$O$6,$O$2=$O$12,$O$2=$O$13),Best1!$F$15,""))))))) ->  | AW12: =IF(ISBLANK(K12),"",IF(Best1!$C$3="","",ROUND(SUM(Best1!$C$3:$C$6),1))) ->  | AZ12: =IF(ISBLANK(K12),"",IF(Best1!$B$3="","",ROUND(AVERAGE(Best1!$D$3:$D$6),1))) -> 
A13: 9 | O13: BADC | X13: 0 | Y13: 0 | AF13: 0 | AG13: 0 | AH13: 0 | AI13: 0 | AN13: =IF(ISBLANK(E13),"",IF(OR($O$2=$O$5,$O$2=$O$6,$O$2=$O$12,$O$2=$O$13),Best1!$F$10,IF(OR($O$2=$O$7,$O$2=$O$8,$O$2=$O$18,$O$2=$O$19),Best1!$F$11,IF(OR($O$2=$O$9,$O$2=$O$10,$O$2=$O$24,$O$2=$O$25),Best1!$F$12,IF(OR($O$2=$O$14,$O$2=$O$15,$O$2=$O$20,$O$2=$O$21),Best1!$F$13,IF(OR($O$2=$O$16,$O$2=$O$17,$O$2=$O$26,$O$2=$O$27),Best1!$F$14,IF(OR($O$2=$O$22,$O$2=$O$23,$O$2=$O$28,$O$2=$O$29),Best1!$F$15,""))))))) ->  | AQ13: =IF(ISBLANK(H13),"",IF(OR($O$2=$O$5,$O$2=$O$7,$O$2=$O$27,$O$2=$O$29),Best1!$F$13,IF(OR($O$2=$O$18,$O$2=$O$20,$O$2=$O$24,$O$2=$O$26),Best1!$F$10,IF(OR($O$2=$O$12,$O$2=$O$14,$O$2=$O$25,$O$2=$O$28),Best1!$F$11,IF(OR($O$2=$O$13,$O$2=$O$16,$O$2=$O$19,$O$2=$O$22),Best1!$F$12,IF(OR($O$2=$O$6,$O$2=$O$9,$O$2=$O$21,$O$2=$O$23),Best1!$F$14,IF(OR($O$2=$O$8,$O$2=$O$10,$O$2=$O$15,$O$2=$O$17),Best1!$F$15,""))))))) ->  | AT13: =IF(ISBLANK(I13),"",IF(OR($O$2=$O$9,$O$2=$O$10,$O$2=$O$24,$O$2=$O$25),Best1!$F$13,IF(OR($O$2=$O$22,$O$2=$O$23,$O$2=$O$28,$O$2=$O$29),Best1!$F$10,IF(OR($O$2=$O$16,$O$2=$O$17,$O$2=$O$26,$O$2=$O$27),Best1!$F$11,IF(OR($O$2=$O$14,$O$2=$O$15,$O$2=$O$20,$O$2=$O$21),Best1!$F$12,IF(OR($O$2=$O$7,$O$2=$O$8,$O$2=$O$18,$O$2=$O$19),Best1!$F$14,IF(OR($O$2=$O$5,$O$2=$O$6,$O$2=$O$12,$O$2=$O$13),Best1!$F$15,""))))))) ->  | AW13: =IF(ISBLANK(K13),"",IF(Best1!$C$3="","",ROUND(SUM(Best1!$C$3:$C$6),1))) ->  | AZ13: =IF(ISBLANK(K13),"",IF(Best1!$B$3="","",ROUND(AVERAGE(Best1!$D$3:$D$6),1))) -> 
A14: 10 | O14: BCAD | X14: 0 | Y14: 0 | AF14: 0 | AG14: 0 | AH14: 0 | AI14: 0 | AN14: =IF(ISBLANK(E14),"",IF(OR($O$2=$O$5,$O$2=$O$6,$O$2=$O$12,$O$2=$O$13),Best1!$F$10,IF(OR($O$2=$O$7,$O$2=$O$8,$O$2=$O$18,$O$2=$O$19),Best1!$F$11,IF(OR($O$2=$O$9,$O$2=$O$10,$O$2=$O$24,$O$2=$O$25),Best1!$F$12,IF(OR($O$2=$O$14,$O$2=$O$15,$O$2=$O$20,$O$2=$O$21),Best1!$F$13,IF(OR($O$2=$O$16,$O$2=$O$17,$O$2=$O$26,$O$2=$O$27),Best1!$F$14,IF(OR($O$2=$O$22,$O$2=$O$23,$O$2=$O$28,$O$2=$O$29),Best1!$F$15,""))))))) ->  | AQ14: =IF(ISBLANK(H14),"",IF(OR($O$2=$O$5,$O$2=$O$7,$O$2=$O$27,$O$2=$O$29),Best1!$F$13,IF(OR($O$2=$O$18,$O$2=$O$20,$O$2=$O$24,$O$2=$O$26),Best1!$F$10,IF(OR($O$2=$O$12,$O$2=$O$14,$O$2=$O$25,$O$2=$O$28),Best1!$F$11,IF(OR($O$2=$O$13,$O$2=$O$16,$O$2=$O$19,$O$2=$O$22),Best1!$F$12,IF(OR($O$2=$O$6,$O$2=$O$9,$O$2=$O$21,$O$2=$O$23),Best1!$F$14,IF(OR($O$2=$O$8,$O$2=$O$10,$O$2=$O$15,$O$2=$O$17),Best1!$F$15,""))))))) ->  | AT14: =IF(ISBLANK(I14),"",IF(OR($O$2=$O$9,$O$2=$O$10,$O$2=$O$24,$O$2=$O$25),Best1!$F$13,IF(OR($O$2=$O$22,$O$2=$O$23,$O$2=$O$28,$O$2=$O$29),Best1!$F$10,IF(OR($O$2=$O$16,$O$2=$O$17,$O$2=$O$26,$O$2=$O$27),Best1!$F$11,IF(OR($O$2=$O$14,$O$2=$O$15,$O$2=$O$20,$O$2=$O$21),Best1!$F$12,IF(OR($O$2=$O$7,$O$2=$O$8,$O$2=$O$18,$O$2=$O$19),Best1!$F$14,IF(OR($O$2=$O$5,$O$2=$O$6,$O$2=$O$12,$O$2=$O$13),Best1!$F$15,""))))))) ->  | AW14: =IF(ISBLANK(K14),"",IF(Best1!$C$3="","",ROUND(SUM(Best1!$C$3:$C$6),1))) ->  | AZ14: =IF(ISBLANK(K14),"",IF(Best1!$B$3="","",ROUND(AVERAGE(Best1!$D$3:$D$6),1))) -> 
A15: 11 | O15: BCDA | X15: 0 | Y15: 0 | AF15: 0 | AG15: 0 | AH15: 0 | AI15: 0 | AN15: =IF(ISBLANK(E15),"",IF(OR($O$2=$O$5,$O$2=$O$6,$O$2=$O$12,$O$2=$O$13),Best1!$F$10,IF(OR($O$2=$O$7,$O$2=$O$8,$O$2=$O$18,$O$2=$O$19),Best1!$F$11,IF(OR($O$2=$O$9,$O$2=$O$10,$O$2=$O$24,$O$2=$O$25),Best1!$F$12,IF(OR($O$2=$O$14,$O$2=$O$15,$O$2=$O$20,$O$2=$O$21),Best1!$F$13,IF(OR($O$2=$O$16,$O$2=$O$17,$O$2=$O$26,$O$2=$O$27),Best1!$F$14,IF(OR($O$2=$O$22,$O$2=$O$23,$O$2=$O$28,$O$2=$O$29),Best1!$F$15,""))))))) ->  | AQ15: =IF(ISBLANK(H15),"",IF(OR($O$2=$O$5,$O$2=$O$7,$O$2=$O$27,$O$2=$O$29),Best1!$F$13,IF(OR($O$2=$O$18,$O$2=$O$20,$O$2=$O$24,$O$2=$O$26),Best1!$F$10,IF(OR($O$2=$O$12,$O$2=$O$14,$O$2=$O$25,$O$2=$O$28),Best1!$F$11,IF(OR($O$2=$O$13,$O$2=$O$16,$O$2=$O$19,$O$2=$O$22),Best1!$F$12,IF(OR($O$2=$O$6,$O$2=$O$9,$O$2=$O$21,$O$2=$O$23),Best1!$F$14,IF(OR($O$2=$O$8,$O$2=$O$10,$O$2=$O$15,$O$2=$O$17),Best1!$F$15,""))))))) ->  | AT15: =IF(ISBLANK(I15),"",IF(OR($O$2=$O$9,$O$2=$O$10,$O$2=$O$24,$O$2=$O$25),Best1!$F$13,IF(OR($O$2=$O$22,$O$2=$O$23,$O$2=$O$28,$O$2=$O$29),Best1!$F$10,IF(OR($O$2=$O$16,$O$2=$O$17,$O$2=$O$26,$O$2=$O$27),Best1!$F$11,IF(OR($O$2=$O$14,$O$2=$O$15,$O$2=$O$20,$O$2=$O$21),Best1!$F$12,IF(OR($O$2=$O$7,$O$2=$O$8,$O$2=$O$18,$O$2=$O$19),Best1!$F$14,IF(OR($O$2=$O$5,$O$2=$O$6,$O$2=$O$12,$O$2=$O$13),Best1!$F$15,""))))))) ->  | AW15: =IF(ISBLANK(K15),"",IF(Best1!$C$3="","",ROUND(SUM(Best1!$C$3:$C$6),1))) ->  | AZ15: =IF(ISBLANK(K15),"",IF(Best1!$B$3="","",ROUND(AVERAGE(Best1!$D$3:$D$6),1))) -> 
A16: 12 | O16: BDAC | X16: 0 | Y16: 0 | AF16: 0 | AG16: 0 | AH16: 0 | AI16: 0 | AN16: =IF(ISBLANK(E16),"",IF(OR($O$2=$O$5,$O$2=$O$6,$O$2=$O$12,$O$2=$O$13),Best1!$F$10,IF(OR($O$2=$O$7,$O$2=$O$8,$O$2=$O$18,$O$2=$O$19),Best1!$F$11,IF(OR($O$2=$O$9,$O$2=$O$10,$O$2=$O$24,$O$2=$O$25),Best1!$F$12,IF(OR($O$2=$O$14,$O$2=$O$15,$O$2=$O$20,$O$2=$O$21),Best1!$F$13,IF(OR($O$2=$O$16,$O$2=$O$17,$O$2=$O$26,$O$2=$O$27),Best1!$F$14,IF(OR($O$2=$O$22,$O$2=$O$23,$O$2=$O$28,$O$2=$O$29),Best1!$F$15,""))))))) ->  | AQ16: =IF(ISBLANK(H16),"",IF(OR($O$2=$O$5,$O$2=$O$7,$O$2=$O$27,$O$2=$O$29),Best1!$F$13,IF(OR($O$2=$O$18,$O$2=$O$20,$O$2=$O$24,$O$2=$O$26),Best1!$F$10,IF(OR($O$2=$O$12,$O$2=$O$14,$O$2=$O$25,$O$2=$O$28),Best1!$F$11,IF(OR($O$2=$O$13,$O$2=$O$16,$O$2=$O$19,$O$2=$O$22),Best1!$F$12,IF(OR($O$2=$O$6,$O$2=$O$9,$O$2=$O$21,$O$2=$O$23),Best1!$F$14,IF(OR($O$2=$O$8,$O$2=$O$10,$O$2=$O$15,$O$2=$O$17),Best1!$F$15,""))))))) ->  | AT16: =IF(ISBLANK(I16),"",IF(OR($O$2=$O$9,$O$2=$O$10,$O$2=$O$24,$O$2=$O$25),Best1!$F$13,IF(OR($O$2=$O$22,$O$2=$O$23,$O$2=$O$28,$O$2=$O$29),Best1!$F$10,IF(OR($O$2=$O$16,$O$2=$O$17,$O$2=$O$26,$O$2=$O$27),Best1!$F$11,IF(OR($O$2=$O$14,$O$2=$O$15,$O$2=$O$20,$O$2=$O$21),Best1!$F$12,IF(OR($O$2=$O$7,$O$2=$O$8,$O$2=$O$18,$O$2=$O$19),Best1!$F$14,IF(OR($O$2=$O$5,$O$2=$O$6,$O$2=$O$12,$O$2=$O$13),Best1!$F$15,""))))))) ->  | AW16: =IF(ISBLANK(K16),"",IF(Best1!$C$3="","",ROUND(SUM(Best1!$C$3:$C$6),1))) ->  | AZ16: =IF(ISBLANK(K16),"",IF(Best1!$B$3="","",ROUND(AVERAGE(Best1!$D$3:$D$6),1))) ->  | BO16: =IF(OR(S16="",S16=0),"",S16*1) ->  | CE16: =IF(OR(AI16="",AI16=0),"",AI16*1) -> 
A17: 13 | O17: BDCA | X17: 0 | Y17: 0 | AF17: 0 | AG17: 0 | AH17: 0 | AI17: 0 | AN17: =IF(ISBLANK(E17),"",IF(OR($O$2=$O$5,$O$2=$O$6,$O$2=$O$12,$O$2=$O$13),Best1!$F$10,IF(OR($O$2=$O$7,$O$2=$O$8,$O$2=$O$18,$O$2=$O$19),Best1!$F$11,IF(OR($O$2=$O$9,$O$2=$O$10,$O$2=$O$24,$O$2=$O$25),Best1!$F$12,IF(OR($O$2=$O$14,$O$2=$O$15,$O$2=$O$20,$O$2=$O$21),Best1!$F$13,IF(OR($O$2=$O$16,$O$2=$O$17,$O$2=$O$26,$O$2=$O$27),Best1!$F$14,IF(OR($O$2=$O$22,$O$2=$O$23,$O$2=$O$28,$O$2=$O$29),Best1!$F$15,""))))))) ->  | AQ17: =IF(ISBLANK(H17),"",IF(OR($O$2=$O$5,$O$2=$O$7,$O$2=$O$27,$O$2=$O$29),Best1!$F$13,IF(OR($O$2=$O$18,$O$2=$O$20,$O$2=$O$24,$O$2=$O$26),Best1!$F$10,IF(OR($O$2=$O$12,$O$2=$O$14,$O$2=$O$25,$O$2=$O$28),Best1!$F$11,IF(OR($O$2=$O$13,$O$2=$O$16,$O$2=$O$19,$O$2=$O$22),Best1!$F$12,IF(OR($O$2=$O$6,$O$2=$O$9,$O$2=$O$21,$O$2=$O$23),Best1!$F$14,IF(OR($O$2=$O$8,$O$2=$O$10,$O$2=$O$15,$O$2=$O$17),Best1!$F$15,""))))))) ->  | AT17: =IF(ISBLANK(I17),"",IF(OR($O$2=$O$9,$O$2=$O$10,$O$2=$O$24,$O$2=$O$25),Best1!$F$13,IF(OR($O$2=$O$22,$O$2=$O$23,$O$2=$O$28,$O$2=$O$29),Best1!$F$10,IF(OR($O$2=$O$16,$O$2=$O$17,$O$2=$O$26,$O$2=$O$27),Best1!$F$11,IF(OR($O$2=$O$14,$O$2=$O$15,$O$2=$O$20,$O$2=$O$21),Best1!$F$12,IF(OR($O$2=$O$7,$O$2=$O$8,$O$2=$O$18,$O$2=$O$19),Best1!$F$14,IF(OR($O$2=$O$5,$O$2=$O$6,$O$2=$O$12,$O$2=$O$13),Best1!$F$15,""))))))) ->  | AW17: =IF(ISBLANK(K17),"",IF(Best1!$C$3="","",ROUND(SUM(Best1!$C$3:$C$6),1))) ->  | AZ17: =IF(ISBLANK(K17),"",IF(Best1!$B$3="","",ROUND(AVERAGE(Best1!$D$3:$D$6),1))) -> 
A18: 14 | O18: CABD | X18: 0 | Y18: 0 | AF18: 0 | AG18: 0 | AH18: 0 | AI18: 0 | AN18: =IF(ISBLANK(E18),"",IF(OR($O$2=$O$5,$O$2=$O$6,$O$2=$O$12,$O$2=$O$13),Best1!$F$10,IF(OR($O$2=$O$7,$O$2=$O$8,$O$2=$O$18,$O$2=$O$19),Best1!$F$11,IF(OR($O$2=$O$9,$O$2=$O$10,$O$2=$O$24,$O$2=$O$25),Best1!$F$12,IF(OR($O$2=$O$14,$O$2=$O$15,$O$2=$O$20,$O$2=$O$21),Best1!$F$13,IF(OR($O$2=$O$16,$O$2=$O$17,$O$2=$O$26,$O$2=$O$27),Best1!$F$14,IF(OR($O$2=$O$22,$O$2=$O$23,$O$2=$O$28,$O$2=$O$29),Best1!$F$15,""))))))) ->  | AQ18: =IF(ISBLANK(H18),"",IF(OR($O$2=$O$5,$O$2=$O$7,$O$2=$O$27,$O$2=$O$29),Best1!$F$13,IF(OR($O$2=$O$18,$O$2=$O$20,$O$2=$O$24,$O$2=$O$26),Best1!$F$10,IF(OR($O$2=$O$12,$O$2=$O$14,$O$2=$O$25,$O$2=$O$28),Best1!$F$11,IF(OR($O$2=$O$13,$O$2=$O$16,$O$2=$O$19,$O$2=$O$22),Best1!$F$12,IF(OR($O$2=$O$6,$O$2=$O$9,$O$2=$O$21,$O$2=$O$23),Best1!$F$14,IF(OR($O$2=$O$8,$O$2=$O$10,$O$2=$O$15,$O$2=$O$17),Best1!$F$15,""))))))) ->  | AT18: =IF(ISBLANK(I18),"",IF(OR($O$2=$O$9,$O$2=$O$10,$O$2=$O$24,$O$2=$O$25),Best1!$F$13,IF(OR($O$2=$O$22,$O$2=$O$23,$O$2=$O$28,$O$2=$O$29),Best1!$F$10,IF(OR($O$2=$O$16,$O$2=$O$17,$O$2=$O$26,$O$2=$O$27),Best1!$F$11,IF(OR($O$2=$O$14,$O$2=$O$15,$O$2=$O$20,$O$2=$O$21),Best1!$F$12,IF(OR($O$2=$O$7,$O$2=$O$8,$O$2=$O$18,$O$2=$O$19),Best1!$F$14,IF(OR($O$2=$O$5,$O$2=$O$6,$O$2=$O$12,$O$2=$O$13),Best1!$F$15,""))))))) ->  | AW18: =IF(ISBLANK(K18),"",IF(Best1!$C$3="","",ROUND(SUM(Best1!$C$3:$C$6),1))) ->  | AZ18: =IF(ISBLANK(K18),"",IF(Best1!$B$3="","",ROUND(AVERAGE(Best1!$D$3:$D$6),1))) -> 
A19: 15 | O19: CADB | X19: 0 | Y19: 0 | AF19: 0 | AG19: 0 | AH19: 0 | AI19: 0 | AN19: =IF(ISBLANK(E19),"",IF(OR($O$2=$O$5,$O$2=$O$6,$O$2=$O$12,$O$2=$O$13),Best1!$F$10,IF(OR($O$2=$O$7,$O$2=$O$8,$O$2=$O$18,$O$2=$O$19),Best1!$F$11,IF(OR($O$2=$O$9,$O$2=$O$10,$O$2=$O$24,$O$2=$O$25),Best1!$F$12,IF(OR($O$2=$O$14,$O$2=$O$15,$O$2=$O$20,$O$2=$O$21),Best1!$F$13,IF(OR($O$2=$O$16,$O$2=$O$17,$O$2=$O$26,$O$2=$O$27),Best1!$F$14,IF(OR($O$2=$O$22,$O$2=$O$23,$O$2=$O$28,$O$2=$O$29),Best1!$F$15,""))))))) ->  | AQ19: =IF(ISBLANK(H19),"",IF(OR($O$2=$O$5,$O$2=$O$7,$O$2=$O$27,$O$2=$O$29),Best1!$F$13,IF(OR($O$2=$O$18,$O$2=$O$20,$O$2=$O$24,$O$2=$O$26),Best1!$F$10,IF(OR($O$2=$O$12,$O$2=$O$14,$O$2=$O$25,$O$2=$O$28),Best1!$F$11,IF(OR($O$2=$O$13,$O$2=$O$16,$O$2=$O$19,$O$2=$O$22),Best1!$F$12,IF(OR($O$2=$O$6,$O$2=$O$9,$O$2=$O$21,$O$2=$O$23),Best1!$F$14,IF(OR($O$2=$O$8,$O$2=$O$10,$O$2=$O$15,$O$2=$O$17),Best1!$F$15,""))))))) ->  | AT19: =IF(ISBLANK(I19),"",IF(OR($O$2=$O$9,$O$2=$O$10,$O$2=$O$24,$O$2=$O$25),Best1!$F$13,IF(OR($O$2=$O$22,$O$2=$O$23,$O$2=$O$28,$O$2=$O$29),Best1!$F$10,IF(OR($O$2=$O$16,$O$2=$O$17,$O$2=$O$26,$O$2=$O$27),Best1!$F$11,IF(OR($O$2=$O$14,$O$2=$O$15,$O$2=$O$20,$O$2=$O$21),Best1!$F$12,IF(OR($O$2=$O$7,$O$2=$O$8,$O$2=$O$18,$O$2=$O$19),Best1!$F$14,IF(OR($O$2=$O$5,$O$2=$O$6,$O$2=$O$12,$O$2=$O$13),Best1!$F$15,""))))))) ->  | AW19: =IF(ISBLANK(K19),"",IF(Best1!$C$3="","",ROUND(SUM(Best1!$C$3:$C$6),1))) ->  | AZ19: =IF(ISBLANK(K19),"",IF(Best1!$B$3="","",ROUND(AVERAGE(Best1!$D$3:$D$6),1))) -> 
A20: 16 | O20: CBAD | X20: 0 | Y20: 0 | AF20: 0 | AG20: 0 | AH20: 0 | AI20: 0 | AN20: =IF(ISBLANK(E20),"",IF(OR($O$2=$O$5,$O$2=$O$6,$O$2=$O$12,$O$2=$O$13),Best1!$F$10,IF(OR($O$2=$O$7,$O$2=$O$8,$O$2=$O$18,$O$2=$O$19),Best1!$F$11,IF(OR($O$2=$O$9,$O$2=$O$10,$O$2=$O$24,$O$2=$O$25),Best1!$F$12,IF(OR($O$2=$O$14,$O$2=$O$15,$O$2=$O$20,$O$2=$O$21),Best1!$F$13,IF(OR($O$2=$O$16,$O$2=$O$17,$O$2=$O$26,$O$2=$O$27),Best1!$F$14,IF(OR($O$2=$O$22,$O$2=$O$23,$O$2=$O$28,$O$2=$O$29),Best1!$F$15,""))))))) ->  | AQ20: =IF(ISBLANK(H20),"",IF(OR($O$2=$O$5,$O$2=$O$7,$O$2=$O$27,$O$2=$O$29),Best1!$F$13,IF(OR($O$2=$O$18,$O$2=$O$20,$O$2=$O$24,$O$2=$O$26),Best1!$F$10,IF(OR($O$2=$O$12,$O$2=$O$14,$O$2=$O$25,$O$2=$O$28),Best1!$F$11,IF(OR($O$2=$O$13,$O$2=$O$16,$O$2=$O$19,$O$2=$O$22),Best1!$F$12,IF(OR($O$2=$O$6,$O$2=$O$9,$O$2=$O$21,$O$2=$O$23),Best1!$F$14,IF(OR($O$2=$O$8,$O$2=$O$10,$O$2=$O$15,$O$2=$O$17),Best1!$F$15,""))))))) ->  | AT20: =IF(ISBLANK(I20),"",IF(OR($O$2=$O$9,$O$2=$O$10,$O$2=$O$24,$O$2=$O$25),Best1!$F$13,IF(OR($O$2=$O$22,$O$2=$O$23,$O$2=$O$28,$O$2=$O$29),Best1!$F$10,IF(OR($O$2=$O$16,$O$2=$O$17,$O$2=$O$26,$O$2=$O$27),Best1!$F$11,IF(OR($O$2=$O$14,$O$2=$O$15,$O$2=$O$20,$O$2=$O$21),Best1!$F$12,IF(OR($O$2=$O$7,$O$2=$O$8,$O$2=$O$18,$O$2=$O$19),Best1!$F$14,IF(OR($O$2=$O$5,$O$2=$O$6,$O$2=$O$12,$O$2=$O$13),Best1!$F$15,""))))))) ->  | AW20: =IF(ISBLANK(K20),"",IF(Best1!$C$3="","",ROUND(SUM(Best1!$C$3:$C$6),1))) ->  | AZ20: =IF(ISBLANK(K20),"",IF(Best1!$B$3="","",ROUND(AVERAGE(Best1!$D$3:$D$6),1))) -> 
A21: 17 | O21: CBDA | X21: 0 | Y21: 0 | AF21: 0 | AG21: 0 | AH21: 0 | AI21: 0 | AN21: =IF(ISBLANK(E21),"",IF(OR($O$2=$O$5,$O$2=$O$6,$O$2=$O$12,$O$2=$O$13),Best1!$F$10,IF(OR($O$2=$O$7,$O$2=$O$8,$O$2=$O$18,$O$2=$O$19),Best1!$F$11,IF(OR($O$2=$O$9,$O$2=$O$10,$O$2=$O$24,$O$2=$O$25),Best1!$F$12,IF(OR($O$2=$O$14,$O$2=$O$15,$O$2=$O$20,$O$2=$O$21),Best1!$F$13,IF(OR($O$2=$O$16,$O$2=$O$17,$O$2=$O$26,$O$2=$O$27),Best1!$F$14,IF(OR($O$2=$O$22,$O$2=$O$23,$O$2=$O$28,$O$2=$O$29),Best1!$F$15,""))))))) ->  | AQ21: =IF(ISBLANK(H21),"",IF(OR($O$2=$O$5,$O$2=$O$7,$O$2=$O$27,$O$2=$O$29),Best1!$F$13,IF(OR($O$2=$O$18,$O$2=$O$20,$O$2=$O$24,$O$2=$O$26),Best1!$F$10,IF(OR($O$2=$O$12,$O$2=$O$14,$O$2=$O$25,$O$2=$O$28),Best1!$F$11,IF(OR($O$2=$O$13,$O$2=$O$16,$O$2=$O$19,$O$2=$O$22),Best1!$F$12,IF(OR($O$2=$O$6,$O$2=$O$9,$O$2=$O$21,$O$2=$O$23),Best1!$F$14,IF(OR($O$2=$O$8,$O$2=$O$10,$O$2=$O$15,$O$2=$O$17),Best1!$F$15,""))))))) ->  | AT21: =IF(ISBLANK(I21),"",IF(OR($O$2=$O$9,$O$2=$O$10,$O$2=$O$24,$O$2=$O$25),Best1!$F$13,IF(OR($O$2=$O$22,$O$2=$O$23,$O$2=$O$28,$O$2=$O$29),Best1!$F$10,IF(OR($O$2=$O$16,$O$2=$O$17,$O$2=$O$26,$O$2=$O$27),Best1!$F$11,IF(OR($O$2=$O$14,$O$2=$O$15,$O$2=$O$20,$O$2=$O$21),Best1!$F$12,IF(OR($O$2=$O$7,$O$2=$O$8,$O$2=$O$18,$O$2=$O$19),Best1!$F$14,IF(OR($O$2=$O$5,$O$2=$O$6,$O$2=$O$12,$O$2=$O$13),Best1!$F$15,""))))))) ->  | AW21: =IF(ISBLANK(K21),"",IF(Best1!$C$3="","",ROUND(SUM(Best1!$C$3:$C$6),1))) ->  | AZ21: =IF(ISBLANK(K21),"",IF(Best1!$B$3="","",ROUND(AVERAGE(Best1!$D$3:$D$6),1))) -> 
A22: 18 | O22: CDAB | X22: 0 | Y22: 0 | AF22: 0 | AG22: 0 | AH22: 0 | AI22: 0 | AN22: =IF(ISBLANK(E22),"",IF(OR($O$2=$O$5,$O$2=$O$6,$O$2=$O$12,$O$2=$O$13),Best1!$F$10,IF(OR($O$2=$O$7,$O$2=$O$8,$O$2=$O$18,$O$2=$O$19),Best1!$F$11,IF(OR($O$2=$O$9,$O$2=$O$10,$O$2=$O$24,$O$2=$O$25),Best1!$F$12,IF(OR($O$2=$O$14,$O$2=$O$15,$O$2=$O$20,$O$2=$O$21),Best1!$F$13,IF(OR($O$2=$O$16,$O$2=$O$17,$O$2=$O$26,$O$2=$O$27),Best1!$F$14,IF(OR($O$2=$O$22,$O$2=$O$23,$O$2=$O$28,$O$2=$O$29),Best1!$F$15,""))))))) ->  | AQ22: =IF(ISBLANK(H22),"",IF(OR($O$2=$O$5,$O$2=$O$7,$O$2=$O$27,$O$2=$O$29),Best1!$F$13,IF(OR($O$2=$O$18,$O$2=$O$20,$O$2=$O$24,$O$2=$O$26),Best1!$F$10,IF(OR($O$2=$O$12,$O$2=$O$14,$O$2=$O$25,$O$2=$O$28),Best1!$F$11,IF(OR($O$2=$O$13,$O$2=$O$16,$O$2=$O$19,$O$2=$O$22),Best1!$F$12,IF(OR($O$2=$O$6,$O$2=$O$9,$O$2=$O$21,$O$2=$O$23),Best1!$F$14,IF(OR($O$2=$O$8,$O$2=$O$10,$O$2=$O$15,$O$2=$O$17),Best1!$F$15,""))))))) ->  | AT22: =IF(ISBLANK(I22),"",IF(OR($O$2=$O$9,$O$2=$O$10,$O$2=$O$24,$O$2=$O$25),Best1!$F$13,IF(OR($O$2=$O$22,$O$2=$O$23,$O$2=$O$28,$O$2=$O$29),Best1!$F$10,IF(OR($O$2=$O$16,$O$2=$O$17,$O$2=$O$26,$O$2=$O$27),Best1!$F$11,IF(OR($O$2=$O$14,$O$2=$O$15,$O$2=$O$20,$O$2=$O$21),Best1!$F$12,IF(OR($O$2=$O$7,$O$2=$O$8,$O$2=$O$18,$O$2=$O$19),Best1!$F$14,IF(OR($O$2=$O$5,$O$2=$O$6,$O$2=$O$12,$O$2=$O$13),Best1!$F$15,""))))))) ->  | AW22: =IF(ISBLANK(K22),"",IF(Best1!$C$3="","",ROUND(SUM(Best1!$C$3:$C$6),1))) ->  | AZ22: =IF(ISBLANK(K22),"",IF(Best1!$B$3="","",ROUND(AVERAGE(Best1!$D$3:$D$6),1))) -> 
A23: 19 | O23: CDBA | X23: 0 | Y23: 0 | AF23: 0 | AG23: 0 | AH23: 0 | AI23: 0 | AN23: =IF(ISBLANK(E23),"",IF(OR($O$2=$O$5,$O$2=$O$6,$O$2=$O$12,$O$2=$O$13),Best1!$F$10,IF(OR($O$2=$O$7,$O$2=$O$8,$O$2=$O$18,$O$2=$O$19),Best1!$F$11,IF(OR($O$2=$O$9,$O$2=$O$10,$O$2=$O$24,$O$2=$O$25),Best1!$F$12,IF(OR($O$2=$O$14,$O$2=$O$15,$O$2=$O$20,$O$2=$O$21),Best1!$F$13,IF(OR($O$2=$O$16,$O$2=$O$17,$O$2=$O$26,$O$2=$O$27),Best1!$F$14,IF(OR($O$2=$O$22,$O$2=$O$23,$O$2=$O$28,$O$2=$O$29),Best1!$F$15,""))))))) ->  | AQ23: =IF(ISBLANK(H23),"",IF(OR($O$2=$O$5,$O$2=$O$7,$O$2=$O$27,$O$2=$O$29),Best1!$F$13,IF(OR($O$2=$O$18,$O$2=$O$20,$O$2=$O$24,$O$2=$O$26),Best1!$F$10,IF(OR($O$2=$O$12,$O$2=$O$14,$O$2=$O$25,$O$2=$O$28),Best1!$F$11,IF(OR($O$2=$O$13,$O$2=$O$16,$O$2=$O$19,$O$2=$O$22),Best1!$F$12,IF(OR($O$2=$O$6,$O$2=$O$9,$O$2=$O$21,$O$2=$O$23),Best1!$F$14,IF(OR($O$2=$O$8,$O$2=$O$10,$O$2=$O$15,$O$2=$O$17),Best1!$F$15,""))))))) ->  | AT23: =IF(ISBLANK(I23),"",IF(OR($O$2=$O$9,$O$2=$O$10,$O$2=$O$24,$O$2=$O$25),Best1!$F$13,IF(OR($O$2=$O$22,$O$2=$O$23,$O$2=$O$28,$O$2=$O$29),Best1!$F$10,IF(OR($O$2=$O$16,$O$2=$O$17,$O$2=$O$26,$O$2=$O$27),Best1!$F$11,IF(OR($O$2=$O$14,$O$2=$O$15,$O$2=$O$20,$O$2=$O$21),Best1!$F$12,IF(OR($O$2=$O$7,$O$2=$O$8,$O$2=$O$18,$O$2=$O$19),Best1!$F$14,IF(OR($O$2=$O$5,$O$2=$O$6,$O$2=$O$12,$O$2=$O$13),Best1!$F$15,""))))))) ->  | AW23: =IF(ISBLANK(K23),"",IF(Best1!$C$3="","",ROUND(SUM(Best1!$C$3:$C$6),1))) ->  | AZ23: =IF(ISBLANK(K23),"",IF(Best1!$B$3="","",ROUND(AVERAGE(Best1!$D$3:$D$6),1))) -> 
A24: 20 | O24: DABC | X24: 0 | Y24: 0 | AF24: 0 | AG24: 0 | AH24: 0 | AI24: 0 | AN24: =IF(ISBLANK(E24),"",IF(OR($O$2=$O$5,$O$2=$O$6,$O$2=$O$12,$O$2=$O$13),Best1!$F$10,IF(OR($O$2=$O$7,$O$2=$O$8,$O$2=$O$18,$O$2=$O$19),Best1!$F$11,IF(OR($O$2=$O$9,$O$2=$O$10,$O$2=$O$24,$O$2=$O$25),Best1!$F$12,IF(OR($O$2=$O$14,$O$2=$O$15,$O$2=$O$20,$O$2=$O$21),Best1!$F$13,IF(OR($O$2=$O$16,$O$2=$O$17,$O$2=$O$26,$O$2=$O$27),Best1!$F$14,IF(OR($O$2=$O$22,$O$2=$O$23,$O$2=$O$28,$O$2=$O$29),Best1!$F$15,""))))))) ->  | AQ24: =IF(ISBLANK(H24),"",IF(OR($O$2=$O$5,$O$2=$O$7,$O$2=$O$27,$O$2=$O$29),Best1!$F$13,IF(OR($O$2=$O$18,$O$2=$O$20,$O$2=$O$24,$O$2=$O$26),Best1!$F$10,IF(OR($O$2=$O$12,$O$2=$O$14,$O$2=$O$25,$O$2=$O$28),Best1!$F$11,IF(OR($O$2=$O$13,$O$2=$O$16,$O$2=$O$19,$O$2=$O$22),Best1!$F$12,IF(OR($O$2=$O$6,$O$2=$O$9,$O$2=$O$21,$O$2=$O$23),Best1!$F$14,IF(OR($O$2=$O$8,$O$2=$O$10,$O$2=$O$15,$O$2=$O$17),Best1!$F$15,""))))))) ->  | AT24: =IF(ISBLANK(I24),"",IF(OR($O$2=$O$9,$O$2=$O$10,$O$2=$O$24,$O$2=$O$25),Best1!$F$13,IF(OR($O$2=$O$22,$O$2=$O$23,$O$2=$O$28,$O$2=$O$29),Best1!$F$10,IF(OR($O$2=$O$16,$O$2=$O$17,$O$2=$O$26,$O$2=$O$27),Best1!$F$11,IF(OR($O$2=$O$14,$O$2=$O$15,$O$2=$O$20,$O$2=$O$21),Best1!$F$12,IF(OR($O$2=$O$7,$O$2=$O$8,$O$2=$O$18,$O$2=$O$19),Best1!$F$14,IF(OR($O$2=$O$5,$O$2=$O$6,$O$2=$O$12,$O$2=$O$13),Best1!$F$15,""))))))) ->  | AW24: =IF(ISBLANK(K24),"",IF(Best1!$C$3="","",ROUND(SUM(Best1!$C$3:$C$6),1))) ->  | AZ24: =IF(ISBLANK(K24),"",IF(Best1!$B$3="","",ROUND(AVERAGE(Best1!$D$3:$D$6),1))) -> 
A25: 21 | O25: DACB | X25: 0 | Y25: 0 | AF25: 0 | AG25: 0 | AH25: 0 | AI25: 0 | AN25: =IF(ISBLANK(E25),"",IF(OR($O$2=$O$5,$O$2=$O$6,$O$2=$O$12,$O$2=$O$13),Best1!$F$10,IF(OR($O$2=$O$7,$O$2=$O$8,$O$2=$O$18,$O$2=$O$19),Best1!$F$11,IF(OR($O$2=$O$9,$O$2=$O$10,$O$2=$O$24,$O$2=$O$25),Best1!$F$12,IF(OR($O$2=$O$14,$O$2=$O$15,$O$2=$O$20,$O$2=$O$21),Best1!$F$13,IF(OR($O$2=$O$16,$O$2=$O$17,$O$2=$O$26,$O$2=$O$27),Best1!$F$14,IF(OR($O$2=$O$22,$O$2=$O$23,$O$2=$O$28,$O$2=$O$29),Best1!$F$15,""))))))) ->  | AQ25: =IF(ISBLANK(H25),"",IF(OR($O$2=$O$5,$O$2=$O$7,$O$2=$O$27,$O$2=$O$29),Best1!$F$13,IF(OR($O$2=$O$18,$O$2=$O$20,$O$2=$O$24,$O$2=$O$26),Best1!$F$10,IF(OR($O$2=$O$12,$O$2=$O$14,$O$2=$O$25,$O$2=$O$28),Best1!$F$11,IF(OR($O$2=$O$13,$O$2=$O$16,$O$2=$O$19,$O$2=$O$22),Best1!$F$12,IF(OR($O$2=$O$6,$O$2=$O$9,$O$2=$O$21,$O$2=$O$23),Best1!$F$14,IF(OR($O$2=$O$8,$O$2=$O$10,$O$2=$O$15,$O$2=$O$17),Best1!$F$15,""))))))) ->  | AT25: =IF(ISBLANK(I25),"",IF(OR($O$2=$O$9,$O$2=$O$10,$O$2=$O$24,$O$2=$O$25),Best1!$F$13,IF(OR($O$2=$O$22,$O$2=$O$23,$O$2=$O$28,$O$2=$O$29),Best1!$F$10,IF(OR($O$2=$O$16,$O$2=$O$17,$O$2=$O$26,$O$2=$O$27),Best1!$F$11,IF(OR($O$2=$O$14,$O$2=$O$15,$O$2=$O$20,$O$2=$O$21),Best1!$F$12,IF(OR($O$2=$O$7,$O$2=$O$8,$O$2=$O$18,$O$2=$O$19),Best1!$F$14,IF(OR($O$2=$O$5,$O$2=$O$6,$O$2=$O$12,$O$2=$O$13),Best1!$F$15,""))))))) ->  | AW25: =IF(ISBLANK(K25),"",IF(Best1!$C$3="","",ROUND(SUM(Best1!$C$3:$C$6),1))) ->  | AZ25: =IF(ISBLANK(K25),"",IF(Best1!$B$3="","",ROUND(AVERAGE(Best1!$D$3:$D$6),1))) -> 
A26: 22 | O26: DBAC | X26: 0 | Y26: 0 | AF26: 0 | AG26: 0 | AH26: 0 | AI26: 0 | AN26: =IF(ISBLANK(E26),"",IF(OR($O$2=$O$5,$O$2=$O$6,$O$2=$O$12,$O$2=$O$13),Best1!$F$10,IF(OR($O$2=$O$7,$O$2=$O$8,$O$2=$O$18,$O$2=$O$19),Best1!$F$11,IF(OR($O$2=$O$9,$O$2=$O$10,$O$2=$O$24,$O$2=$O$25),Best1!$F$12,IF(OR($O$2=$O$14,$O$2=$O$15,$O$2=$O$20,$O$2=$O$21),Best1!$F$13,IF(OR($O$2=$O$16,$O$2=$O$17,$O$2=$O$26,$O$2=$O$27),Best1!$F$14,IF(OR($O$2=$O$22,$O$2=$O$23,$O$2=$O$28,$O$2=$O$29),Best1!$F$15,""))))))) ->  | AQ26: =IF(ISBLANK(H26),"",IF(OR($O$2=$O$5,$O$2=$O$7,$O$2=$O$27,$O$2=$O$29),Best1!$F$13,IF(OR($O$2=$O$18,$O$2=$O$20,$O$2=$O$24,$O$2=$O$26),Best1!$F$10,IF(OR($O$2=$O$12,$O$2=$O$14,$O$2=$O$25,$O$2=$O$28),Best1!$F$11,IF(OR($O$2=$O$13,$O$2=$O$16,$O$2=$O$19,$O$2=$O$22),Best1!$F$12,IF(OR($O$2=$O$6,$O$2=$O$9,$O$2=$O$21,$O$2=$O$23),Best1!$F$14,IF(OR($O$2=$O$8,$O$2=$O$10,$O$2=$O$15,$O$2=$O$17),Best1!$F$15,""))))))) ->  | AT26: =IF(ISBLANK(I26),"",IF(OR($O$2=$O$9,$O$2=$O$10,$O$2=$O$24,$O$2=$O$25),Best1!$F$13,IF(OR($O$2=$O$22,$O$2=$O$23,$O$2=$O$28,$O$2=$O$29),Best1!$F$10,IF(OR($O$2=$O$16,$O$2=$O$17,$O$2=$O$26,$O$2=$O$27),Best1!$F$11,IF(OR($O$2=$O$14,$O$2=$O$15,$O$2=$O$20,$O$2=$O$21),Best1!$F$12,IF(OR($O$2=$O$7,$O$2=$O$8,$O$2=$O$18,$O$2=$O$19),Best1!$F$14,IF(OR($O$2=$O$5,$O$2=$O$6,$O$2=$O$12,$O$2=$O$13),Best1!$F$15,""))))))) ->  | AW26: =IF(ISBLANK(K26),"",IF(Best1!$C$3="","",ROUND(SUM(Best1!$C$3:$C$6),1))) ->  | AZ26: =IF(ISBLANK(K26),"",IF(Best1!$B$3="","",ROUND(AVERAGE(Best1!$D$3:$D$6),1))) -> 
A27: 23 | O27: DBCA | X27: 0 | Y27: 0 | AF27: 0 | AG27: 0 | AH27: 0 | AI27: 0 | AN27: =IF(ISBLANK(E27),"",IF(OR($O$2=$O$5,$O$2=$O$6,$O$2=$O$12,$O$2=$O$13),Best1!$F$10,IF(OR($O$2=$O$7,$O$2=$O$8,$O$2=$O$18,$O$2=$O$19),Best1!$F$11,IF(OR($O$2=$O$9,$O$2=$O$10,$O$2=$O$24,$O$2=$O$25),Best1!$F$12,IF(OR($O$2=$O$14,$O$2=$O$15,$O$2=$O$20,$O$2=$O$21),Best1!$F$13,IF(OR($O$2=$O$16,$O$2=$O$17,$O$2=$O$26,$O$2=$O$27),Best1!$F$14,IF(OR($O$2=$O$22,$O$2=$O$23,$O$2=$O$28,$O$2=$O$29),Best1!$F$15,""))))))) ->  | AQ27: =IF(ISBLANK(H27),"",IF(OR($O$2=$O$5,$O$2=$O$7,$O$2=$O$27,$O$2=$O$29),Best1!$F$13,IF(OR($O$2=$O$18,$O$2=$O$20,$O$2=$O$24,$O$2=$O$26),Best1!$F$10,IF(OR($O$2=$O$12,$O$2=$O$14,$O$2=$O$25,$O$2=$O$28),Best1!$F$11,IF(OR($O$2=$O$13,$O$2=$O$16,$O$2=$O$19,$O$2=$O$22),Best1!$F$12,IF(OR($O$2=$O$6,$O$2=$O$9,$O$2=$O$21,$O$2=$O$23),Best1!$F$14,IF(OR($O$2=$O$8,$O$2=$O$10,$O$2=$O$15,$O$2=$O$17),Best1!$F$15,""))))))) ->  | AT27: =IF(ISBLANK(I27),"",IF(OR($O$2=$O$9,$O$2=$O$10,$O$2=$O$24,$O$2=$O$25),Best1!$F$13,IF(OR($O$2=$O$22,$O$2=$O$23,$O$2=$O$28,$O$2=$O$29),Best1!$F$10,IF(OR($O$2=$O$16,$O$2=$O$17,$O$2=$O$26,$O$2=$O$27),Best1!$F$11,IF(OR($O$2=$O$14,$O$2=$O$15,$O$2=$O$20,$O$2=$O$21),Best1!$F$12,IF(OR($O$2=$O$7,$O$2=$O$8,$O$2=$O$18,$O$2=$O$19),Best1!$F$14,IF(OR($O$2=$O$5,$O$2=$O$6,$O$2=$O$12,$O$2=$O$13),Best1!$F$15,""))))))) ->  | AW27: =IF(ISBLANK(K27),"",IF(Best1!$C$3="","",ROUND(SUM(Best1!$C$3:$C$6),1))) ->  | AZ27: =IF(ISBLANK(K27),"",IF(Best1!$B$3="","",ROUND(AVERAGE(Best1!$D$3:$D$6),1))) -> 
A28: 24 | O28: DCAB | X28: 0 | Y28: 0 | AF28: 0 | AG28: 0 | AH28: 0 | AI28: 0 | AN28: =IF(ISBLANK(E28),"",IF(OR($O$2=$O$5,$O$2=$O$6,$O$2=$O$12,$O$2=$O$13),Best1!$F$10,IF(OR($O$2=$O$7,$O$2=$O$8,$O$2=$O$18,$O$2=$O$19),Best1!$F$11,IF(OR($O$2=$O$9,$O$2=$O$10,$O$2=$O$24,$O$2=$O$25),Best1!$F$12,IF(OR($O$2=$O$14,$O$2=$O$15,$O$2=$O$20,$O$2=$O$21),Best1!$F$13,IF(OR($O$2=$O$16,$O$2=$O$17,$O$2=$O$26,$O$2=$O$27),Best1!$F$14,IF(OR($O$2=$O$22,$O$2=$O$23,$O$2=$O$28,$O$2=$O$29),Best1!$F$15,""))))))) ->  | AQ28: =IF(ISBLANK(H28),"",IF(OR($O$2=$O$5,$O$2=$O$7,$O$2=$O$27,$O$2=$O$29),Best1!$F$13,IF(OR($O$2=$O$18,$O$2=$O$20,$O$2=$O$24,$O$2=$O$26),Best1!$F$10,IF(OR($O$2=$O$12,$O$2=$O$14,$O$2=$O$25,$O$2=$O$28),Best1!$F$11,IF(OR($O$2=$O$13,$O$2=$O$16,$O$2=$O$19,$O$2=$O$22),Best1!$F$12,IF(OR($O$2=$O$6,$O$2=$O$9,$O$2=$O$21,$O$2=$O$23),Best1!$F$14,IF(OR($O$2=$O$8,$O$2=$O$10,$O$2=$O$15,$O$2=$O$17),Best1!$F$15,""))))))) ->  | AT28: =IF(ISBLANK(I28),"",IF(OR($O$2=$O$9,$O$2=$O$10,$O$2=$O$24,$O$2=$O$25),Best1!$F$13,IF(OR($O$2=$O$22,$O$2=$O$23,$O$2=$O$28,$O$2=$O$29),Best1!$F$10,IF(OR($O$2=$O$16,$O$2=$O$17,$O$2=$O$26,$O$2=$O$27),Best1!$F$11,IF(OR($O$2=$O$14,$O$2=$O$15,$O$2=$O$20,$O$2=$O$21),Best1!$F$12,IF(OR($O$2=$O$7,$O$2=$O$8,$O$2=$O$18,$O$2=$O$19),Best1!$F$14,IF(OR($O$2=$O$5,$O$2=$O$6,$O$2=$O$12,$O$2=$O$13),Best1!$F$15,""))))))) ->  | AW28: =IF(ISBLANK(K28),"",IF(Best1!$C$3="","",ROUND(SUM(Best1!$C$3:$C$6),1))) ->  | AZ28: =IF(ISBLANK(K28),"",IF(Best1!$B$3="","",ROUND(AVERAGE(Best1!$D$3:$D$6),1))) -> 
A29: 25 | O29: DCBA | X29: 0 | Y29: 0 | AF29: 0 | AG29: 0 | AH29: 0 | AI29: 0 | AN29: =IF(ISBLANK(E29),"",IF(OR($O$2=$O$5,$O$2=$O$6,$O$2=$O$12,$O$2=$O$13),Best1!$F$10,IF(OR($O$2=$O$7,$O$2=$O$8,$O$2=$O$18,$O$2=$O$19),Best1!$F$11,IF(OR($O$2=$O$9,$O$2=$O$10,$O$2=$O$24,$O$2=$O$25),Best1!$F$12,IF(OR($O$2=$O$14,$O$2=$O$15,$O$2=$O$20,$O$2=$O$21),Best1!$F$13,IF(OR($O$2=$O$16,$O$2=$O$17,$O$2=$O$26,$O$2=$O$27),Best1!$F$14,IF(OR($O$2=$O$22,$O$2=$O$23,$O$2=$O$28,$O$2=$O$29),Best1!$F$15,""))))))) ->  | AQ29: =IF(ISBLANK(H29),"",IF(OR($O$2=$O$5,$O$2=$O$7,$O$2=$O$27,$O$2=$O$29),Best1!$F$13,IF(OR($O$2=$O$18,$O$2=$O$20,$O$2=$O$24,$O$2=$O$26),Best1!$F$10,IF(OR($O$2=$O$12,$O$2=$O$14,$O$2=$O$25,$O$2=$O$28),Best1!$F$11,IF(OR($O$2=$O$13,$O$2=$O$16,$O$2=$O$19,$O$2=$O$22),Best1!$F$12,IF(OR($O$2=$O$6,$O$2=$O$9,$O$2=$O$21,$O$2=$O$23),Best1!$F$14,IF(OR($O$2=$O$8,$O$2=$O$10,$O$2=$O$15,$O$2=$O$17),Best1!$F$15,""))))))) ->  | AT29: =IF(ISBLANK(I29),"",IF(OR($O$2=$O$9,$O$2=$O$10,$O$2=$O$24,$O$2=$O$25),Best1!$F$13,IF(OR($O$2=$O$22,$O$2=$O$23,$O$2=$O$28,$O$2=$O$29),Best1!$F$10,IF(OR($O$2=$O$16,$O$2=$O$17,$O$2=$O$26,$O$2=$O$27),Best1!$F$11,IF(OR($O$2=$O$14,$O$2=$O$15,$O$2=$O$20,$O$2=$O$21),Best1!$F$12,IF(OR($O$2=$O$7,$O$2=$O$8,$O$2=$O$18,$O$2=$O$19),Best1!$F$14,IF(OR($O$2=$O$5,$O$2=$O$6,$O$2=$O$12,$O$2=$O$13),Best1!$F$15,""))))))) ->  | AW29: =IF(ISBLANK(K29),"",IF(Best1!$C$3="","",ROUND(SUM(Best1!$C$3:$C$6),1))) ->  | AZ29: =IF(ISBLANK(K29),"",IF(Best1!$B$3="","",ROUND(AVERAGE(Best1!$D$3:$D$6),1))) -> 
A30: 26 | X30: 0 | Y30: 0 | AF30: 0 | AG30: 0 | AH30: 0 | AI30: 0 | AN30: =IF(ISBLANK(E30),"",IF(OR($O$2=$O$5,$O$2=$O$6,$O$2=$O$12,$O$2=$O$13),Best1!$F$10,IF(OR($O$2=$O$7,$O$2=$O$8,$O$2=$O$18,$O$2=$O$19),Best1!$F$11,IF(OR($O$2=$O$9,$O$2=$O$10,$O$2=$O$24,$O$2=$O$25),Best1!$F$12,IF(OR($O$2=$O$14,$O$2=$O$15,$O$2=$O$20,$O$2=$O$21),Best1!$F$13,IF(OR($O$2=$O$16,$O$2=$O$17,$O$2=$O$26,$O$2=$O$27),Best1!$F$14,IF(OR($O$2=$O$22,$O$2=$O$23,$O$2=$O$28,$O$2=$O$29),Best1!$F$15,""))))))) ->  | AQ30: =IF(ISBLANK(H30),"",IF(OR($O$2=$O$5,$O$2=$O$7,$O$2=$O$27,$O$2=$O$29),Best1!$F$13,IF(OR($O$2=$O$18,$O$2=$O$20,$O$2=$O$24,$O$2=$O$26),Best1!$F$10,IF(OR($O$2=$O$12,$O$2=$O$14,$O$2=$O$25,$O$2=$O$28),Best1!$F$11,IF(OR($O$2=$O$13,$O$2=$O$16,$O$2=$O$19,$O$2=$O$22),Best1!$F$12,IF(OR($O$2=$O$6,$O$2=$O$9,$O$2=$O$21,$O$2=$O$23),Best1!$F$14,IF(OR($O$2=$O$8,$O$2=$O$10,$O$2=$O$15,$O$2=$O$17),Best1!$F$15,""))))))) ->  | AT30: =IF(ISBLANK(I30),"",IF(OR($O$2=$O$9,$O$2=$O$10,$O$2=$O$24,$O$2=$O$25),Best1!$F$13,IF(OR($O$2=$O$22,$O$2=$O$23,$O$2=$O$28,$O$2=$O$29),Best1!$F$10,IF(OR($O$2=$O$16,$O$2=$O$17,$O$2=$O$26,$O$2=$O$27),Best1!$F$11,IF(OR($O$2=$O$14,$O$2=$O$15,$O$2=$O$20,$O$2=$O$21),Best1!$F$12,IF(OR($O$2=$O$7,$O$2=$O$8,$O$2=$O$18,$O$2=$O$19),Best1!$F$14,IF(OR($O$2=$O$5,$O$2=$O$6,$O$2=$O$12,$O$2=$O$13),Best1!$F$15,""))))))) ->  | AW30: =IF(ISBLANK(K30),"",IF(Best1!$C$3="","",ROUND(SUM(Best1!$C$3:$C$6),1))) ->  | AZ30: =IF(ISBLANK(K30),"",IF(Best1!$B$3="","",ROUND(AVERAGE(Best1!$D$3:$D$6),1))) -> 
A31: 27 | X31: 0 | Y31: 0 | AF31: 0 | AG31: 0 | AH31: 0 | AI31: 0 | AN31: =IF(ISBLANK(E31),"",IF(OR($O$2=$O$5,$O$2=$O$6,$O$2=$O$12,$O$2=$O$13),Best1!$F$10,IF(OR($O$2=$O$7,$O$2=$O$8,$O$2=$O$18,$O$2=$O$19),Best1!$F$11,IF(OR($O$2=$O$9,$O$2=$O$10,$O$2=$O$24,$O$2=$O$25),Best1!$F$12,IF(OR($O$2=$O$14,$O$2=$O$15,$O$2=$O$20,$O$2=$O$21),Best1!$F$13,IF(OR($O$2=$O$16,$O$2=$O$17,$O$2=$O$26,$O$2=$O$27),Best1!$F$14,IF(OR($O$2=$O$22,$O$2=$O$23,$O$2=$O$28,$O$2=$O$29),Best1!$F$15,""))))))) ->  | AO31: =IF(F31="","",F31) ->  | AQ31: =IF(ISBLANK(H31),"",IF(OR($O$2=$O$5,$O$2=$O$7,$O$2=$O$27,$O$2=$O$29),Best1!$F$13,IF(OR($O$2=$O$18,$O$2=$O$20,$O$2=$O$24,$O$2=$O$26),Best1!$F$10,IF(OR($O$2=$O$12,$O$2=$O$14,$O$2=$O$25,$O$2=$O$28),Best1!$F$11,IF(OR($O$2=$O$13,$O$2=$O$16,$O$2=$O$19,$O$2=$O$22),Best1!$F$12,IF(OR($O$2=$O$6,$O$2=$O$9,$O$2=$O$21,$O$2=$O$23),Best1!$F$14,IF(OR($O$2=$O$8,$O$2=$O$10,$O$2=$O$15,$O$2=$O$17),Best1!$F$15,""))))))) ->  | AR31: =IF(H31="","",H31) ->  | AT31: =IF(ISBLANK(I31),"",IF(OR($O$2=$O$9,$O$2=$O$10,$O$2=$O$24,$O$2=$O$25),Best1!$F$13,IF(OR($O$2=$O$22,$O$2=$O$23,$O$2=$O$28,$O$2=$O$29),Best1!$F$10,IF(OR($O$2=$O$16,$O$2=$O$17,$O$2=$O$26,$O$2=$O$27),Best1!$F$11,IF(OR($O$2=$O$14,$O$2=$O$15,$O$2=$O$20,$O$2=$O$21),Best1!$F$12,IF(OR($O$2=$O$7,$O$2=$O$8,$O$2=$O$18,$O$2=$O$19),Best1!$F$14,IF(OR($O$2=$O$5,$O$2=$O$6,$O$2=$O$12,$O$2=$O$13),Best1!$F$15,""))))))) ->  | AU31: =IF(J31="","",J31) ->  | AW31: =IF(ISBLANK(K31),"",IF(Best1!$C$3="","",ROUND(SUM(Best1!$C$3:$C$6),1))) ->  | AX31: =IF(K31="","",K31) ->  | AZ31: =IF(ISBLANK(K31),"",IF(Best1!$B$3="","",ROUND(AVERAGE(Best1!$D$3:$D$6),1))) ->  | BA31: =IF(L31="","",L31) ->  | CD31: =IF(OR(AH31="",AH31=0),"",AH31*1) -> 
A32: 28 | X32: 0 | Y32: 0 | AF32: 0 | AG32: 0 | AH32: 0 | AI32: 0 | AN32: =IF(ISBLANK(E32),"",IF(OR($O$2=$O$5,$O$2=$O$6,$O$2=$O$12,$O$2=$O$13),Best1!$F$10,IF(OR($O$2=$O$7,$O$2=$O$8,$O$2=$O$18,$O$2=$O$19),Best1!$F$11,IF(OR($O$2=$O$9,$O$2=$O$10,$O$2=$O$24,$O$2=$O$25),Best1!$F$12,IF(OR($O$2=$O$14,$O$2=$O$15,$O$2=$O$20,$O$2=$O$21),Best1!$F$13,IF(OR($O$2=$O$16,$O$2=$O$17,$O$2=$O$26,$O$2=$O$27),Best1!$F$14,IF(OR($O$2=$O$22,$O$2=$O$23,$O$2=$O$28,$O$2=$O$29),Best1!$F$15,""))))))) ->  | AQ32: =IF(ISBLANK(H32),"",IF(OR($O$2=$O$5,$O$2=$O$7,$O$2=$O$27,$O$2=$O$29),Best1!$F$13,IF(OR($O$2=$O$18,$O$2=$O$20,$O$2=$O$24,$O$2=$O$26),Best1!$F$10,IF(OR($O$2=$O$12,$O$2=$O$14,$O$2=$O$25,$O$2=$O$28),Best1!$F$11,IF(OR($O$2=$O$13,$O$2=$O$16,$O$2=$O$19,$O$2=$O$22),Best1!$F$12,IF(OR($O$2=$O$6,$O$2=$O$9,$O$2=$O$21,$O$2=$O$23),Best1!$F$14,IF(OR($O$2=$O$8,$O$2=$O$10,$O$2=$O$15,$O$2=$O$17),Best1!$F$15,""))))))) ->  | AT32: =IF(ISBLANK(I32),"",IF(OR($O$2=$O$9,$O$2=$O$10,$O$2=$O$24,$O$2=$O$25),Best1!$F$13,IF(OR($O$2=$O$22,$O$2=$O$23,$O$2=$O$28,$O$2=$O$29),Best1!$F$10,IF(OR($O$2=$O$16,$O$2=$O$17,$O$2=$O$26,$O$2=$O$27),Best1!$F$11,IF(OR($O$2=$O$14,$O$2=$O$15,$O$2=$O$20,$O$2=$O$21),Best1!$F$12,IF(OR($O$2=$O$7,$O$2=$O$8,$O$2=$O$18,$O$2=$O$19),Best1!$F$14,IF(OR($O$2=$O$5,$O$2=$O$6,$O$2=$O$12,$O$2=$O$13),Best1!$F$15,""))))))) ->  | AW32: =IF(ISBLANK(K32),"",IF(Best1!$C$3="","",ROUND(SUM(Best1!$C$3:$C$6),1))) ->  | AZ32: =IF(ISBLANK(K32),"",IF(Best1!$B$3="","",ROUND(AVERAGE(Best1!$D$3:$D$6),1))) ->  | CB32: =IF(OR(AF32="",AF32=0),"",AF32*1) -> 
P34: =MIN(BW5:BW32) -> 0 | Q34: =MIN(BX5:BX32) -> 0 | R34: =MIN(BY5:BY32) -> 0 | S34: 0 | T34: 0 | U34: 0 | V34: 0 | W34: 0 | X34: 0 | Y34: 0 | Z34: 0 | AA34: 0 | AB34: 0 | AC34: 0 | AD34: 0 | AE34: 0 | AF34: 0 | AG34: 0 | AH34: 0 | AI34: 0 | AJ34: 0 | AK34: 0 | AL34: 0 | AM34: 0 | BL34: =IF(MIN(BL5:BL32)=0,"",MIN(BL5:BL32)) ->  | BM34: =IF(MIN(BM5:BM32)=0,"",MIN(BM5:BM32)) ->  | BZ34: =IF(MIN(BZ5:BZ32)=0,"",MIN(BZ5:BZ32)) -> 
AX42: =IF(AND(AX5="",AX33=""),"",MIN(AX5:AX41)) ->  | BA42: =IF(AND(BA5="",BA33=""),"",MAX(BA5:BA41)) -> 
J50: 500 | K50: 500 | L50: 500 | M50: 500 | N50: =J50*1 -> 500 | O50: =K50*1 -> 500 | P50: 500 | Q50: 500
J51: 500 | K51: 500 | L51: 500 | M51: 500 | N51: =J51*1 -> 500 | O51: =K51*1 -> 500 | P51: =L51*1 -> 500 | Q51: =M51*1 -> 500
J52: 500 | K52: 500 | L52: 500 | M52: 500 | N52: 500 | O52: 500 | P52: 500 | Q52: 500
J53: 500 | K53: 500 | L53: 500 | M53: 500 | N53: 500 | O53: 500 | P53: 500 | Q53: 500
J54: 500 | K54: 500 | L54: 500 | M54: 500 | N54: 500 | O54: 500 | P54: 500 | Q54: 500
J55: 500 | K55: 500 | L55: 500 | M55: 500 | N55: 500 | O55: 500 | P55: 500 | Q55: 500
J56: 500 | K56: 500 | L56: 500 | M56: 500 | N56: 500 | O56: 500 | P56: 500 | Q56: 500
J57: 500 | K57: 500 | L57: 500 | M57: 500 | N57: 500 | O57: 500 | P57: 500 | Q57: 500
J58: 500 | K58: 500 | L58: 500 | M58: 500 | N58: 500 | O58: 500 | P58: 500 | Q58: 500
J59: 500 | K59: 500 | L59: 500 | M59: 500 | N59: 500 | O59: 500 | P59: 500 | Q59: 500
J60: 500 | K60: 500 | L60: 500 | M60: 500 | N60: 500 | O60: 500 | P60: 500 | Q60: 500
J61: 500 | K61: 500 | L61: 500 | M61: 500 | N61: 500 | O61: 500 | P61: 500 | Q61: 500
J62: 500 | K62: 500 | L62: 500 | M62: 500 | N62: 500 | O62: 500 | P62: 500 | Q62: 500
J63: 500 | K63: 500 | L63: 500 | M63: 500 | N63: 500 | O63: 500 | P63: 500 | Q63: 500
J64: 500 | K64: 500 | L64: 500 | M64: 500 | N64: 500 | O64: 500 | P64: 500 | Q64: 500
J65: 500 | K65: 500 | L65: 500 | M65: 500 | N65: 500 | O65: 500 | P65: 500 | Q65: 500
J66: 500 | K66: 500 | L66: 500 | M66: 500 | N66: 500 | O66: 500 | P66: 500 | Q66: 500
J67: 500 | K67: 500 | L67: 500 | M67: 500 | N67: 500 | O67: 500 | P67: 500 | Q67: 500
J68: 500 | K68: 500 | L68: 500 | M68: 500 | N68: 500 | O68: 500 | P68: 500 | Q68: 500
J69: 500 | K69: 500 | L69: 500 | M69: 500 | N69: 500 | O69: 500 | P69: 500 | Q69: 500
J70: 500 | K70: 500 | L70: 500 | M70: 500 | N70: 500 | O70: 500 | P70: 500 | Q70: 500
J71: 500 | K71: 500 | L71: 500 | M71: 500 | N71: 500 | O71: 500 | P71: 500 | Q71: 500
J72: 500 | K72: 500 | L72: 500 | M72: 500 | N72: 500 | O72: 500 | P72: 500 | Q72: 500
J73: 500 | K73: 500 | L73: 500 | M73: 500 | N73: 500 | O73: 500 | P73: 500 | Q73: 500
J89: =IF(MIN(J50:J73)=0,"",MIN(J50:J73)) -> 500 | K89: 500 | L89: 500 | M89: 500 | N89: 500 | O89: 500 | P89: 500 | Q89: 500
J90: 500 | K90: 500 | L90: 500 | M90: 500 | N90: =J90*1 -> 500 | O90: =K90*1 -> 500 | P90: =L90*1 -> 500 | Q90: =M90*1 -> 500
J91: 500 | K91: 500 | L91: 500 | M91: 500 | N91: =J91*1 -> 500 | O91: =K91*1 -> 500 | P91: =L91*1 -> 500 | Q91: =M91*1 -> 500
J92: 500 | K92: 500 | L92: 500 | M92: 500 | N92: 500 | O92: 500 | P92: 500 | Q92: 500
J93: 500 | K93: 500 | L93: 500 | M93: 500 | N93: 500 | O93: 500 | P93: 500 | Q93: 500
J94: 500 | K94: 500 | L94: 500 | M94: 500 | N94: 500 | O94: 500 | P94: 500 | Q94: 500
J95: 500 | K95: 500 | L95: 500 | M95: 500 | N95: 500 | O95: 500 | P95: 500 | Q95: 500
J96: 500 | K96: 500 | L96: 500 | M96: 500 | N96: 500 | O96: 500 | P96: 500 | Q96: 500
J97: 500 | K97: 500 | L97: 500 | M97: 500 | N97: 500 | O97: 500 | P97: 500 | Q97: 500
J98: 500 | K98: 500 | L98: 500 | M98: 500 | N98: 500 | O98: 500 | P98: 500 | Q98: 500
J99: 500 | K99: 500 | L99: 500 | M99: 500 | N99: 500 | O99: 500 | P99: 500 | Q99: 500
J100: 500 | K100: 500 | L100: 500 | M100: 500 | N100: 500 | O100: 500 | P100: 500 | Q100: 500
J101: 500 | K101: 500 | L101: 500 | M101: 500 | N101: 500 | O101: 500 | P101: 500 | Q101: 500
J102: 500 | K102: 500 | L102: 500 | M102: 500 | N102: 500 | O102: 500 | P102: 500 | Q102: 500
J103: 500 | K103: 500 | L103: 500 | M103: 500 | N103: 500 | O103: 500 | P103: 500 | Q103: 500
J104: 500 | K104: 500 | L104: 500 | M104: 500 | N104: 500 | O104: 500 | P104: 500 | Q104: 500
J105: 500 | K105: 500 | L105: 500 | M105: 500 | N105: 500 | O105: 500 | P105: 500 | Q105: 500
J106: 500 | K106: 500 | L106: 500 | M106: 500 | N106: 500 | O106: 500 | P106: 500 | Q106: 500
J107: 500 | K107: 500 | L107: 500 | M107: 500 | N107: 500 | O107: 500 | P107: 500 | Q107: 500
J108: 500 | K108: 500 | L108: 500 | M108: 500 | N108: 500 | O108: 500 | P108: 500 | Q108: 500
J109: 500 | K109: 500 | L109: 500 | M109: 500 | N109: 500 | O109: 500 | P109: 500 | Q109: 500
J110: 500 | K110: 500 | L110: 500 | M110: 500 | N110: 500 | O110: 500 | P110: 500 | Q110: 500
J111: 500 | K111: 500 | L111: 500 | M111: 500 | N111: 500 | O111: 500 | P111: 500 | Q111: 500
J112: 500 | K112: 500 | L112: 500 | M112: 500 | N112: 500 | O112: 500 | P112: 500 | Q112: 500
J113: 500 | K113: 500 | L113: 500 | M113: 500 | N113: 500 | O113: 500 | P113: 500 | Q113: 500
J129: =IF(MIN(J90:J113)=0,"",MIN(J90:J113)) -> 500 | K129: 500 | L129: 500 | M129: 500 | N129: 500 | O129: 500 | P129: 500 | Q129: 500
N130: =IF(MIN(N89,N129)=500,"",MIN(N89,N129)) ->  | O130: =IF(MIN(O89,O129)=500,"",MIN(O89,O129)) -> 

Sheet Archresultats4
A1: Bilan équipe 4
O2: CDBA
AN3: ZONE 1 | AQ3: ZONE 2 | AT3: ZONE 3 | AW3: TOTAL course
B4: Dates | C4: Heure | D4: Coureur ou Ordre relais | E4: Tps zone 1 | F4: Vitesse zone 1 | G4: Tps zone 2 | H4: Vitesse zone 2 | I4: Tps zone 3 | J4: Vitesse zone 3 | K4: Tps course totale | L4: Vitesse totale totale | M4: Remarques | P4: AB (t) | Q4: AB (v) | R4: AC (t) | S4: AC (v) | T4: AD (t) | U4: AD (v) | V4: BA (v) | W4: BA (t) | X4: BC (t) | Y4: BC (v) | Z4: BD (t) | AA4: BD (v) | AB4: CA (t) | AC4: CA (v) | AD4: CB (t) | AE4: CB (v) | AF4: CD (t) | AG4: CD (v) | AH4: DA (t) | AI4: DA (v) | AJ4: DB (t) | AK4: DB (v) | AL4: DC (t) | AM4: DC (v) | AN4: Vitesse moy. théorique du binôme | AO4: Vitesse réelle du binôme | AP4: % Evolution | AQ4: Vitesse moy. théorique du binôme | AR4: Vitesse réelle du binôme | AS4: % Evolution | AT4: Vitesse moy. théorique du binôme | AU4: Vitesse réelle du binôme | AV4: % Evolution | AW4: TEMPS total théorique du groupe | AX4: TEMPS total réel du groupe | AY4: % Evolution | AZ4: VITESSE théorique du groupe | BA4: VITESSE réelle du groupe | BB4: % Evolution
A5: 1 | O5: ABCD | P5: =IF(OR($O$2=$O$5,$O$2=$O$6),E5,IF(OR($O$2=$O$18,$O$2=$O$24),G5,IF(OR($O$2=$O$22,$O$2=$O$28),I5,""))) ->  | Q5: =IF(OR($O$2=$O$5,$O$2=$O$6),F5,IF(OR($O$2=$O$18,$O$2=$O$24),H5,IF(OR($O$2=$O$22,$O$2=$O$28),J5,""))) ->  | R5: =IF(OR($O$2=$O$7,$O$2=$O$8),E5,IF(OR($O$2=$O$12,$O$2=$O$25),G5,IF(OR($O$2=$O$16,$O$2=$O$26),I5,""))) ->  | S5: =IF(OR($O$2=$O$7,$O$2=$O$8),F5,IF(OR($O$2=$O$12,$O$2=$O$25),H5,IF(OR($O$2=$O$16,$O$2=$O$26),J5,""))) ->  | T5: =IF(OR($O$2=$O$9,$O$2=$O$10),E5,IF(OR($O$2=$O$13,$O$2=$O$19),G5,IF(OR($O$2=$O$14,$O$2=$O$20),I5,""))) ->  | U5: =IF(OR($O$2=$O$9,$O$2=$O$10),F5,IF(OR($O$2=$O$13,$O$2=$O$19),H5,IF(OR($O$2=$O$14,$O$2=$O$20),J5,""))) ->  | V5: =IF(OR($O$2=$O$12,$O$2=$O$13),E5,IF(OR($O$2=$O$20,$O$2=$O$26),G5,IF(OR($O$2=$O$23,$O$2=$O$29),I5,""))) -> 0 | W5: =IF(OR($O$2=$O$12,$O$2=$O$13),F5,IF(OR($O$2=$O$20,$O$2=$O$26),H5,IF(OR($O$2=$O$23,$O$2=$O$29),J5,""))) -> 0 | X5: =IF(OR($O$2=$O$14,$O$2=$O$15),E5,IF(OR($O$2=$O$5,$O$2=$O$27),G5,IF(OR($O$2=$O$9,$O$2=$O$24),I5,""))) ->  | Y5: =IF(OR($O$2=$O$14,$O$2=$O$15),F5,IF(OR($O$2=$O$5,$O$2=$O$27),H5,IF(OR($O$2=$O$9,$O$2=$O$24),J5,""))) ->  | Z5: =IF(OR($O$2=$O$16,$O$2=$O$17),E5,IF(OR($O$2=$O$6,$O$2=$O$21),G5,IF(OR($O$2=$O$7,$O$2=$O$18),I5,""))) ->  | AA5: =IF(OR($O$2=$O$16,$O$2=$O$17),F5,IF(OR($O$2=$O$6,$O$2=$O$21),H5,IF(OR($O$2=$O$7,$O$2=$O$18),J5,""))) ->  | AB5: =IF(OR($O$2=$O$18,$O$2=$O$19),E5,IF(OR($O$2=$O$14,$O$2=$O$28),G5,IF(OR($O$2=$O$17,$O$2=$O$27),I5,""))) ->  | AC5: =IF(OR($O$2=$O$18,$O$2=$O$19),F5,IF(OR($O$2=$O$14,$O$2=$O$28),H5,IF(OR($O$2=$O$17,$O$2=$O$27),J5,""))) ->  | AD5: =IF(OR($O$2=$O$20,$O$2=$O$21),E5,IF(OR($O$2=$O$7,$O$2=$O$29),G5,IF(OR($O$2=$O$10,$O$2=$O$11),I5,""))) ->  | AE5: =IF(OR($O$2=$O$20,$O$2=$O$21),F5,IF(OR($O$2=$O$7,$O$2=$O$29),H5,IF(OR($O$2=$O$10,$O$2=$O$11),J5,""))) ->  | AF5: =IF(OR($O$2=$O$22,$O$2=$O$23),E5,IF(OR($O$2=$O$8,$O$2=$O$15),G5,IF(OR($O$2=$O$5,$O$2=$O$12),I5,""))) -> 0 | AG5: =IF(OR($O$2=$O$22,$O$2=$O$23),F5,IF(OR($O$2=$O$8,$O$2=$O$15),H5,IF(OR($O$2=$O$5,$O$2=$O$12),J5,""))) -> 0 | AH5: =IF(OR($O$2=$O$24,$O$2=$O$25),E5,IF(OR($O$2=$O$16,$O$2=$O$22),G5,IF(OR($O$2=$O$15,$O$2=$O$21),I5,""))) ->  | AI5: =IF(OR($O$2=$O$24,$O$2=$O$25),F5,IF(OR($O$2=$O$16,$O$2=$O$22),H5,IF(OR($O$2=$O$15,$O$2=$O$21),J5,""))) ->  | AJ5: =IF(OR($O$2=$O$26,$O$2=$O$27),E5,IF(OR($O$2=$O$9,$O$2=$O$23),G5,IF(OR($O$2=$O$8,$O$2=$O$19),I5,""))) -> 0 | AK5: =IF(OR($O$2=$O$26,$O$2=$O$27),F5,IF(OR($O$2=$O$9,$O$2=$O$23),H5,IF(OR($O$2=$O$8,$O$2=$O$19),J5,""))) -> 0 | AL5: =IF(OR($O$2=$O$28,$O$2=$O$29),E5,IF(OR($O$2=$O$10,$O$2=$O$11),G5,IF(OR($O$2=$O$6,$O$2=$O$13),I5,""))) ->  | AM5: =IF(OR($O$2=$O$28,$O$2=$O$29),F5,IF(OR($O$2=$O$10,$O$2=$O$11),H5,IF(OR($O$2=$O$6,$O$2=$O$13),J5,""))) ->  | AN5: =IF(ISBLANK(E5),"",IF(OR($O$2=$O$5,$O$2=$O$6,$O$2=$O$12,$O$2=$O$13),Best1!$F$10,IF(OR($O$2=$O$7,$O$2=$O$8,$O$2=$O$18,$O$2=$O$19),Best1!$F$11,IF(OR($O$2=$O$9,$O$2=$O$10,$O$2=$O$24,$O$2=$O$25),Best1!$F$12,IF(OR($O$2=$O$14,$O$2=$O$15,$O$2=$O$20,$O$2=$O$21),Best1!$F$13,IF(OR($O$2=$O$16,$O$2=$O$17,$O$2=$O$26,$O$2=$O$27),Best1!$F$14,IF(OR($O$2=$O$22,$O$2=$O$23,$O$2=$O$28,$O$2=$O$29),Best1!$F$15,""))))))) ->  | AO5: =IF(F5="","",F5) ->  | AP5: =IF(AO5="","",ROUND(((AO5-AN5)/AN5*100),1)) ->  | AQ5: =IF(ISBLANK(G5),"",IF(OR($O$2=$O$5,$O$2=$O$7,$O$2=$O$27,$O$2=$O$29),Best1!$F$13,IF(OR($O$2=$O$18,$O$2=$O$20,$O$2=$O$24,$O$2=$O$26),Best1!$F$10,IF(OR($O$2=$O$12,$O$2=$O$14,$O$2=$O$25,$O$2=$O$28),Best1!$F$11,IF(OR($O$2=$O$13,$O$2=$O$16,$O$2=$O$19,$O$2=$O$22),Best1!$F$12,IF(OR($O$2=$O$6,$O$2=$O$9,$O$2=$O$21,$O$2=$O$23),Best1!$F$14,IF(OR($O$2=$O$8,$O$2=$O$10,$O$2=$O$15,$O$2=$O$17),Best1!$F$15,""))))))) ->  | AR5: =IF(H5="","",H5) ->  | AS5: =IF(AR5="","",ROUND(((AR5-AQ5)/AQ5*100),1)) ->  | AT5: =IF(ISBLANK(I5),"",IF(OR($O$2=$O$9,$O$2=$O$10,$O$2=$O$24,$O$2=$O$25),Best1!$F$13,IF(OR($O$2=$O$22,$O$2=$O$23,$O$2=$O$28,$O$2=$O$29),Best1!$F$10,IF(OR($O$2=$O$16,$O$2=$O$17,$O$2=$O$26,$O$2=$O$27),Best1!$F$11,IF(OR($O$2=$O$14,$O$2=$O$15,$O$2=$O$20,$O$2=$O$21),Best1!$F$12,IF(OR($O$2=$O$7,$O$2=$O$8,$O$2=$O$18,$O$2=$O$19),Best1!$F$14,IF(OR($O$2=$O$5,$O$2=$O$6,$O$2=$O$12,$O$2=$O$13),Best1!$F$15,""))))))) ->  | AU5: =IF(J5="","",J5) ->  | AV5: =IF(AU5="","",ROUND(((AU5-AT5)/AT5*100),1)) ->  | AW5: =IF(ISBLANK(K5),"",IF(Best1!$C$3="","",ROUND(SUM(Best1!$C$3:$C$6),1))) ->  | AX5: =IF(K5="","",K5) ->  | AY5: =IF(AX5="","",ROUND(((AX5-AW5)/AW5*100),1)) ->  | AZ5: =IF(ISBLANK(K5),"",IF(Best1!$B$3="","",ROUND(AVERAGE(Best1!$D$3:$D$6),1))) ->  | BA5: =IF(L5="","",L5) ->  | BB5: =IF(BA5="","",ROUND(((BA5-AZ5)/AZ5*100),1)) ->  | BD5: =AX5 ->  | BL5: =IF(OR(P5="",P5=0),"",P5*1) ->  | BM5: =IF(OR(Q5="",Q5=0),"",Q5*1) -> 
A6: 2 | O6: ABDC | P6: =IF(OR($O$2=$O$5,$O$2=$O$6),E6,IF(OR($O$2=$O$18,$O$2=$O$24),G6,IF(OR($O$2=$O$22,$O$2=$O$28),I6,""))) ->  | R6: =IF(OR($O$2=$O$7,$O$2=$O$8),E6,IF(OR($O$2=$O$12,$O$2=$O$25),G6,IF(OR($O$2=$O$16,$O$2=$O$26),I6,""))) ->  | T6: =IF(OR($O$2=$O$9,$O$2=$O$10),E6,IF(OR($O$2=$O$13,$O$2=$O$19),G6,IF(OR($O$2=$O$14,$O$2=$O$20),I6,""))) ->  | V6: =IF(OR($O$2=$O$12,$O$2=$O$13),E6,IF(OR($O$2=$O$20,$O$2=$O$26),G6,IF(OR($O$2=$O$23,$O$2=$O$29),I6,""))) -> 0 | W6: 0 | X6: =IF(OR($O$2=$O$14,$O$2=$O$15),E6,IF(OR($O$2=$O$5,$O$2=$O$27),G6,IF(OR($O$2=$O$9,$O$2=$O$24),I6,""))) ->  | Z6: =IF(OR($O$2=$O$16,$O$2=$O$17),E6,IF(OR($O$2=$O$6,$O$2=$O$21),G6,IF(OR($O$2=$O$7,$O$2=$O$18),I6,""))) ->  | AB6: =IF(OR($O$2=$O$18,$O$2=$O$19),E6,IF(OR($O$2=$O$14,$O$2=$O$28),G6,IF(OR($O$2=$O$17,$O$2=$O$27),I6,""))) ->  | AD6: =IF(OR($O$2=$O$20,$O$2=$O$21),E6,IF(OR($O$2=$O$7,$O$2=$O$29),G6,IF(OR($O$2=$O$10,$O$2=$O$11),I6,""))) ->  | AF6: =IF(OR($O$2=$O$22,$O$2=$O$23),E6,IF(OR($O$2=$O$8,$O$2=$O$15),G6,IF(OR($O$2=$O$5,$O$2=$O$12),I6,""))) -> 0 | AG6: 0 | AH6: =IF(OR($O$2=$O$24,$O$2=$O$25),E6,IF(OR($O$2=$O$16,$O$2=$O$22),G6,IF(OR($O$2=$O$15,$O$2=$O$21),I6,""))) ->  | AJ6: =IF(OR($O$2=$O$26,$O$2=$O$27),E6,IF(OR($O$2=$O$9,$O$2=$O$23),G6,IF(OR($O$2=$O$8,$O$2=$O$19),I6,""))) -> 0 | AK6: 0 | AL6: =IF(OR($O$2=$O$28,$O$2=$O$29),E6,IF(OR($O$2=$O$10,$O$2=$O$11),G6,IF(OR($O$2=$O$6,$O$2=$O$13),I6,""))) ->  | AN6: =IF(ISBLANK(E6),"",IF(OR($O$2=$O$5,$O$2=$O$6,$O$2=$O$12,$O$2=$O$13),Best1!$F$10,IF(OR($O$2=$O$7,$O$2=$O$8,$O$2=$O$18,$O$2=$O$19),Best1!$F$11,IF(OR($O$2=$O$9,$O$2=$O$10,$O$2=$O$24,$O$2=$O$25),Best1!$F$12,IF(OR($O$2=$O$14,$O$2=$O$15,$O$2=$O$20,$O$2=$O$21),Best1!$F$13,IF(OR($O$2=$O$16,$O$2=$O$17,$O$2=$O$26,$O$2=$O$27),Best1!$F$14,IF(OR($O$2=$O$22,$O$2=$O$23,$O$2=$O$28,$O$2=$O$29),Best1!$F$15,""))))))) ->  | AO6: =IF(F6="","",F6) ->  | AP6: =IF(AO6="","",ROUND(((AO6-AN6)/AN6*100),1)) ->  | AQ6: =IF(ISBLANK(H6),"",IF(OR($O$2=$O$5,$O$2=$O$7,$O$2=$O$27,$O$2=$O$29),Best1!$F$13,IF(OR($O$2=$O$18,$O$2=$O$20,$O$2=$O$24,$O$2=$O$26),Best1!$F$10,IF(OR($O$2=$O$12,$O$2=$O$14,$O$2=$O$25,$O$2=$O$28),Best1!$F$11,IF(OR($O$2=$O$13,$O$2=$O$16,$O$2=$O$19,$O$2=$O$22),Best1!$F$12,IF(OR($O$2=$O$6,$O$2=$O$9,$O$2=$O$21,$O$2=$O$23),Best1!$F$14,IF(OR($O$2=$O$8,$O$2=$O$10,$O$2=$O$15,$O$2=$O$17),Best1!$F$15,""))))))) ->  | AR6: =IF(H6="","",H6) ->  | AS6: =IF(AR6="","",ROUND(((AR6-AQ6)/AQ6*100),1)) ->  | AT6: =IF(ISBLANK(I6),"",IF(OR($O$2=$O$9,$O$2=$O$10,$O$2=$O$24,$O$2=$O$25),Best1!$F$13,IF(OR($O$2=$O$22,$O$2=$O$23,$O$2=$O$28,$O$2=$O$29),Best1!$F$10,IF(OR($O$2=$O$16,$O$2=$O$17,$O$2=$O$26,$O$2=$O$27),Best1!$F$11,IF(OR($O$2=$O$14,$O$2=$O$15,$O$2=$O$20,$O$2=$O$21),Best1!$F$12,IF(OR($O$2=$O$7,$O$2=$O$8,$O$2=$O$18,$O$2=$O$19),Best1!$F$14,IF(OR($O$2=$O$5,$O$2=$O$6,$O$2=$O$12,$O$2=$O$13),Best1!$F$15,""))))))) ->  | AU6: =IF(J6="","",J6) ->  | AV6: =IF(AU6="","",ROUND(((AU6-AT6)/AT6*100),1)) ->  | AW6: =IF(ISBLANK(K6),"",IF(Best1!$C$3="","",ROUND(SUM(Best1!$C$3:$C$6),1))) ->  | AX6: =IF(K6="","",K6) ->  | AY6: =IF(AX6="","",ROUND(((AX6-AW6)/AW6*100),1)) ->  | AZ6: =IF(ISBLANK(K6),"",IF(Best1!$B$3="","",ROUND(AVERAGE(Best1!$D$3:$D$6),1))) ->  | BA6: =IF(L6="","",L6) ->  | BB6: =IF(BA6="","",ROUND(((BA6-AZ6)/AZ6*100),1)) ->  | BD6: =AX6 ->  | BL6: =IF(OR(P6="",P6=0),"",P6*1) -> 
A7: 3 | O7: ACBD | V7: 0 | W7: 0 | AF7: 0 | AG7: 0 | AJ7: 0 | AK7: 0 | AN7: =IF(ISBLANK(E7),"",IF(OR($O$2=$O$5,$O$2=$O$6,$O$2=$O$12,$O$2=$O$13),Best1!$F$10,IF(OR($O$2=$O$7,$O$2=$O$8,$O$2=$O$18,$O$2=$O$19),Best1!$F$11,IF(OR($O$2=$O$9,$O$2=$O$10,$O$2=$O$24,$O$2=$O$25),Best1!$F$12,IF(OR($O$2=$O$14,$O$2=$O$15,$O$2=$O$20,$O$2=$O$21),Best1!$F$13,IF(OR($O$2=$O$16,$O$2=$O$17,$O$2=$O$26,$O$2=$O$27),Best1!$F$14,IF(OR($O$2=$O$22,$O$2=$O$23,$O$2=$O$28,$O$2=$O$29),Best1!$F$15,""))))))) ->  | AQ7: =IF(ISBLANK(H7),"",IF(OR($O$2=$O$5,$O$2=$O$7,$O$2=$O$27,$O$2=$O$29),Best1!$F$13,IF(OR($O$2=$O$18,$O$2=$O$20,$O$2=$O$24,$O$2=$O$26),Best1!$F$10,IF(OR($O$2=$O$12,$O$2=$O$14,$O$2=$O$25,$O$2=$O$28),Best1!$F$11,IF(OR($O$2=$O$13,$O$2=$O$16,$O$2=$O$19,$O$2=$O$22),Best1!$F$12,IF(OR($O$2=$O$6,$O$2=$O$9,$O$2=$O$21,$O$2=$O$23),Best1!$F$14,IF(OR($O$2=$O$8,$O$2=$O$10,$O$2=$O$15,$O$2=$O$17),Best1!$F$15,""))))))) ->  | AT7: =IF(ISBLANK(I7),"",IF(OR($O$2=$O$9,$O$2=$O$10,$O$2=$O$24,$O$2=$O$25),Best1!$F$13,IF(OR($O$2=$O$22,$O$2=$O$23,$O$2=$O$28,$O$2=$O$29),Best1!$F$10,IF(OR($O$2=$O$16,$O$2=$O$17,$O$2=$O$26,$O$2=$O$27),Best1!$F$11,IF(OR($O$2=$O$14,$O$2=$O$15,$O$2=$O$20,$O$2=$O$21),Best1!$F$12,IF(OR($O$2=$O$7,$O$2=$O$8,$O$2=$O$18,$O$2=$O$19),Best1!$F$14,IF(OR($O$2=$O$5,$O$2=$O$6,$O$2=$O$12,$O$2=$O$13),Best1!$F$15,""))))))) ->  | AW7: =IF(ISBLANK(K7),"",IF(Best1!$C$3="","",ROUND(SUM(Best1!$C$3:$C$6),1))) ->  | AZ7: =IF(ISBLANK(K7),"",IF(Best1!$B$3="","",ROUND(AVERAGE(Best1!$D$3:$D$6),1))) -> 
A8: 4 | O8: ACDB | V8: 0 | W8: 0 | AF8: 0 | AG8: 0 | AJ8: 0 | AK8: 0 | AN8: =IF(ISBLANK(E8),"",IF(OR($O$2=$O$5,$O$2=$O$6,$O$2=$O$12,$O$2=$O$13),Best1!$F$10,IF(OR($O$2=$O$7,$O$2=$O$8,$O$2=$O$18,$O$2=$O$19),Best1!$F$11,IF(OR($O$2=$O$9,$O$2=$O$10,$O$2=$O$24,$O$2=$O$25),Best1!$F$12,IF(OR($O$2=$O$14,$O$2=$O$15,$O$2=$O$20,$O$2=$O$21),Best1!$F$13,IF(OR($O$2=$O$16,$O$2=$O$17,$O$2=$O$26,$O$2=$O$27),Best1!$F$14,IF(OR($O$2=$O$22,$O$2=$O$23,$O$2=$O$28,$O$2=$O$29),Best1!$F$15,""))))))) ->  | AQ8: =IF(ISBLANK(H8),"",IF(OR($O$2=$O$5,$O$2=$O$7,$O$2=$O$27,$O$2=$O$29),Best1!$F$13,IF(OR($O$2=$O$18,$O$2=$O$20,$O$2=$O$24,$O$2=$O$26),Best1!$F$10,IF(OR($O$2=$O$12,$O$2=$O$14,$O$2=$O$25,$O$2=$O$28),Best1!$F$11,IF(OR($O$2=$O$13,$O$2=$O$16,$O$2=$O$19,$O$2=$O$22),Best1!$F$12,IF(OR($O$2=$O$6,$O$2=$O$9,$O$2=$O$21,$O$2=$O$23),Best1!$F$14,IF(OR($O$2=$O$8,$O$2=$O$10,$O$2=$O$15,$O$2=$O$17),Best1!$F$15,""))))))) ->  | AT8: =IF(ISBLANK(I8),"",IF(OR($O$2=$O$9,$O$2=$O$10,$O$2=$O$24,$O$2=$O$25),Best1!$F$13,IF(OR($O$2=$O$22,$O$2=$O$23,$O$2=$O$28,$O$2=$O$29),Best1!$F$10,IF(OR($O$2=$O$16,$O$2=$O$17,$O$2=$O$26,$O$2=$O$27),Best1!$F$11,IF(OR($O$2=$O$14,$O$2=$O$15,$O$2=$O$20,$O$2=$O$21),Best1!$F$12,IF(OR($O$2=$O$7,$O$2=$O$8,$O$2=$O$18,$O$2=$O$19),Best1!$F$14,IF(OR($O$2=$O$5,$O$2=$O$6,$O$2=$O$12,$O$2=$O$13),Best1!$F$15,""))))))) ->  | AW8: =IF(ISBLANK(K8),"",IF(Best1!$C$3="","",ROUND(SUM(Best1!$C$3:$C$6),1))) ->  | AZ8: =IF(ISBLANK(K8),"",IF(Best1!$B$3="","",ROUND(AVERAGE(Best1!$D$3:$D$6),1))) -> 
A9: 5 | O9: ADBC | V9: 0 | W9: 0 | AF9: 0 | AG9: 0 | AJ9: 0 | AK9: 0 | AN9: =IF(ISBLANK(E9),"",IF(OR($O$2=$O$5,$O$2=$O$6,$O$2=$O$12,$O$2=$O$13),Best1!$F$10,IF(OR($O$2=$O$7,$O$2=$O$8,$O$2=$O$18,$O$2=$O$19),Best1!$F$11,IF(OR($O$2=$O$9,$O$2=$O$10,$O$2=$O$24,$O$2=$O$25),Best1!$F$12,IF(OR($O$2=$O$14,$O$2=$O$15,$O$2=$O$20,$O$2=$O$21),Best1!$F$13,IF(OR($O$2=$O$16,$O$2=$O$17,$O$2=$O$26,$O$2=$O$27),Best1!$F$14,IF(OR($O$2=$O$22,$O$2=$O$23,$O$2=$O$28,$O$2=$O$29),Best1!$F$15,""))))))) ->  | AQ9: =IF(ISBLANK(H9),"",IF(OR($O$2=$O$5,$O$2=$O$7,$O$2=$O$27,$O$2=$O$29),Best1!$F$13,IF(OR($O$2=$O$18,$O$2=$O$20,$O$2=$O$24,$O$2=$O$26),Best1!$F$10,IF(OR($O$2=$O$12,$O$2=$O$14,$O$2=$O$25,$O$2=$O$28),Best1!$F$11,IF(OR($O$2=$O$13,$O$2=$O$16,$O$2=$O$19,$O$2=$O$22),Best1!$F$12,IF(OR($O$2=$O$6,$O$2=$O$9,$O$2=$O$21,$O$2=$O$23),Best1!$F$14,IF(OR($O$2=$O$8,$O$2=$O$10,$O$2=$O$15,$O$2=$O$17),Best1!$F$15,""))))))) ->  | AT9: =IF(ISBLANK(I9),"",IF(OR($O$2=$O$9,$O$2=$O$10,$O$2=$O$24,$O$2=$O$25),Best1!$F$13,IF(OR($O$2=$O$22,$O$2=$O$23,$O$2=$O$28,$O$2=$O$29),Best1!$F$10,IF(OR($O$2=$O$16,$O$2=$O$17,$O$2=$O$26,$O$2=$O$27),Best1!$F$11,IF(OR($O$2=$O$14,$O$2=$O$15,$O$2=$O$20,$O$2=$O$21),Best1!$F$12,IF(OR($O$2=$O$7,$O$2=$O$8,$O$2=$O$18,$O$2=$O$19),Best1!$F$14,IF(OR($O$2=$O$5,$O$2=$O$6,$O$2=$O$12,$O$2=$O$13),Best1!$F$15,""))))))) ->  | AW9: =IF(ISBLANK(K9),"",IF(Best1!$C$3="","",ROUND(SUM(Best1!$C$3:$C$6),1))) ->  | AZ9: =IF(ISBLANK(K9),"",IF(Best1!$B$3="","",ROUND(AVERAGE(Best1!$D$3:$D$6),1))) -> 
A10: 6 | O10: ADCB | V10: 0 | W10: 0 | AF10: 0 | AG10: 0 | AJ10: 0 | AK10: 0 | AN10: =IF(ISBLANK(E10),"",IF(OR($O$2=$O$5,$O$2=$O$6,$O$2=$O$12,$O$2=$O$13),Best1!$F$10,IF(OR($O$2=$O$7,$O$2=$O$8,$O$2=$O$18,$O$2=$O$19),Best1!$F$11,IF(OR($O$2=$O$9,$O$2=$O$10,$O$2=$O$24,$O$2=$O$25),Best1!$F$12,IF(OR($O$2=$O$14,$O$2=$O$15,$O$2=$O$20,$O$2=$O$21),Best1!$F$13,IF(OR($O$2=$O$16,$O$2=$O$17,$O$2=$O$26,$O$2=$O$27),Best1!$F$14,IF(OR($O$2=$O$22,$O$2=$O$23,$O$2=$O$28,$O$2=$O$29),Best1!$F$15,""))))))) ->  | AQ10: =IF(ISBLANK(H10),"",IF(OR($O$2=$O$5,$O$2=$O$7,$O$2=$O$27,$O$2=$O$29),Best1!$F$13,IF(OR($O$2=$O$18,$O$2=$O$20,$O$2=$O$24,$O$2=$O$26),Best1!$F$10,IF(OR($O$2=$O$12,$O$2=$O$14,$O$2=$O$25,$O$2=$O$28),Best1!$F$11,IF(OR($O$2=$O$13,$O$2=$O$16,$O$2=$O$19,$O$2=$O$22),Best1!$F$12,IF(OR($O$2=$O$6,$O$2=$O$9,$O$2=$O$21,$O$2=$O$23),Best1!$F$14,IF(OR($O$2=$O$8,$O$2=$O$10,$O$2=$O$15,$O$2=$O$17),Best1!$F$15,""))))))) ->  | AT10: =IF(ISBLANK(I10),"",IF(OR($O$2=$O$9,$O$2=$O$10,$O$2=$O$24,$O$2=$O$25),Best1!$F$13,IF(OR($O$2=$O$22,$O$2=$O$23,$O$2=$O$28,$O$2=$O$29),Best1!$F$10,IF(OR($O$2=$O$16,$O$2=$O$17,$O$2=$O$26,$O$2=$O$27),Best1!$F$11,IF(OR($O$2=$O$14,$O$2=$O$15,$O$2=$O$20,$O$2=$O$21),Best1!$F$12,IF(OR($O$2=$O$7,$O$2=$O$8,$O$2=$O$18,$O$2=$O$19),Best1!$F$14,IF(OR($O$2=$O$5,$O$2=$O$6,$O$2=$O$12,$O$2=$O$13),Best1!$F$15,""))))))) ->  | AW10: =IF(ISBLANK(K10),"",IF(Best1!$C$3="","",ROUND(SUM(Best1!$C$3:$C$6),1))) ->  | AZ10: =IF(ISBLANK(K10),"",IF(Best1!$B$3="","",ROUND(AVERAGE(Best1!$D$3:$D$6),1))) -> 
A11: 7 | O11: ADCB | V11: 0 | W11: 0 | AF11: 0 | AG11: 0 | AJ11: 0 | AK11: 0 | AN11: =IF(ISBLANK(E11),"",IF(OR($O$2=$O$5,$O$2=$O$6,$O$2=$O$12,$O$2=$O$13),Best1!$F$10,IF(OR($O$2=$O$7,$O$2=$O$8,$O$2=$O$18,$O$2=$O$19),Best1!$F$11,IF(OR($O$2=$O$9,$O$2=$O$10,$O$2=$O$24,$O$2=$O$25),Best1!$F$12,IF(OR($O$2=$O$14,$O$2=$O$15,$O$2=$O$20,$O$2=$O$21),Best1!$F$13,IF(OR($O$2=$O$16,$O$2=$O$17,$O$2=$O$26,$O$2=$O$27),Best1!$F$14,IF(OR($O$2=$O$22,$O$2=$O$23,$O$2=$O$28,$O$2=$O$29),Best1!$F$15,""))))))) ->  | AQ11: =IF(ISBLANK(H11),"",IF(OR($O$2=$O$5,$O$2=$O$7,$O$2=$O$27,$O$2=$O$29),Best1!$F$13,IF(OR($O$2=$O$18,$O$2=$O$20,$O$2=$O$24,$O$2=$O$26),Best1!$F$10,IF(OR($O$2=$O$12,$O$2=$O$14,$O$2=$O$25,$O$2=$O$28),Best1!$F$11,IF(OR($O$2=$O$13,$O$2=$O$16,$O$2=$O$19,$O$2=$O$22),Best1!$F$12,IF(OR($O$2=$O$6,$O$2=$O$9,$O$2=$O$21,$O$2=$O$23),Best1!$F$14,IF(OR($O$2=$O$8,$O$2=$O$10,$O$2=$O$15,$O$2=$O$17),Best1!$F$15,""))))))) ->  | AT11: =IF(ISBLANK(I11),"",IF(OR($O$2=$O$9,$O$2=$O$10,$O$2=$O$24,$O$2=$O$25),Best1!$F$13,IF(OR($O$2=$O$22,$O$2=$O$23,$O$2=$O$28,$O$2=$O$29),Best1!$F$10,IF(OR($O$2=$O$16,$O$2=$O$17,$O$2=$O$26,$O$2=$O$27),Best1!$F$11,IF(OR($O$2=$O$14,$O$2=$O$15,$O$2=$O$20,$O$2=$O$21),Best1!$F$12,IF(OR($O$2=$O$7,$O$2=$O$8,$O$2=$O$18,$O$2=$O$19),Best1!$F$14,IF(OR($O$2=$O$5,$O$2=$O$6,$O$2=$O$12,$O$2=$O$13),Best1!$F$15,""))))))) ->  | AW11: =IF(ISBLANK(K11),"",IF(Best1!$C$3="","",ROUND(SUM(Best1!$C$3:$C$6),1))) ->  | AZ11: =IF(ISBLANK(K11),"",IF(Best1!$B$3="","",ROUND(AVERAGE(Best1!$D$3:$D$6),1))) -> 
A12: 8 | O12: BACD | V12: 0 | W12: 0 | AF12: 0 | AG12: 0 | AJ12: 0 | AK12: 0 | AN12: =IF(ISBLANK(E12),"",IF(OR($O$2=$O$5,$O$2=$O$6,$O$2=$O$12,$O$2=$O$13),Best1!$F$10,IF(OR($O$2=$O$7,$O$2=$O$8,$O$2=$O$18,$O$2=$O$19),Best1!$F$11,IF(OR($O$2=$O$9,$O$2=$O$10,$O$2=$O$24,$O$2=$O$25),Best1!$F$12,IF(OR($O$2=$O$14,$O$2=$O$15,$O$2=$O$20,$O$2=$O$21),Best1!$F$13,IF(OR($O$2=$O$16,$O$2=$O$17,$O$2=$O$26,$O$2=$O$27),Best1!$F$14,IF(OR($O$2=$O$22,$O$2=$O$23,$O$2=$O$28,$O$2=$O$29),Best1!$F$15,""))))))) ->  | AQ12: =IF(ISBLANK(H12),"",IF(OR($O$2=$O$5,$O$2=$O$7,$O$2=$O$27,$O$2=$O$29),Best1!$F$13,IF(OR($O$2=$O$18,$O$2=$O$20,$O$2=$O$24,$O$2=$O$26),Best1!$F$10,IF(OR($O$2=$O$12,$O$2=$O$14,$O$2=$O$25,$O$2=$O$28),Best1!$F$11,IF(OR($O$2=$O$13,$O$2=$O$16,$O$2=$O$19,$O$2=$O$22),Best1!$F$12,IF(OR($O$2=$O$6,$O$2=$O$9,$O$2=$O$21,$O$2=$O$23),Best1!$F$14,IF(OR($O$2=$O$8,$O$2=$O$10,$O$2=$O$15,$O$2=$O$17),Best1!$F$15,""))))))) ->  | AT12: =IF(ISBLANK(I12),"",IF(OR($O$2=$O$9,$O$2=$O$10,$O$2=$O$24,$O$2=$O$25),Best1!$F$13,IF(OR($O$2=$O$22,$O$2=$O$23,$O$2=$O$28,$O$2=$O$29),Best1!$F$10,IF(OR($O$2=$O$16,$O$2=$O$17,$O$2=$O$26,$O$2=$O$27),Best1!$F$11,IF(OR($O$2=$O$14,$O$2=$O$15,$O$2=$O$20,$O$2=$O$21),Best1!$F$12,IF(OR($O$2=$O$7,$O$2=$O$8,$O$2=$O$18,$O$2=$O$19),Best1!$F$14,IF(OR($O$2=$O$5,$O$2=$O$6,$O$2=$O$12,$O$2=$O$13),Best1!$F$15,""))))))) ->  | AW12: =IF(ISBLANK(K12),"",IF(Best1!$C$3="","",ROUND(SUM(Best1!$C$3:$C$6),1))) ->  | AZ12: =IF(ISBLANK(K12),"",IF(Best1!$B$3="","",ROUND(AVERAGE(Best1!$D$3:$D$6),1))) -> 
A13: 9 | O13: BADC | V13: 0 | W13: 0 | AF13: 0 | AG13: 0 | AJ13: 0 | AK13: 0 | AN13: =IF(ISBLANK(E13),"",IF(OR($O$2=$O$5,$O$2=$O$6,$O$2=$O$12,$O$2=$O$13),Best1!$F$10,IF(OR($O$2=$O$7,$O$2=$O$8,$O$2=$O$18,$O$2=$O$19),Best1!$F$11,IF(OR($O$2=$O$9,$O$2=$O$10,$O$2=$O$24,$O$2=$O$25),Best1!$F$12,IF(OR($O$2=$O$14,$O$2=$O$15,$O$2=$O$20,$O$2=$O$21),Best1!$F$13,IF(OR($O$2=$O$16,$O$2=$O$17,$O$2=$O$26,$O$2=$O$27),Best1!$F$14,IF(OR($O$2=$O$22,$O$2=$O$23,$O$2=$O$28,$O$2=$O$29),Best1!$F$15,""))))))) ->  | AQ13: =IF(ISBLANK(H13),"",IF(OR($O$2=$O$5,$O$2=$O$7,$O$2=$O$27,$O$2=$O$29),Best1!$F$13,IF(OR($O$2=$O$18,$O$2=$O$20,$O$2=$O$24,$O$2=$O$26),Best1!$F$10,IF(OR($O$2=$O$12,$O$2=$O$14,$O$2=$O$25,$O$2=$O$28),Best1!$F$11,IF(OR($O$2=$O$13,$O$2=$O$16,$O$2=$O$19,$O$2=$O$22),Best1!$F$12,IF(OR($O$2=$O$6,$O$2=$O$9,$O$2=$O$21,$O$2=$O$23),Best1!$F$14,IF(OR($O$2=$O$8,$O$2=$O$10,$O$2=$O$15,$O$2=$O$17),Best1!$F$15,""))))))) ->  | AT13: =IF(ISBLANK(I13),"",IF(OR($O$2=$O$9,$O$2=$O$10,$O$2=$O$24,$O$2=$O$25),Best1!$F$13,IF(OR($O$2=$O$22,$O$2=$O$23,$O$2=$O$28,$O$2=$O$29),Best1!$F$10,IF(OR($O$2=$O$16,$O$2=$O$17,$O$2=$O$26,$O$2=$O$27),Best1!$F$11,IF(OR($O$2=$O$14,$O$2=$O$15,$O$2=$O$20,$O$2=$O$21),Best1!$F$12,IF(OR($O$2=$O$7,$O$2=$O$8,$O$2=$O$18,$O$2=$O$19),Best1!$F$14,IF(OR($O$2=$O$5,$O$2=$O$6,$O$2=$O$12,$O$2=$O$13),Best1!$F$15,""))))))) ->  | AW13: =IF(ISBLANK(K13),"",IF(Best1!$C$3="","",ROUND(SUM(Best1!$C$3:$C$6),1))) ->  | AZ13: =IF(ISBLANK(K13),"",IF(Best1!$B$3="","",ROUND(AVERAGE(Best1!$D$3:$D$6),1))) -> 
A14: 10 | O14: BCAD | V14: 0 | W14: 0 | AF14: 0 | AG14: 0 | AJ14: 0 | AK14: 0 | AN14: =IF(ISBLANK(E14),"",IF(OR($O$2=$O$5,$O$2=$O$6,$O$2=$O$12,$O$2=$O$13),Best1!$F$10,IF(OR($O$2=$O$7,$O$2=$O$8,$O$2=$O$18,$O$2=$O$19),Best1!$F$11,IF(OR($O$2=$O$9,$O$2=$O$10,$O$2=$O$24,$O$2=$O$25),Best1!$F$12,IF(OR($O$2=$O$14,$O$2=$O$15,$O$2=$O$20,$O$2=$O$21),Best1!$F$13,IF(OR($O$2=$O$16,$O$2=$O$17,$O$2=$O$26,$O$2=$O$27),Best1!$F$14,IF(OR($O$2=$O$22,$O$2=$O$23,$O$2=$O$28,$O$2=$O$29),Best1!$F$15,""))))))) ->  | AQ14: =IF(ISBLANK(H14),"",IF(OR($O$2=$O$5,$O$2=$O$7,$O$2=$O$27,$O$2=$O$29),Best1!$F$13,IF(OR($O$2=$O$18,$O$2=$O$20,$O$2=$O$24,$O$2=$O$26),Best1!$F$10,IF(OR($O$2=$O$12,$O$2=$O$14,$O$2=$O$25,$O$2=$O$28),Best1!$F$11,IF(OR($O$2=$O$13,$O$2=$O$16,$O$2=$O$19,$O$2=$O$22),Best1!$F$12,IF(OR($O$2=$O$6,$O$2=$O$9,$O$2=$O$21,$O$2=$O$23),Best1!$F$14,IF(OR($O$2=$O$8,$O$2=$O$10,$O$2=$O$15,$O$2=$O$17),Best1!$F$15,""))))))) ->  | AT14: =IF(ISBLANK(I14),"",IF(OR($O$2=$O$9,$O$2=$O$10,$O$2=$O$24,$O$2=$O$25),Best1!$F$13,IF(OR($O$2=$O$22,$O$2=$O$23,$O$2=$O$28,$O$2=$O$29),Best1!$F$10,IF(OR($O$2=$O$16,$O$2=$O$17,$O$2=$O$26,$O$2=$O$27),Best1!$F$11,IF(OR($O$2=$O$14,$O$2=$O$15,$O$2=$O$20,$O$2=$O$21),Best1!$F$12,IF(OR($O$2=$O$7,$O$2=$O$8,$O$2=$O$18,$O$2=$O$19),Best1!$F$14,IF(OR($O$2=$O$5,$O$2=$O$6,$O$2=$O$12,$O$2=$O$13),Best1!$F$15,""))))))) ->  | AW14: =IF(ISBLANK(K14),"",IF(Best1!$C$3="","",ROUND(SUM(Best1!$C$3:$C$6),1))) ->  | AZ14: =IF(ISBLANK(K14),"",IF(Best1!$B$3="","",ROUND(AVERAGE(Best1!$D$3:$D$6),1))) -> 
A15: 11 | O15: BCDA | V15: 0 | W15: 0 | AF15: 0 | AG15: 0 | AJ15: 0 | AK15: 0 | AN15: =IF(ISBLANK(E15),"",IF(OR($O$2=$O$5,$O$2=$O$6,$O$2=$O$12,$O$2=$O$13),Best1!$F$10,IF(OR($O$2=$O$7,$O$2=$O$8,$O$2=$O$18,$O$2=$O$19),Best1!$F$11,IF(OR($O$2=$O$9,$O$2=$O$10,$O$2=$O$24,$O$2=$O$25),Best1!$F$12,IF(OR($O$2=$O$14,$O$2=$O$15,$O$2=$O$20,$O$2=$O$21),Best1!$F$13,IF(OR($O$2=$O$16,$O$2=$O$17,$O$2=$O$26,$O$2=$O$27),Best1!$F$14,IF(OR($O$2=$O$22,$O$2=$O$23,$O$2=$O$28,$O$2=$O$29),Best1!$F$15,""))))))) ->  | AQ15: =IF(ISBLANK(H15),"",IF(OR($O$2=$O$5,$O$2=$O$7,$O$2=$O$27,$O$2=$O$29),Best1!$F$13,IF(OR($O$2=$O$18,$O$2=$O$20,$O$2=$O$24,$O$2=$O$26),Best1!$F$10,IF(OR($O$2=$O$12,$O$2=$O$14,$O$2=$O$25,$O$2=$O$28),Best1!$F$11,IF(OR($O$2=$O$13,$O$2=$O$16,$O$2=$O$19,$O$2=$O$22),Best1!$F$12,IF(OR($O$2=$O$6,$O$2=$O$9,$O$2=$O$21,$O$2=$O$23),Best1!$F$14,IF(OR($O$2=$O$8,$O$2=$O$10,$O$2=$O$15,$O$2=$O$17),Best1!$F$15,""))))))) ->  | AT15: =IF(ISBLANK(I15),"",IF(OR($O$2=$O$9,$O$2=$O$10,$O$2=$O$24,$O$2=$O$25),Best1!$F$13,IF(OR($O$2=$O$22,$O$2=$O$23,$O$2=$O$28,$O$2=$O$29),Best1!$F$10,IF(OR($O$2=$O$16,$O$2=$O$17,$O$2=$O$26,$O$2=$O$27),Best1!$F$11,IF(OR($O$2=$O$14,$O$2=$O$15,$O$2=$O$20,$O$2=$O$21),Best1!$F$12,IF(OR($O$2=$O$7,$O$2=$O$8,$O$2=$O$18,$O$2=$O$19),Best1!$F$14,IF(OR($O$2=$O$5,$O$2=$O$6,$O$2=$O$12,$O$2=$O$13),Best1!$F$15,""))))))) ->  | AW15: =IF(ISBLANK(K15),"",IF(Best1!$C$3="","",ROUND(SUM(Best1!$C$3:$C$6),1))) ->  | AZ15: =IF(ISBLANK(K15),"",IF(Best1!$B$3="","",ROUND(AVERAGE(Best1!$D$3:$D$6),1))) -> 
A16: 12 | O16: BDAC | V16: 0 | W16: 0 | AF16: 0 | AG16: 0 | AJ16: 0 | AK16: 0 | AN16: =IF(ISBLANK(E16),"",IF(OR($O$2=$O$5,$O$2=$O$6,$O$2=$O$12,$O$2=$O$13),Best1!$F$10,IF(OR($O$2=$O$7,$O$2=$O$8,$O$2=$O$18,$O$2=$O$19),Best1!$F$11,IF(OR($O$2=$O$9,$O$2=$O$10,$O$2=$O$24,$O$2=$O$25),Best1!$F$12,IF(OR($O$2=$O$14,$O$2=$O$15,$O$2=$O$20,$O$2=$O$21),Best1!$F$13,IF(OR($O$2=$O$16,$O$2=$O$17,$O$2=$O$26,$O$2=$O$27),Best1!$F$14,IF(OR($O$2=$O$22,$O$2=$O$23,$O$2=$O$28,$O$2=$O$29),Best1!$F$15,""))))))) ->  | AQ16: =IF(ISBLANK(H16),"",IF(OR($O$2=$O$5,$O$2=$O$7,$O$2=$O$27,$O$2=$O$29),Best1!$F$13,IF(OR($O$2=$O$18,$O$2=$O$20,$O$2=$O$24,$O$2=$O$26),Best1!$F$10,IF(OR($O$2=$O$12,$O$2=$O$14,$O$2=$O$25,$O$2=$O$28),Best1!$F$11,IF(OR($O$2=$O$13,$O$2=$O$16,$O$2=$O$19,$O$2=$O$22),Best1!$F$12,IF(OR($O$2=$O$6,$O$2=$O$9,$O$2=$O$21,$O$2=$O$23),Best1!$F$14,IF(OR($O$2=$O$8,$O$2=$O$10,$O$2=$O$15,$O$2=$O$17),Best1!$F$15,""))))))) ->  | AT16: =IF(ISBLANK(I16),"",IF(OR($O$2=$O$9,$O$2=$O$10,$O$2=$O$24,$O$2=$O$25),Best1!$F$13,IF(OR($O$2=$O$22,$O$2=$O$23,$O$2=$O$28,$O$2=$O$29),Best1!$F$10,IF(OR($O$2=$O$16,$O$2=$O$17,$O$2=$O$26,$O$2=$O$27),Best1!$F$11,IF(OR($O$2=$O$14,$O$2=$O$15,$O$2=$O$20,$O$2=$O$21),Best1!$F$12,IF(OR($O$2=$O$7,$O$2=$O$8,$O$2=$O$18,$O$2=$O$19),Best1!$F$14,IF(OR($O$2=$O$5,$O$2=$O$6,$O$2=$O$12,$O$2=$O$13),Best1!$F$15,""))))))) ->  | AW16: =IF(ISBLANK(K16),"",IF(Best1!$C$3="","",ROUND(SUM(Best1!$C$3:$C$6),1))) ->  | AZ16: =IF(ISBLANK(K16),"",IF(Best1!$B$3="","",ROUND(AVERAGE(Best1!$D$3:$D$6),1))) ->  | BO16: =IF(OR(S16="",S16=0),"",S16*1) ->  | CE16: =IF(OR(AI16="",AI16=0),"",AI16*1) -> 
A17: 13 | O17: BDCA | V17: 0 | W17: 0 | AF17: 0 | AG17: 0 | AJ17: 0 | AK17: 0 | AN17: =IF(ISBLANK(E17),"",IF(OR($O$2=$O$5,$O$2=$O$6,$O$2=$O$12,$O$2=$O$13),Best1!$F$10,IF(OR($O$2=$O$7,$O$2=$O$8,$O$2=$O$18,$O$2=$O$19),Best1!$F$11,IF(OR($O$2=$O$9,$O$2=$O$10,$O$2=$O$24,$O$2=$O$25),Best1!$F$12,IF(OR($O$2=$O$14,$O$2=$O$15,$O$2=$O$20,$O$2=$O$21),Best1!$F$13,IF(OR($O$2=$O$16,$O$2=$O$17,$O$2=$O$26,$O$2=$O$27),Best1!$F$14,IF(OR($O$2=$O$22,$O$2=$O$23,$O$2=$O$28,$O$2=$O$29),Best1!$F$15,""))))))) ->  | AQ17: =IF(ISBLANK(H17),"",IF(OR($O$2=$O$5,$O$2=$O$7,$O$2=$O$27,$O$2=$O$29),Best1!$F$13,IF(OR($O$2=$O$18,$O$2=$O$20,$O$2=$O$24,$O$2=$O$26),Best1!$F$10,IF(OR($O$2=$O$12,$O$2=$O$14,$O$2=$O$25,$O$2=$O$28),Best1!$F$11,IF(OR($O$2=$O$13,$O$2=$O$16,$O$2=$O$19,$O$2=$O$22),Best1!$F$12,IF(OR($O$2=$O$6,$O$2=$O$9,$O$2=$O$21,$O$2=$O$23),Best1!$F$14,IF(OR($O$2=$O$8,$O$2=$O$10,$O$2=$O$15,$O$2=$O$17),Best1!$F$15,""))))))) ->  | AT17: =IF(ISBLANK(I17),"",IF(OR($O$2=$O$9,$O$2=$O$10,$O$2=$O$24,$O$2=$O$25),Best1!$F$13,IF(OR($O$2=$O$22,$O$2=$O$23,$O$2=$O$28,$O$2=$O$29),Best1!$F$10,IF(OR($O$2=$O$16,$O$2=$O$17,$O$2=$O$26,$O$2=$O$27),Best1!$F$11,IF(OR($O$2=$O$14,$O$2=$O$15,$O$2=$O$20,$O$2=$O$21),Best1!$F$12,IF(OR($O$2=$O$7,$O$2=$O$8,$O$2=$O$18,$O$2=$O$19),Best1!$F$14,IF(OR($O$2=$O$5,$O$2=$O$6,$O$2=$O$12,$O$2=$O$13),Best1!$F$15,""))))))) ->  | AW17: =IF(ISBLANK(K17),"",IF(Best1!$C$3="","",ROUND(SUM(Best1!$C$3:$C$6),1))) ->  | AZ17: =IF(ISBLANK(K17),"",IF(Best1!$B$3="","",ROUND(AVERAGE(Best1!$D$3:$D$6),1))) -> 
A18: 14 | O18: CABD | V18: 0 | W18: 0 | AF18: 0 | AG18: 0 | AJ18: 0 | AK18: 0 | AN18: =IF(ISBLANK(E18),"",IF(OR($O$2=$O$5,$O$2=$O$6,$O$2=$O$12,$O$2=$O$13),Best1!$F$10,IF(OR($O$2=$O$7,$O$2=$O$8,$O$2=$O$18,$O$2=$O$19),Best1!$F$11,IF(OR($O$2=$O$9,$O$2=$O$10,$O$2=$O$24,$O$2=$O$25),Best1!$F$12,IF(OR($O$2=$O$14,$O$2=$O$15,$O$2=$O$20,$O$2=$O$21),Best1!$F$13,IF(OR($O$2=$O$16,$O$2=$O$17,$O$2=$O$26,$O$2=$O$27),Best1!$F$14,IF(OR($O$2=$O$22,$O$2=$O$23,$O$2=$O$28,$O$2=$O$29),Best1!$F$15,""))))))) ->  | AQ18: =IF(ISBLANK(H18),"",IF(OR($O$2=$O$5,$O$2=$O$7,$O$2=$O$27,$O$2=$O$29),Best1!$F$13,IF(OR($O$2=$O$18,$O$2=$O$20,$O$2=$O$24,$O$2=$O$26),Best1!$F$10,IF(OR($O$2=$O$12,$O$2=$O$14,$O$2=$O$25,$O$2=$O$28),Best1!$F$11,IF(OR($O$2=$O$13,$O$2=$O$16,$O$2=$O$19,$O$2=$O$22),Best1!$F$12,IF(OR($O$2=$O$6,$O$2=$O$9,$O$2=$O$21,$O$2=$O$23),Best1!$F$14,IF(OR($O$2=$O$8,$O$2=$O$10,$O$2=$O$15,$O$2=$O$17),Best1!$F$15,""))))))) ->  | AT18: =IF(ISBLANK(I18),"",IF(OR($O$2=$O$9,$O$2=$O$10,$O$2=$O$24,$O$2=$O$25),Best1!$F$13,IF(OR($O$2=$O$22,$O$2=$O$23,$O$2=$O$28,$O$2=$O$29),Best1!$F$10,IF(OR($O$2=$O$16,$O$2=$O$17,$O$2=$O$26,$O$2=$O$27),Best1!$F$11,IF(OR($O$2=$O$14,$O$2=$O$15,$O$2=$O$20,$O$2=$O$21),Best1!$F$12,IF(OR($O$2=$O$7,$O$2=$O$8,$O$2=$O$18,$O$2=$O$19),Best1!$F$14,IF(OR($O$2=$O$5,$O$2=$O$6,$O$2=$O$12,$O$2=$O$13),Best1!$F$15,""))))))) ->  | AW18: =IF(ISBLANK(K18),"",IF(Best1!$C$3="","",ROUND(SUM(Best1!$C$3:$C$6),1))) ->  | AZ18: =IF(ISBLANK(K18),"",IF(Best1!$B$3="","",ROUND(AVERAGE(Best1!$D$3:$D$6),1))) -> 
A19: 15 | O19: CADB | V19: 0 | W19: 0 | AF19: 0 | AG19: 0 | AJ19: 0 | AK19: 0 | AN19: =IF(ISBLANK(E19),"",IF(OR($O$2=$O$5,$O$2=$O$6,$O$2=$O$12,$O$2=$O$13),Best1!$F$10,IF(OR($O$2=$O$7,$O$2=$O$8,$O$2=$O$18,$O$2=$O$19),Best1!$F$11,IF(OR($O$2=$O$9,$O$2=$O$10,$O$2=$O$24,$O$2=$O$25),Best1!$F$12,IF(OR($O$2=$O$14,$O$2=$O$15,$O$2=$O$20,$O$2=$O$21),Best1!$F$13,IF(OR($O$2=$O$16,$O$2=$O$17,$O$2=$O$26,$O$2=$O$27),Best1!$F$14,IF(OR($O$2=$O$22,$O$2=$O$23,$O$2=$O$28,$O$2=$O$29),Best1!$F$15,""))))))) ->  | AQ19: =IF(ISBLANK(H19),"",IF(OR($O$2=$O$5,$O$2=$O$7,$O$2=$O$27,$O$2=$O$29),Best1!$F$13,IF(OR($O$2=$O$18,$O$2=$O$20,$O$2=$O$24,$O$2=$O$26),Best1!$F$10,IF(OR($O$2=$O$12,$O$2=$O$14,$O$2=$O$25,$O$2=$O$28),Best1!$F$11,IF(OR($O$2=$O$13,$O$2=$O$16,$O$2=$O$19,$O$2=$O$22),Best1!$F$12,IF(OR($O$2=$O$6,$O$2=$O$9,$O$2=$O$21,$O$2=$O$23),Best1!$F$14,IF(OR($O$2=$O$8,$O$2=$O$10,$O$2=$O$15,$O$2=$O$17),Best1!$F$15,""))))))) ->  | AT19: =IF(ISBLANK(I19),"",IF(OR($O$2=$O$9,$O$2=$O$10,$O$2=$O$24,$O$2=$O$25),Best1!$F$13,IF(OR($O$2=$O$22,$O$2=$O$23,$O$2=$O$28,$O$2=$O$29),Best1!$F$10,IF(OR($O$2=$O$16,$O$2=$O$17,$O$2=$O$26,$O$2=$O$27),Best1!$F$11,IF(OR($O$2=$O$14,$O$2=$O$15,$O$2=$O$20,$O$2=$O$21),Best1!$F$12,IF(OR($O$2=$O$7,$O$2=$O$8,$O$2=$O$18,$O$2=$O$19),Best1!$F$14,IF(OR($O$2=$O$5,$O$2=$O$6,$O$2=$O$12,$O$2=$O$13),Best1!$F$15,""))))))) ->  | AW19: =IF(ISBLANK(K19),"",IF(Best1!$C$3="","",ROUND(SUM(Best1!$C$3:$C$6),1))) ->  | AZ19: =IF(ISBLANK(K19),"",IF(Best1!$B$3="","",ROUND(AVERAGE(Best1!$D$3:$D$6),1))) -> 
A20: 16 | O20: CBAD | V20: 0 | W20: 0 | AF20: 0 | AG20: 0 | AJ20: 0 | AK20: 0 | AN20: =IF(ISBLANK(E20),"",IF(OR($O$2=$O$5,$O$2=$O$6,$O$2=$O$12,$O$2=$O$13),Best1!$F$10,IF(OR($O$2=$O$7,$O$2=$O$8,$O$2=$O$18,$O$2=$O$19),Best1!$F$11,IF(OR($O$2=$O$9,$O$2=$O$10,$O$2=$O$24,$O$2=$O$25),Best1!$F$12,IF(OR($O$2=$O$14,$O$2=$O$15,$O$2=$O$20,$O$2=$O$21),Best1!$F$13,IF(OR($O$2=$O$16,$O$2=$O$17,$O$2=$O$26,$O$2=$O$27),Best1!$F$14,IF(OR($O$2=$O$22,$O$2=$O$23,$O$2=$O$28,$O$2=$O$29),Best1!$F$15,""))))))) ->  | AQ20: =IF(ISBLANK(H20),"",IF(OR($O$2=$O$5,$O$2=$O$7,$O$2=$O$27,$O$2=$O$29),Best1!$F$13,IF(OR($O$2=$O$18,$O$2=$O$20,$O$2=$O$24,$O$2=$O$26),Best1!$F$10,IF(OR($O$2=$O$12,$O$2=$O$14,$O$2=$O$25,$O$2=$O$28),Best1!$F$11,IF(OR($O$2=$O$13,$O$2=$O$16,$O$2=$O$19,$O$2=$O$22),Best1!$F$12,IF(OR($O$2=$O$6,$O$2=$O$9,$O$2=$O$21,$O$2=$O$23),Best1!$F$14,IF(OR($O$2=$O$8,$O$2=$O$10,$O$2=$O$15,$O$2=$O$17),Best1!$F$15,""))))))) ->  | AT20: =IF(ISBLANK(I20),"",IF(OR($O$2=$O$9,$O$2=$O$10,$O$2=$O$24,$O$2=$O$25),Best1!$F$13,IF(OR($O$2=$O$22,$O$2=$O$23,$O$2=$O$28,$O$2=$O$29),Best1!$F$10,IF(OR($O$2=$O$16,$O$2=$O$17,$O$2=$O$26,$O$2=$O$27),Best1!$F$11,IF(OR($O$2=$O$14,$O$2=$O$15,$O$2=$O$20,$O$2=$O$21),Best1!$F$12,IF(OR($O$2=$O$7,$O$2=$O$8,$O$2=$O$18,$O$2=$O$19),Best1!$F$14,IF(OR($O$2=$O$5,$O$2=$O$6,$O$2=$O$12,$O$2=$O$13),Best1!$F$15,""))))))) ->  | AW20: =IF(ISBLANK(K20),"",IF(Best1!$C$3="","",ROUND(SUM(Best1!$C$3:$C$6),1))) ->  | AZ20: =IF(ISBLANK(K20),"",IF(Best1!$B$3="","",ROUND(AVERAGE(Best1!$D$3:$D$6),1))) -> 
A21: 17 | O21: CBDA | V21: 0 | W21: 0 | AF21: 0 | AG21: 0 | AJ21: 0 | AK21: 0 | AN21: =IF(ISBLANK(E21),"",IF(OR($O$2=$O$5,$O$2=$O$6,$O$2=$O$12,$O$2=$O$13),Best1!$F$10,IF(OR($O$2=$O$7,$O$2=$O$8,$O$2=$O$18,$O$2=$O$19),Best1!$F$11,IF(OR($O$2=$O$9,$O$2=$O$10,$O$2=$O$24,$O$2=$O$25),Best1!$F$12,IF(OR($O$2=$O$14,$O$2=$O$15,$O$2=$O$20,$O$2=$O$21),Best1!$F$13,IF(OR($O$2=$O$16,$O$2=$O$17,$O$2=$O$26,$O$2=$O$27),Best1!$F$14,IF(OR($O$2=$O$22,$O$2=$O$23,$O$2=$O$28,$O$2=$O$29),Best1!$F$15,""))))))) ->  | AQ21: =IF(ISBLANK(H21),"",IF(OR($O$2=$O$5,$O$2=$O$7,$O$2=$O$27,$O$2=$O$29),Best1!$F$13,IF(OR($O$2=$O$18,$O$2=$O$20,$O$2=$O$24,$O$2=$O$26),Best1!$F$10,IF(OR($O$2=$O$12,$O$2=$O$14,$O$2=$O$25,$O$2=$O$28),Best1!$F$11,IF(OR($O$2=$O$13,$O$2=$O$16,$O$2=$O$19,$O$2=$O$22),Best1!$F$12,IF(OR($O$2=$O$6,$O$2=$O$9,$O$2=$O$21,$O$2=$O$23),Best1!$F$14,IF(OR($O$2=$O$8,$O$2=$O$10,$O$2=$O$15,$O$2=$O$17),Best1!$F$15,""))))))) ->  | AT21: =IF(ISBLANK(I21),"",IF(OR($O$2=$O$9,$O$2=$O$10,$O$2=$O$24,$O$2=$O$25),Best1!$F$13,IF(OR($O$2=$O$22,$O$2=$O$23,$O$2=$O$28,$O$2=$O$29),Best1!$F$10,IF(OR($O$2=$O$16,$O$2=$O$17,$O$2=$O$26,$O$2=$O$27),Best1!$F$11,IF(OR($O$2=$O$14,$O$2=$O$15,$O$2=$O$20,$O$2=$O$21),Best1!$F$12,IF(OR($O$2=$O$7,$O$2=$O$8,$O$2=$O$18,$O$2=$O$19),Best1!$F$14,IF(OR($O$2=$O$5,$O$2=$O$6,$O$2=$O$12,$O$2=$O$13),Best1!$F$15,""))))))) ->  | AW21: =IF(ISBLANK(K21),"",IF(Best1!$C$3="","",ROUND(SUM(Best1!$C$3:$C$6),1))) ->  | AZ21: =IF(ISBLANK(K21),"",IF(Best1!$B$3="","",ROUND(AVERAGE(Best1!$D$3:$D$6),1))) -> 
A22: 18 | O22: CDAB | V22: 0 | W22: 0 | AF22: 0 | AG22: 0 | AJ22: 0 | AK22: 0 | AN22: =IF(ISBLANK(E22),"",IF(OR($O$2=$O$5,$O$2=$O$6,$O$2=$O$12,$O$2=$O$13),Best1!$F$10,IF(OR($O$2=$O$7,$O$2=$O$8,$O$2=$O$18,$O$2=$O$19),Best1!$F$11,IF(OR($O$2=$O$9,$O$2=$O$10,$O$2=$O$24,$O$2=$O$25),Best1!$F$12,IF(OR($O$2=$O$14,$O$2=$O$15,$O$2=$O$20,$O$2=$O$21),Best1!$F$13,IF(OR($O$2=$O$16,$O$2=$O$17,$O$2=$O$26,$O$2=$O$27),Best1!$F$14,IF(OR($O$2=$O$22,$O$2=$O$23,$O$2=$O$28,$O$2=$O$29),Best1!$F$15,""))))))) ->  | AQ22: =IF(ISBLANK(H22),"",IF(OR($O$2=$O$5,$O$2=$O$7,$O$2=$O$27,$O$2=$O$29),Best1!$F$13,IF(OR($O$2=$O$18,$O$2=$O$20,$O$2=$O$24,$O$2=$O$26),Best1!$F$10,IF(OR($O$2=$O$12,$O$2=$O$14,$O$2=$O$25,$O$2=$O$28),Best1!$F$11,IF(OR($O$2=$O$13,$O$2=$O$16,$O$2=$O$19,$O$2=$O$22),Best1!$F$12,IF(OR($O$2=$O$6,$O$2=$O$9,$O$2=$O$21,$O$2=$O$23),Best1!$F$14,IF(OR($O$2=$O$8,$O$2=$O$10,$O$2=$O$15,$O$2=$O$17),Best1!$F$15,""))))))) ->  | AT22: =IF(ISBLANK(I22),"",IF(OR($O$2=$O$9,$O$2=$O$10,$O$2=$O$24,$O$2=$O$25),Best1!$F$13,IF(OR($O$2=$O$22,$O$2=$O$23,$O$2=$O$28,$O$2=$O$29),Best1!$F$10,IF(OR($O$2=$O$16,$O$2=$O$17,$O$2=$O$26,$O$2=$O$27),Best1!$F$11,IF(OR($O$2=$O$14,$O$2=$O$15,$O$2=$O$20,$O$2=$O$21),Best1!$F$12,IF(OR($O$2=$O$7,$O$2=$O$8,$O$2=$O$18,$O$2=$O$19),Best1!$F$14,IF(OR($O$2=$O$5,$O$2=$O$6,$O$2=$O$12,$O$2=$O$13),Best1!$F$15,""))))))) ->  | AW22: =IF(ISBLANK(K22),"",IF(Best1!$C$3="","",ROUND(SUM(Best1!$C$3:$C$6),1))) ->  | AZ22: =IF(ISBLANK(K22),"",IF(Best1!$B$3="","",ROUND(AVERAGE(Best1!$D$3:$D$6),1))) -> 
A23: 19 | O23: CDBA | V23: 0 | W23: 0 | AF23: 0 | AG23: 0 | AJ23: 0 | AK23: 0 | AN23: =IF(ISBLANK(E23),"",IF(OR($O$2=$O$5,$O$2=$O$6,$O$2=$O$12,$O$2=$O$13),Best1!$F$10,IF(OR($O$2=$O$7,$O$2=$O$8,$O$2=$O$18,$O$2=$O$19),Best1!$F$11,IF(OR($O$2=$O$9,$O$2=$O$10,$O$2=$O$24,$O$2=$O$25),Best1!$F$12,IF(OR($O$2=$O$14,$O$2=$O$15,$O$2=$O$20,$O$2=$O$21),Best1!$F$13,IF(OR($O$2=$O$16,$O$2=$O$17,$O$2=$O$26,$O$2=$O$27),Best1!$F$14,IF(OR($O$2=$O$22,$O$2=$O$23,$O$2=$O$28,$O$2=$O$29),Best1!$F$15,""))))))) ->  | AQ23: =IF(ISBLANK(H23),"",IF(OR($O$2=$O$5,$O$2=$O$7,$O$2=$O$27,$O$2=$O$29),Best1!$F$13,IF(OR($O$2=$O$18,$O$2=$O$20,$O$2=$O$24,$O$2=$O$26),Best1!$F$10,IF(OR($O$2=$O$12,$O$2=$O$14,$O$2=$O$25,$O$2=$O$28),Best1!$F$11,IF(OR($O$2=$O$13,$O$2=$O$16,$O$2=$O$19,$O$2=$O$22),Best1!$F$12,IF(OR($O$2=$O$6,$O$2=$O$9,$O$2=$O$21,$O$2=$O$23),Best1!$F$14,IF(OR($O$2=$O$8,$O$2=$O$10,$O$2=$O$15,$O$2=$O$17),Best1!$F$15,""))))))) ->  | AT23: =IF(ISBLANK(I23),"",IF(OR($O$2=$O$9,$O$2=$O$10,$O$2=$O$24,$O$2=$O$25),Best1!$F$13,IF(OR($O$2=$O$22,$O$2=$O$23,$O$2=$O$28,$O$2=$O$29),Best1!$F$10,IF(OR($O$2=$O$16,$O$2=$O$17,$O$2=$O$26,$O$2=$O$27),Best1!$F$11,IF(OR($O$2=$O$14,$O$2=$O$15,$O$2=$O$20,$O$2=$O$21),Best1!$F$12,IF(OR($O$2=$O$7,$O$2=$O$8,$O$2=$O$18,$O$2=$O$19),Best1!$F$14,IF(OR($O$2=$O$5,$O$2=$O$6,$O$2=$O$12,$O$2=$O$13),Best1!$F$15,""))))))) ->  | AW23: =IF(ISBLANK(K23),"",IF(Best1!$C$3="","",ROUND(SUM(Best1!$C$3:$C$6),1))) ->  | AZ23: =IF(ISBLANK(K23),"",IF(Best1!$B$3="","",ROUND(AVERAGE(Best1!$D$3:$D$6),1))) -> 
A24: 20 | O24: DABC | V24: 0 | W24: 0 | AF24: 0 | AG24: 0 | AJ24: 0 | AK24: 0 | AN24: =IF(ISBLANK(E24),"",IF(OR($O$2=$O$5,$O$2=$O$6,$O$2=$O$12,$O$2=$O$13),Best1!$F$10,IF(OR($O$2=$O$7,$O$2=$O$8,$O$2=$O$18,$O$2=$O$19),Best1!$F$11,IF(OR($O$2=$O$9,$O$2=$O$10,$O$2=$O$24,$O$2=$O$25),Best1!$F$12,IF(OR($O$2=$O$14,$O$2=$O$15,$O$2=$O$20,$O$2=$O$21),Best1!$F$13,IF(OR($O$2=$O$16,$O$2=$O$17,$O$2=$O$26,$O$2=$O$27),Best1!$F$14,IF(OR($O$2=$O$22,$O$2=$O$23,$O$2=$O$28,$O$2=$O$29),Best1!$F$15,""))))))) ->  | AQ24: =IF(ISBLANK(H24),"",IF(OR($O$2=$O$5,$O$2=$O$7,$O$2=$O$27,$O$2=$O$29),Best1!$F$13,IF(OR($O$2=$O$18,$O$2=$O$20,$O$2=$O$24,$O$2=$O$26),Best1!$F$10,IF(OR($O$2=$O$12,$O$2=$O$14,$O$2=$O$25,$O$2=$O$28),Best1!$F$11,IF(OR($O$2=$O$13,$O$2=$O$16,$O$2=$O$19,$O$2=$O$22),Best1!$F$12,IF(OR($O$2=$O$6,$O$2=$O$9,$O$2=$O$21,$O$2=$O$23),Best1!$F$14,IF(OR($O$2=$O$8,$O$2=$O$10,$O$2=$O$15,$O$2=$O$17),Best1!$F$15,""))))))) ->  | AT24: =IF(ISBLANK(I24),"",IF(OR($O$2=$O$9,$O$2=$O$10,$O$2=$O$24,$O$2=$O$25),Best1!$F$13,IF(OR($O$2=$O$22,$O$2=$O$23,$O$2=$O$28,$O$2=$O$29),Best1!$F$10,IF(OR($O$2=$O$16,$O$2=$O$17,$O$2=$O$26,$O$2=$O$27),Best1!$F$11,IF(OR($O$2=$O$14,$O$2=$O$15,$O$2=$O$20,$O$2=$O$21),Best1!$F$12,IF(OR($O$2=$O$7,$O$2=$O$8,$O$2=$O$18,$O$2=$O$19),Best1!$F$14,IF(OR($O$2=$O$5,$O$2=$O$6,$O$2=$O$12,$O$2=$O$13),Best1!$F$15,""))))))) ->  | AW24: =IF(ISBLANK(K24),"",IF(Best1!$C$3="","",ROUND(SUM(Best1!$C$3:$C$6),1))) ->  | AZ24: =IF(ISBLANK(K24),"",IF(Best1!$B$3="","",ROUND(AVERAGE(Best1!$D$3:$D$6),1))) -> 
A25: 21 | O25: DACB | V25: 0 | W25: 0 | AF25: 0 | AG25: 0 | AJ25: 0 | AK25: 0 | AN25: =IF(ISBLANK(E25),"",IF(OR($O$2=$O$5,$O$2=$O$6,$O$2=$O$12,$O$2=$O$13),Best1!$F$10,IF(OR($O$2=$O$7,$O$2=$O$8,$O$2=$O$18,$O$2=$O$19),Best1!$F$11,IF(OR($O$2=$O$9,$O$2=$O$10,$O$2=$O$24,$O$2=$O$25),Best1!$F$12,IF(OR($O$2=$O$14,$O$2=$O$15,$O$2=$O$20,$O$2=$O$21),Best1!$F$13,IF(OR($O$2=$O$16,$O$2=$O$17,$O$2=$O$26,$O$2=$O$27),Best1!$F$14,IF(OR($O$2=$O$22,$O$2=$O$23,$O$2=$O$28,$O$2=$O$29),Best1!$F$15,""))))))) ->  | AQ25: =IF(ISBLANK(H25),"",IF(OR($O$2=$O$5,$O$2=$O$7,$O$2=$O$27,$O$2=$O$29),Best1!$F$13,IF(OR($O$2=$O$18,$O$2=$O$20,$O$2=$O$24,$O$2=$O$26),Best1!$F$10,IF(OR($O$2=$O$12,$O$2=$O$14,$O$2=$O$25,$O$2=$O$28),Best1!$F$11,IF(OR($O$2=$O$13,$O$2=$O$16,$O$2=$O$19,$O$2=$O$22),Best1!$F$12,IF(OR($O$2=$O$6,$O$2=$O$9,$O$2=$O$21,$O$2=$O$23),Best1!$F$14,IF(OR($O$2=$O$8,$O$2=$O$10,$O$2=$O$15,$O$2=$O$17),Best1!$F$15,""))))))) ->  | AT25: =IF(ISBLANK(I25),"",IF(OR($O$2=$O$9,$O$2=$O$10,$O$2=$O$24,$O$2=$O$25),Best1!$F$13,IF(OR($O$2=$O$22,$O$2=$O$23,$O$2=$O$28,$O$2=$O$29),Best1!$F$10,IF(OR($O$2=$O$16,$O$2=$O$17,$O$2=$O$26,$O$2=$O$27),Best1!$F$11,IF(OR($O$2=$O$14,$O$2=$O$15,$O$2=$O$20,$O$2=$O$21),Best1!$F$12,IF(OR($O$2=$O$7,$O$2=$O$8,$O$2=$O$18,$O$2=$O$19),Best1!$F$14,IF(OR($O$2=$O$5,$O$2=$O$6,$O$2=$O$12,$O$2=$O$13),Best1!$F$15,""))))))) ->  | AW25: =IF(ISBLANK(K25),"",IF(Best1!$C$3="","",ROUND(SUM(Best1!$C$3:$C$6),1))) ->  | AZ25: =IF(ISBLANK(K25),"",IF(Best1!$B$3="","",ROUND(AVERAGE(Best1!$D$3:$D$6),1))) -> 
A26: 22 | O26: DBAC | V26: 0 | W26: 0 | AF26: 0 | AG26: 0 | AJ26: 0 | AK26: 0 | AN26: =IF(ISBLANK(E26),"",IF(OR($O$2=$O$5,$O$2=$O$6,$O$2=$O$12,$O$2=$O$13),Best1!$F$10,IF(OR($O$2=$O$7,$O$2=$O$8,$O$2=$O$18,$O$2=$O$19),Best1!$F$11,IF(OR($O$2=$O$9,$O$2=$O$10,$O$2=$O$24,$O$2=$O$25),Best1!$F$12,IF(OR($O$2=$O$14,$O$2=$O$15,$O$2=$O$20,$O$2=$O$21),Best1!$F$13,IF(OR($O$2=$O$16,$O$2=$O$17,$O$2=$O$26,$O$2=$O$27),Best1!$F$14,IF(OR($O$2=$O$22,$O$2=$O$23,$O$2=$O$28,$O$2=$O$29),Best1!$F$15,""))))))) ->  | AQ26: =IF(ISBLANK(H26),"",IF(OR($O$2=$O$5,$O$2=$O$7,$O$2=$O$27,$O$2=$O$29),Best1!$F$13,IF(OR($O$2=$O$18,$O$2=$O$20,$O$2=$O$24,$O$2=$O$26),Best1!$F$10,IF(OR($O$2=$O$12,$O$2=$O$14,$O$2=$O$25,$O$2=$O$28),Best1!$F$11,IF(OR($O$2=$O$13,$O$2=$O$16,$O$2=$O$19,$O$2=$O$22),Best1!$F$12,IF(OR($O$2=$O$6,$O$2=$O$9,$O$2=$O$21,$O$2=$O$23),Best1!$F$14,IF(OR($O$2=$O$8,$O$2=$O$10,$O$2=$O$15,$O$2=$O$17),Best1!$F$15,""))))))) ->  | AT26: =IF(ISBLANK(I26),"",IF(OR($O$2=$O$9,$O$2=$O$10,$O$2=$O$24,$O$2=$O$25),Best1!$F$13,IF(OR($O$2=$O$22,$O$2=$O$23,$O$2=$O$28,$O$2=$O$29),Best1!$F$10,IF(OR($O$2=$O$16,$O$2=$O$17,$O$2=$O$26,$O$2=$O$27),Best1!$F$11,IF(OR($O$2=$O$14,$O$2=$O$15,$O$2=$O$20,$O$2=$O$21),Best1!$F$12,IF(OR($O$2=$O$7,$O$2=$O$8,$O$2=$O$18,$O$2=$O$19),Best1!$F$14,IF(OR($O$2=$O$5,$O$2=$O$6,$O$2=$O$12,$O$2=$O$13),Best1!$F$15,""))))))) ->  | AW26: =IF(ISBLANK(K26),"",IF(Best1!$C$3="","",ROUND(SUM(Best1!$C$3:$C$6),1))) ->  | AZ26: =IF(ISBLANK(K26),"",IF(Best1!$B$3="","",ROUND(AVERAGE(Best1!$D$3:$D$6),1))) -> 
A27: 23 | O27: DBCA | V27: 0 | W27: 0 | AF27: 0 | AG27: 0 | AJ27: 0 | AK27: 0 | AN27: =IF(ISBLANK(E27),"",IF(OR($O$2=$O$5,$O$2=$O$6,$O$2=$O$12,$O$2=$O$13),Best1!$F$10,IF(OR($O$2=$O$7,$O$2=$O$8,$O$2=$O$18,$O$2=$O$19),Best1!$F$11,IF(OR($O$2=$O$9,$O$2=$O$10,$O$2=$O$24,$O$2=$O$25),Best1!$F$12,IF(OR($O$2=$O$14,$O$2=$O$15,$O$2=$O$20,$O$2=$O$21),Best1!$F$13,IF(OR($O$2=$O$16,$O$2=$O$17,$O$2=$O$26,$O$2=$O$27),Best1!$F$14,IF(OR($O$2=$O$22,$O$2=$O$23,$O$2=$O$28,$O$2=$O$29),Best1!$F$15,""))))))) ->  | AQ27: =IF(ISBLANK(H27),"",IF(OR($O$2=$O$5,$O$2=$O$7,$O$2=$O$27,$O$2=$O$29),Best1!$F$13,IF(OR($O$2=$O$18,$O$2=$O$20,$O$2=$O$24,$O$2=$O$26),Best1!$F$10,IF(OR($O$2=$O$12,$O$2=$O$14,$O$2=$O$25,$O$2=$O$28),Best1!$F$11,IF(OR($O$2=$O$13,$O$2=$O$16,$O$2=$O$19,$O$2=$O$22),Best1!$F$12,IF(OR($O$2=$O$6,$O$2=$O$9,$O$2=$O$21,$O$2=$O$23),Best1!$F$14,IF(OR($O$2=$O$8,$O$2=$O$10,$O$2=$O$15,$O$2=$O$17),Best1!$F$15,""))))))) ->  | AT27: =IF(ISBLANK(I27),"",IF(OR($O$2=$O$9,$O$2=$O$10,$O$2=$O$24,$O$2=$O$25),Best1!$F$13,IF(OR($O$2=$O$22,$O$2=$O$23,$O$2=$O$28,$O$2=$O$29),Best1!$F$10,IF(OR($O$2=$O$16,$O$2=$O$17,$O$2=$O$26,$O$2=$O$27),Best1!$F$11,IF(OR($O$2=$O$14,$O$2=$O$15,$O$2=$O$20,$O$2=$O$21),Best1!$F$12,IF(OR($O$2=$O$7,$O$2=$O$8,$O$2=$O$18,$O$2=$O$19),Best1!$F$14,IF(OR($O$2=$O$5,$O$2=$O$6,$O$2=$O$12,$O$2=$O$13),Best1!$F$15,""))))))) ->  | AW27: =IF(ISBLANK(K27),"",IF(Best1!$C$3="","",ROUND(SUM(Best1!$C$3:$C$6),1))) ->  | AZ27: =IF(ISBLANK(K27),"",IF(Best1!$B$3="","",ROUND(AVERAGE(Best1!$D$3:$D$6),1))) -> 
A28: 24 | O28: DCAB | V28: 0 | W28: 0 | AF28: 0 | AG28: 0 | AJ28: 0 | AK28: 0 | AN28: =IF(ISBLANK(E28),"",IF(OR($O$2=$O$5,$O$2=$O$6,$O$2=$O$12,$O$2=$O$13),Best1!$F$10,IF(OR($O$2=$O$7,$O$2=$O$8,$O$2=$O$18,$O$2=$O$19),Best1!$F$11,IF(OR($O$2=$O$9,$O$2=$O$10,$O$2=$O$24,$O$2=$O$25),Best1!$F$12,IF(OR($O$2=$O$14,$O$2=$O$15,$O$2=$O$20,$O$2=$O$21),Best1!$F$13,IF(OR($O$2=$O$16,$O$2=$O$17,$O$2=$O$26,$O$2=$O$27),Best1!$F$14,IF(OR($O$2=$O$22,$O$2=$O$23,$O$2=$O$28,$O$2=$O$29),Best1!$F$15,""))))))) ->  | AQ28: =IF(ISBLANK(H28),"",IF(OR($O$2=$O$5,$O$2=$O$7,$O$2=$O$27,$O$2=$O$29),Best1!$F$13,IF(OR($O$2=$O$18,$O$2=$O$20,$O$2=$O$24,$O$2=$O$26),Best1!$F$10,IF(OR($O$2=$O$12,$O$2=$O$14,$O$2=$O$25,$O$2=$O$28),Best1!$F$11,IF(OR($O$2=$O$13,$O$2=$O$16,$O$2=$O$19,$O$2=$O$22),Best1!$F$12,IF(OR($O$2=$O$6,$O$2=$O$9,$O$2=$O$21,$O$2=$O$23),Best1!$F$14,IF(OR($O$2=$O$8,$O$2=$O$10,$O$2=$O$15,$O$2=$O$17),Best1!$F$15,""))))))) ->  | AT28: =IF(ISBLANK(I28),"",IF(OR($O$2=$O$9,$O$2=$O$10,$O$2=$O$24,$O$2=$O$25),Best1!$F$13,IF(OR($O$2=$O$22,$O$2=$O$23,$O$2=$O$28,$O$2=$O$29),Best1!$F$10,IF(OR($O$2=$O$16,$O$2=$O$17,$O$2=$O$26,$O$2=$O$27),Best1!$F$11,IF(OR($O$2=$O$14,$O$2=$O$15,$O$2=$O$20,$O$2=$O$21),Best1!$F$12,IF(OR($O$2=$O$7,$O$2=$O$8,$O$2=$O$18,$O$2=$O$19),Best1!$F$14,IF(OR($O$2=$O$5,$O$2=$O$6,$O$2=$O$12,$O$2=$O$13),Best1!$F$15,""))))))) ->  | AW28: =IF(ISBLANK(K28),"",IF(Best1!$C$3="","",ROUND(SUM(Best1!$C$3:$C$6),1))) ->  | AZ28: =IF(ISBLANK(K28),"",IF(Best1!$B$3="","",ROUND(AVERAGE(Best1!$D$3:$D$6),1))) -> 
A29: 25 | O29: DCBA | V29: 0 | W29: 0 | AF29: 0 | AG29: 0 | AJ29: 0 | AK29: 0 | AN29: =IF(ISBLANK(E29),"",IF(OR($O$2=$O$5,$O$2=$O$6,$O$2=$O$12,$O$2=$O$13),Best1!$F$10,IF(OR($O$2=$O$7,$O$2=$O$8,$O$2=$O$18,$O$2=$O$19),Best1!$F$11,IF(OR($O$2=$O$9,$O$2=$O$10,$O$2=$O$24,$O$2=$O$25),Best1!$F$12,IF(OR($O$2=$O$14,$O$2=$O$15,$O$2=$O$20,$O$2=$O$21),Best1!$F$13,IF(OR($O$2=$O$16,$O$2=$O$17,$O$2=$O$26,$O$2=$O$27),Best1!$F$14,IF(OR($O$2=$O$22,$O$2=$O$23,$O$2=$O$28,$O$2=$O$29),Best1!$F$15,""))))))) ->  | AQ29: =IF(ISBLANK(H29),"",IF(OR($O$2=$O$5,$O$2=$O$7,$O$2=$O$27,$O$2=$O$29),Best1!$F$13,IF(OR($O$2=$O$18,$O$2=$O$20,$O$2=$O$24,$O$2=$O$26),Best1!$F$10,IF(OR($O$2=$O$12,$O$2=$O$14,$O$2=$O$25,$O$2=$O$28),Best1!$F$11,IF(OR($O$2=$O$13,$O$2=$O$16,$O$2=$O$19,$O$2=$O$22),Best1!$F$12,IF(OR($O$2=$O$6,$O$2=$O$9,$O$2=$O$21,$O$2=$O$23),Best1!$F$14,IF(OR($O$2=$O$8,$O$2=$O$10,$O$2=$O$15,$O$2=$O$17),Best1!$F$15,""))))))) ->  | AT29: =IF(ISBLANK(I29),"",IF(OR($O$2=$O$9,$O$2=$O$10,$O$2=$O$24,$O$2=$O$25),Best1!$F$13,IF(OR($O$2=$O$22,$O$2=$O$23,$O$2=$O$28,$O$2=$O$29),Best1!$F$10,IF(OR($O$2=$O$16,$O$2=$O$17,$O$2=$O$26,$O$2=$O$27),Best1!$F$11,IF(OR($O$2=$O$14,$O$2=$O$15,$O$2=$O$20,$O$2=$O$21),Best1!$F$12,IF(OR($O$2=$O$7,$O$2=$O$8,$O$2=$O$18,$O$2=$O$19),Best1!$F$14,IF(OR($O$2=$O$5,$O$2=$O$6,$O$2=$O$12,$O$2=$O$13),Best1!$F$15,""))))))) ->  | AW29: =IF(ISBLANK(K29),"",IF(Best1!$C$3="","",ROUND(SUM(Best1!$C$3:$C$6),1))) ->  | AZ29: =IF(ISBLANK(K29),"",IF(Best1!$B$3="","",ROUND(AVERAGE(Best1!$D$3:$D$6),1))) -> 
A30: 26 | V30: 0 | W30: 0 | AF30: 0 | AG30: 0 | AJ30: 0 | AK30: 0 | AN30: =IF(ISBLANK(E30),"",IF(OR($O$2=$O$5,$O$2=$O$6,$O$2=$O$12,$O$2=$O$13),Best1!$F$10,IF(OR($O$2=$O$7,$O$2=$O$8,$O$2=$O$18,$O$2=$O$19),Best1!$F$11,IF(OR($O$2=$O$9,$O$2=$O$10,$O$2=$O$24,$O$2=$O$25),Best1!$F$12,IF(OR($O$2=$O$14,$O$2=$O$15,$O$2=$O$20,$O$2=$O$21),Best1!$F$13,IF(OR($O$2=$O$16,$O$2=$O$17,$O$2=$O$26,$O$2=$O$27),Best1!$F$14,IF(OR($O$2=$O$22,$O$2=$O$23,$O$2=$O$28,$O$2=$O$29),Best1!$F$15,""))))))) ->  | AQ30: =IF(ISBLANK(H30),"",IF(OR($O$2=$O$5,$O$2=$O$7,$O$2=$O$27,$O$2=$O$29),Best1!$F$13,IF(OR($O$2=$O$18,$O$2=$O$20,$O$2=$O$24,$O$2=$O$26),Best1!$F$10,IF(OR($O$2=$O$12,$O$2=$O$14,$O$2=$O$25,$O$2=$O$28),Best1!$F$11,IF(OR($O$2=$O$13,$O$2=$O$16,$O$2=$O$19,$O$2=$O$22),Best1!$F$12,IF(OR($O$2=$O$6,$O$2=$O$9,$O$2=$O$21,$O$2=$O$23),Best1!$F$14,IF(OR($O$2=$O$8,$O$2=$O$10,$O$2=$O$15,$O$2=$O$17),Best1!$F$15,""))))))) ->  | AT30: =IF(ISBLANK(I30),"",IF(OR($O$2=$O$9,$O$2=$O$10,$O$2=$O$24,$O$2=$O$25),Best1!$F$13,IF(OR($O$2=$O$22,$O$2=$O$23,$O$2=$O$28,$O$2=$O$29),Best1!$F$10,IF(OR($O$2=$O$16,$O$2=$O$17,$O$2=$O$26,$O$2=$O$27),Best1!$F$11,IF(OR($O$2=$O$14,$O$2=$O$15,$O$2=$O$20,$O$2=$O$21),Best1!$F$12,IF(OR($O$2=$O$7,$O$2=$O$8,$O$2=$O$18,$O$2=$O$19),Best1!$F$14,IF(OR($O$2=$O$5,$O$2=$O$6,$O$2=$O$12,$O$2=$O$13),Best1!$F$15,""))))))) ->  | AW30: =IF(ISBLANK(K30),"",IF(Best1!$C$3="","",ROUND(SUM(Best1!$C$3:$C$6),1))) ->  | AZ30: =IF(ISBLANK(K30),"",IF(Best1!$B$3="","",ROUND(AVERAGE(Best1!$D$3:$D$6),1))) -> 
A31: 27 | V31: 0 | W31: 0 | AF31: 0 | AG31: 0 | AJ31: 0 | AK31: 0 | AN31: =IF(ISBLANK(E31),"",IF(OR($O$2=$O$5,$O$2=$O$6,$O$2=$O$12,$O$2=$O$13),Best1!$F$10,IF(OR($O$2=$O$7,$O$2=$O$8,$O$2=$O$18,$O$2=$O$19),Best1!$F$11,IF(OR($O$2=$O$9,$O$2=$O$10,$O$2=$O$24,$O$2=$O$25),Best1!$F$12,IF(OR($O$2=$O$14,$O$2=$O$15,$O$2=$O$20,$O$2=$O$21),Best1!$F$13,IF(OR($O$2=$O$16,$O$2=$O$17,$O$2=$O$26,$O$2=$O$27),Best1!$F$14,IF(OR($O$2=$O$22,$O$2=$O$23,$O$2=$O$28,$O$2=$O$29),Best1!$F$15,""))))))) ->  | AO31: =IF(F31="","",F31) ->  | AQ31: =IF(ISBLANK(H31),"",IF(OR($O$2=$O$5,$O$2=$O$7,$O$2=$O$27,$O$2=$O$29),Best1!$F$13,IF(OR($O$2=$O$18,$O$2=$O$20,$O$2=$O$24,$O$2=$O$26),Best1!$F$10,IF(OR($O$2=$O$12,$O$2=$O$14,$O$2=$O$25,$O$2=$O$28),Best1!$F$11,IF(OR($O$2=$O$13,$O$2=$O$16,$O$2=$O$19,$O$2=$O$22),Best1!$F$12,IF(OR($O$2=$O$6,$O$2=$O$9,$O$2=$O$21,$O$2=$O$23),Best1!$F$14,IF(OR($O$2=$O$8,$O$2=$O$10,$O$2=$O$15,$O$2=$O$17),Best1!$F$15,""))))))) ->  | AR31: =IF(H31="","",H31) ->  | AT31: =IF(ISBLANK(I31),"",IF(OR($O$2=$O$9,$O$2=$O$10,$O$2=$O$24,$O$2=$O$25),Best1!$F$13,IF(OR($O$2=$O$22,$O$2=$O$23,$O$2=$O$28,$O$2=$O$29),Best1!$F$10,IF(OR($O$2=$O$16,$O$2=$O$17,$O$2=$O$26,$O$2=$O$27),Best1!$F$11,IF(OR($O$2=$O$14,$O$2=$O$15,$O$2=$O$20,$O$2=$O$21),Best1!$F$12,IF(OR($O$2=$O$7,$O$2=$O$8,$O$2=$O$18,$O$2=$O$19),Best1!$F$14,IF(OR($O$2=$O$5,$O$2=$O$6,$O$2=$O$12,$O$2=$O$13),Best1!$F$15,""))))))) ->  | AU31: =IF(J31="","",J31) ->  | AW31: =IF(ISBLANK(K31),"",IF(Best1!$C$3="","",ROUND(SUM(Best1!$C$3:$C$6),1))) ->  | AX31: =IF(K31="","",K31) ->  | AZ31: =IF(ISBLANK(K31),"",IF(Best1!$B$3="","",ROUND(AVERAGE(Best1!$D$3:$D$6),1))) ->  | BA31: =IF(L31="","",L31) ->  | CD31: =IF(OR(AH31="",AH31=0),"",AH31*1) -> 
A32: 28 | V32: 0 | W32: 0 | AF32: 0 | AG32: 0 | AJ32: 0 | AK32: 0 | AN32: =IF(ISBLANK(E32),"",IF(OR($O$2=$O$5,$O$2=$O$6,$O$2=$O$12,$O$2=$O$13),Best1!$F$10,IF(OR($O$2=$O$7,$O$2=$O$8,$O$2=$O$18,$O$2=$O$19),Best1!$F$11,IF(OR($O$2=$O$9,$O$2=$O$10,$O$2=$O$24,$O$2=$O$25),Best1!$F$12,IF(OR($O$2=$O$14,$O$2=$O$15,$O$2=$O$20,$O$2=$O$21),Best1!$F$13,IF(OR($O$2=$O$16,$O$2=$O$17,$O$2=$O$26,$O$2=$O$27),Best1!$F$14,IF(OR($O$2=$O$22,$O$2=$O$23,$O$2=$O$28,$O$2=$O$29),Best1!$F$15,""))))))) ->  | AQ32: =IF(ISBLANK(H32),"",IF(OR($O$2=$O$5,$O$2=$O$7,$O$2=$O$27,$O$2=$O$29),Best1!$F$13,IF(OR($O$2=$O$18,$O$2=$O$20,$O$2=$O$24,$O$2=$O$26),Best1!$F$10,IF(OR($O$2=$O$12,$O$2=$O$14,$O$2=$O$25,$O$2=$O$28),Best1!$F$11,IF(OR($O$2=$O$13,$O$2=$O$16,$O$2=$O$19,$O$2=$O$22),Best1!$F$12,IF(OR($O$2=$O$6,$O$2=$O$9,$O$2=$O$21,$O$2=$O$23),Best1!$F$14,IF(OR($O$2=$O$8,$O$2=$O$10,$O$2=$O$15,$O$2=$O$17),Best1!$F$15,""))))))) ->  | AT32: =IF(ISBLANK(I32),"",IF(OR($O$2=$O$9,$O$2=$O$10,$O$2=$O$24,$O$2=$O$25),Best1!$F$13,IF(OR($O$2=$O$22,$O$2=$O$23,$O$2=$O$28,$O$2=$O$29),Best1!$F$10,IF(OR($O$2=$O$16,$O$2=$O$17,$O$2=$O$26,$O$2=$O$27),Best1!$F$11,IF(OR($O$2=$O$14,$O$2=$O$15,$O$2=$O$20,$O$2=$O$21),Best1!$F$12,IF(OR($O$2=$O$7,$O$2=$O$8,$O$2=$O$18,$O$2=$O$19),Best1!$F$14,IF(OR($O$2=$O$5,$O$2=$O$6,$O$2=$O$12,$O$2=$O$13),Best1!$F$15,""))))))) ->  | AW32: =IF(ISBLANK(K32),"",IF(Best1!$C$3="","",ROUND(SUM(Best1!$C$3:$C$6),1))) ->  | AZ32: =IF(ISBLANK(K32),"",IF(Best1!$B$3="","",ROUND(AVERAGE(Best1!$D$3:$D$6),1))) ->  | CB32: =IF(OR(AF32="",AF32=0),"",AF32*1) -> 
P34: =MIN(BW5:BW32) -> 0 | Q34: =MIN(BX5:BX32) -> 0 | R34: =MIN(BY5:BY32) -> 0 | S34: 0 | T34: 0 | U34: 0 | V34: 0 | W34: 0 | X34: 0 | Y34: 0 | Z34: 0 | AA34: 0 | AB34: 0 | AC34: 0 | AD34: 0 | AE34: 0 | AF34: 0 | AG34: 0 | AH34: 0 | AI34: 0 | AJ34: 0 | AK34: 0 | AL34: 0 | AM34: 0 | BL34: =IF(MIN(BL5:BL32)=0,"",MIN(BL5:BL32)) ->  | BM34: =IF(MIN(BM5:BM32)=0,"",MIN(BM5:BM32)) ->  | BZ34: =IF(MIN(BZ5:BZ32)=0,"",MIN(BZ5:BZ32)) -> 
AX42: =IF(AND(AX5="",AX33=""),"",MIN(AX5:AX41)) ->  | BA42: =IF(AND(BA5="",BA33=""),"",MAX(BA5:BA41)) -> 
N50: 500 | O50: 500 | P50: 500 | Q50: 500 | R50: =N50*1 -> 500 | S50: =O50*1 -> 500 | T50: 500 | U50: 500
N51: 500 | O51: 500 | P51: 500 | Q51: 500 | R51: =N51*1 -> 500 | S51: =O51*1 -> 500 | T51: =P51*1 -> 500 | U51: =Q51*1 -> 500
N52: 500 | O52: 500 | P52: 500 | Q52: 500 | R52: 500 | S52: 500 | T52: 500 | U52: 500
N53: 500 | O53: 500 | P53: 500 | Q53: 500 | R53: 500 | S53: 500 | T53: 500 | U53: 500
N54: 500 | O54: 500 | P54: 500 | Q54: 500 | R54: 500 | S54: 500 | T54: 500 | U54: 500
N55: 500 | O55: 500 | P55: 500 | Q55: 500 | R55: 500 | S55: 500 | T55: 500 | U55: 500
N56: 500 | O56: 500 | P56: 500 | Q56: 500 | R56: 500 | S56: 500 | T56: 500 | U56: 500
N57: 500 | O57: 500 | P57: 500 | Q57: 500 | R57: 500 | S57: 500 | T57: 500 | U57: 500
N58: 500 | O58: 500 | P58: 500 | Q58: 500 | R58: 500 | S58: 500 | T58: 500 | U58: 500
N59: 500 | O59: 500 | P59: 500 | Q59: 500 | R59: 500 | S59: 500 | T59: 500 | U59: 500
N60: 500 | O60: 500 | P60: 500 | Q60: 500 | R60: 500 | S60: 500 | T60: 500 | U60: 500
N61: 500 | O61: 500 | P61: 500 | Q61: 500 | R61: 500 | S61: 500 | T61: 500 | U61: 500
N62: 500 | O62: 500 | P62: 500 | Q62: 500 | R62: 500 | S62: 500 | T62: 500 | U62: 500
N63: 500 | O63: 500 | P63: 500 | Q63: 500 | R63: 500 | S63: 500 | T63: 500 | U63: 500
N64: 500 | O64: 500 | P64: 500 | Q64: 500 | R64: 500 | S64: 500 | T64: 500 | U64: 500
N65: 500 | O65: 500 | P65: 500 | Q65: 500 | R65: 500 | S65: 500 | T65: 500 | U65: 500
N66: 500 | O66: 500 | P66: 500 | Q66: 500 | R66: 500 | S66: 500 | T66: 500 | U66: 500
N67: 500 | O67: 500 | P67: 500 | Q67: 500 | R67: 500 | S67: 500 | T67: 500 | U67: 500
N68: 500 | O68: 500 | P68: 500 | Q68: 500 | R68: 500 | S68: 500 | T68: 500 | U68: 500
N69: 500 | O69: 500 | P69: 500 | Q69: 500 | R69: 500 | S69: 500 | T69: 500 | U69: 500
N70: 500 | O70: 500 | P70: 500 | Q70: 500 | R70: 500 | S70: 500 | T70: 500 | U70: 500
N71: 500 | O71: 500 | P71: 500 | Q71: 500 | R71: 500 | S71: 500 | T71: 500 | U71: 500
N72: 500 | O72: 500 | P72: 500 | Q72: 500 | R72: 500 | S72: 500 | T72: 500 | U72: 500
N73: 500 | O73: 500 | P73: 500 | Q73: 500 | R73: 500 | S73: 500 | T73: 500 | U73: 500
N89: =IF(MIN(N50:N73)=0,"",MIN(N50:N73)) -> 500 | O89: 500 | P89: 500 | Q89: 500 | R89: 500 | S89: 500 | T89: 500 | U89: 500
N90: 500 | O90: 500 | P90: 500 | Q90: 500 | R90: =N90*1 -> 500 | S90: =O90*1 -> 500 | T90: =P90*1 -> 500 | U90: =Q90*1 -> 500
N91: 500 | O91: 500 | P91: 500 | Q91: 500 | R91: =N91*1 -> 500 | S91: =O91*1 -> 500 | T91: =P91*1 -> 500 | U91: =Q91*1 -> 500
N92: 500 | O92: 500 | P92: 500 | Q92: 500 | R92: 500 | S92: 500 | T92: 500 | U92: 500
N93: 500 | O93: 500 | P93: 500 | Q93: 500 | R93: 500 | S93: 500 | T93: 500 | U93: 500
N94: 500 | O94: 500 | P94: 500 | Q94: 500 | R94: 500 | S94: 500 | T94: 500 | U94: 500
N95: 500 | O95: 500 | P95: 500 | Q95: 500 | R95: 500 | S95: 500 | T95: 500 | U95: 500
N96: 500 | O96: 500 | P96: 500 | Q96: 500 | R96: 500 | S96: 500 | T96: 500 | U96: 500
N97: 500 | O97: 500 | P97: 500 | Q97: 500 | R97: 500 | S97: 500 | T97: 500 | U97: 500
N98: 500 | O98: 500 | P98: 500 | Q98: 500 | R98: 500 | S98: 500 | T98: 500 | U98: 500
N99: 500 | O99: 500 | P99: 500 | Q99: 500 | R99: 500 | S99: 500 | T99: 500 | U99: 500
N100: 500 | O100: 500 | P100: 500 | Q100: 500 | R100: 500 | S100: 500 | T100: 500 | U100: 500
N101: 500 | O101: 500 | P101: 500 | Q101: 500 | R101: 500 | S101: 500 | T101: 500 | U101: 500
N102: 500 | O102: 500 | P102: 500 | Q102: 500 | R102: 500 | S102: 500 | T102: 500 | U102: 500
N103: 500 | O103: 500 | P103: 500 | Q103: 500 | R103: 500 | S103: 500 | T103: 500 | U103: 500
N104: 500 | O104: 500 | P104: 500 | Q104: 500 | R104: 500 | S104: 500 | T104: 500 | U104: 500
N105: 500 | O105: 500 | P105: 500 | Q105: 500 | R105: 500 | S105: 500 | T105: 500 | U105: 500
N106: 500 | O106: 500 | P106: 500 | Q106: 500 | R106: 500 | S106: 500 | T106: 500 | U106: 500
N107: 500 | O107: 500 | P107: 500 | Q107: 500 | R107: 500 | S107: 500 | T107: 500 | U107: 500
N108: 500 | O108: 500 | P108: 500 | Q108: 500 | R108: 500 | S108: 500 | T108: 500 | U108: 500
N109: 500 | O109: 500 | P109: 500 | Q109: 500 | R109: 500 | S109: 500 | T109: 500 | U109: 500
N110: 500 | O110: 500 | P110: 500 | Q110: 500 | R110: 500 | S110: 500 | T110: 500 | U110: 500
N111: 500 | O111: 500 | P111: 500 | Q111: 500 | R111: 500 | S111: 500 | T111: 500 | U111: 500
N112: 500 | O112: 500 | P112: 500 | Q112: 500 | R112: 500 | S112: 500 | T112: 500 | U112: 500
N113: 500 | O113: 500 | P113: 500 | Q113: 500 | R113: 500 | S113: 500 | T113: 500 | U113: 500
N129: =IF(MIN(N90:N113)=0,"",MIN(N90:N113)) -> 500 | O129: 500 | P129: 500 | Q129: 500 | R129: 500 | S129: 500 | T129: 500 | U129: 500
R130: =IF(MIN(R89,R129)=500,"",MIN(R89,R129)) ->  | S130: =IF(MIN(S89,S129)=500,"",MIN(S89,S129)) -> 

Sheet Archresultats5
A1: Bilan équipe 5
O2: DABC
AN3: ZONE 1 | AQ3: ZONE 2 | AT3: ZONE 3 | AW3: TOTAL course
B4: Dates | C4: Heure | D4: Coureur ou Ordre relais | E4: Tps zone 1 | F4: Vitesse zone 1 | G4: Tps zone 2 | H4: Vitesse zone 2 | I4: Tps zone 3 | J4: Vitesse zone 3 | K4: Tps course totale | L4: Vitesse totale totale | M4: Remarques | P4: AB (t) | Q4: AB (v) | R4: AC (t) | S4: AC (v) | T4: AD (t) | U4: AD (v) | V4: BA (v) | W4: BA (t) | X4: BC (t) | Y4: BC (v) | Z4: BD (t) | AA4: BD (v) | AB4: CA (t) | AC4: CA (v) | AD4: CB (t) | AE4: CB (v) | AF4: CD (t) | AG4: CD (v) | AH4: DA (t) | AI4: DA (v) | AJ4: DB (t) | AK4: DB (v) | AL4: DC (t) | AM4: DC (v) | AN4: Vitesse moy. théorique du binôme | AO4: Vitesse réelle du binôme | AP4: % Evolution | AQ4: Vitesse moy. théorique du binôme | AR4: Vitesse réelle du binôme | AS4: % Evolution | AT4: Vitesse moy. théorique du binôme | AU4: Vitesse réelle du binôme | AV4: % Evolution | AW4: TEMPS total théorique du groupe | AX4: TEMPS total réel du groupe | AY4: % Evolution | AZ4: VITESSE théorique du groupe | BA4: VITESSE réelle du groupe | BB4: % Evolution
A5: 1 | O5: ABCD | P5: =IF(OR($O$2=$O$5,$O$2=$O$6),E5,IF(OR($O$2=$O$18,$O$2=$O$24),G5,IF(OR($O$2=$O$22,$O$2=$O$28),I5,""))) -> 0 | Q5: =IF(OR($O$2=$O$5,$O$2=$O$6),F5,IF(OR($O$2=$O$18,$O$2=$O$24),H5,IF(OR($O$2=$O$22,$O$2=$O$28),J5,""))) -> 0 | R5: =IF(OR($O$2=$O$7,$O$2=$O$8),E5,IF(OR($O$2=$O$12,$O$2=$O$25),G5,IF(OR($O$2=$O$16,$O$2=$O$26),I5,""))) ->  | S5: =IF(OR($O$2=$O$7,$O$2=$O$8),F5,IF(OR($O$2=$O$12,$O$2=$O$25),H5,IF(OR($O$2=$O$16,$O$2=$O$26),J5,""))) ->  | T5: =IF(OR($O$2=$O$9,$O$2=$O$10),E5,IF(OR($O$2=$O$13,$O$2=$O$19),G5,IF(OR($O$2=$O$14,$O$2=$O$20),I5,""))) ->  | U5: =IF(OR($O$2=$O$9,$O$2=$O$10),F5,IF(OR($O$2=$O$13,$O$2=$O$19),H5,IF(OR($O$2=$O$14,$O$2=$O$20),J5,""))) ->  | V5: =IF(OR($O$2=$O$12,$O$2=$O$13),E5,IF(OR($O$2=$O$20,$O$2=$O$26),G5,IF(OR($O$2=$O$23,$O$2=$O$29),I5,""))) ->  | W5: =IF(OR($O$2=$O$12,$O$2=$O$13),F5,IF(OR($O$2=$O$20,$O$2=$O$26),H5,IF(OR($O$2=$O$23,$O$2=$O$29),J5,""))) ->  | X5: =IF(OR($O$2=$O$14,$O$2=$O$15),E5,IF(OR($O$2=$O$5,$O$2=$O$27),G5,IF(OR($O$2=$O$9,$O$2=$O$24),I5,""))) -> 0 | Y5: =IF(OR($O$2=$O$14,$O$2=$O$15),F5,IF(OR($O$2=$O$5,$O$2=$O$27),H5,IF(OR($O$2=$O$9,$O$2=$O$24),J5,""))) -> 0 | Z5: =IF(OR($O$2=$O$16,$O$2=$O$17),E5,IF(OR($O$2=$O$6,$O$2=$O$21),G5,IF(OR($O$2=$O$7,$O$2=$O$18),I5,""))) ->  | AA5: =IF(OR($O$2=$O$16,$O$2=$O$17),F5,IF(OR($O$2=$O$6,$O$2=$O$21),H5,IF(OR($O$2=$O$7,$O$2=$O$18),J5,""))) ->  | AB5: =IF(OR($O$2=$O$18,$O$2=$O$19),E5,IF(OR($O$2=$O$14,$O$2=$O$28),G5,IF(OR($O$2=$O$17,$O$2=$O$27),I5,""))) ->  | AC5: =IF(OR($O$2=$O$18,$O$2=$O$19),F5,IF(OR($O$2=$O$14,$O$2=$O$28),H5,IF(OR($O$2=$O$17,$O$2=$O$27),J5,""))) ->  | AD5: =IF(OR($O$2=$O$20,$O$2=$O$21),E5,IF(OR($O$2=$O$7,$O$2=$O$29),G5,IF(OR($O$2=$O$10,$O$2=$O$11),I5,""))) ->  | AE5: =IF(OR($O$2=$O$20,$O$2=$O$21),F5,IF(OR($O$2=$O$7,$O$2=$O$29),H5,IF(OR($O$2=$O$10,$O$2=$O$11),J5,""))) ->  | AF5: =IF(OR($O$2=$O$22,$O$2=$O$23),E5,IF(OR($O$2=$O$8,$O$2=$O$15),G5,IF(OR($O$2=$O$5,$O$2=$O$12),I5,""))) ->  | AG5: =IF(OR($O$2=$O$22,$O$2=$O$23),F5,IF(OR($O$2=$O$8,$O$2=$O$15),H5,IF(OR($O$2=$O$5,$O$2=$O$12),J5,""))) ->  | AH5: =IF(OR($O$2=$O$24,$O$2=$O$25),E5,IF(OR($O$2=$O$16,$O$2=$O$22),G5,IF(OR($O$2=$O$15,$O$2=$O$21),I5,""))) -> 0 | AI5: =IF(OR($O$2=$O$24,$O$2=$O$25),F5,IF(OR($O$2=$O$16,$O$2=$O$22),H5,IF(OR($O$2=$O$15,$O$2=$O$21),J5,""))) -> 0 | AJ5: =IF(OR($O$2=$O$26,$O$2=$O$27),E5,IF(OR($O$2=$O$9,$O$2=$O$23),G5,IF(OR($O$2=$O$8,$O$2=$O$19),I5,""))) ->  | AK5: =IF(OR($O$2=$O$26,$O$2=$O$27),F5,IF(OR($O$2=$O$9,$O$2=$O$23),H5,IF(OR($O$2=$O$8,$O$2=$O$19),J5,""))) ->  | AL5: =IF(OR($O$2=$O$28,$O$2=$O$29),E5,IF(OR($O$2=$O$10,$O$2=$O$11),G5,IF(OR($O$2=$O$6,$O$2=$O$13),I5,""))) ->  | AM5: =IF(OR($O$2=$O$28,$O$2=$O$29),F5,IF(OR($O$2=$O$10,$O$2=$O$11),H5,IF(OR($O$2=$O$6,$O$2=$O$13),J5,""))) ->  | AN5: =IF(ISBLANK(E5),"",IF(OR($O$2=$O$5,$O$2=$O$6,$O$2=$O$12,$O$2=$O$13),Best1!$F$10,IF(OR($O$2=$O$7,$O$2=$O$8,$O$2=$O$18,$O$2=$O$19),Best1!$F$11,IF(OR($O$2=$O$9,$O$2=$O$10,$O$2=$O$24,$O$2=$O$25),Best1!$F$12,IF(OR($O$2=$O$14,$O$2=$O$15,$O$2=$O$20,$O$2=$O$21),Best1!$F$13,IF(OR($O$2=$O$16,$O$2=$O$17,$O$2=$O$26,$O$2=$O$27),Best1!$F$14,IF(OR($O$2=$O$22,$O$2=$O$23,$O$2=$O$28,$O$2=$O$29),Best1!$F$15,""))))))) ->  | AO5: =IF(F5="","",F5) ->  | AP5: =IF(AO5="","",ROUND(((AO5-AN5)/AN5*100),1)) ->  | AQ5: =IF(ISBLANK(G5),"",IF(OR($O$2=$O$5,$O$2=$O$7,$O$2=$O$27,$O$2=$O$29),Best1!$F$13,IF(OR($O$2=$O$18,$O$2=$O$20,$O$2=$O$24,$O$2=$O$26),Best1!$F$10,IF(OR($O$2=$O$12,$O$2=$O$14,$O$2=$O$25,$O$2=$O$28),Best1!$F$11,IF(OR($O$2=$O$13,$O$2=$O$16,$O$2=$O$19,$O$2=$O$22),Best1!$F$12,IF(OR($O$2=$O$6,$O$2=$O$9,$O$2=$O$21,$O$2=$O$23),Best1!$F$14,IF(OR($O$2=$O$8,$O$2=$O$10,$O$2=$O$15,$O$2=$O$17),Best1!$F$15,""))))))) ->  | AR5: =IF(H5="","",H5) ->  | AS5: =IF(AR5="","",ROUND(((AR5-AQ5)/AQ5*100),1)) ->  | AT5: =IF(ISBLANK(I5),"",IF(OR($O$2=$O$9,$O$2=$O$10,$O$2=$O$24,$O$2=$O$25),Best1!$F$13,IF(OR($O$2=$O$22,$O$2=$O$23,$O$2=$O$28,$O$2=$O$29),Best1!$F$10,IF(OR($O$2=$O$16,$O$2=$O$17,$O$2=$O$26,$O$2=$O$27),Best1!$F$11,IF(OR($O$2=$O$14,$O$2=$O$15,$O$2=$O$20,$O$2=$O$21),Best1!$F$12,IF(OR($O$2=$O$7,$O$2=$O$8,$O$2=$O$18,$O$2=$O$19),Best1!$F$14,IF(OR($O$2=$O$5,$O$2=$O$6,$O$2=$O$12,$O$2=$O$13),Best1!$F$15,""))))))) ->  | AU5: =IF(J5="","",J5) ->  | AV5: =IF(AU5="","",ROUND(((AU5-AT5)/AT5*100),1)) ->  | AW5: =IF(ISBLANK(K5),"",IF(Best1!$C$3="","",ROUND(SUM(Best1!$C$3:$C$6),1))) ->  | AX5: =IF(K5="","",K5) ->  | AY5: =IF(AX5="","",ROUND(((AX5-AW5)/AW5*100),1)) ->  | AZ5: =IF(ISBLANK(K5),"",IF(Best1!$B$3="","",ROUND(AVERAGE(Best1!$D$3:$D$6),1))) ->  | BA5: =IF(L5="","",L5) ->  | BB5: =IF(BA5="","",ROUND(((BA5-AZ5)/AZ5*100),1)) ->  | BD5: =AX5 ->  | BL5: =IF(OR(P5="",P5=0),"",P5*1) ->  | BM5: =IF(OR(Q5="",Q5=0),"",Q5*1) -> 
A6: 2 | O6: ABDC | P6: =IF(OR($O$2=$O$5,$O$2=$O$6),E6,IF(OR($O$2=$O$18,$O$2=$O$24),G6,IF(OR($O$2=$O$22,$O$2=$O$28),I6,""))) -> 0 | Q6: 0 | R6: =IF(OR($O$2=$O$7,$O$2=$O$8),E6,IF(OR($O$2=$O$12,$O$2=$O$25),G6,IF(OR($O$2=$O$16,$O$2=$O$26),I6,""))) ->  | T6: =IF(OR($O$2=$O$9,$O$2=$O$10),E6,IF(OR($O$2=$O$13,$O$2=$O$19),G6,IF(OR($O$2=$O$14,$O$2=$O$20),I6,""))) ->  | V6: =IF(OR($O$2=$O$12,$O$2=$O$13),E6,IF(OR($O$2=$O$20,$O$2=$O$26),G6,IF(OR($O$2=$O$23,$O$2=$O$29),I6,""))) ->  | X6: =IF(OR($O$2=$O$14,$O$2=$O$15),E6,IF(OR($O$2=$O$5,$O$2=$O$27),G6,IF(OR($O$2=$O$9,$O$2=$O$24),I6,""))) -> 0 | Y6: 0 | Z6: =IF(OR($O$2=$O$16,$O$2=$O$17),E6,IF(OR($O$2=$O$6,$O$2=$O$21),G6,IF(OR($O$2=$O$7,$O$2=$O$18),I6,""))) ->  | AB6: =IF(OR($O$2=$O$18,$O$2=$O$19),E6,IF(OR($O$2=$O$14,$O$2=$O$28),G6,IF(OR($O$2=$O$17,$O$2=$O$27),I6,""))) ->  | AD6: =IF(OR($O$2=$O$20,$O$2=$O$21),E6,IF(OR($O$2=$O$7,$O$2=$O$29),G6,IF(OR($O$2=$O$10,$O$2=$O$11),I6,""))) ->  | AF6: =IF(OR($O$2=$O$22,$O$2=$O$23),E6,IF(OR($O$2=$O$8,$O$2=$O$15),G6,IF(OR($O$2=$O$5,$O$2=$O$12),I6,""))) ->  | AH6: =IF(OR($O$2=$O$24,$O$2=$O$25),E6,IF(OR($O$2=$O$16,$O$2=$O$22),G6,IF(OR($O$2=$O$15,$O$2=$O$21),I6,""))) -> 0 | AI6: 0 | AJ6: =IF(OR($O$2=$O$26,$O$2=$O$27),E6,IF(OR($O$2=$O$9,$O$2=$O$23),G6,IF(OR($O$2=$O$8,$O$2=$O$19),I6,""))) ->  | AL6: =IF(OR($O$2=$O$28,$O$2=$O$29),E6,IF(OR($O$2=$O$10,$O$2=$O$11),G6,IF(OR($O$2=$O$6,$O$2=$O$13),I6,""))) ->  | AN6: =IF(ISBLANK(E6),"",IF(OR($O$2=$O$5,$O$2=$O$6,$O$2=$O$12,$O$2=$O$13),Best1!$F$10,IF(OR($O$2=$O$7,$O$2=$O$8,$O$2=$O$18,$O$2=$O$19),Best1!$F$11,IF(OR($O$2=$O$9,$O$2=$O$10,$O$2=$O$24,$O$2=$O$25),Best1!$F$12,IF(OR($O$2=$O$14,$O$2=$O$15,$O$2=$O$20,$O$2=$O$21),Best1!$F$13,IF(OR($O$2=$O$16,$O$2=$O$17,$O$2=$O$26,$O$2=$O$27),Best1!$F$14,IF(OR($O$2=$O$22,$O$2=$O$23,$O$2=$O$28,$O$2=$O$29),Best1!$F$15,""))))))) ->  | AO6: =IF(F6="","",F6) ->  | AP6: =IF(AO6="","",ROUND(((AO6-AN6)/AN6*100),1)) ->  | AQ6: =IF(ISBLANK(H6),"",IF(OR($O$2=$O$5,$O$2=$O$7,$O$2=$O$27,$O$2=$O$29),Best1!$F$13,IF(OR($O$2=$O$18,$O$2=$O$20,$O$2=$O$24,$O$2=$O$26),Best1!$F$10,IF(OR($O$2=$O$12,$O$2=$O$14,$O$2=$O$25,$O$2=$O$28),Best1!$F$11,IF(OR($O$2=$O$13,$O$2=$O$16,$O$2=$O$19,$O$2=$O$22),Best1!$F$12,IF(OR($O$2=$O$6,$O$2=$O$9,$O$2=$O$21,$O$2=$O$23),Best1!$F$14,IF(OR($O$2=$O$8,$O$2=$O$10,$O$2=$O$15,$O$2=$O$17),Best1!$F$15,""))))))) ->  | AR6: =IF(H6="","",H6) ->  | AS6: =IF(AR6="","",ROUND(((AR6-AQ6)/AQ6*100),1)) ->  | AT6: =IF(ISBLANK(I6),"",IF(OR($O$2=$O$9,$O$2=$O$10,$O$2=$O$24,$O$2=$O$25),Best1!$F$13,IF(OR($O$2=$O$22,$O$2=$O$23,$O$2=$O$28,$O$2=$O$29),Best1!$F$10,IF(OR($O$2=$O$16,$O$2=$O$17,$O$2=$O$26,$O$2=$O$27),Best1!$F$11,IF(OR($O$2=$O$14,$O$2=$O$15,$O$2=$O$20,$O$2=$O$21),Best1!$F$12,IF(OR($O$2=$O$7,$O$2=$O$8,$O$2=$O$18,$O$2=$O$19),Best1!$F$14,IF(OR($O$2=$O$5,$O$2=$O$6,$O$2=$O$12,$O$2=$O$13),Best1!$F$15,""))))))) ->  | AU6: =IF(J6="","",J6) ->  | AV6: =IF(AU6="","",ROUND(((AU6-AT6)/AT6*100),1)) ->  | AW6: =IF(ISBLANK(K6),"",IF(Best1!$C$3="","",ROUND(SUM(Best1!$C$3:$C$6),1))) ->  | AX6: =IF(K6="","",K6) ->  | AY6: =IF(AX6="","",ROUND(((AX6-AW6)/AW6*100),1)) ->  | AZ6: =IF(ISBLANK(K6),"",IF(Best1!$B$3="","",ROUND(AVERAGE(Best1!$D$3:$D$6),1))) ->  | BA6: =IF(L6="","",L6) ->  | BB6: =IF(BA6="","",ROUND(((BA6-AZ6)/AZ6*100),1)) ->  | BD6: =AX6 ->  | BL6: =IF(OR(P6="",P6=0),"",P6*1) -> 
A7: 3 | O7: ACBD | P7: 0 | Q7: 0 | X7: 0 | Y7: 0 | AH7: 0 | AI7: 0 | AN7: =IF(ISBLANK(E7),"",IF(OR($O$2=$O$5,$O$2=$O$6,$O$2=$O$12,$O$2=$O$13),Best1!$F$10,IF(OR($O$2=$O$7,$O$2=$O$8,$O$2=$O$18,$O$2=$O$19),Best1!$F$11,IF(OR($O$2=$O$9,$O$2=$O$10,$O$2=$O$24,$O$2=$O$25),Best1!$F$12,IF(OR($O$2=$O$14,$O$2=$O$15,$O$2=$O$20,$O$2=$O$21),Best1!$F$13,IF(OR($O$2=$O$16,$O$2=$O$17,$O$2=$O$26,$O$2=$O$27),Best1!$F$14,IF(OR($O$2=$O$22,$O$2=$O$23,$O$2=$O$28,$O$2=$O$29),Best1!$F$15,""))))))) ->  | AQ7: =IF(ISBLANK(H7),"",IF(OR($O$2=$O$5,$O$2=$O$7,$O$2=$O$27,$O$2=$O$29),Best1!$F$13,IF(OR($O$2=$O$18,$O$2=$O$20,$O$2=$O$24,$O$2=$O$26),Best1!$F$10,IF(OR($O$2=$O$12,$O$2=$O$14,$O$2=$O$25,$O$2=$O$28),Best1!$F$11,IF(OR($O$2=$O$13,$O$2=$O$16,$O$2=$O$19,$O$2=$O$22),Best1!$F$12,IF(OR($O$2=$O$6,$O$2=$O$9,$O$2=$O$21,$O$2=$O$23),Best1!$F$14,IF(OR($O$2=$O$8,$O$2=$O$10,$O$2=$O$15,$O$2=$O$17),Best1!$F$15,""))))))) ->  | AT7: =IF(ISBLANK(I7),"",IF(OR($O$2=$O$9,$O$2=$O$10,$O$2=$O$24,$O$2=$O$25),Best1!$F$13,IF(OR($O$2=$O$22,$O$2=$O$23,$O$2=$O$28,$O$2=$O$29),Best1!$F$10,IF(OR($O$2=$O$16,$O$2=$O$17,$O$2=$O$26,$O$2=$O$27),Best1!$F$11,IF(OR($O$2=$O$14,$O$2=$O$15,$O$2=$O$20,$O$2=$O$21),Best1!$F$12,IF(OR($O$2=$O$7,$O$2=$O$8,$O$2=$O$18,$O$2=$O$19),Best1!$F$14,IF(OR($O$2=$O$5,$O$2=$O$6,$O$2=$O$12,$O$2=$O$13),Best1!$F$15,""))))))) ->  | AW7: =IF(ISBLANK(K7),"",IF(Best1!$C$3="","",ROUND(SUM(Best1!$C$3:$C$6),1))) ->  | AZ7: =IF(ISBLANK(K7),"",IF(Best1!$B$3="","",ROUND(AVERAGE(Best1!$D$3:$D$6),1))) -> 
A8: 4 | O8: ACDB | P8: 0 | Q8: 0 | X8: 0 | Y8: 0 | AH8: 0 | AI8: 0 | AN8: =IF(ISBLANK(E8),"",IF(OR($O$2=$O$5,$O$2=$O$6,$O$2=$O$12,$O$2=$O$13),Best1!$F$10,IF(OR($O$2=$O$7,$O$2=$O$8,$O$2=$O$18,$O$2=$O$19),Best1!$F$11,IF(OR($O$2=$O$9,$O$2=$O$10,$O$2=$O$24,$O$2=$O$25),Best1!$F$12,IF(OR($O$2=$O$14,$O$2=$O$15,$O$2=$O$20,$O$2=$O$21),Best1!$F$13,IF(OR($O$2=$O$16,$O$2=$O$17,$O$2=$O$26,$O$2=$O$27),Best1!$F$14,IF(OR($O$2=$O$22,$O$2=$O$23,$O$2=$O$28,$O$2=$O$29),Best1!$F$15,""))))))) ->  | AQ8: =IF(ISBLANK(H8),"",IF(OR($O$2=$O$5,$O$2=$O$7,$O$2=$O$27,$O$2=$O$29),Best1!$F$13,IF(OR($O$2=$O$18,$O$2=$O$20,$O$2=$O$24,$O$2=$O$26),Best1!$F$10,IF(OR($O$2=$O$12,$O$2=$O$14,$O$2=$O$25,$O$2=$O$28),Best1!$F$11,IF(OR($O$2=$O$13,$O$2=$O$16,$O$2=$O$19,$O$2=$O$22),Best1!$F$12,IF(OR($O$2=$O$6,$O$2=$O$9,$O$2=$O$21,$O$2=$O$23),Best1!$F$14,IF(OR($O$2=$O$8,$O$2=$O$10,$O$2=$O$15,$O$2=$O$17),Best1!$F$15,""))))))) ->  | AT8: =IF(ISBLANK(I8),"",IF(OR($O$2=$O$9,$O$2=$O$10,$O$2=$O$24,$O$2=$O$25),Best1!$F$13,IF(OR($O$2=$O$22,$O$2=$O$23,$O$2=$O$28,$O$2=$O$29),Best1!$F$10,IF(OR($O$2=$O$16,$O$2=$O$17,$O$2=$O$26,$O$2=$O$27),Best1!$F$11,IF(OR($O$2=$O$14,$O$2=$O$15,$O$2=$O$20,$O$2=$O$21),Best1!$F$12,IF(OR($O$2=$O$7,$O$2=$O$8,$O$2=$O$18,$O$2=$O$19),Best1!$F$14,IF(OR($O$2=$O$5,$O$2=$O$6,$O$2=$O$12,$O$2=$O$13),Best1!$F$15,""))))))) ->  | AW8: =IF(ISBLANK(K8),"",IF(Best1!$C$3="","",ROUND(SUM(Best1!$C$3:$C$6),1))) ->  | AZ8: =IF(ISBLANK(K8),"",IF(Best1!$B$3="","",ROUND(AVERAGE(Best1!$D$3:$D$6),1))) -> 
A9: 5 | O9: ADBC | P9: 0 | Q9: 0 | X9: 0 | Y9: 0 | AH9: 0 | AI9: 0 | AN9: =IF(ISBLANK(E9),"",IF(OR($O$2=$O$5,$O$2=$O$6,$O$2=$O$12,$O$2=$O$13),Best1!$F$10,IF(OR($O$2=$O$7,$O$2=$O$8,$O$2=$O$18,$O$2=$O$19),Best1!$F$11,IF(OR($O$2=$O$9,$O$2=$O$10,$O$2=$O$24,$O$2=$O$25),Best1!$F$12,IF(OR($O$2=$O$14,$O$2=$O$15,$O$2=$O$20,$O$2=$O$21),Best1!$F$13,IF(OR($O$2=$O$16,$O$2=$O$17,$O$2=$O$26,$O$2=$O$27),Best1!$F$14,IF(OR($O$2=$O$22,$O$2=$O$23,$O$2=$O$28,$O$2=$O$29),Best1!$F$15,""))))))) ->  | AQ9: =IF(ISBLANK(H9),"",IF(OR($O$2=$O$5,$O$2=$O$7,$O$2=$O$27,$O$2=$O$29),Best1!$F$13,IF(OR($O$2=$O$18,$O$2=$O$20,$O$2=$O$24,$O$2=$O$26),Best1!$F$10,IF(OR($O$2=$O$12,$O$2=$O$14,$O$2=$O$25,$O$2=$O$28),Best1!$F$11,IF(OR($O$2=$O$13,$O$2=$O$16,$O$2=$O$19,$O$2=$O$22),Best1!$F$12,IF(OR($O$2=$O$6,$O$2=$O$9,$O$2=$O$21,$O$2=$O$23),Best1!$F$14,IF(OR($O$2=$O$8,$O$2=$O$10,$O$2=$O$15,$O$2=$O$17),Best1!$F$15,""))))))) ->  | AT9: =IF(ISBLANK(I9),"",IF(OR($O$2=$O$9,$O$2=$O$10,$O$2=$O$24,$O$2=$O$25),Best1!$F$13,IF(OR($O$2=$O$22,$O$2=$O$23,$O$2=$O$28,$O$2=$O$29),Best1!$F$10,IF(OR($O$2=$O$16,$O$2=$O$17,$O$2=$O$26,$O$2=$O$27),Best1!$F$11,IF(OR($O$2=$O$14,$O$2=$O$15,$O$2=$O$20,$O$2=$O$21),Best1!$F$12,IF(OR($O$2=$O$7,$O$2=$O$8,$O$2=$O$18,$O$2=$O$19),Best1!$F$14,IF(OR($O$2=$O$5,$O$2=$O$6,$O$2=$O$12,$O$2=$O$13),Best1!$F$15,""))))))) ->  | AW9: =IF(ISBLANK(K9),"",IF(Best1!$C$3="","",ROUND(SUM(Best1!$C$3:$C$6),1))) ->  | AZ9: =IF(ISBLANK(K9),"",IF(Best1!$B$3="","",ROUND(AVERAGE(Best1!$D$3:$D$6),1))) -> 
A10: 6 | O10: ADCB | P10: 0 | Q10: 0 | X10: 0 | Y10: 0 | AH10: 0 | AI10: 0 | AN10: =IF(ISBLANK(E10),"",IF(OR($O$2=$O$5,$O$2=$O$6,$O$2=$O$12,$O$2=$O$13),Best1!$F$10,IF(OR($O$2=$O$7,$O$2=$O$8,$O$2=$O$18,$O$2=$O$19),Best1!$F$11,IF(OR($O$2=$O$9,$O$2=$O$10,$O$2=$O$24,$O$2=$O$25),Best1!$F$12,IF(OR($O$2=$O$14,$O$2=$O$15,$O$2=$O$20,$O$2=$O$21),Best1!$F$13,IF(OR($O$2=$O$16,$O$2=$O$17,$O$2=$O$26,$O$2=$O$27),Best1!$F$14,IF(OR($O$2=$O$22,$O$2=$O$23,$O$2=$O$28,$O$2=$O$29),Best1!$F$15,""))))))) ->  | AQ10: =IF(ISBLANK(H10),"",IF(OR($O$2=$O$5,$O$2=$O$7,$O$2=$O$27,$O$2=$O$29),Best1!$F$13,IF(OR($O$2=$O$18,$O$2=$O$20,$O$2=$O$24,$O$2=$O$26),Best1!$F$10,IF(OR($O$2=$O$12,$O$2=$O$14,$O$2=$O$25,$O$2=$O$28),Best1!$F$11,IF(OR($O$2=$O$13,$O$2=$O$16,$O$2=$O$19,$O$2=$O$22),Best1!$F$12,IF(OR($O$2=$O$6,$O$2=$O$9,$O$2=$O$21,$O$2=$O$23),Best1!$F$14,IF(OR($O$2=$O$8,$O$2=$O$10,$O$2=$O$15,$O$2=$O$17),Best1!$F$15,""))))))) ->  | AT10: =IF(ISBLANK(I10),"",IF(OR($O$2=$O$9,$O$2=$O$10,$O$2=$O$24,$O$2=$O$25),Best1!$F$13,IF(OR($O$2=$O$22,$O$2=$O$23,$O$2=$O$28,$O$2=$O$29),Best1!$F$10,IF(OR($O$2=$O$16,$O$2=$O$17,$O$2=$O$26,$O$2=$O$27),Best1!$F$11,IF(OR($O$2=$O$14,$O$2=$O$15,$O$2=$O$20,$O$2=$O$21),Best1!$F$12,IF(OR($O$2=$O$7,$O$2=$O$8,$O$2=$O$18,$O$2=$O$19),Best1!$F$14,IF(OR($O$2=$O$5,$O$2=$O$6,$O$2=$O$12,$O$2=$O$13),Best1!$F$15,""))))))) ->  | AW10: =IF(ISBLANK(K10),"",IF(Best1!$C$3="","",ROUND(SUM(Best1!$C$3:$C$6),1))) ->  | AZ10: =IF(ISBLANK(K10),"",IF(Best1!$B$3="","",ROUND(AVERAGE(Best1!$D$3:$D$6),1))) -> 
A11: 7 | O11: ADCB | P11: 0 | Q11: 0 | X11: 0 | Y11: 0 | AH11: 0 | AI11: 0 | AN11: =IF(ISBLANK(E11),"",IF(OR($O$2=$O$5,$O$2=$O$6,$O$2=$O$12,$O$2=$O$13),Best1!$F$10,IF(OR($O$2=$O$7,$O$2=$O$8,$O$2=$O$18,$O$2=$O$19),Best1!$F$11,IF(OR($O$2=$O$9,$O$2=$O$10,$O$2=$O$24,$O$2=$O$25),Best1!$F$12,IF(OR($O$2=$O$14,$O$2=$O$15,$O$2=$O$20,$O$2=$O$21),Best1!$F$13,IF(OR($O$2=$O$16,$O$2=$O$17,$O$2=$O$26,$O$2=$O$27),Best1!$F$14,IF(OR($O$2=$O$22,$O$2=$O$23,$O$2=$O$28,$O$2=$O$29),Best1!$F$15,""))))))) ->  | AQ11: =IF(ISBLANK(H11),"",IF(OR($O$2=$O$5,$O$2=$O$7,$O$2=$O$27,$O$2=$O$29),Best1!$F$13,IF(OR($O$2=$O$18,$O$2=$O$20,$O$2=$O$24,$O$2=$O$26),Best1!$F$10,IF(OR($O$2=$O$12,$O$2=$O$14,$O$2=$O$25,$O$2=$O$28),Best1!$F$11,IF(OR($O$2=$O$13,$O$2=$O$16,$O$2=$O$19,$O$2=$O$22),Best1!$F$12,IF(OR($O$2=$O$6,$O$2=$O$9,$O$2=$O$21,$O$2=$O$23),Best1!$F$14,IF(OR($O$2=$O$8,$O$2=$O$10,$O$2=$O$15,$O$2=$O$17),Best1!$F$15,""))))))) ->  | AT11: =IF(ISBLANK(I11),"",IF(OR($O$2=$O$9,$O$2=$O$10,$O$2=$O$24,$O$2=$O$25),Best1!$F$13,IF(OR($O$2=$O$22,$O$2=$O$23,$O$2=$O$28,$O$2=$O$29),Best1!$F$10,IF(OR($O$2=$O$16,$O$2=$O$17,$O$2=$O$26,$O$2=$O$27),Best1!$F$11,IF(OR($O$2=$O$14,$O$2=$O$15,$O$2=$O$20,$O$2=$O$21),Best1!$F$12,IF(OR($O$2=$O$7,$O$2=$O$8,$O$2=$O$18,$O$2=$O$19),Best1!$F$14,IF(OR($O$2=$O$5,$O$2=$O$6,$O$2=$O$12,$O$2=$O$13),Best1!$F$15,""))))))) ->  | AW11: =IF(ISBLANK(K11),"",IF(Best1!$C$3="","",ROUND(SUM(Best1!$C$3:$C$6),1))) ->  | AZ11: =IF(ISBLANK(K11),"",IF(Best1!$B$3="","",ROUND(AVERAGE(Best1!$D$3:$D$6),1))) -> 
A12: 8 | O12: BACD | P12: 0 | Q12: 0 | X12: 0 | Y12: 0 | AH12: 0 | AI12: 0 | AN12: =IF(ISBLANK(E12),"",IF(OR($O$2=$O$5,$O$2=$O$6,$O$2=$O$12,$O$2=$O$13),Best1!$F$10,IF(OR($O$2=$O$7,$O$2=$O$8,$O$2=$O$18,$O$2=$O$19),Best1!$F$11,IF(OR($O$2=$O$9,$O$2=$O$10,$O$2=$O$24,$O$2=$O$25),Best1!$F$12,IF(OR($O$2=$O$14,$O$2=$O$15,$O$2=$O$20,$O$2=$O$21),Best1!$F$13,IF(OR($O$2=$O$16,$O$2=$O$17,$O$2=$O$26,$O$2=$O$27),Best1!$F$14,IF(OR($O$2=$O$22,$O$2=$O$23,$O$2=$O$28,$O$2=$O$29),Best1!$F$15,""))))))) ->  | AQ12: =IF(ISBLANK(H12),"",IF(OR($O$2=$O$5,$O$2=$O$7,$O$2=$O$27,$O$2=$O$29),Best1!$F$13,IF(OR($O$2=$O$18,$O$2=$O$20,$O$2=$O$24,$O$2=$O$26),Best1!$F$10,IF(OR($O$2=$O$12,$O$2=$O$14,$O$2=$O$25,$O$2=$O$28),Best1!$F$11,IF(OR($O$2=$O$13,$O$2=$O$16,$O$2=$O$19,$O$2=$O$22),Best1!$F$12,IF(OR($O$2=$O$6,$O$2=$O$9,$O$2=$O$21,$O$2=$O$23),Best1!$F$14,IF(OR($O$2=$O$8,$O$2=$O$10,$O$2=$O$15,$O$2=$O$17),Best1!$F$15,""))))))) ->  | AT12: =IF(ISBLANK(I12),"",IF(OR($O$2=$O$9,$O$2=$O$10,$O$2=$O$24,$O$2=$O$25),Best1!$F$13,IF(OR($O$2=$O$22,$O$2=$O$23,$O$2=$O$28,$O$2=$O$29),Best1!$F$10,IF(OR($O$2=$O$16,$O$2=$O$17,$O$2=$O$26,$O$2=$O$27),Best1!$F$11,IF(OR($O$2=$O$14,$O$2=$O$15,$O$2=$O$20,$O$2=$O$21),Best1!$F$12,IF(OR($O$2=$O$7,$O$2=$O$8,$O$2=$O$18,$O$2=$O$19),Best1!$F$14,IF(OR($O$2=$O$5,$O$2=$O$6,$O$2=$O$12,$O$2=$O$13),Best1!$F$15,""))))))) ->  | AW12: =IF(ISBLANK(K12),"",IF(Best1!$C$3="","",ROUND(SUM(Best1!$C$3:$C$6),1))) ->  | AZ12: =IF(ISBLANK(K12),"",IF(Best1!$B$3="","",ROUND(AVERAGE(Best1!$D$3:$D$6),1))) -> 
A13: 9 | O13: BADC | P13: 0 | Q13: 0 | X13: 0 | Y13: 0 | AH13: 0 | AI13: 0 | AN13: =IF(ISBLANK(E13),"",IF(OR($O$2=$O$5,$O$2=$O$6,$O$2=$O$12,$O$2=$O$13),Best1!$F$10,IF(OR($O$2=$O$7,$O$2=$O$8,$O$2=$O$18,$O$2=$O$19),Best1!$F$11,IF(OR($O$2=$O$9,$O$2=$O$10,$O$2=$O$24,$O$2=$O$25),Best1!$F$12,IF(OR($O$2=$O$14,$O$2=$O$15,$O$2=$O$20,$O$2=$O$21),Best1!$F$13,IF(OR($O$2=$O$16,$O$2=$O$17,$O$2=$O$26,$O$2=$O$27),Best1!$F$14,IF(OR($O$2=$O$22,$O$2=$O$23,$O$2=$O$28,$O$2=$O$29),Best1!$F$15,""))))))) ->  | AQ13: =IF(ISBLANK(H13),"",IF(OR($O$2=$O$5,$O$2=$O$7,$O$2=$O$27,$O$2=$O$29),Best1!$F$13,IF(OR($O$2=$O$18,$O$2=$O$20,$O$2=$O$24,$O$2=$O$26),Best1!$F$10,IF(OR($O$2=$O$12,$O$2=$O$14,$O$2=$O$25,$O$2=$O$28),Best1!$F$11,IF(OR($O$2=$O$13,$O$2=$O$16,$O$2=$O$19,$O$2=$O$22),Best1!$F$12,IF(OR($O$2=$O$6,$O$2=$O$9,$O$2=$O$21,$O$2=$O$23),Best1!$F$14,IF(OR($O$2=$O$8,$O$2=$O$10,$O$2=$O$15,$O$2=$O$17),Best1!$F$15,""))))))) ->  | AT13: =IF(ISBLANK(I13),"",IF(OR($O$2=$O$9,$O$2=$O$10,$O$2=$O$24,$O$2=$O$25),Best1!$F$13,IF(OR($O$2=$O$22,$O$2=$O$23,$O$2=$O$28,$O$2=$O$29),Best1!$F$10,IF(OR($O$2=$O$16,$O$2=$O$17,$O$2=$O$26,$O$2=$O$27),Best1!$F$11,IF(OR($O$2=$O$14,$O$2=$O$15,$O$2=$O$20,$O$2=$O$21),Best1!$F$12,IF(OR($O$2=$O$7,$O$2=$O$8,$O$2=$O$18,$O$2=$O$19),Best1!$F$14,IF(OR($O$2=$O$5,$O$2=$O$6,$O$2=$O$12,$O$2=$O$13),Best1!$F$15,""))))))) ->  | AW13: =IF(ISBLANK(K13),"",IF(Best1!$C$3="","",ROUND(SUM(Best1!$C$3:$C$6),1))) ->  | AZ13: =IF(ISBLANK(K13),"",IF(Best1!$B$3="","",ROUND(AVERAGE(Best1!$D$3:$D$6),1))) -> 
A14: 10 | O14: BCAD | P14: 0 | Q14: 0 | X14: 0 | Y14: 0 | AH14: 0 | AI14: 0 | AN14: =IF(ISBLANK(E14),"",IF(OR($O$2=$O$5,$O$2=$O$6,$O$2=$O$12,$O$2=$O$13),Best1!$F$10,IF(OR($O$2=$O$7,$O$2=$O$8,$O$2=$O$18,$O$2=$O$19),Best1!$F$11,IF(OR($O$2=$O$9,$O$2=$O$10,$O$2=$O$24,$O$2=$O$25),Best1!$F$12,IF(OR($O$2=$O$14,$O$2=$O$15,$O$2=$O$20,$O$2=$O$21),Best1!$F$13,IF(OR($O$2=$O$16,$O$2=$O$17,$O$2=$O$26,$O$2=$O$27),Best1!$F$14,IF(OR($O$2=$O$22,$O$2=$O$23,$O$2=$O$28,$O$2=$O$29),Best1!$F$15,""))))))) ->  | AQ14: =IF(ISBLANK(H14),"",IF(OR($O$2=$O$5,$O$2=$O$7,$O$2=$O$27,$O$2=$O$29),Best1!$F$13,IF(OR($O$2=$O$18,$O$2=$O$20,$O$2=$O$24,$O$2=$O$26),Best1!$F$10,IF(OR($O$2=$O$12,$O$2=$O$14,$O$2=$O$25,$O$2=$O$28),Best1!$F$11,IF(OR($O$2=$O$13,$O$2=$O$16,$O$2=$O$19,$O$2=$O$22),Best1!$F$12,IF(OR($O$2=$O$6,$O$2=$O$9,$O$2=$O$21,$O$2=$O$23),Best1!$F$14,IF(OR($O$2=$O$8,$O$2=$O$10,$O$2=$O$15,$O$2=$O$17),Best1!$F$15,""))))))) ->  | AT14: =IF(ISBLANK(I14),"",IF(OR($O$2=$O$9,$O$2=$O$10,$O$2=$O$24,$O$2=$O$25),Best1!$F$13,IF(OR($O$2=$O$22,$O$2=$O$23,$O$2=$O$28,$O$2=$O$29),Best1!$F$10,IF(OR($O$2=$O$16,$O$2=$O$17,$O$2=$O$26,$O$2=$O$27),Best1!$F$11,IF(OR($O$2=$O$14,$O$2=$O$15,$O$2=$O$20,$O$2=$O$21),Best1!$F$12,IF(OR($O$2=$O$7,$O$2=$O$8,$O$2=$O$18,$O$2=$O$19),Best1!$F$14,IF(OR($O$2=$O$5,$O$2=$O$6,$O$2=$O$12,$O$2=$O$13),Best1!$F$15,""))))))) ->  | AW14: =IF(ISBLANK(K14),"",IF(Best1!$C$3="","",ROUND(SUM(Best1!$C$3:$C$6),1))) ->  | AZ14: =IF(ISBLANK(K14),"",IF(Best1!$B$3="","",ROUND(AVERAGE(Best1!$D$3:$D$6),1))) -> 
A15: 11 | O15: BCDA | P15: 0 | Q15: 0 | X15: 0 | Y15: 0 | AH15: 0 | AI15: 0 | AN15: =IF(ISBLANK(E15),"",IF(OR($O$2=$O$5,$O$2=$O$6,$O$2=$O$12,$O$2=$O$13),Best1!$F$10,IF(OR($O$2=$O$7,$O$2=$O$8,$O$2=$O$18,$O$2=$O$19),Best1!$F$11,IF(OR($O$2=$O$9,$O$2=$O$10,$O$2=$O$24,$O$2=$O$25),Best1!$F$12,IF(OR($O$2=$O$14,$O$2=$O$15,$O$2=$O$20,$O$2=$O$21),Best1!$F$13,IF(OR($O$2=$O$16,$O$2=$O$17,$O$2=$O$26,$O$2=$O$27),Best1!$F$14,IF(OR($O$2=$O$22,$O$2=$O$23,$O$2=$O$28,$O$2=$O$29),Best1!$F$15,""))))))) ->  | AQ15: =IF(ISBLANK(H15),"",IF(OR($O$2=$O$5,$O$2=$O$7,$O$2=$O$27,$O$2=$O$29),Best1!$F$13,IF(OR($O$2=$O$18,$O$2=$O$20,$O$2=$O$24,$O$2=$O$26),Best1!$F$10,IF(OR($O$2=$O$12,$O$2=$O$14,$O$2=$O$25,$O$2=$O$28),Best1!$F$11,IF(OR($O$2=$O$13,$O$2=$O$16,$O$2=$O$19,$O$2=$O$22),Best1!$F$12,IF(OR($O$2=$O$6,$O$2=$O$9,$O$2=$O$21,$O$2=$O$23),Best1!$F$14,IF(OR($O$2=$O$8,$O$2=$O$10,$O$2=$O$15,$O$2=$O$17),Best1!$F$15,""))))))) ->  | AT15: =IF(ISBLANK(I15),"",IF(OR($O$2=$O$9,$O$2=$O$10,$O$2=$O$24,$O$2=$O$25),Best1!$F$13,IF(OR($O$2=$O$22,$O$2=$O$23,$O$2=$O$28,$O$2=$O$29),Best1!$F$10,IF(OR($O$2=$O$16,$O$2=$O$17,$O$2=$O$26,$O$2=$O$27),Best1!$F$11,IF(OR($O$2=$O$14,$O$2=$O$15,$O$2=$O$20,$O$2=$O$21),Best1!$F$12,IF(OR($O$2=$O$7,$O$2=$O$8,$O$2=$O$18,$O$2=$O$19),Best1!$F$14,IF(OR($O$2=$O$5,$O$2=$O$6,$O$2=$O$12,$O$2=$O$13),Best1!$F$15,""))))))) ->  | AW15: =IF(ISBLANK(K15),"",IF(Best1!$C$3="","",ROUND(SUM(Best1!$C$3:$C$6),1))) ->  | AZ15: =IF(ISBLANK(K15),"",IF(Best1!$B$3="","",ROUND(AVERAGE(Best1!$D$3:$D$6),1))) -> 
A16: 12 | O16: BDAC | P16: 0 | Q16: 0 | X16: 0 | Y16: 0 | AH16: 0 | AI16: 0 | AN16: =IF(ISBLANK(E16),"",IF(OR($O$2=$O$5,$O$2=$O$6,$O$2=$O$12,$O$2=$O$13),Best1!$F$10,IF(OR($O$2=$O$7,$O$2=$O$8,$O$2=$O$18,$O$2=$O$19),Best1!$F$11,IF(OR($O$2=$O$9,$O$2=$O$10,$O$2=$O$24,$O$2=$O$25),Best1!$F$12,IF(OR($O$2=$O$14,$O$2=$O$15,$O$2=$O$20,$O$2=$O$21),Best1!$F$13,IF(OR($O$2=$O$16,$O$2=$O$17,$O$2=$O$26,$O$2=$O$27),Best1!$F$14,IF(OR($O$2=$O$22,$O$2=$O$23,$O$2=$O$28,$O$2=$O$29),Best1!$F$15,""))))))) ->  | AQ16: =IF(ISBLANK(H16),"",IF(OR($O$2=$O$5,$O$2=$O$7,$O$2=$O$27,$O$2=$O$29),Best1!$F$13,IF(OR($O$2=$O$18,$O$2=$O$20,$O$2=$O$24,$O$2=$O$26),Best1!$F$10,IF(OR($O$2=$O$12,$O$2=$O$14,$O$2=$O$25,$O$2=$O$28),Best1!$F$11,IF(OR($O$2=$O$13,$O$2=$O$16,$O$2=$O$19,$O$2=$O$22),Best1!$F$12,IF(OR($O$2=$O$6,$O$2=$O$9,$O$2=$O$21,$O$2=$O$23),Best1!$F$14,IF(OR($O$2=$O$8,$O$2=$O$10,$O$2=$O$15,$O$2=$O$17),Best1!$F$15,""))))))) ->  | AT16: =IF(ISBLANK(I16),"",IF(OR($O$2=$O$9,$O$2=$O$10,$O$2=$O$24,$O$2=$O$25),Best1!$F$13,IF(OR($O$2=$O$22,$O$2=$O$23,$O$2=$O$28,$O$2=$O$29),Best1!$F$10,IF(OR($O$2=$O$16,$O$2=$O$17,$O$2=$O$26,$O$2=$O$27),Best1!$F$11,IF(OR($O$2=$O$14,$O$2=$O$15,$O$2=$O$20,$O$2=$O$21),Best1!$F$12,IF(OR($O$2=$O$7,$O$2=$O$8,$O$2=$O$18,$O$2=$O$19),Best1!$F$14,IF(OR($O$2=$O$5,$O$2=$O$6,$O$2=$O$12,$O$2=$O$13),Best1!$F$15,""))))))) ->  | AW16: =IF(ISBLANK(K16),"",IF(Best1!$C$3="","",ROUND(SUM(Best1!$C$3:$C$6),1))) ->  | AZ16: =IF(ISBLANK(K16),"",IF(Best1!$B$3="","",ROUND(AVERAGE(Best1!$D$3:$D$6),1))) ->  | BO16: =IF(OR(S16="",S16=0),"",S16*1) ->  | CE16: =IF(OR(AI16="",AI16=0),"",AI16*1) -> 
A17: 13 | O17: BDCA | P17: 0 | Q17: 0 | X17: 0 | Y17: 0 | AH17: 0 | AI17: 0 | AN17: =IF(ISBLANK(E17),"",IF(OR($O$2=$O$5,$O$2=$O$6,$O$2=$O$12,$O$2=$O$13),Best1!$F$10,IF(OR($O$2=$O$7,$O$2=$O$8,$O$2=$O$18,$O$2=$O$19),Best1!$F$11,IF(OR($O$2=$O$9,$O$2=$O$10,$O$2=$O$24,$O$2=$O$25),Best1!$F$12,IF(OR($O$2=$O$14,$O$2=$O$15,$O$2=$O$20,$O$2=$O$21),Best1!$F$13,IF(OR($O$2=$O$16,$O$2=$O$17,$O$2=$O$26,$O$2=$O$27),Best1!$F$14,IF(OR($O$2=$O$22,$O$2=$O$23,$O$2=$O$28,$O$2=$O$29),Best1!$F$15,""))))))) ->  | AQ17: =IF(ISBLANK(H17),"",IF(OR($O$2=$O$5,$O$2=$O$7,$O$2=$O$27,$O$2=$O$29),Best1!$F$13,IF(OR($O$2=$O$18,$O$2=$O$20,$O$2=$O$24,$O$2=$O$26),Best1!$F$10,IF(OR($O$2=$O$12,$O$2=$O$14,$O$2=$O$25,$O$2=$O$28),Best1!$F$11,IF(OR($O$2=$O$13,$O$2=$O$16,$O$2=$O$19,$O$2=$O$22),Best1!$F$12,IF(OR($O$2=$O$6,$O$2=$O$9,$O$2=$O$21,$O$2=$O$23),Best1!$F$14,IF(OR($O$2=$O$8,$O$2=$O$10,$O$2=$O$15,$O$2=$O$17),Best1!$F$15,""))))))) ->  | AT17: =IF(ISBLANK(I17),"",IF(OR($O$2=$O$9,$O$2=$O$10,$O$2=$O$24,$O$2=$O$25),Best1!$F$13,IF(OR($O$2=$O$22,$O$2=$O$23,$O$2=$O$28,$O$2=$O$29),Best1!$F$10,IF(OR($O$2=$O$16,$O$2=$O$17,$O$2=$O$26,$O$2=$O$27),Best1!$F$11,IF(OR($O$2=$O$14,$O$2=$O$15,$O$2=$O$20,$O$2=$O$21),Best1!$F$12,IF(OR($O$2=$O$7,$O$2=$O$8,$O$2=$O$18,$O$2=$O$19),Best1!$F$14,IF(OR($O$2=$O$5,$O$2=$O$6,$O$2=$O$12,$O$2=$O$13),Best1!$F$15,""))))))) ->  | AW17: =IF(ISBLANK(K17),"",IF(Best1!$C$3="","",ROUND(SUM(Best1!$C$3:$C$6),1))) ->  | AZ17: =IF(ISBLANK(K17),"",IF(Best1!$B$3="","",ROUND(AVERAGE(Best1!$D$3:$D$6),1))) -> 
A18: 14 | O18: CABD | P18: 0 | Q18: 0 | X18: 0 | Y18: 0 | AH18: 0 | AI18: 0 | AN18: =IF(ISBLANK(E18),"",IF(OR($O$2=$O$5,$O$2=$O$6,$O$2=$O$12,$O$2=$O$13),Best1!$F$10,IF(OR($O$2=$O$7,$O$2=$O$8,$O$2=$O$18,$O$2=$O$19),Best1!$F$11,IF(OR($O$2=$O$9,$O$2=$O$10,$O$2=$O$24,$O$2=$O$25),Best1!$F$12,IF(OR($O$2=$O$14,$O$2=$O$15,$O$2=$O$20,$O$2=$O$21),Best1!$F$13,IF(OR($O$2=$O$16,$O$2=$O$17,$O$2=$O$26,$O$2=$O$27),Best1!$F$14,IF(OR($O$2=$O$22,$O$2=$O$23,$O$2=$O$28,$O$2=$O$29),Best1!$F$15,""))))))) ->  | AQ18: =IF(ISBLANK(H18),"",IF(OR($O$2=$O$5,$O$2=$O$7,$O$2=$O$27,$O$2=$O$29),Best1!$F$13,IF(OR($O$2=$O$18,$O$2=$O$20,$O$2=$O$24,$O$2=$O$26),Best1!$F$10,IF(OR($O$2=$O$12,$O$2=$O$14,$O$2=$O$25,$O$2=$O$28),Best1!$F$11,IF(OR($O$2=$O$13,$O$2=$O$16,$O$2=$O$19,$O$2=$O$22),Best1!$F$12,IF(OR($O$2=$O$6,$O$2=$O$9,$O$2=$O$21,$O$2=$O$23),Best1!$F$14,IF(OR($O$2=$O$8,$O$2=$O$10,$O$2=$O$15,$O$2=$O$17),Best1!$F$15,""))))))) ->  | AT18: =IF(ISBLANK(I18),"",IF(OR($O$2=$O$9,$O$2=$O$10,$O$2=$O$24,$O$2=$O$25),Best1!$F$13,IF(OR($O$2=$O$22,$O$2=$O$23,$O$2=$O$28,$O$2=$O$29),Best1!$F$10,IF(OR($O$2=$O$16,$O$2=$O$17,$O$2=$O$26,$O$2=$O$27),Best1!$F$11,IF(OR($O$2=$O$14,$O$2=$O$15,$O$2=$O$20,$O$2=$O$21),Best1!$F$12,IF(OR($O$2=$O$7,$O$2=$O$8,$O$2=$O$18,$O$2=$O$19),Best1!$F$14,IF(OR($O$2=$O$5,$O$2=$O$6,$O$2=$O$12,$O$2=$O$13),Best1!$F$15,""))))))) ->  | AW18: =IF(ISBLANK(K18),"",IF(Best1!$C$3="","",ROUND(SUM(Best1!$C$3:$C$6),1))) ->  | AZ18: =IF(ISBLANK(K18),"",IF(Best1!$B$3="","",ROUND(AVERAGE(Best1!$D$3:$D$6),1))) -> 
A19: 15 | O19: CADB | P19: 0 | Q19: 0 | X19: 0 | Y19: 0 | AH19: 0 | AI19: 0 | AN19: =IF(ISBLANK(E19),"",IF(OR($O$2=$O$5,$O$2=$O$6,$O$2=$O$12,$O$2=$O$13),Best1!$F$10,IF(OR($O$2=$O$7,$O$2=$O$8,$O$2=$O$18,$O$2=$O$19),Best1!$F$11,IF(OR($O$2=$O$9,$O$2=$O$10,$O$2=$O$24,$O$2=$O$25),Best1!$F$12,IF(OR($O$2=$O$14,$O$2=$O$15,$O$2=$O$20,$O$2=$O$21),Best1!$F$13,IF(OR($O$2=$O$16,$O$2=$O$17,$O$2=$O$26,$O$2=$O$27),Best1!$F$14,IF(OR($O$2=$O$22,$O$2=$O$23,$O$2=$O$28,$O$2=$O$29),Best1!$F$15,""))))))) ->  | AQ19: =IF(ISBLANK(H19),"",IF(OR($O$2=$O$5,$O$2=$O$7,$O$2=$O$27,$O$2=$O$29),Best1!$F$13,IF(OR($O$2=$O$18,$O$2=$O$20,$O$2=$O$24,$O$2=$O$26),Best1!$F$10,IF(OR($O$2=$O$12,$O$2=$O$14,$O$2=$O$25,$O$2=$O$28),Best1!$F$11,IF(OR($O$2=$O$13,$O$2=$O$16,$O$2=$O$19,$O$2=$O$22),Best1!$F$12,IF(OR($O$2=$O$6,$O$2=$O$9,$O$2=$O$21,$O$2=$O$23),Best1!$F$14,IF(OR($O$2=$O$8,$O$2=$O$10,$O$2=$O$15,$O$2=$O$17),Best1!$F$15,""))))))) ->  | AT19: =IF(ISBLANK(I19),"",IF(OR($O$2=$O$9,$O$2=$O$10,$O$2=$O$24,$O$2=$O$25),Best1!$F$13,IF(OR($O$2=$O$22,$O$2=$O$23,$O$2=$O$28,$O$2=$O$29),Best1!$F$10,IF(OR($O$2=$O$16,$O$2=$O$17,$O$2=$O$26,$O$2=$O$27),Best1!$F$11,IF(OR($O$2=$O$14,$O$2=$O$15,$O$2=$O$20,$O$2=$O$21),Best1!$F$12,IF(OR($O$2=$O$7,$O$2=$O$8,$O$2=$O$18,$O$2=$O$19),Best1!$F$14,IF(OR($O$2=$O$5,$O$2=$O$6,$O$2=$O$12,$O$2=$O$13),Best1!$F$15,""))))))) ->  | AW19: =IF(ISBLANK(K19),"",IF(Best1!$C$3="","",ROUND(SUM(Best1!$C$3:$C$6),1))) ->  | AZ19: =IF(ISBLANK(K19),"",IF(Best1!$B$3="","",ROUND(AVERAGE(Best1!$D$3:$D$6),1))) -> 
A20: 16 | O20: CBAD | P20: 0 | Q20: 0 | X20: 0 | Y20: 0 | AH20: 0 | AI20: 0 | AN20: =IF(ISBLANK(E20),"",IF(OR($O$2=$O$5,$O$2=$O$6,$O$2=$O$12,$O$2=$O$13),Best1!$F$10,IF(OR($O$2=$O$7,$O$2=$O$8,$O$2=$O$18,$O$2=$O$19),Best1!$F$11,IF(OR($O$2=$O$9,$O$2=$O$10,$O$2=$O$24,$O$2=$O$25),Best1!$F$12,IF(OR($O$2=$O$14,$O$2=$O$15,$O$2=$O$20,$O$2=$O$21),Best1!$F$13,IF(OR($O$2=$O$16,$O$2=$O$17,$O$2=$O$26,$O$2=$O$27),Best1!$F$14,IF(OR($O$2=$O$22,$O$2=$O$23,$O$2=$O$28,$O$2=$O$29),Best1!$F$15,""))))))) ->  | AQ20: =IF(ISBLANK(H20),"",IF(OR($O$2=$O$5,$O$2=$O$7,$O$2=$O$27,$O$2=$O$29),Best1!$F$13,IF(OR($O$2=$O$18,$O$2=$O$20,$O$2=$O$24,$O$2=$O$26),Best1!$F$10,IF(OR($O$2=$O$12,$O$2=$O$14,$O$2=$O$25,$O$2=$O$28),Best1!$F$11,IF(OR($O$2=$O$13,$O$2=$O$16,$O$2=$O$19,$O$2=$O$22),Best1!$F$12,IF(OR($O$2=$O$6,$O$2=$O$9,$O$2=$O$21,$O$2=$O$23),Best1!$F$14,IF(OR($O$2=$O$8,$O$2=$O$10,$O$2=$O$15,$O$2=$O$17),Best1!$F$15,""))))))) ->  | AT20: =IF(ISBLANK(I20),"",IF(OR($O$2=$O$9,$O$2=$O$10,$O$2=$O$24,$O$2=$O$25),Best1!$F$13,IF(OR($O$2=$O$22,$O$2=$O$23,$O$2=$O$28,$O$2=$O$29),Best1!$F$10,IF(OR($O$2=$O$16,$O$2=$O$17,$O$2=$O$26,$O$2=$O$27),Best1!$F$11,IF(OR($O$2=$O$14,$O$2=$O$15,$O$2=$O$20,$O$2=$O$21),Best1!$F$12,IF(OR($O$2=$O$7,$O$2=$O$8,$O$2=$O$18,$O$2=$O$19),Best1!$F$14,IF(OR($O$2=$O$5,$O$2=$O$6,$O$2=$O$12,$O$2=$O$13),Best1!$F$15,""))))))) ->  | AW20: =IF(ISBLANK(K20),"",IF(Best1!$C$3="","",ROUND(SUM(Best1!$C$3:$C$6),1))) ->  | AZ20: =IF(ISBLANK(K20),"",IF(Best1!$B$3="","",ROUND(AVERAGE(Best1!$D$3:$D$6),1))) -> 
A21: 17 | O21: CBDA | P21: 0 | Q21: 0 | X21: 0 | Y21: 0 | AH21: 0 | AI21: 0 | AN21: =IF(ISBLANK(E21),"",IF(OR($O$2=$O$5,$O$2=$O$6,$O$2=$O$12,$O$2=$O$13),Best1!$F$10,IF(OR($O$2=$O$7,$O$2=$O$8,$O$2=$O$18,$O$2=$O$19),Best1!$F$11,IF(OR($O$2=$O$9,$O$2=$O$10,$O$2=$O$24,$O$2=$O$25),Best1!$F$12,IF(OR($O$2=$O$14,$O$2=$O$15,$O$2=$O$20,$O$2=$O$21),Best1!$F$13,IF(OR($O$2=$O$16,$O$2=$O$17,$O$2=$O$26,$O$2=$O$27),Best1!$F$14,IF(OR($O$2=$O$22,$O$2=$O$23,$O$2=$O$28,$O$2=$O$29),Best1!$F$15,""))))))) ->  | AQ21: =IF(ISBLANK(H21),"",IF(OR($O$2=$O$5,$O$2=$O$7,$O$2=$O$27,$O$2=$O$29),Best1!$F$13,IF(OR($O$2=$O$18,$O$2=$O$20,$O$2=$O$24,$O$2=$O$26),Best1!$F$10,IF(OR($O$2=$O$12,$O$2=$O$14,$O$2=$O$25,$O$2=$O$28),Best1!$F$11,IF(OR($O$2=$O$13,$O$2=$O$16,$O$2=$O$19,$O$2=$O$22),Best1!$F$12,IF(OR($O$2=$O$6,$O$2=$O$9,$O$2=$O$21,$O$2=$O$23),Best1!$F$14,IF(OR($O$2=$O$8,$O$2=$O$10,$O$2=$O$15,$O$2=$O$17),Best1!$F$15,""))))))) ->  | AT21: =IF(ISBLANK(I21),"",IF(OR($O$2=$O$9,$O$2=$O$10,$O$2=$O$24,$O$2=$O$25),Best1!$F$13,IF(OR($O$2=$O$22,$O$2=$O$23,$O$2=$O$28,$O$2=$O$29),Best1!$F$10,IF(OR($O$2=$O$16,$O$2=$O$17,$O$2=$O$26,$O$2=$O$27),Best1!$F$11,IF(OR($O$2=$O$14,$O$2=$O$15,$O$2=$O$20,$O$2=$O$21),Best1!$F$12,IF(OR($O$2=$O$7,$O$2=$O$8,$O$2=$O$18,$O$2=$O$19),Best1!$F$14,IF(OR($O$2=$O$5,$O$2=$O$6,$O$2=$O$12,$O$2=$O$13),Best1!$F$15,""))))))) ->  | AW21: =IF(ISBLANK(K21),"",IF(Best1!$C$3="","",ROUND(SUM(Best1!$C$3:$C$6),1))) ->  | AZ21: =IF(ISBLANK(K21),"",IF(Best1!$B$3="","",ROUND(AVERAGE(Best1!$D$3:$D$6),1))) -> 
A22: 18 | O22: CDAB | P22: 0 | Q22: 0 | X22: 0 | Y22: 0 | AH22: 0 | AI22: 0 | AN22: =IF(ISBLANK(E22),"",IF(OR($O$2=$O$5,$O$2=$O$6,$O$2=$O$12,$O$2=$O$13),Best1!$F$10,IF(OR($O$2=$O$7,$O$2=$O$8,$O$2=$O$18,$O$2=$O$19),Best1!$F$11,IF(OR($O$2=$O$9,$O$2=$O$10,$O$2=$O$24,$O$2=$O$25),Best1!$F$12,IF(OR($O$2=$O$14,$O$2=$O$15,$O$2=$O$20,$O$2=$O$21),Best1!$F$13,IF(OR($O$2=$O$16,$O$2=$O$17,$O$2=$O$26,$O$2=$O$27),Best1!$F$14,IF(OR($O$2=$O$22,$O$2=$O$23,$O$2=$O$28,$O$2=$O$29),Best1!$F$15,""))))))) ->  | AQ22: =IF(ISBLANK(H22),"",IF(OR($O$2=$O$5,$O$2=$O$7,$O$2=$O$27,$O$2=$O$29),Best1!$F$13,IF(OR($O$2=$O$18,$O$2=$O$20,$O$2=$O$24,$O$2=$O$26),Best1!$F$10,IF(OR($O$2=$O$12,$O$2=$O$14,$O$2=$O$25,$O$2=$O$28),Best1!$F$11,IF(OR($O$2=$O$13,$O$2=$O$16,$O$2=$O$19,$O$2=$O$22),Best1!$F$12,IF(OR($O$2=$O$6,$O$2=$O$9,$O$2=$O$21,$O$2=$O$23),Best1!$F$14,IF(OR($O$2=$O$8,$O$2=$O$10,$O$2=$O$15,$O$2=$O$17),Best1!$F$15,""))))))) ->  | AT22: =IF(ISBLANK(I22),"",IF(OR($O$2=$O$9,$O$2=$O$10,$O$2=$O$24,$O$2=$O$25),Best1!$F$13,IF(OR($O$2=$O$22,$O$2=$O$23,$O$2=$O$28,$O$2=$O$29),Best1!$F$10,IF(OR($O$2=$O$16,$O$2=$O$17,$O$2=$O$26,$O$2=$O$27),Best1!$F$11,IF(OR($O$2=$O$14,$O$2=$O$15,$O$2=$O$20,$O$2=$O$21),Best1!$F$12,IF(OR($O$2=$O$7,$O$2=$O$8,$O$2=$O$18,$O$2=$O$19),Best1!$F$14,IF(OR($O$2=$O$5,$O$2=$O$6,$O$2=$O$12,$O$2=$O$13),Best1!$F$15,""))))))) ->  | AW22: =IF(ISBLANK(K22),"",IF(Best1!$C$3="","",ROUND(SUM(Best1!$C$3:$C$6),1))) ->  | AZ22: =IF(ISBLANK(K22),"",IF(Best1!$B$3="","",ROUND(AVERAGE(Best1!$D$3:$D$6),1))) -> 
A23: 19 | O23: CDBA | P23: 0 | Q23: 0 | X23: 0 | Y23: 0 | AH23: 0 | AI23: 0 | AN23: =IF(ISBLANK(E23),"",IF(OR($O$2=$O$5,$O$2=$O$6,$O$2=$O$12,$O$2=$O$13),Best1!$F$10,IF(OR($O$2=$O$7,$O$2=$O$8,$O$2=$O$18,$O$2=$O$19),Best1!$F$11,IF(OR($O$2=$O$9,$O$2=$O$10,$O$2=$O$24,$O$2=$O$25),Best1!$F$12,IF(OR($O$2=$O$14,$O$2=$O$15,$O$2=$O$20,$O$2=$O$21),Best1!$F$13,IF(OR($O$2=$O$16,$O$2=$O$17,$O$2=$O$26,$O$2=$O$27),Best1!$F$14,IF(OR($O$2=$O$22,$O$2=$O$23,$O$2=$O$28,$O$2=$O$29),Best1!$F$15,""))))))) ->  | AQ23: =IF(ISBLANK(H23),"",IF(OR($O$2=$O$5,$O$2=$O$7,$O$2=$O$27,$O$2=$O$29),Best1!$F$13,IF(OR($O$2=$O$18,$O$2=$O$20,$O$2=$O$24,$O$2=$O$26),Best1!$F$10,IF(OR($O$2=$O$12,$O$2=$O$14,$O$2=$O$25,$O$2=$O$28),Best1!$F$11,IF(OR($O$2=$O$13,$O$2=$O$16,$O$2=$O$19,$O$2=$O$22),Best1!$F$12,IF(OR($O$2=$O$6,$O$2=$O$9,$O$2=$O$21,$O$2=$O$23),Best1!$F$14,IF(OR($O$2=$O$8,$O$2=$O$10,$O$2=$O$15,$O$2=$O$17),Best1!$F$15,""))))))) ->  | AT23: =IF(ISBLANK(I23),"",IF(OR($O$2=$O$9,$O$2=$O$10,$O$2=$O$24,$O$2=$O$25),Best1!$F$13,IF(OR($O$2=$O$22,$O$2=$O$23,$O$2=$O$28,$O$2=$O$29),Best1!$F$10,IF(OR($O$2=$O$16,$O$2=$O$17,$O$2=$O$26,$O$2=$O$27),Best1!$F$11,IF(OR($O$2=$O$14,$O$2=$O$15,$O$2=$O$20,$O$2=$O$21),Best1!$F$12,IF(OR($O$2=$O$7,$O$2=$O$8,$O$2=$O$18,$O$2=$O$19),Best1!$F$14,IF(OR($O$2=$O$5,$O$2=$O$6,$O$2=$O$12,$O$2=$O$13),Best1!$F$15,""))))))) ->  | AW23: =IF(ISBLANK(K23),"",IF(Best1!$C$3="","",ROUND(SUM(Best1!$C$3:$C$6),1))) ->  | AZ23: =IF(ISBLANK(K23),"",IF(Best1!$B$3="","",ROUND(AVERAGE(Best1!$D$3:$D$6),1))) -> 
A24: 20 | O24: DABC | P24: 0 | Q24: 0 | X24: 0 | Y24: 0 | AH24: 0 | AI24: 0 | AN24: =IF(ISBLANK(E24),"",IF(OR($O$2=$O$5,$O$2=$O$6,$O$2=$O$12,$O$2=$O$13),Best1!$F$10,IF(OR($O$2=$O$7,$O$2=$O$8,$O$2=$O$18,$O$2=$O$19),Best1!$F$11,IF(OR($O$2=$O$9,$O$2=$O$10,$O$2=$O$24,$O$2=$O$25),Best1!$F$12,IF(OR($O$2=$O$14,$O$2=$O$15,$O$2=$O$20,$O$2=$O$21),Best1!$F$13,IF(OR($O$2=$O$16,$O$2=$O$17,$O$2=$O$26,$O$2=$O$27),Best1!$F$14,IF(OR($O$2=$O$22,$O$2=$O$23,$O$2=$O$28,$O$2=$O$29),Best1!$F$15,""))))))) ->  | AQ24: =IF(ISBLANK(H24),"",IF(OR($O$2=$O$5,$O$2=$O$7,$O$2=$O$27,$O$2=$O$29),Best1!$F$13,IF(OR($O$2=$O$18,$O$2=$O$20,$O$2=$O$24,$O$2=$O$26),Best1!$F$10,IF(OR($O$2=$O$12,$O$2=$O$14,$O$2=$O$25,$O$2=$O$28),Best1!$F$11,IF(OR($O$2=$O$13,$O$2=$O$16,$O$2=$O$19,$O$2=$O$22),Best1!$F$12,IF(OR($O$2=$O$6,$O$2=$O$9,$O$2=$O$21,$O$2=$O$23),Best1!$F$14,IF(OR($O$2=$O$8,$O$2=$O$10,$O$2=$O$15,$O$2=$O$17),Best1!$F$15,""))))))) ->  | AT24: =IF(ISBLANK(I24),"",IF(OR($O$2=$O$9,$O$2=$O$10,$O$2=$O$24,$O$2=$O$25),Best1!$F$13,IF(OR($O$2=$O$22,$O$2=$O$23,$O$2=$O$28,$O$2=$O$29),Best1!$F$10,IF(OR($O$2=$O$16,$O$2=$O$17,$O$2=$O$26,$O$2=$O$27),Best1!$F$11,IF(OR($O$2=$O$14,$O$2=$O$15,$O$2=$O$20,$O$2=$O$21),Best1!$F$12,IF(OR($O$2=$O$7,$O$2=$O$8,$O$2=$O$18,$O$2=$O$19),Best1!$F$14,IF(OR($O$2=$O$5,$O$2=$O$6,$O$2=$O$12,$O$2=$O$13),Best1!$F$15,""))))))) ->  | AW24: =IF(ISBLANK(K24),"",IF(Best1!$C$3="","",ROUND(SUM(Best1!$C$3:$C$6),1))) ->  | AZ24: =IF(ISBLANK(K24),"",IF(Best1!$B$3="","",ROUND(AVERAGE(Best1!$D$3:$D$6),1))) -> 
A25: 21 | O25: DACB | P25: 0 | Q25: 0 | X25: 0 | Y25: 0 | AH25: 0 | AI25: 0 | AN25: =IF(ISBLANK(E25),"",IF(OR($O$2=$O$5,$O$2=$O$6,$O$2=$O$12,$O$2=$O$13),Best1!$F$10,IF(OR($O$2=$O$7,$O$2=$O$8,$O$2=$O$18,$O$2=$O$19),Best1!$F$11,IF(OR($O$2=$O$9,$O$2=$O$10,$O$2=$O$24,$O$2=$O$25),Best1!$F$12,IF(OR($O$2=$O$14,$O$2=$O$15,$O$2=$O$20,$O$2=$O$21),Best1!$F$13,IF(OR($O$2=$O$16,$O$2=$O$17,$O$2=$O$26,$O$2=$O$27),Best1!$F$14,IF(OR($O$2=$O$22,$O$2=$O$23,$O$2=$O$28,$O$2=$O$29),Best1!$F$15,""))))))) ->  | AQ25: =IF(ISBLANK(H25),"",IF(OR($O$2=$O$5,$O$2=$O$7,$O$2=$O$27,$O$2=$O$29),Best1!$F$13,IF(OR($O$2=$O$18,$O$2=$O$20,$O$2=$O$24,$O$2=$O$26),Best1!$F$10,IF(OR($O$2=$O$12,$O$2=$O$14,$O$2=$O$25,$O$2=$O$28),Best1!$F$11,IF(OR($O$2=$O$13,$O$2=$O$16,$O$2=$O$19,$O$2=$O$22),Best1!$F$12,IF(OR($O$2=$O$6,$O$2=$O$9,$O$2=$O$21,$O$2=$O$23),Best1!$F$14,IF(OR($O$2=$O$8,$O$2=$O$10,$O$2=$O$15,$O$2=$O$17),Best1!$F$15,""))))))) ->  | AT25: =IF(ISBLANK(I25),"",IF(OR($O$2=$O$9,$O$2=$O$10,$O$2=$O$24,$O$2=$O$25),Best1!$F$13,IF(OR($O$2=$O$22,$O$2=$O$23,$O$2=$O$28,$O$2=$O$29),Best1!$F$10,IF(OR($O$2=$O$16,$O$2=$O$17,$O$2=$O$26,$O$2=$O$27),Best1!$F$11,IF(OR($O$2=$O$14,$O$2=$O$15,$O$2=$O$20,$O$2=$O$21),Best1!$F$12,IF(OR($O$2=$O$7,$O$2=$O$8,$O$2=$O$18,$O$2=$O$19),Best1!$F$14,IF(OR($O$2=$O$5,$O$2=$O$6,$O$2=$O$12,$O$2=$O$13),Best1!$F$15,""))))))) ->  | AW25: =IF(ISBLANK(K25),"",IF(Best1!$C$3="","",ROUND(SUM(Best1!$C$3:$C$6),1))) ->  | AZ25: =IF(ISBLANK(K25),"",IF(Best1!$B$3="","",ROUND(AVERAGE(Best1!$D$3:$D$6),1))) -> 
A26: 22 | O26: DBAC | P26: 0 | Q26: 0 | X26: 0 | Y26: 0 | AH26: 0 | AI26: 0 | AN26: =IF(ISBLANK(E26),"",IF(OR($O$2=$O$5,$O$2=$O$6,$O$2=$O$12,$O$2=$O$13),Best1!$F$10,IF(OR($O$2=$O$7,$O$2=$O$8,$O$2=$O$18,$O$2=$O$19),Best1!$F$11,IF(OR($O$2=$O$9,$O$2=$O$10,$O$2=$O$24,$O$2=$O$25),Best1!$F$12,IF(OR($O$2=$O$14,$O$2=$O$15,$O$2=$O$20,$O$2=$O$21),Best1!$F$13,IF(OR($O$2=$O$16,$O$2=$O$17,$O$2=$O$26,$O$2=$O$27),Best1!$F$14,IF(OR($O$2=$O$22,$O$2=$O$23,$O$2=$O$28,$O$2=$O$29),Best1!$F$15,""))))))) ->  | AQ26: =IF(ISBLANK(H26),"",IF(OR($O$2=$O$5,$O$2=$O$7,$O$2=$O$27,$O$2=$O$29),Best1!$F$13,IF(OR($O$2=$O$18,$O$2=$O$20,$O$2=$O$24,$O$2=$O$26),Best1!$F$10,IF(OR($O$2=$O$12,$O$2=$O$14,$O$2=$O$25,$O$2=$O$28),Best1!$F$11,IF(OR($O$2=$O$13,$O$2=$O$16,$O$2=$O$19,$O$2=$O$22),Best1!$F$12,IF(OR($O$2=$O$6,$O$2=$O$9,$O$2=$O$21,$O$2=$O$23),Best1!$F$14,IF(OR($O$2=$O$8,$O$2=$O$10,$O$2=$O$15,$O$2=$O$17),Best1!$F$15,""))))))) ->  | AT26: =IF(ISBLANK(I26),"",IF(OR($O$2=$O$9,$O$2=$O$10,$O$2=$O$24,$O$2=$O$25),Best1!$F$13,IF(OR($O$2=$O$22,$O$2=$O$23,$O$2=$O$28,$O$2=$O$29),Best1!$F$10,IF(OR($O$2=$O$16,$O$2=$O$17,$O$2=$O$26,$O$2=$O$27),Best1!$F$11,IF(OR($O$2=$O$14,$O$2=$O$15,$O$2=$O$20,$O$2=$O$21),Best1!$F$12,IF(OR($O$2=$O$7,$O$2=$O$8,$O$2=$O$18,$O$2=$O$19),Best1!$F$14,IF(OR($O$2=$O$5,$O$2=$O$6,$O$2=$O$12,$O$2=$O$13),Best1!$F$15,""))))))) ->  | AW26: =IF(ISBLANK(K26),"",IF(Best1!$C$3="","",ROUND(SUM(Best1!$C$3:$C$6),1))) ->  | AZ26: =IF(ISBLANK(K26),"",IF(Best1!$B$3="","",ROUND(AVERAGE(Best1!$D$3:$D$6),1))) -> 
A27: 23 | O27: DBCA | P27: 0 | Q27: 0 | X27: 0 | Y27: 0 | AH27: 0 | AI27: 0 | AN27: =IF(ISBLANK(E27),"",IF(OR($O$2=$O$5,$O$2=$O$6,$O$2=$O$12,$O$2=$O$13),Best1!$F$10,IF(OR($O$2=$O$7,$O$2=$O$8,$O$2=$O$18,$O$2=$O$19),Best1!$F$11,IF(OR($O$2=$O$9,$O$2=$O$10,$O$2=$O$24,$O$2=$O$25),Best1!$F$12,IF(OR($O$2=$O$14,$O$2=$O$15,$O$2=$O$20,$O$2=$O$21),Best1!$F$13,IF(OR($O$2=$O$16,$O$2=$O$17,$O$2=$O$26,$O$2=$O$27),Best1!$F$14,IF(OR($O$2=$O$22,$O$2=$O$23,$O$2=$O$28,$O$2=$O$29),Best1!$F$15,""))))))) ->  | AQ27: =IF(ISBLANK(H27),"",IF(OR($O$2=$O$5,$O$2=$O$7,$O$2=$O$27,$O$2=$O$29),Best1!$F$13,IF(OR($O$2=$O$18,$O$2=$O$20,$O$2=$O$24,$O$2=$O$26),Best1!$F$10,IF(OR($O$2=$O$12,$O$2=$O$14,$O$2=$O$25,$O$2=$O$28),Best1!$F$11,IF(OR($O$2=$O$13,$O$2=$O$16,$O$2=$O$19,$O$2=$O$22),Best1!$F$12,IF(OR($O$2=$O$6,$O$2=$O$9,$O$2=$O$21,$O$2=$O$23),Best1!$F$14,IF(OR($O$2=$O$8,$O$2=$O$10,$O$2=$O$15,$O$2=$O$17),Best1!$F$15,""))))))) ->  | AT27: =IF(ISBLANK(I27),"",IF(OR($O$2=$O$9,$O$2=$O$10,$O$2=$O$24,$O$2=$O$25),Best1!$F$13,IF(OR($O$2=$O$22,$O$2=$O$23,$O$2=$O$28,$O$2=$O$29),Best1!$F$10,IF(OR($O$2=$O$16,$O$2=$O$17,$O$2=$O$26,$O$2=$O$27),Best1!$F$11,IF(OR($O$2=$O$14,$O$2=$O$15,$O$2=$O$20,$O$2=$O$21),Best1!$F$12,IF(OR($O$2=$O$7,$O$2=$O$8,$O$2=$O$18,$O$2=$O$19),Best1!$F$14,IF(OR($O$2=$O$5,$O$2=$O$6,$O$2=$O$12,$O$2=$O$13),Best1!$F$15,""))))))) ->  | AW27: =IF(ISBLANK(K27),"",IF(Best1!$C$3="","",ROUND(SUM(Best1!$C$3:$C$6),1))) ->  | AZ27: =IF(ISBLANK(K27),"",IF(Best1!$B$3="","",ROUND(AVERAGE(Best1!$D$3:$D$6),1))) -> 
A28: 24 | O28: DCAB | P28: 0 | Q28: 0 | X28: 0 | Y28: 0 | AH28: 0 | AI28: 0 | AN28: =IF(ISBLANK(E28),"",IF(OR($O$2=$O$5,$O$2=$O$6,$O$2=$O$12,$O$2=$O$13),Best1!$F$10,IF(OR($O$2=$O$7,$O$2=$O$8,$O$2=$O$18,$O$2=$O$19),Best1!$F$11,IF(OR($O$2=$O$9,$O$2=$O$10,$O$2=$O$24,$O$2=$O$25),Best1!$F$12,IF(OR($O$2=$O$14,$O$2=$O$15,$O$2=$O$20,$O$2=$O$21),Best1!$F$13,IF(OR($O$2=$O$16,$O$2=$O$17,$O$2=$O$26,$O$2=$O$27),Best1!$F$14,IF(OR($O$2=$O$22,$O$2=$O$23,$O$2=$O$28,$O$2=$O$29),Best1!$F$15,""))))))) ->  | AQ28: =IF(ISBLANK(H28),"",IF(OR($O$2=$O$5,$O$2=$O$7,$O$2=$O$27,$O$2=$O$29),Best1!$F$13,IF(OR($O$2=$O$18,$O$2=$O$20,$O$2=$O$24,$O$2=$O$26),Best1!$F$10,IF(OR($O$2=$O$12,$O$2=$O$14,$O$2=$O$25,$O$2=$O$28),Best1!$F$11,IF(OR($O$2=$O$13,$O$2=$O$16,$O$2=$O$19,$O$2=$O$22),Best1!$F$12,IF(OR($O$2=$O$6,$O$2=$O$9,$O$2=$O$21,$O$2=$O$23),Best1!$F$14,IF(OR($O$2=$O$8,$O$2=$O$10,$O$2=$O$15,$O$2=$O$17),Best1!$F$15,""))))))) ->  | AT28: =IF(ISBLANK(I28),"",IF(OR($O$2=$O$9,$O$2=$O$10,$O$2=$O$24,$O$2=$O$25),Best1!$F$13,IF(OR($O$2=$O$22,$O$2=$O$23,$O$2=$O$28,$O$2=$O$29),Best1!$F$10,IF(OR($O$2=$O$16,$O$2=$O$17,$O$2=$O$26,$O$2=$O$27),Best1!$F$11,IF(OR($O$2=$O$14,$O$2=$O$15,$O$2=$O$20,$O$2=$O$21),Best1!$F$12,IF(OR($O$2=$O$7,$O$2=$O$8,$O$2=$O$18,$O$2=$O$19),Best1!$F$14,IF(OR($O$2=$O$5,$O$2=$O$6,$O$2=$O$12,$O$2=$O$13),Best1!$F$15,""))))))) ->  | AW28: =IF(ISBLANK(K28),"",IF(Best1!$C$3="","",ROUND(SUM(Best1!$C$3:$C$6),1))) ->  | AZ28: =IF(ISBLANK(K28),"",IF(Best1!$B$3="","",ROUND(AVERAGE(Best1!$D$3:$D$6),1))) -> 
A29: 25 | O29: DCBA | P29: 0 | Q29: 0 | X29: 0 | Y29: 0 | AH29: 0 | AI29: 0 | AN29: =IF(ISBLANK(E29),"",IF(OR($O$2=$O$5,$O$2=$O$6,$O$2=$O$12,$O$2=$O$13),Best1!$F$10,IF(OR($O$2=$O$7,$O$2=$O$8,$O$2=$O$18,$O$2=$O$19),Best1!$F$11,IF(OR($O$2=$O$9,$O$2=$O$10,$O$2=$O$24,$O$2=$O$25),Best1!$F$12,IF(OR($O$2=$O$14,$O$2=$O$15,$O$2=$O$20,$O$2=$O$21),Best1!$F$13,IF(OR($O$2=$O$16,$O$2=$O$17,$O$2=$O$26,$O$2=$O$27),Best1!$F$14,IF(OR($O$2=$O$22,$O$2=$O$23,$O$2=$O$28,$O$2=$O$29),Best1!$F$15,""))))))) ->  | AQ29: =IF(ISBLANK(H29),"",IF(OR($O$2=$O$5,$O$2=$O$7,$O$2=$O$27,$O$2=$O$29),Best1!$F$13,IF(OR($O$2=$O$18,$O$2=$O$20,$O$2=$O$24,$O$2=$O$26),Best1!$F$10,IF(OR($O$2=$O$12,$O$2=$O$14,$O$2=$O$25,$O$2=$O$28),Best1!$F$11,IF(OR($O$2=$O$13,$O$2=$O$16,$O$2=$O$19,$O$2=$O$22),Best1!$F$12,IF(OR($O$2=$O$6,$O$2=$O$9,$O$2=$O$21,$O$2=$O$23),Best1!$F$14,IF(OR($O$2=$O$8,$O$2=$O$10,$O$2=$O$15,$O$2=$O$17),Best1!$F$15,""))))))) ->  | AT29: =IF(ISBLANK(I29),"",IF(OR($O$2=$O$9,$O$2=$O$10,$O$2=$O$24,$O$2=$O$25),Best1!$F$13,IF(OR($O$2=$O$22,$O$2=$O$23,$O$2=$O$28,$O$2=$O$29),Best1!$F$10,IF(OR($O$2=$O$16,$O$2=$O$17,$O$2=$O$26,$O$2=$O$27),Best1!$F$11,IF(OR($O$2=$O$14,$O$2=$O$15,$O$2=$O$20,$O$2=$O$21),Best1!$F$12,IF(OR($O$2=$O$7,$O$2=$O$8,$O$2=$O$18,$O$2=$O$19),Best1!$F$14,IF(OR($O$2=$O$5,$O$2=$O$6,$O$2=$O$12,$O$2=$O$13),Best1!$F$15,""))))))) ->  | AW29: =IF(ISBLANK(K29),"",IF(Best1!$C$3="","",ROUND(SUM(Best1!$C$3:$C$6),1))) ->  | AZ29: =IF(ISBLANK(K29),"",IF(Best1!$B$3="","",ROUND(AVERAGE(Best1!$D$3:$D$6),1))) -> 
A30: 26 | P30: 0 | Q30: 0 | X30: 0 | Y30: 0 | AH30: 0 | AI30: 0 | AN30: =IF(ISBLANK(E30),"",IF(OR($O$2=$O$5,$O$2=$O$6,$O$2=$O$12,$O$2=$O$13),Best1!$F$10,IF(OR($O$2=$O$7,$O$2=$O$8,$O$2=$O$18,$O$2=$O$19),Best1!$F$11,IF(OR($O$2=$O$9,$O$2=$O$10,$O$2=$O$24,$O$2=$O$25),Best1!$F$12,IF(OR($O$2=$O$14,$O$2=$O$15,$O$2=$O$20,$O$2=$O$21),Best1!$F$13,IF(OR($O$2=$O$16,$O$2=$O$17,$O$2=$O$26,$O$2=$O$27),Best1!$F$14,IF(OR($O$2=$O$22,$O$2=$O$23,$O$2=$O$28,$O$2=$O$29),Best1!$F$15,""))))))) ->  | AQ30: =IF(ISBLANK(H30),"",IF(OR($O$2=$O$5,$O$2=$O$7,$O$2=$O$27,$O$2=$O$29),Best1!$F$13,IF(OR($O$2=$O$18,$O$2=$O$20,$O$2=$O$24,$O$2=$O$26),Best1!$F$10,IF(OR($O$2=$O$12,$O$2=$O$14,$O$2=$O$25,$O$2=$O$28),Best1!$F$11,IF(OR($O$2=$O$13,$O$2=$O$16,$O$2=$O$19,$O$2=$O$22),Best1!$F$12,IF(OR($O$2=$O$6,$O$2=$O$9,$O$2=$O$21,$O$2=$O$23),Best1!$F$14,IF(OR($O$2=$O$8,$O$2=$O$10,$O$2=$O$15,$O$2=$O$17),Best1!$F$15,""))))))) ->  | AT30: =IF(ISBLANK(I30),"",IF(OR($O$2=$O$9,$O$2=$O$10,$O$2=$O$24,$O$2=$O$25),Best1!$F$13,IF(OR($O$2=$O$22,$O$2=$O$23,$O$2=$O$28,$O$2=$O$29),Best1!$F$10,IF(OR($O$2=$O$16,$O$2=$O$17,$O$2=$O$26,$O$2=$O$27),Best1!$F$11,IF(OR($O$2=$O$14,$O$2=$O$15,$O$2=$O$20,$O$2=$O$21),Best1!$F$12,IF(OR($O$2=$O$7,$O$2=$O$8,$O$2=$O$18,$O$2=$O$19),Best1!$F$14,IF(OR($O$2=$O$5,$O$2=$O$6,$O$2=$O$12,$O$2=$O$13),Best1!$F$15,""))))))) ->  | AW30: =IF(ISBLANK(K30),"",IF(Best1!$C$3="","",ROUND(SUM(Best1!$C$3:$C$6),1))) ->  | AZ30: =IF(ISBLANK(K30),"",IF(Best1!$B$3="","",ROUND(AVERAGE(Best1!$D$3:$D$6),1))) -> 
A31: 27 | P31: 0 | Q31: 0 | X31: 0 | Y31: 0 | AH31: 0 | AI31: 0 | AN31: =IF(ISBLANK(E31),"",IF(OR($O$2=$O$5,$O$2=$O$6,$O$2=$O$12,$O$2=$O$13),Best1!$F$10,IF(OR($O$2=$O$7,$O$2=$O$8,$O$2=$O$18,$O$2=$O$19),Best1!$F$11,IF(OR($O$2=$O$9,$O$2=$O$10,$O$2=$O$24,$O$2=$O$25),Best1!$F$12,IF(OR($O$2=$O$14,$O$2=$O$15,$O$2=$O$20,$O$2=$O$21),Best1!$F$13,IF(OR($O$2=$O$16,$O$2=$O$17,$O$2=$O$26,$O$2=$O$27),Best1!$F$14,IF(OR($O$2=$O$22,$O$2=$O$23,$O$2=$O$28,$O$2=$O$29),Best1!$F$15,""))))))) ->  | AO31: =IF(F31="","",F31) ->  | AQ31: =IF(ISBLANK(H31),"",IF(OR($O$2=$O$5,$O$2=$O$7,$O$2=$O$27,$O$2=$O$29),Best1!$F$13,IF(OR($O$2=$O$18,$O$2=$O$20,$O$2=$O$24,$O$2=$O$26),Best1!$F$10,IF(OR($O$2=$O$12,$O$2=$O$14,$O$2=$O$25,$O$2=$O$28),Best1!$F$11,IF(OR($O$2=$O$13,$O$2=$O$16,$O$2=$O$19,$O$2=$O$22),Best1!$F$12,IF(OR($O$2=$O$6,$O$2=$O$9,$O$2=$O$21,$O$2=$O$23),Best1!$F$14,IF(OR($O$2=$O$8,$O$2=$O$10,$O$2=$O$15,$O$2=$O$17),Best1!$F$15,""))))))) ->  | AR31: =IF(H31="","",H31) ->  | AT31: =IF(ISBLANK(I31),"",IF(OR($O$2=$O$9,$O$2=$O$10,$O$2=$O$24,$O$2=$O$25),Best1!$F$13,IF(OR($O$2=$O$22,$O$2=$O$23,$O$2=$O$28,$O$2=$O$29),Best1!$F$10,IF(OR($O$2=$O$16,$O$2=$O$17,$O$2=$O$26,$O$2=$O$27),Best1!$F$11,IF(OR($O$2=$O$14,$O$2=$O$15,$O$2=$O$20,$O$2=$O$21),Best1!$F$12,IF(OR($O$2=$O$7,$O$2=$O$8,$O$2=$O$18,$O$2=$O$19),Best1!$F$14,IF(OR($O$2=$O$5,$O$2=$O$6,$O$2=$O$12,$O$2=$O$13),Best1!$F$15,""))))))) ->  | AU31: =IF(J31="","",J31) ->  | AW31: =IF(ISBLANK(K31),"",IF(Best1!$C$3="","",ROUND(SUM(Best1!$C$3:$C$6),1))) ->  | AX31: =IF(K31="","",K31) ->  | AZ31: =IF(ISBLANK(K31),"",IF(Best1!$B$3="","",ROUND(AVERAGE(Best1!$D$3:$D$6),1))) ->  | BA31: =IF(L31="","",L31) ->  | CD31: =IF(OR(AH31="",AH31=0),"",AH31*1) -> 
A32: 28 | P32: 0 | Q32: 0 | X32: 0 | Y32: 0 | AH32: 0 | AI32: 0 | AN32: =IF(ISBLANK(E32),"",IF(OR($O$2=$O$5,$O$2=$O$6,$O$2=$O$12,$O$2=$O$13),Best1!$F$10,IF(OR($O$2=$O$7,$O$2=$O$8,$O$2=$O$18,$O$2=$O$19),Best1!$F$11,IF(OR($O$2=$O$9,$O$2=$O$10,$O$2=$O$24,$O$2=$O$25),Best1!$F$12,IF(OR($O$2=$O$14,$O$2=$O$15,$O$2=$O$20,$O$2=$O$21),Best1!$F$13,IF(OR($O$2=$O$16,$O$2=$O$17,$O$2=$O$26,$O$2=$O$27),Best1!$F$14,IF(OR($O$2=$O$22,$O$2=$O$23,$O$2=$O$28,$O$2=$O$29),Best1!$F$15,""))))))) ->  | AQ32: =IF(ISBLANK(H32),"",IF(OR($O$2=$O$5,$O$2=$O$7,$O$2=$O$27,$O$2=$O$29),Best1!$F$13,IF(OR($O$2=$O$18,$O$2=$O$20,$O$2=$O$24,$O$2=$O$26),Best1!$F$10,IF(OR($O$2=$O$12,$O$2=$O$14,$O$2=$O$25,$O$2=$O$28),Best1!$F$11,IF(OR($O$2=$O$13,$O$2=$O$16,$O$2=$O$19,$O$2=$O$22),Best1!$F$12,IF(OR($O$2=$O$6,$O$2=$O$9,$O$2=$O$21,$O$2=$O$23),Best1!$F$14,IF(OR($O$2=$O$8,$O$2=$O$10,$O$2=$O$15,$O$2=$O$17),Best1!$F$15,""))))))) ->  | AT32: =IF(ISBLANK(I32),"",IF(OR($O$2=$O$9,$O$2=$O$10,$O$2=$O$24,$O$2=$O$25),Best1!$F$13,IF(OR($O$2=$O$22,$O$2=$O$23,$O$2=$O$28,$O$2=$O$29),Best1!$F$10,IF(OR($O$2=$O$16,$O$2=$O$17,$O$2=$O$26,$O$2=$O$27),Best1!$F$11,IF(OR($O$2=$O$14,$O$2=$O$15,$O$2=$O$20,$O$2=$O$21),Best1!$F$12,IF(OR($O$2=$O$7,$O$2=$O$8,$O$2=$O$18,$O$2=$O$19),Best1!$F$14,IF(OR($O$2=$O$5,$O$2=$O$6,$O$2=$O$12,$O$2=$O$13),Best1!$F$15,""))))))) ->  | AW32: =IF(ISBLANK(K32),"",IF(Best1!$C$3="","",ROUND(SUM(Best1!$C$3:$C$6),1))) ->  | AZ32: =IF(ISBLANK(K32),"",IF(Best1!$B$3="","",ROUND(AVERAGE(Best1!$D$3:$D$6),1))) ->  | CB32: =IF(OR(AF32="",AF32=0),"",AF32*1) -> 
P34: =MIN(BW5:BW32) -> 0 | Q34: =MIN(BX5:BX32) -> 0 | R34: =MIN(BY5:BY32) -> 0 | S34: 0 | T34: 0 | U34: 0 | V34: 0 | W34: 0 | X34: 0 | Y34: 0 | Z34: 0 | AA34: 0 | AB34: 0 | AC34: 0 | AD34: 0 | AE34: 0 | AF34: 0 | AG34: 0 | AH34: 0 | AI34: 0 | AJ34: 0 | AK34: 0 | AL34: 0 | AM34: 0 | BL34: =IF(MIN(BL5:BL32)=0,"",MIN(BL5:BL32)) ->  | BM34: =IF(MIN(BM5:BM32)=0,"",MIN(BM5:BM32)) ->  | BZ34: =IF(MIN(BZ5:BZ32)=0,"",MIN(BZ5:BZ32)) -> 
AX42: =IF(AND(AX5="",AX33=""),"",MIN(AX5:AX41)) ->  | BA42: =IF(AND(BA5="",BA33=""),"",MAX(BA5:BA41)) -> 
R50: 500 | S50: 500 | T50: 500 | U50: 500 | V50: =R50*1 -> 500 | W50: =S50*1 -> 500 | X50: =T50*1 -> 500 | Y50: =U50*1 -> 500
R51: 500 | S51: 500 | T51: 500 | U51: 500 | V51: =R51*1 -> 500 | W51: =S51*1 -> 500 | X51: =T51*1 -> 500 | Y51: =U51*1 -> 500
R52: 500 | S52: 500 | T52: 500 | U52: 500 | V52: 500 | W52: 500 | X52: 500 | Y52: 500
R53: 500 | S53: 500 | T53: 500 | U53: 500 | V53: 500 | W53: 500 | X53: 500 | Y53: 500
R54: 500 | S54: 500 | T54: 500 | U54: 500 | V54: 500 | W54: 500 | X54: 500 | Y54: 500
R55: 500 | S55: 500 | T55: 500 | U55: 500 | V55: 500 | W55: 500 | X55: 500 | Y55: 500
R56: 500 | S56: 500 | T56: 500 | U56: 500 | V56: 500 | W56: 500 | X56: 500 | Y56: 500
R57: 500 | S57: 500 | T57: 500 | U57: 500 | V57: 500 | W57: 500 | X57: 500 | Y57: 500
R58: 500 | S58: 500 | T58: 500 | U58: 500 | V58: 500 | W58: 500 | X58: 500 | Y58: 500
R59: 500 | S59: 500 | T59: 500 | U59: 500 | V59: 500 | W59: 500 | X59: 500 | Y59: 500
R60: 500 | S60: 500 | T60: 500 | U60: 500 | V60: 500 | W60: 500 | X60: 500 | Y60: 500
R61: 500 | S61: 500 | T61: 500 | U61: 500 | V61: 500 | W61: 500 | X61: 500 | Y61: 500
R62: 500 | S62: 500 | T62: 500 | U62: 500 | V62: 500 | W62: 500 | X62: 500 | Y62: 500
R63: 500 | S63: 500 | T63: 500 | U63: 500 | V63: 500 | W63: 500 | X63: 500 | Y63: 500
R64: 500 | S64: 500 | T64: 500 | U64: 500 | V64: 500 | W64: 500 | X64: 500 | Y64: 500
R65: 500 | S65: 500 | T65: 500 | U65: 500 | V65: 500 | W65: 500 | X65: 500 | Y65: 500
R66: 500 | S66: 500 | T66: 500 | U66: 500 | V66: 500 | W66: 500 | X66: 500 | Y66: 500
R67: 500 | S67: 500 | T67: 500 | U67: 500 | V67: 500 | W67: 500 | X67: 500 | Y67: 500
R68: 500 | S68: 500 | T68: 500 | U68: 500 | V68: 500 | W68: 500 | X68: 500 | Y68: 500
R69: 500 | S69: 500 | T69: 500 | U69: 500 | V69: 500 | W69: 500 | X69: 500 | Y69: 500
R70: 500 | S70: 500 | T70: 500 | U70: 500 | V70: 500 | W70: 500 | X70: 500 | Y70: 500
R71: 500 | S71: 500 | T71: 500 | U71: 500 | V71: 500 | W71: 500 | X71: 500 | Y71: 500
R72: 500 | S72: 500 | T72: 500 | U72: 500 | V72: 500 | W72: 500 | X72: 500 | Y72: 500
R73: 500 | S73: 500 | T73: 500 | U73: 500 | V73: 500 | W73: 500 | X73: 500 | Y73: 500
R89: =IF(MIN(R50:R73)=0,"",MIN(R50:R73)) -> 500 | S89: 500 | T89: 500 | U89: 500 | V89: 500 | W89: 500 | X89: 500 | Y89: 500
R90: 500 | S90: 500 | T90: 500 | U90: 500 | V90: =R90*1 -> 500 | W90: =S90*1 -> 500 | X90: =T90*1 -> 500 | Y90: =U90*1 -> 500
R91: 500 | S91: 500 | T91: 500 | U91: 500 | V91: =R91*1 -> 500 | W91: =S91*1 -> 500 | X91: =T91*1 -> 500 | Y91: =U91*1 -> 500
R92: 500 | S92: 500 | T92: 500 | U92: 500 | V92: 500 | W92: 500 | X92: 500 | Y92: 500
R93: 500 | S93: 500 | T93: 500 | U93: 500 | V93: 500 | W93: 500 | X93: 500 | Y93: 500
R94: 500 | S94: 500 | T94: 500 | U94: 500 | V94: 500 | W94: 500 | X94: 500 | Y94: 500
R95: 500 | S95: 500 | T95: 500 | U95: 500 | V95: 500 | W95: 500 | X95: 500 | Y95: 500
R96: 500 | S96: 500 | T96: 500 | U96: 500 | V96: 500 | W96: 500 | X96: 500 | Y96: 500
R97: 500 | S97: 500 | T97: 500 | U97: 500 | V97: 500 | W97: 500 | X97: 500 | Y97: 500
R98: 500 | S98: 500 | T98: 500 | U98: 500 | V98: 500 | W98: 500 | X98: 500 | Y98: 500
R99: 500 | S99: 500 | T99: 500 | U99: 500 | V99: 500 | W99: 500 | X99: 500 | Y99: 500
R100: 500 | S100: 500 | T100: 500 | U100: 500 | V100: 500 | W100: 500 | X100: 500 | Y100: 500
R101: 500 | S101: 500 | T101: 500 | U101: 500 | V101: 500 | W101: 500 | X101: 500 | Y101: 500
R102: 500 | S102: 500 | T102: 500 | U102: 500 | V102: 500 | W102: 500 | X102: 500 | Y102: 500
R103: 500 | S103: 500 | T103: 500 | U103: 500 | V103: 500 | W103: 500 | X103: 500 | Y103: 500
R104: 500 | S104: 500 | T104: 500 | U104: 500 | V104: 500 | W104: 500 | X104: 500 | Y104: 500
R105: 500 | S105: 500 | T105: 500 | U105: 500 | V105: 500 | W105: 500 | X105: 500 | Y105: 500
R106: 500 | S106: 500 | T106: 500 | U106: 500 | V106: 500 | W106: 500 | X106: 500 | Y106: 500
R107: 500 | S107: 500 | T107: 500 | U107: 500 | V107: 500 | W107: 500 | X107: 500 | Y107: 500
R108: 500 | S108: 500 | T108: 500 | U108: 500 | V108: 500 | W108: 500 | X108: 500 | Y108: 500
R109: 500 | S109: 500 | T109: 500 | U109: 500 | V109: 500 | W109: 500 | X109: 500 | Y109: 500
R110: 500 | S110: 500 | T110: 500 | U110: 500 | V110: 500 | W110: 500 | X110: 500 | Y110: 500
R111: 500 | S111: 500 | T111: 500 | U111: 500 | V111: 500 | W111: 500 | X111: 500 | Y111: 500
R112: 500 | S112: 500 | T112: 500 | U112: 500 | V112: 500 | W112: 500 | X112: 500 | Y112: 500
R113: 500 | S113: 500 | T113: 500 | U113: 500 | V113: 500 | W113: 500 | X113: 500 | Y113: 500
R129: =IF(MIN(R90:R113)=0,"",MIN(R90:R113)) -> 500 | S129: 500 | T129: 500 | U129: 500 | V129: 500 | W129: 500 | X129: 500 | Y129: 500
V130: =IF(MIN(V89,V129)=500,"",MIN(V89,V129)) ->  | W130: =IF(MIN(W89,W129)=500,"",MIN(W89,W129)) -> 

Sheet Archresultats6
A1: Bilan équipe 6
O2: CBAD
AN3: ZONE 1 | AQ3: ZONE 2 | AT3: ZONE 3 | AW3: TOTAL course
B4: Dates | C4: Heure | D4: Coureur ou Ordre relais | E4: Tps zone 1 | F4: Vitesse zone 1 | G4: Tps zone 2 | H4: Vitesse zone 2 | I4: Tps zone 3 | J4: Vitesse zone 3 | K4: Tps course totale | L4: Vitesse totale totale | M4: Remarques | P4: AB (t) | Q4: AB (v) | R4: AC (t) | S4: AC (v) | T4: AD (t) | U4: AD (v) | V4: BA (v) | W4: BA (t) | X4: BC (t) | Y4: BC (v) | Z4: BD (t) | AA4: BD (v) | AB4: CA (t) | AC4: CA (v) | AD4: CB (t) | AE4: CB (v) | AF4: CD (t) | AG4: CD (v) | AH4: DA (t) | AI4: DA (v) | AJ4: DB (t) | AK4: DB (v) | AL4: DC (t) | AM4: DC (v) | AN4: Vitesse moy. théorique du binôme | AO4: Vitesse réelle du binôme | AP4: % Evolution | AQ4: Vitesse moy. théorique du binôme | AR4: Vitesse réelle du binôme | AS4: % Evolution | AT4: Vitesse moy. théorique du binôme | AU4: Vitesse réelle du binôme | AV4: % Evolution | AW4: TEMPS total théorique du groupe | AX4: TEMPS total réel du groupe | AY4: % Evolution | AZ4: VITESSE théorique du groupe | BA4: VITESSE réelle du groupe | BB4: % Evolution
A5: 1 | O5: ABCD | P5: =IF(OR($O$2=$O$5,$O$2=$O$6),E5,IF(OR($O$2=$O$18,$O$2=$O$24),G5,IF(OR($O$2=$O$22,$O$2=$O$28),I5,""))) ->  | Q5: =IF(OR($O$2=$O$5,$O$2=$O$6),F5,IF(OR($O$2=$O$18,$O$2=$O$24),H5,IF(OR($O$2=$O$22,$O$2=$O$28),J5,""))) ->  | R5: =IF(OR($O$2=$O$7,$O$2=$O$8),E5,IF(OR($O$2=$O$12,$O$2=$O$25),G5,IF(OR($O$2=$O$16,$O$2=$O$26),I5,""))) ->  | S5: =IF(OR($O$2=$O$7,$O$2=$O$8),F5,IF(OR($O$2=$O$12,$O$2=$O$25),H5,IF(OR($O$2=$O$16,$O$2=$O$26),J5,""))) ->  | T5: =IF(OR($O$2=$O$9,$O$2=$O$10),E5,IF(OR($O$2=$O$13,$O$2=$O$19),G5,IF(OR($O$2=$O$14,$O$2=$O$20),I5,""))) -> 0 | U5: =IF(OR($O$2=$O$9,$O$2=$O$10),F5,IF(OR($O$2=$O$13,$O$2=$O$19),H5,IF(OR($O$2=$O$14,$O$2=$O$20),J5,""))) -> 0 | V5: =IF(OR($O$2=$O$12,$O$2=$O$13),E5,IF(OR($O$2=$O$20,$O$2=$O$26),G5,IF(OR($O$2=$O$23,$O$2=$O$29),I5,""))) -> 0 | W5: =IF(OR($O$2=$O$12,$O$2=$O$13),F5,IF(OR($O$2=$O$20,$O$2=$O$26),H5,IF(OR($O$2=$O$23,$O$2=$O$29),J5,""))) -> 0 | X5: =IF(OR($O$2=$O$14,$O$2=$O$15),E5,IF(OR($O$2=$O$5,$O$2=$O$27),G5,IF(OR($O$2=$O$9,$O$2=$O$24),I5,""))) ->  | Y5: =IF(OR($O$2=$O$14,$O$2=$O$15),F5,IF(OR($O$2=$O$5,$O$2=$O$27),H5,IF(OR($O$2=$O$9,$O$2=$O$24),J5,""))) ->  | Z5: =IF(OR($O$2=$O$16,$O$2=$O$17),E5,IF(OR($O$2=$O$6,$O$2=$O$21),G5,IF(OR($O$2=$O$7,$O$2=$O$18),I5,""))) ->  | AA5: =IF(OR($O$2=$O$16,$O$2=$O$17),F5,IF(OR($O$2=$O$6,$O$2=$O$21),H5,IF(OR($O$2=$O$7,$O$2=$O$18),J5,""))) ->  | AB5: =IF(OR($O$2=$O$18,$O$2=$O$19),E5,IF(OR($O$2=$O$14,$O$2=$O$28),G5,IF(OR($O$2=$O$17,$O$2=$O$27),I5,""))) ->  | AC5: =IF(OR($O$2=$O$18,$O$2=$O$19),F5,IF(OR($O$2=$O$14,$O$2=$O$28),H5,IF(OR($O$2=$O$17,$O$2=$O$27),J5,""))) ->  | AD5: =IF(OR($O$2=$O$20,$O$2=$O$21),E5,IF(OR($O$2=$O$7,$O$2=$O$29),G5,IF(OR($O$2=$O$10,$O$2=$O$11),I5,""))) -> 0 | AE5: =IF(OR($O$2=$O$20,$O$2=$O$21),F5,IF(OR($O$2=$O$7,$O$2=$O$29),H5,IF(OR($O$2=$O$10,$O$2=$O$11),J5,""))) -> 0 | AF5: =IF(OR($O$2=$O$22,$O$2=$O$23),E5,IF(OR($O$2=$O$8,$O$2=$O$15),G5,IF(OR($O$2=$O$5,$O$2=$O$12),I5,""))) ->  | AG5: =IF(OR($O$2=$O$22,$O$2=$O$23),F5,IF(OR($O$2=$O$8,$O$2=$O$15),H5,IF(OR($O$2=$O$5,$O$2=$O$12),J5,""))) ->  | AH5: =IF(OR($O$2=$O$24,$O$2=$O$25),E5,IF(OR($O$2=$O$16,$O$2=$O$22),G5,IF(OR($O$2=$O$15,$O$2=$O$21),I5,""))) ->  | AI5: =IF(OR($O$2=$O$24,$O$2=$O$25),F5,IF(OR($O$2=$O$16,$O$2=$O$22),H5,IF(OR($O$2=$O$15,$O$2=$O$21),J5,""))) ->  | AJ5: =IF(OR($O$2=$O$26,$O$2=$O$27),E5,IF(OR($O$2=$O$9,$O$2=$O$23),G5,IF(OR($O$2=$O$8,$O$2=$O$19),I5,""))) ->  | AK5: =IF(OR($O$2=$O$26,$O$2=$O$27),F5,IF(OR($O$2=$O$9,$O$2=$O$23),H5,IF(OR($O$2=$O$8,$O$2=$O$19),J5,""))) ->  | AL5: =IF(OR($O$2=$O$28,$O$2=$O$29),E5,IF(OR($O$2=$O$10,$O$2=$O$11),G5,IF(OR($O$2=$O$6,$O$2=$O$13),I5,""))) ->  | AM5: =IF(OR($O$2=$O$28,$O$2=$O$29),F5,IF(OR($O$2=$O$10,$O$2=$O$11),H5,IF(OR($O$2=$O$6,$O$2=$O$13),J5,""))) ->  | AN5: =IF(ISBLANK(E5),"",IF(OR($O$2=$O$5,$O$2=$O$6,$O$2=$O$12,$O$2=$O$13),Best1!$F$10,IF(OR($O$2=$O$7,$O$2=$O$8,$O$2=$O$18,$O$2=$O$19),Best1!$F$11,IF(OR($O$2=$O$9,$O$2=$O$10,$O$2=$O$24,$O$2=$O$25),Best1!$F$12,IF(OR($O$2=$O$14,$O$2=$O$15,$O$2=$O$20,$O$2=$O$21),Best1!$F$13,IF(OR($O$2=$O$16,$O$2=$O$17,$O$2=$O$26,$O$2=$O$27),Best1!$F$14,IF(OR($O$2=$O$22,$O$2=$O$23,$O$2=$O$28,$O$2=$O$29),Best1!$F$15,""))))))) ->  | AO5: =IF(F5="","",F5) ->  | AP5: =IF(AO5="","",ROUND(((AO5-AN5)/AN5*100),1)) ->  | AQ5: =IF(ISBLANK(G5),"",IF(OR($O$2=$O$5,$O$2=$O$7,$O$2=$O$27,$O$2=$O$29),Best1!$F$13,IF(OR($O$2=$O$18,$O$2=$O$20,$O$2=$O$24,$O$2=$O$26),Best1!$F$10,IF(OR($O$2=$O$12,$O$2=$O$14,$O$2=$O$25,$O$2=$O$28),Best1!$F$11,IF(OR($O$2=$O$13,$O$2=$O$16,$O$2=$O$19,$O$2=$O$22),Best1!$F$12,IF(OR($O$2=$O$6,$O$2=$O$9,$O$2=$O$21,$O$2=$O$23),Best1!$F$14,IF(OR($O$2=$O$8,$O$2=$O$10,$O$2=$O$15,$O$2=$O$17),Best1!$F$15,""))))))) ->  | AR5: =IF(H5="","",H5) ->  | AS5: =IF(AR5="","",ROUND(((AR5-AQ5)/AQ5*100),1)) ->  | AT5: =IF(ISBLANK(I5),"",IF(OR($O$2=$O$9,$O$2=$O$10,$O$2=$O$24,$O$2=$O$25),Best1!$F$13,IF(OR($O$2=$O$22,$O$2=$O$23,$O$2=$O$28,$O$2=$O$29),Best1!$F$10,IF(OR($O$2=$O$16,$O$2=$O$17,$O$2=$O$26,$O$2=$O$27),Best1!$F$11,IF(OR($O$2=$O$14,$O$2=$O$15,$O$2=$O$20,$O$2=$O$21),Best1!$F$12,IF(OR($O$2=$O$7,$O$2=$O$8,$O$2=$O$18,$O$2=$O$19),Best1!$F$14,IF(OR($O$2=$O$5,$O$2=$O$6,$O$2=$O$12,$O$2=$O$13),Best1!$F$15,""))))))) ->  | AU5: =IF(J5="","",J5) ->  | AV5: =IF(AU5="","",ROUND(((AU5-AT5)/AT5*100),1)) ->  | AW5: =IF(ISBLANK(K5),"",IF(Best1!$C$3="","",ROUND(SUM(Best1!$C$3:$C$6),1))) ->  | AX5: =IF(K5="","",K5) ->  | AY5: =IF(AX5="","",ROUND(((AX5-AW5)/AW5*100),1)) ->  | AZ5: =IF(ISBLANK(K5),"",IF(Best1!$B$3="","",ROUND(AVERAGE(Best1!$D$3:$D$6),1))) ->  | BA5: =IF(L5="","",L5) ->  | BB5: =IF(BA5="","",ROUND(((BA5-AZ5)/AZ5*100),1)) ->  | BD5: =AX5 ->  | BL5: =IF(OR(P5="",P5=0),"",P5*1) ->  | BM5: =IF(OR(Q5="",Q5=0),"",Q5*1) -> 
A6: 2 | O6: ABDC | P6: =IF(OR($O$2=$O$5,$O$2=$O$6),E6,IF(OR($O$2=$O$18,$O$2=$O$24),G6,IF(OR($O$2=$O$22,$O$2=$O$28),I6,""))) ->  | R6: =IF(OR($O$2=$O$7,$O$2=$O$8),E6,IF(OR($O$2=$O$12,$O$2=$O$25),G6,IF(OR($O$2=$O$16,$O$2=$O$26),I6,""))) ->  | T6: =IF(OR($O$2=$O$9,$O$2=$O$10),E6,IF(OR($O$2=$O$13,$O$2=$O$19),G6,IF(OR($O$2=$O$14,$O$2=$O$20),I6,""))) -> 0 | U6: 0 | V6: =IF(OR($O$2=$O$12,$O$2=$O$13),E6,IF(OR($O$2=$O$20,$O$2=$O$26),G6,IF(OR($O$2=$O$23,$O$2=$O$29),I6,""))) -> 0 | W6: 0 | X6: =IF(OR($O$2=$O$14,$O$2=$O$15),E6,IF(OR($O$2=$O$5,$O$2=$O$27),G6,IF(OR($O$2=$O$9,$O$2=$O$24),I6,""))) ->  | Z6: =IF(OR($O$2=$O$16,$O$2=$O$17),E6,IF(OR($O$2=$O$6,$O$2=$O$21),G6,IF(OR($O$2=$O$7,$O$2=$O$18),I6,""))) ->  | AB6: =IF(OR($O$2=$O$18,$O$2=$O$19),E6,IF(OR($O$2=$O$14,$O$2=$O$28),G6,IF(OR($O$2=$O$17,$O$2=$O$27),I6,""))) ->  | AD6: =IF(OR($O$2=$O$20,$O$2=$O$21),E6,IF(OR($O$2=$O$7,$O$2=$O$29),G6,IF(OR($O$2=$O$10,$O$2=$O$11),I6,""))) -> 0 | AE6: 0 | AF6: =IF(OR($O$2=$O$22,$O$2=$O$23),E6,IF(OR($O$2=$O$8,$O$2=$O$15),G6,IF(OR($O$2=$O$5,$O$2=$O$12),I6,""))) ->  | AH6: =IF(OR($O$2=$O$24,$O$2=$O$25),E6,IF(OR($O$2=$O$16,$O$2=$O$22),G6,IF(OR($O$2=$O$15,$O$2=$O$21),I6,""))) ->  | AJ6: =IF(OR($O$2=$O$26,$O$2=$O$27),E6,IF(OR($O$2=$O$9,$O$2=$O$23),G6,IF(OR($O$2=$O$8,$O$2=$O$19),I6,""))) ->  | AL6: =IF(OR($O$2=$O$28,$O$2=$O$29),E6,IF(OR($O$2=$O$10,$O$2=$O$11),G6,IF(OR($O$2=$O$6,$O$2=$O$13),I6,""))) ->  | AN6: =IF(ISBLANK(E6),"",IF(OR($O$2=$O$5,$O$2=$O$6,$O$2=$O$12,$O$2=$O$13),Best1!$F$10,IF(OR($O$2=$O$7,$O$2=$O$8,$O$2=$O$18,$O$2=$O$19),Best1!$F$11,IF(OR($O$2=$O$9,$O$2=$O$10,$O$2=$O$24,$O$2=$O$25),Best1!$F$12,IF(OR($O$2=$O$14,$O$2=$O$15,$O$2=$O$20,$O$2=$O$21),Best1!$F$13,IF(OR($O$2=$O$16,$O$2=$O$17,$O$2=$O$26,$O$2=$O$27),Best1!$F$14,IF(OR($O$2=$O$22,$O$2=$O$23,$O$2=$O$28,$O$2=$O$29),Best1!$F$15,""))))))) ->  | AO6: =IF(F6="","",F6) ->  | AP6: =IF(AO6="","",ROUND(((AO6-AN6)/AN6*100),1)) ->  | AQ6: =IF(ISBLANK(H6),"",IF(OR($O$2=$O$5,$O$2=$O$7,$O$2=$O$27,$O$2=$O$29),Best1!$F$13,IF(OR($O$2=$O$18,$O$2=$O$20,$O$2=$O$24,$O$2=$O$26),Best1!$F$10,IF(OR($O$2=$O$12,$O$2=$O$14,$O$2=$O$25,$O$2=$O$28),Best1!$F$11,IF(OR($O$2=$O$13,$O$2=$O$16,$O$2=$O$19,$O$2=$O$22),Best1!$F$12,IF(OR($O$2=$O$6,$O$2=$O$9,$O$2=$O$21,$O$2=$O$23),Best1!$F$14,IF(OR($O$2=$O$8,$O$2=$O$10,$O$2=$O$15,$O$2=$O$17),Best1!$F$15,""))))))) ->  | AR6: =IF(H6="","",H6) ->  | AS6: =IF(AR6="","",ROUND(((AR6-AQ6)/AQ6*100),1)) ->  | AT6: =IF(ISBLANK(I6),"",IF(OR($O$2=$O$9,$O$2=$O$10,$O$2=$O$24,$O$2=$O$25),Best1!$F$13,IF(OR($O$2=$O$22,$O$2=$O$23,$O$2=$O$28,$O$2=$O$29),Best1!$F$10,IF(OR($O$2=$O$16,$O$2=$O$17,$O$2=$O$26,$O$2=$O$27),Best1!$F$11,IF(OR($O$2=$O$14,$O$2=$O$15,$O$2=$O$20,$O$2=$O$21),Best1!$F$12,IF(OR($O$2=$O$7,$O$2=$O$8,$O$2=$O$18,$O$2=$O$19),Best1!$F$14,IF(OR($O$2=$O$5,$O$2=$O$6,$O$2=$O$12,$O$2=$O$13),Best1!$F$15,""))))))) ->  | AU6: =IF(J6="","",J6) ->  | AV6: =IF(AU6="","",ROUND(((AU6-AT6)/AT6*100),1)) ->  | AW6: =IF(ISBLANK(K6),"",IF(Best1!$C$3="","",ROUND(SUM(Best1!$C$3:$C$6),1))) ->  | AX6: =IF(K6="","",K6) ->  | AY6: =IF(AX6="","",ROUND(((AX6-AW6)/AW6*100),1)) ->  | AZ6: =IF(ISBLANK(K6),"",IF(Best1!$B$3="","",ROUND(AVERAGE(Best1!$D$3:$D$6),1))) ->  | BA6: =IF(L6="","",L6) ->  | BB6: =IF(BA6="","",ROUND(((BA6-AZ6)/AZ6*100),1)) ->  | BD6: =AX6 ->  | BL6: =IF(OR(P6="",P6=0),"",P6*1) -> 
A7: 3 | O7: ACBD | T7: 0 | U7: 0 | V7: 0 | W7: 0 | AD7: 0 | AE7: 0 | AN7: =IF(ISBLANK(E7),"",IF(OR($O$2=$O$5,$O$2=$O$6,$O$2=$O$12,$O$2=$O$13),Best1!$F$10,IF(OR($O$2=$O$7,$O$2=$O$8,$O$2=$O$18,$O$2=$O$19),Best1!$F$11,IF(OR($O$2=$O$9,$O$2=$O$10,$O$2=$O$24,$O$2=$O$25),Best1!$F$12,IF(OR($O$2=$O$14,$O$2=$O$15,$O$2=$O$20,$O$2=$O$21),Best1!$F$13,IF(OR($O$2=$O$16,$O$2=$O$17,$O$2=$O$26,$O$2=$O$27),Best1!$F$14,IF(OR($O$2=$O$22,$O$2=$O$23,$O$2=$O$28,$O$2=$O$29),Best1!$F$15,""))))))) ->  | AQ7: =IF(ISBLANK(H7),"",IF(OR($O$2=$O$5,$O$2=$O$7,$O$2=$O$27,$O$2=$O$29),Best1!$F$13,IF(OR($O$2=$O$18,$O$2=$O$20,$O$2=$O$24,$O$2=$O$26),Best1!$F$10,IF(OR($O$2=$O$12,$O$2=$O$14,$O$2=$O$25,$O$2=$O$28),Best1!$F$11,IF(OR($O$2=$O$13,$O$2=$O$16,$O$2=$O$19,$O$2=$O$22),Best1!$F$12,IF(OR($O$2=$O$6,$O$2=$O$9,$O$2=$O$21,$O$2=$O$23),Best1!$F$14,IF(OR($O$2=$O$8,$O$2=$O$10,$O$2=$O$15,$O$2=$O$17),Best1!$F$15,""))))))) ->  | AT7: =IF(ISBLANK(I7),"",IF(OR($O$2=$O$9,$O$2=$O$10,$O$2=$O$24,$O$2=$O$25),Best1!$F$13,IF(OR($O$2=$O$22,$O$2=$O$23,$O$2=$O$28,$O$2=$O$29),Best1!$F$10,IF(OR($O$2=$O$16,$O$2=$O$17,$O$2=$O$26,$O$2=$O$27),Best1!$F$11,IF(OR($O$2=$O$14,$O$2=$O$15,$O$2=$O$20,$O$2=$O$21),Best1!$F$12,IF(OR($O$2=$O$7,$O$2=$O$8,$O$2=$O$18,$O$2=$O$19),Best1!$F$14,IF(OR($O$2=$O$5,$O$2=$O$6,$O$2=$O$12,$O$2=$O$13),Best1!$F$15,""))))))) ->  | AW7: =IF(ISBLANK(K7),"",IF(Best1!$C$3="","",ROUND(SUM(Best1!$C$3:$C$6),1))) ->  | AZ7: =IF(ISBLANK(K7),"",IF(Best1!$B$3="","",ROUND(AVERAGE(Best1!$D$3:$D$6),1))) -> 
